Workbook

Sheet Intro
B2: CALCUL DE LA FRANCHISE OPTIMALE 2023
B4: Des macros sont utilisées pour calculer la franchise optimale. Veuillez les activer (version Excel 2013 et 2016) :
B6: A : Une bande jaune apparaît sous le ruban du menu et la barre d'outils. Cliquez sur "Activer le contenu"
B16: B : Si l'avertissement de sécurité ne s'affiche pas comme ci-dessus, il faut ajuster les paramètres de sécurité :
B18: 1. Fichier -> Options | E18: 2. Centre de gestion de la confidentialité -> Paramètres du Centre de gestion de la confidentialité
B45: 3. Paramètres des macros -> Désactiver toutes les macros avec notification
B69: 4. Réouvrir le fichier Excel
B73: Pour plus d'informations, consultez Microsoft Support technique

Sheet OptimaleFranchise
B2: CALCUL DE LA FRANCHISE OPTIMALE 2023
B6: 1. Âge | X6: Montants en francs
N7: Franchise | R7: =IF(Parameter!$G$3="Kinder (0-18 Jahre)",0,300) -> 300 | T7: =IF(Parameter!$G$3="Kinder (0-18 Jahre)",100,500) -> 500 | V7: =IF(Parameter!$G$3="Kinder (0-18 Jahre)",200,1000) -> 1000 | X7: =IF(Parameter!$G$3="Kinder (0-18 Jahre)",300,1500) -> 1500 | Z7: =IF(Parameter!$G$3="Kinder (0-18 Jahre)",400,2000) -> 2000 | AB7: =IF(Parameter!$G$3="Kinder (0-18 Jahre)",500,2500) -> 2500 | AD7: =IF(Parameter!$G$3="Kinder (0-18 Jahre)",600,"") -> 
B8: 2. Assurance
N9: Prime mensuelle | R9: =Parameter!T24 ->  | T9: =Parameter!U24 ->  | V9: =Parameter!V24 ->  | X9: =Parameter!W24 ->  | Z9: =Parameter!X24 ->  | AB9: =Parameter!Y24 ->  | AD9: =IF(Parameter!G3="Kinder (0-18 Jahre)",Parameter!Z24,"") -> 
B10: 3. Désignation du tarif
B12: Rabais pour plusieurs enfants | N12: Prime annuelle | R12: =R9*12 ->  | T12: =T9*12 ->  | V12: =V9*12 ->  | X12: =X9*12 ->  | Z12: =Z9*12 ->  | AB12: =AB9*12 ->  | AD12: =IF(AD9="","",AD9*12) -> 
N13: Part de franchise | R13: =MIN(Parameter!$H$34,R7) -> 300 | T13: =MIN(Parameter!$H$34,T7) -> 500 | V13: =MIN(Parameter!$H$34,V7) -> 700 | X13: =MIN(Parameter!$H$34,X7) -> 700 | Z13: =MIN(Parameter!$H$34,Z7) -> 700 | AB13: =MIN(Parameter!$H$34,AB7) -> 700 | AD13: =IF(Parameter!G3="Kinder (0-18 Jahre)",MIN(Parameter!$H$34,AD7),"") -> 
B14: 4. NPA / localité | N14: ="Quote-part (10% / Max. " & Parameter!I38 & ")" -> Quote-part (10% / Max. 700) | R14: =MIN(Parameter!I38,(Parameter!$H$34-OptimaleFranchise!R13)*0.1) -> 40 | T14: =MIN(Parameter!I38,(Parameter!$H$34-OptimaleFranchise!T13)*0.1) -> 20 | V14: =MIN(Parameter!I38,(Parameter!$H$34-OptimaleFranchise!V13)*0.1) -> 0 | X14: =MIN(Parameter!I38,(Parameter!$H$34-OptimaleFranchise!X13)*0.1) -> 0 | Z14: =MIN(Parameter!I38,(Parameter!$H$34-OptimaleFranchise!Z13)*0.1) -> 0 | AB14: =MIN(Parameter!I38,(Parameter!$H$34-OptimaleFranchise!AB13)*0.1) -> 0 | AD14: =IF(Parameter!G3="Kinder (0-18 Jahre)",MIN(Parameter!I38,(Parameter!$H$34-OptimaleFranchise!AD13)*0.1),"") -> 
B16: 5. Couverture accidents | N16: Dépenses annuelles totales | R16: =SUM(R12:R14) ->  | T16: =SUM(T12:T14) ->  | V16: =SUM(V12:V14) ->  | X16: =SUM(X12:X14) ->  | Z16: =SUM(Z12:Z14) ->  | AB16: =SUM(AB12:AB14) ->  | AD16: =IF(Parameter!G3="Kinder (0-18 Jahre)",SUM(AD12:AD14),"") -> 
B18: 6. Estimation des frais médicaux
N19: =IF(Parameter!U33>0,"Le calcul n'a pas pu être réalisé.",IF(Parameter!U35=0,"L'assurance (" &Parameter!G4&") ne propose pas d'assurance pour le NPA indiqué.","Pour des dépenses de santé prévues/estimées à " & Parameter!H34 & " francs, la franchise optimale est de " & Parameter!U29 & " francs.")) -> Le calcul n'a pas pu être réalisé.
B22: = Informations complémentaires

Sheet Howtoupdate (hidden)
A1: Anleitung wie das Tool aktualisiert werden kann:
A3: 1. Alle Tabellenblätter einblenden
A5: 2. Prämienübersicht / Prämienwegweiser von Opendata (https://opendata.swiss/de/dataset/health-insurance-premiums) herunterladen. (2020 hiess die Datei "Prämien_CHEU.xlsx")
A7: 3. Auf dem Tabellenblatt "OKP_CH" befindet sich eine Pivot Tabelle. Um die gleiche Datenstruktur zu erhalten, wie hier müssen "Kanton" und "Region" drag-and-drop-mässig von der Filter-Ebene zu den Spalten ziehen:
A19: 4. Daten auf die Tabellenblätter "Erwachsene", "JungErw" und "Kind".
B21: 4a. Überschriften einfügen damit die gleiche Datenstruktur bleibt:
C22: 1. Zeile 4 Kanton
C23: 2. Zeile 5 Prämienregion
C24: 3. Zeile 6 Unfall Ja/Nein
C25: 4. Zeile 8 Franchisen
C26: Bei "Kind" kontrollieren ob Reihenfolge stimmt:
C27: 300,500,0,100,200,400,600
B29: 4b. Zeilen hineinkopieren
C30: 1. Spalte 1 BAG-Nummer
C31: 2. Spalte 2 Name des Versicherers
C32: 3. Tariftyp
C33: 4. Tarifbezeichnung
C34: 5. Altersgruppe (nur für Kinder)
B47: 4c. Prämiendaten hineinkopieren
B70: 4d. Spalte F und Zeile 7 anpassen entsprechend der neuen Anzahl Spalten und Zeilen
B72: 4e. Datum in Feld 1G und Jahr in Feld 1A anpassen
A75: 5. Prämienregionen aktualisieren
B76: 5a. Unter Priminfo -> Prämienregionen, gibt es eine Excel-Datei mit den aktuellen Regionen nach PLZ (Tabellenblatt "B_NPA")
B77: 5b. Gesamte Liste in das Tabellenblatt "Region" kopieren. Kontrollieren, ob Struktur gleich ist
C78: 1. "*" in Spalte 1, bedeutet PLZ befindet sich in mehreren Regionen oder Kantonen
C79: 2. Spalte: PLZ
C80: 3. Spalte: Ortsbezeichnung
C81: 4. Spalte Kanton
C82: 5. Spalte Region
C83: 7. Spalte Gemeinde
A86: 6. Auf Tabellenblätter "Intro" und "OptimaleFranchise" das Jahr anpassen
A89: 7. Auf den Tabellenblättern "Erwachsene", "JungErw" und "Kind" in Spalte D die Bezeichnung "Grundversicherung" durch "Assurance de base" austauschen (Ctrl+F)

Sheet Schnittpunkt (hidden)
A2: Eine Interessante Information ist der Schnittpunkt bei der grafischen Darstellung der Linien mit der höchsten und der tiefsten Franchise. Die Herleitung ist etwas kompliziert…
A4: Die Gesamtkosten berechnen sich wie folgt
A5: Gesamtkosten = Prämien + Franchise + Selbstbehalt
B8: GK = Gesamtkosten
B9: P = Prämien
B10: x = Gesundheitsausgaben
B11: F = Franchise
B12: MS = Maximaler Selbstbehalt (350/700)
A14: Um den Schnittpunkt der Linien zu berechnen, müssen die Gesamtkosten der tiefsten Franchise (t) mit den Gesamtkosten der höchsten Franchise (h) gleichgesetzt werden
A17: Diese Gleichung sollte nach x aufgelöst werden. P, F und MS sind Konstanten.
A21: Mathematisch ist auch eine Umforumung möglich:
B27: A: | D27: Teil A sieht konkret wie folgt aus:
D28: Bsp: | M28: 0 | N28: 300 | O28: 600 | P28: 900 | Q28: 1200 | R28: 1500 | S28: 1800 | T28: 2100 | U28: 2400 | V28: 2700 | W28: 3000 | X28: 3300
D29: Ft = 300 | M29: =MIN(M28,2500)-MIN(M28,300) -> 0 | N29: 0 | O29: 300 | P29: 600 | Q29: 900 | R29: 1200 | S29: 1500 | T29: 1800 | U29: 2100 | V29: 2200 | W29: 2200 | X29: 2200
D30: Fh = 2500
B35: Allgemein gilt:
B46: B: | D46: Teil B sieht konkret wie folgt aus:
D47: Bsp:
D48: Ft = 300 | Q48: 0 | R48: 300 | S48: 600 | T48: 900 | U48: 1200 | V48: 1500 | W48: 1800 | X48: 2100 | Y48: 2400 | Z48: 2700 | AA48: 3000 | AB48: 3300 | AC48: 3600 | AD48: 3900 | AE48: 4200 | AF48: 4500 | AG48: 4800 | AH48: 5100 | AI48: 5400 | AJ48: 5700 | AK48: 6000 | AL48: 6300 | AM48: 6600 | AN48: 6900 | AO48: 7200 | AP48: 7500 | AQ48: 7800 | AR48: 8100 | AS48: 8400 | AT48: 8700 | AU48: 9000 | AV48: 9300 | AW48: 9600 | AX48: 9900 | AY48: 10200 | AZ48: 10500 | BA48: 10800 | BB48: 11100 | BC48: 11400
D49: Fh = 2500 | Q49: =MIN(700,MAX(Q48-300,0)*0.1) - MIN(700,MAX(Q48-2500,0)*0.1) -> 0 | R49: =MIN(700,MAX(R48-300,0)*0.1) - MIN(700,MAX(R48-2500,0)*0.1) -> 0 | S49: 30 | T49: 60 | U49: 90 | V49: 120 | W49: 150 | X49: 180 | Y49: 210 | Z49: 220 | AA49: 220 | AB49: 220 | AC49: 220 | AD49: 220 | AE49: 220 | AF49: 220 | AG49: 220 | AH49: 220 | AI49: 220 | AJ49: 220 | AK49: 220 | AL49: 220 | AM49: 220 | AN49: 220 | AO49: 220 | AP49: 200 | AQ49: 170 | AR49: 140 | AS49: 110 | AT49: 80 | AU49: 50 | AV49: 20 | AW49: 0 | AX49: 0 | AY49: 0 | AZ49: 0 | BA49: 0 | BB49: 0 | BC49: 0
D50: MS = 700
B59: Allgemein gilt:
B78: Es gibt drei mögliche Fälle mit Schnittpunkten:
B80: Fall1: x < Ft => gemäss der Herleitung oben müsste in dem Fall Pt = Ph. Das macht keine Sinn.
B82: Fall 2: Ft < x < Fh
B84: In dem Fall gilt:
B85: A = x - Ft
B86: B = (x - Ft)*0.1
B88: somit wird aus
B92: die neue Formel
B99: Fall 3: x > Fh
B101: In dem Fall gilt:
B102: A = Fh - Ft = konstant, d.h. unabhängig von x
B103: B = (Fh - Ft)*0.1 = konstant, d.h. unabhängig von x
B105: somit gilt:
H108: Wenn diese Bedingung erfüllt ist, dann überschneiden sich die Linien und es gibt unendlich viele Schnittpunkte
B116: Es wird also nur der 2. Fall betrachet (Ft < x < Fh). Die Formel gilt: x = (Pt - Ph + 0.9Ft) / 0.9 (Herleitung siehe oben)
B118: Daten von Tabellenblatt "Optimale Franchise"
B119: F (Franchise) | C119: =OptimaleFranchise!R7 -> 300 | D119: =OptimaleFranchise!T7 -> 500 | E119: =OptimaleFranchise!V7 -> 1000 | F119: =OptimaleFranchise!X7 -> 1500 | G119: =OptimaleFranchise!Z7 -> 2000 | H119: =OptimaleFranchise!AB7 -> 2500 | I119: =OptimaleFranchise!AD7 -> 
B120: P (Prämie) | C120: =OptimaleFranchise!R12 ->  | D120: =OptimaleFranchise!T12 ->  | E120: =OptimaleFranchise!V12 ->  | F120: =OptimaleFranchise!X12 ->  | G120: =OptimaleFranchise!Z12 ->  | H120: =OptimaleFranchise!AB12 ->  | I120: =OptimaleFranchise!AD12 -> 
C123: Kinder | D123: Erwachsene
B124: Pt = | C124: =IF(C120>0,C120,IF(D120>0,D120,0)) ->  | D124: =IF(C120>0,C120,IF(D120>0,D120,0)) -> 
B125: Ph = | C125: =IF(I120>0,I120,IF(H120>0,H120,IF(G120>0,G120,0))) ->  | D125: =IF(H120>0,H120,IF(G120>0,G120,0)) -> 
B126: Ft = | C126: =IF(C120>0,C119,IF(D120>0,D119,0)) ->  | D126: =IF(C120>0,C119,IF(D120>0,D119,0)) -> 
B127: Fh = | C127: =IF(I120>0,I119,IF(H120>0,H119,IF(G120>0,G119,0))) ->  | D127: =IF(H120>0,H119,IF(G120>0,G119,0)) -> 
B129: x = | C129: =(C124-C125+0.9*C126)/0.9 ->  | D129: =(D124-D125+0.9*D126)/0.9 -> 
B131: Kontrolle1 | C131: =IF(AND(C129>C126,C129<C127),1,0) ->  | D131: =IF(AND(D129>D126,D129<D127),1,0) ->  | E131: Wenn Bedingung Ft < x < Fh erfüllt ist, wird 1 angezeigt.
B132: Kontrolle2 | C132: =IF(OR(C125=0,C124=0),0,1) ->  | D132: =IF(OR(D125=0,D124=0),0,1) ->  | E132: Wenn es entweder keine Pt oder Ph gibt, kann kein Schnittpunkt berechnet werden
B133: Berechnung Möglich? | C133: =IF(ISERROR(C131+C132),"Nein",IF(C131+C132=2,"Ja","Nein")) -> Nein | D133: =IF(ISERROR(D131+D132),"Nein",IF(D131+D132=2,"Ja","Nein")) -> Nein
B135: Folgender Satz erscheint in dem Fall unterhalb der Grafik:
B137: Kinder: | D137: ="L'intersection des lignes de la franchise la plus basse (" & C126 & " francs) et de la franchise la plus élevée (" & C127 & " francs) indique le niveau des prestations de santé au-dessus duquel une modification de la franchise est financièrement intéressante :" -> 
D138: ="Si les prestations de santé s'élèvent à moins de " & ROUND(C129,2) & " francs, il convient de choisir la franchise la plus élevée. Si elles sont plus élevées, il est conseillé de choisir la franchise la plus basse." -> 
B140: Erwachsene: | D140: ="L'intersection des lignes de la franchise la plus basse (" & D126 & " francs) et de la franchise la plus élevée (" & D127 & " francs) indique le niveau des prestations de santé au-dessus duquel une modification de la franchise est financièrement intéressante :" -> 
D141: ="Si les prestations de santé s'élèvent à moins de " & ROUND(D129,2) & " francs, il convient de choisir la franchise la plus élevée. Si elles sont plus élevées, il est conseillé de choisir la franchise la plus basse." -> 

Sheet G_K (hidden)
L4: Exemple de lecture du graphique :
L5: Avec des dépenses de santé (axe des x) s'élevant à 1000 francs, un
L6: enfant avec une franchise de 0 franc (ligne rouge) doit payer lui-même
L7: ="un total d'environ "& ROUND(Kostenspanne!M5,0) & " francs de primes." -> 
L8: À cela s'ajoute une quote-part de 100 francs pour les prestations de
L9: ="santé obtenues. Le coût total s'élève donc à "&ROUND(Kostenspanne!M38,0)&" francs." -> 
L11: =IF(Kostenspanne!M43="","","Si une franchise de 500 francs (ligne bleue) a été choisie dans le même") -> 
L12: =IF(Kostenspanne!M43="","","cas (prestations de santé de 1000 francs), les primes annuelles ne") -> 
L13: =IF(Kostenspanne!M43="",""," s'élèvent qu'à " & ROUND(Kostenspanne!C10,0) & " francs. Toutefois, la franchise (500 francs) et une") -> 
L14: =IF(Kostenspanne!M43="",""," quote-part sur le montant restant (10 % de 500) doivent encore être ") -> 
L15: =IF(Kostenspanne!M43="","","payées. Le coût total s'élève donc à " & ROUND(Kostenspanne!M43,0) & " francs.") -> 
B32: =IF(Schnittpunkt!C133="Ja",Schnittpunkt!D137,"") -> 
B33: =IF(Schnittpunkt!C133="Ja",Schnittpunkt!D138,"") -> 

Sheet G_E (hidden)
L7: Exemple de lecture du graphique :
L8: Avec des dépenses de santé (axe des x) s'élevant à 3000 francs, une
L9: personne adulte ayant une franchise de 300 francs (ligne rouge) doit
L10: ="payer elle-même pour les primes au total environ "& ROUND(Kostenspanne!AG5,0) & " francs." -> 
L12: Il faut y ajouter la franchise (300 francs) et la quote-part de 270
L13: francs ((3000-300)*10%). Les dépenses totales s'élèvent donc à
L14: =ROUND(Kostenspanne!AG38,0) &" francs." -> 
B32: =IF(Schnittpunkt!D133="Ja",Schnittpunkt!D140,"") -> 
B33: =IF(Schnittpunkt!D133="Ja",Schnittpunkt!D141,"") -> 

Sheet Parameter (hidden)
F1: Auswahl gemäss Tabellenblatt "Optimale Franchise" | K1: Referenz in den Tabellenblättern (Erwachsene, JungErw oder Kind) | Q1: Zeile herausfiltern | S1: Erwachsene
A2: Letzte Zeilen / Spalten | S2: MatrixStart | T2: =ADDRESS(1,1,1,1,"Erwachsene") -> Erwachsene!$A$1
B3: Erwahsene | C3: Junge Erw | D3: Kinder | F3: 0. Alter | G3: Junge Erwachsene (19-25 Jahre) | L3: Erwachsene | M3: JungeErw | N3: Kinder | P3: Ausgewählt | S3: MatrixEnd | T3: =ADDRESS(B4,B5,1,1,"Erwachsene") -> Erwachsene!$TD$199
A4: Zeilen | B4: =MAX(Erwachsene!F:F) -> 199 | C4: =MAX(JungErw!F:F) -> 199 | D4: =MAX(Kind!F:F) -> 331 | F4: 1. KK | K4: MatrixStart1 | L4: =ADDRESS(B9,2,1,1,"Erwachsene") -> Erwachsene!$B$9 | M4: =ADDRESS(C9,2,1,1,"JungErw") -> JungErw!$B$9 | N4: =ADDRESS(D9,2,1,1,"Kind") -> Kind!$B$9
A5: Spalten | B5: =MAX(Erwachsene!7:7) -> 524 | C5: =MAX(JungErw!7:7) -> 524 | D5: =MAX(Kind!7:7) -> 610 | K5: MatrixEnd1 | L5: =ADDRESS(B4,6,1,1,"Erwachsene") -> Erwachsene!$F$199 | M5: =ADDRESS(C4,6,1,1,"JungErw") -> JungErw!$F$199 | N5: =ADDRESS(D4,6,1,1,"Kind") -> Kind!$F$331 | S5: FRA-300 | T5: FRA-500 | U5: FRA-1000 | V5: FRA-1500 | W5: FRA-2000 | X5: FRA-2500
K6: Zeile1 | L6: =VLOOKUP($G$4,INDIRECT(L4):INDIRECT(L5),5,FALSE) ->  | M6: =VLOOKUP(G4,INDIRECT(M4):INDIRECT(M5),5,FALSE) ->  | N6: =VLOOKUP(G4,INDIRECT(N4):INDIRECT(N5),5,FALSE) ->  | P6: =IF($G$3="Erwachsene (ab 26 Jahre)",L6,IF($G$3="Junge Erwachsene (19-25 Jahre)",M6,N6)) ->  | S6: =INDEX(INDIRECT($T$2):INDIRECT($T$3),L14,L31) ->  | T6: =INDEX(INDIRECT($T$2):INDIRECT($T$3),L14,L31+1) ->  | U6: =INDEX(INDIRECT($T$2):INDIRECT($T$3),L14,L31+2) ->  | V6: =INDEX(INDIRECT($T$2):INDIRECT($T$3),L14,L31+3) ->  | W6: =INDEX(INDIRECT($T$2):INDIRECT($T$3),L14,L31+4) ->  | X6: =INDEX(INDIRECT($T$2):INDIRECT($T$3),L14,L31+5) -> 
A7: Erste Zeile / Spalte
B8: Erwahsene | C8: Junge Erw | D8: Kinder | F8: 2. Tarif | K8: MatrixStart2 | L8: =ADDRESS(L6,4,1,1,"Erwachsene") ->  | M8: =ADDRESS(M6,4,1,1,"JungErw") ->  | N8: =ADDRESS(N6,4,1,1,"Kind") ->  | S8: Junge Erwachsene
A9: Zeilen | B9: 9 | C9: 9 | D9: 9 | K9: MatrixEnd2 | L9: =L5 -> Erwachsene!$F$199 | M9: =M5 -> JungErw!$F$199 | N9: =N5 -> Kind!$F$331 | S9: MatrixStart | T9: =ADDRESS(1,1,1,1,"JungErw") -> JungErw!$A$1
A10: Spalten | B10: 7 | C10: 7 | D10: 7 | K10: Zeile2 | L10: =VLOOKUP(G8,INDIRECT(L8):INDIRECT(L9),3,FALSE) ->  | M10: =VLOOKUP(G8,INDIRECT(M8):INDIRECT(M9),3,FALSE) ->  | N10: =VLOOKUP(G8,INDIRECT(N8):INDIRECT(N9),3,FALSE) ->  | P10: =IF($G$3="Erwachsene (ab 26 Jahre)",L10,IF($G$3="Junge Erwachsene (19-25 Jahre)",M10,N10)) ->  | S10: MatrixEnd | T10: =ADDRESS(C4,C5,1,1,"JungErw") -> JungErw!$TD$199
F12: 3. Anzahl Kinder (optional) | K12: MatrixStart1 | S12: FRA-300 | T12: FRA-500 | U12: FRA-1000 | V12: FRA-1500 | W12: FRA-2000 | X12: FRA-2500
F13: K1/K2/K3… | G13: 0 | K13: MatrixEnd1 | S13: =INDEX(INDIRECT(T9):INDIRECT(T10),M14,M31) ->  | T13: =INDEX(INDIRECT(T9):INDIRECT(T10),M14,M31+1) ->  | U13: =INDEX(INDIRECT(T9):INDIRECT(T10),M14,M31+2) ->  | V13: =INDEX(INDIRECT(T9):INDIRECT(T10),M14,M31+3) ->  | W13: =INDEX(INDIRECT(T9):INDIRECT(T10),M14,M31+4) ->  | X13: =INDEX(INDIRECT(T9):INDIRECT(T10),M14,M31+5) -> 
K14: Zeile1 | L14: =L10 ->  | M14: =M10 ->  | N14: =N10+G13 ->  | P14: =IF($G$3="Erwachsene (ab 26 Jahre)",L14,IF($G$3="Junge Erwachsene (19-25 Jahre)",M14,N14)) -> 
S15: Kinder
S16: MartixStart | T16: =ADDRESS(1,1,1,1,"Kind") -> Kind!$A$1
S17: MatrixEnd | T17: =ADDRESS(D4,D5,1,1,"Kind") -> Kind!$WL$331
F18: Auswahl gemäss Tabellenblatt "Optimale Franchise" | K18: Referenz in den Tabellenblättern (Erwachsene, JungErw oder Kind) | Q18: Spalte herausfiltern
S19: FRA-300 | T19: FRA-500 | U19: FRA-0 | V19: FRA-100 | W19: FRA-200 | X19: FRA-400 | Y19: FRA-600
A20: Region/PLZ (Tabellenblatt "Region") | L20: Erwachsene | M20: JungeErw | N20: Kinder | S20: =INDEX(INDIRECT($T$16):INDIRECT($T$17),N14,N31) ->  | T20: =INDEX(INDIRECT($T$16):INDIRECT($T$17),N14,N31+1) ->  | U20: =INDEX(INDIRECT($T$16):INDIRECT($T$17),N14,N31+2) ->  | V20: =INDEX(INDIRECT($T$16):INDIRECT($T$17),N14,N31+3) ->  | W20: =INDEX(INDIRECT($T$16):INDIRECT($T$17),N14,N31+4) ->  | X20: =INDEX(INDIRECT($T$16):INDIRECT($T$17),N14,N31+5) ->  | Y20: =INDEX(INDIRECT($T$16):INDIRECT($T$17),N14,N31+6) ->  | Z20: Achtung: Merkwürdige Reihenfolge der FR bei Kinder
B21: Erste | C21: Letzte | F21: 1. PLZ | G21: 3800 | K21: MatrixStart1 | L21: =ADDRESS(4,B10,1,1,"Erwachsene") -> Erwachsene!$G$4 | M21: =ADDRESS(4,C10,1,1,"JungErw") -> JungErw!$G$4 | N21: =ADDRESS(4,D10,1,1,"Kind") -> Kind!$G$4
A22: Zeile | B22: 8 | C22: =ROW(Region!A6164) -> 6164 | F22: 1.1 Kanton | G22: BE | K22: MatrixEnd1 | L22: =ADDRESS(7,B5,1,1,"Erwachsene") -> Erwachsene!$TD$7 | M22: =ADDRESS(7,C5,1,1,"JungErw") -> JungErw!$TD$7 | N22: =ADDRESS(7,D5,1,1,"Kind") -> Kind!$WL$7
A23: Spalte | B23: 1 | C23: 9 | F23: 1.1.1 Gemeinde | G23: Interlaken | K23: Spalte1 | L23: =HLOOKUP(G22,INDIRECT(L21):INDIRECT(L22),4,FALSE) -> 79 | M23: =HLOOKUP(G22,INDIRECT(M21):INDIRECT(M22),4,FALSE) -> 79 | N23: =HLOOKUP(G22,INDIRECT(N21):INDIRECT(N22),4,FALSE) -> 91 | P23: =IF($G$3="Erwachsene (ab 26 Jahre)",L23,IF($G$3="Junge Erwachsene (19-25 Jahre)",M23,N23)) -> 79 | T23: FR-1 | U23: FR-2 | V23: FR-3 | W23: FR-4 | X23: FR-5 | Y23: FR-6 | Z23: FR-7
S24: Monatl | T24: =IF($G$3="Erwachsene (ab 26 Jahre)",S6,IF($G$3="Junge Erwachsene (19-25 Jahre)",S13,IF($G$3="Kinder (0-18 Jahre)",U20,""))) ->  | U24: =IF($G$3="Erwachsene (ab 26 Jahre)",T6,IF($G$3="Junge Erwachsene (19-25 Jahre)",T13,IF($G$3="Kinder (0-18 Jahre)",V20,""))) ->  | V24: =IF($G$3="Erwachsene (ab 26 Jahre)",U6,IF($G$3="Junge Erwachsene (19-25 Jahre)",U13,IF($G$3="Kinder (0-18 Jahre)",W20,""))) ->  | W24: =IF($G$3="Erwachsene (ab 26 Jahre)",V6,IF($G$3="Junge Erwachsene (19-25 Jahre)",V13,IF($G$3="Kinder (0-18 Jahre)",S20,""))) ->  | X24: =IF($G$3="Erwachsene (ab 26 Jahre)",W6,IF($G$3="Junge Erwachsene (19-25 Jahre)",W13,IF($G$3="Kinder (0-18 Jahre)",X20,""))) ->  | Y24: =IF($G$3="Erwachsene (ab 26 Jahre)",X6,IF($G$3="Junge Erwachsene (19-25 Jahre)",X13,IF($G$3="Kinder (0-18 Jahre)",T20,""))) ->  | Z24: =IF($G$3="Erwachsene (ab 26 Jahre)",Y6,IF($G$3="Junge Erwachsene (19-25 Jahre)",Y13,IF($G$3="Kinder (0-18 Jahre)",Y20,""))) -> 0
F25: 1.2 Prämienregion | G25: 3 | K25: MatrixStart2 | L25: =ADDRESS(5,L23,1,1,"Erwachsene") -> Erwachsene!$CA$5 | M25: =ADDRESS(5,M23,1,1,"JungErw") -> JungErw!$CA$5 | N25: =ADDRESS(5,N23,1,1,"Kind") -> Kind!$CM$5 | S25: Zur Berechnung der OptimalenFranchise müssen die höchsten Kosten herausgefiltert werden
G26: ="PR-REG CH"&G25 -> PR-REG CH3 | K26: MatrixEnd2 | L26: =L22 -> Erwachsene!$TD$7 | M26: =M22 -> JungErw!$TD$7 | N26: =N22 -> Kind!$WL$7 | S26: GesamtKosten | T26: =IF(T24>0,OptimaleFranchise!R16,999999) ->  | U26: =IF(U24>0,OptimaleFranchise!T16,99999) ->  | V26: =IF(V24>0,OptimaleFranchise!V16,99999) ->  | W26: =IF(W24>0,OptimaleFranchise!X16,99999) ->  | X26: =IF(X24>0,OptimaleFranchise!Z16,99999) ->  | Y26: =IF(Y24>0,OptimaleFranchise!AB16,99999) ->  | Z26: =IF(Z24>0,OptimaleFranchise!AD16,99999) -> 99999
K27: Spalte2 | L27: =HLOOKUP(G26,INDIRECT(L25):INDIRECT(L26),3,FALSE) -> 103 | M27: =HLOOKUP(G26,INDIRECT(M25):INDIRECT(M26),3,FALSE) -> 103 | N27: =HLOOKUP(G26,INDIRECT(N25):INDIRECT(N26),3,FALSE) -> 119 | P27: =IF($G$3="Erwachsene (ab 26 Jahre)",L27,IF($G$3="Junge Erwachsene (19-25 Jahre)",M27,N27)) -> 103 | S27: Franchise | T27: =OptimaleFranchise!R7 -> 300 | U27: =OptimaleFranchise!T7 -> 500 | V27: =OptimaleFranchise!V7 -> 1000 | W27: =OptimaleFranchise!X7 -> 1500 | X27: =OptimaleFranchise!Z7 -> 2000 | Y27: =OptimaleFranchise!AB7 -> 2500 | Z27: =OptimaleFranchise!AD7 -> 
F29: 2. Unfall | G29: MIT-UNF | K29: MatrixStart3 | L29: =ADDRESS(6,L27,1,1,"Erwachsene") -> Erwachsene!$CY$6 | M29: =ADDRESS(6,M27,1,1,"JungErw") -> JungErw!$CY$6 | N29: =ADDRESS(6,N27,1,1,"Kind") -> Kind!$DO$6 | S29: Optimale Franchise | U29: =HLOOKUP(MIN(T26:Z26),T26:Z27,2,FALSE) -> 
K30: MatrixEnd3 | L30: =L26 -> Erwachsene!$TD$7 | M30: =M26 -> JungErw!$TD$7 | N30: =N26 -> Kind!$WL$7
K31: Spalte3 | L31: =HLOOKUP(G29,INDIRECT(L29):INDIRECT(L30),2,FALSE) -> 103 | M31: =HLOOKUP(G29,INDIRECT(M29):INDIRECT(M30),2,FALSE) -> 103 | N31: =HLOOKUP(G29,INDIRECT(N29):INDIRECT(N30),2,FALSE) -> 119 | P31: =IF($G$3="Erwachsene (ab 26 Jahre)",L31,IF($G$3="Junge Erwachsene (19-25 Jahre)",M31,N31)) -> 103 | T31: =IF(ISERROR(T24),1,0) -> 1 | U31: =IF(ISERROR(U24),1,0) -> 1 | V31: 1 | W31: 1 | X31: 1 | Y31: 1 | Z31: 0
T32: Falls diese Summe grösser als 0 ist, gibt es einen Fehler
T33: Summe | U33: =SUM(T31:Z31) -> 6
F34: Auswahl Krankheitskosten | H34: 700 | T34: Falls keine Prämie in dem gewählten Ort angeobten wird, ist diese Summe 0
T35: Summe Prämien | U35: =IF(ISERROR(SUM(T24:Z24)),99999,SUM(T24:Z24)) -> 99999
H36: Erwachsene | I36: Kinder
F37: Maximaler Selbstbehalt | H37: 700 | I37: 350 | J37: <= Von Hand anpassen
F38: Formel: => | I38: =IF(G3="Kinder (0-18 Jahre)",I37,H37) -> 700

Sheet Erwachsene (hidden)
A1: Prämien Erwachsene 2023 | F1: 1 | G1: 2022-09-15
F2: 2
A3: Summe von Prämie | F3: 3 | G3: Kanton | H3: Region | I3: Unfalleinschluss | J3: Franchise
F4: 4 | G4: FR | AE4: SO | AQ4: AG | BC4: AI | BO4: AR | CA4: BE | DK4: BL | EI4: BS | EU4: GE | FG4: GL | FS4: GR | HC4: JU | HO4: LU | IY4: NE | JK4: NW | JW4: OW | KI4: SG | LS4: SH | MQ4: SZ | NC4: TG | NO4: TI | OM4: UR | OY4: VD | PW4: VS | QU4: ZE | RG4: ZG | RS4: ZH | TC4: ZR
F5: 5 | G5: PR-REG CH1 | S5: PR-REG CH2 | AE5: PR-REG CH0 | AQ5: PR-REG CH0 | BC5: PR-REG CH0 | BO5: PR-REG CH0 | CA5: PR-REG CH1 | CM5: PR-REG CH2 | CY5: PR-REG CH3 | DK5: PR-REG CH1 | DW5: PR-REG CH2 | EI5: PR-REG CH0 | EU5: PR-REG CH0 | FG5: PR-REG CH0 | FS5: PR-REG CH1 | GE5: PR-REG CH2 | GQ5: PR-REG CH3 | HC5: PR-REG CH0 | HO5: PR-REG CH1 | IA5: PR-REG CH2 | IM5: PR-REG CH3 | IY5: PR-REG CH0 | JK5: PR-REG CH0 | JW5: PR-REG CH0 | KI5: PR-REG CH1 | KU5: PR-REG CH2 | LG5: PR-REG CH3 | LS5: PR-REG CH1 | ME5: PR-REG CH2 | MQ5: PR-REG CH0 | NC5: PR-REG CH0 | NO5: PR-REG CH1 | OA5: PR-REG CH2 | OM5: PR-REG CH0 | OY5: PR-REG CH1 | PK5: PR-REG CH2 | PW5: PR-REG CH1 | QI5: PR-REG CH2 | QU5: PR-REG CH0 | RG5: PR-REG CH0 | RS5: PR-REG CH1 | SE5: PR-REG CH2 | SQ5: PR-REG CH3 | TC5: PR-REG CH0
F6: 6 | G6: MIT-UNF | M6: OHN-UNF | S6: MIT-UNF | Y6: OHN-UNF | AE6: MIT-UNF | AK6: OHN-UNF | AQ6: MIT-UNF | AW6: OHN-UNF | BC6: MIT-UNF | BI6: OHN-UNF | BO6: MIT-UNF | BU6: OHN-UNF | CA6: MIT-UNF | CG6: OHN-UNF | CM6: MIT-UNF | CS6: OHN-UNF | CY6: MIT-UNF | DE6: OHN-UNF | DK6: MIT-UNF | DQ6: OHN-UNF | DW6: MIT-UNF | EC6: OHN-UNF | EI6: MIT-UNF | EO6: OHN-UNF | EU6: MIT-UNF | FA6: OHN-UNF | FG6: MIT-UNF | FM6: OHN-UNF | FS6: MIT-UNF | FY6: OHN-UNF | GE6: MIT-UNF | GK6: OHN-UNF | GQ6: MIT-UNF | GW6: OHN-UNF | HC6: MIT-UNF | HI6: OHN-UNF | HO6: MIT-UNF | HU6: OHN-UNF | IA6: MIT-UNF | IG6: OHN-UNF | IM6: MIT-UNF | IS6: OHN-UNF | IY6: MIT-UNF | JE6: OHN-UNF | JK6: MIT-UNF | JQ6: OHN-UNF | JW6: MIT-UNF | KC6: OHN-UNF | KI6: MIT-UNF | KO6: OHN-UNF | KU6: MIT-UNF | LA6: OHN-UNF | LG6: MIT-UNF | LM6: OHN-UNF | LS6: MIT-UNF | LY6: OHN-UNF | ME6: MIT-UNF | MK6: OHN-UNF | MQ6: MIT-UNF | MW6: OHN-UNF | NC6: MIT-UNF | NI6: OHN-UNF | NO6: MIT-UNF | NU6: OHN-UNF | OA6: MIT-UNF | OG6: OHN-UNF | OM6: MIT-UNF | OS6: OHN-UNF | OY6: MIT-UNF | PE6: OHN-UNF | PK6: MIT-UNF | PQ6: OHN-UNF | PW6: MIT-UNF | QC6: OHN-UNF | QI6: MIT-UNF | QO6: OHN-UNF | QU6: MIT-UNF | RA6: OHN-UNF | RG6: MIT-UNF | RM6: OHN-UNF | RS6: MIT-UNF | RY6: OHN-UNF | SE6: MIT-UNF | SK6: OHN-UNF | SQ6: MIT-UNF | SW6: OHN-UNF | TC6: MIT-UNF | TD6: OHN-UNF
A7: 1 | B7: 2 | C7: 3 | D7: 4 | E7: 5 | G7: 7 | H7: 8 | I7: 9 | J7: 10 | K7: 11 | L7: 12 | M7: 13 | N7: 14 | O7: 15 | P7: 16 | Q7: 17 | R7: 18 | S7: 19 | T7: 20 | U7: 21 | V7: 22 | W7: 23 | X7: 24 | Y7: 25 | Z7: 26 | AA7: 27 | AB7: 28 | AC7: 29 | AD7: 30 | AE7: 31 | AF7: 32 | AG7: 33 | AH7: 34 | AI7: 35 | AJ7: 36 | AK7: 37 | AL7: 38 | AM7: 39 | AN7: 40 | AO7: 41 | AP7: 42 | AQ7: 43 | AR7: 44 | AS7: 45 | AT7: 46 | AU7: 47 | AV7: 48 | AW7: 49 | AX7: 50 | AY7: 51 | AZ7: 52 | BA7: 53 | BB7: 54 | BC7: 55 | BD7: 56 | BE7: 57 | BF7: 58 | BG7: 59 | BH7: 60 | BI7: 61 | BJ7: 62 | BK7: 63 | BL7: 64 | BM7: 65 | BN7: 66 | BO7: 67 | BP7: 68 | BQ7: 69 | BR7: 70 | BS7: 71 | BT7: 72 | BU7: 73 | BV7: 74 | BW7: 75 | BX7: 76 | BY7: 77 | BZ7: 78 | CA7: 79 | CB7: 80 | CC7: 81 | CD7: 82 | CE7: 83 | CF7: 84 | CG7: 85 | CH7: 86 | CI7: 87 | CJ7: 88 | CK7: 89 | CL7: 90 | CM7: 91 | CN7: 92 | CO7: 93 | CP7: 94 | CQ7: 95 | CR7: 96 | CS7: 97 | CT7: 98 | CU7: 99 | CV7: 100 | CW7: 101 | CX7: 102 | CY7: 103 | CZ7: 104 | DA7: 105 | DB7: 106 | DC7: 107 | DD7: 108 | DE7: 109 | DF7: 110 | DG7: 111 | DH7: 112 | DI7: 113 | DJ7: 114 | DK7: 115 | DL7: 116 | DM7: 117 | DN7: 118 | DO7: 119 | DP7: 120 | DQ7: 121 | DR7: 122 | DS7: 123 | DT7: 124 | DU7: 125 | DV7: 126 | DW7: 127 | DX7: 128 | DY7: 129 | DZ7: 130 | EA7: 131 | EB7: 132 | EC7: 133 | ED7: 134 | EE7: 135 | EF7: 136 | EG7: 137 | EH7: 138 | EI7: 139 | EJ7: 140 | EK7: 141 | EL7: 142 | EM7: 143 | EN7: 144 | EO7: 145 | EP7: 146 | EQ7: 147 | ER7: 148 | ES7: 149 | ET7: 150 | EU7: 151 | EV7: 152 | EW7: 153 | EX7: 154 | EY7: 155 | EZ7: 156 | FA7: 157 | FB7: 158 | FC7: 159 | FD7: 160 | FE7: 161 | FF7: 162 | FG7: 163 | FH7: 164 | FI7: 165 | FJ7: 166 | FK7: 167 | FL7: 168 | FM7: 169 | FN7: 170 | FO7: 171 | FP7: 172 | FQ7: 173 | FR7: 174 | FS7: 175 | FT7: 176 | FU7: 177 | FV7: 178 | FW7: 179 | FX7: 180 | FY7: 181 | FZ7: 182 | GA7: 183 | GB7: 184 | GC7: 185 | GD7: 186 | GE7: 187 | GF7: 188 | GG7: 189 | GH7: 190 | GI7: 191 | GJ7: 192 | GK7: 193 | GL7: 194 | GM7: 195 | GN7: 196 | GO7: 197 | GP7: 198 | GQ7: 199 | GR7: 200 | GS7: 201 | GT7: 202 | GU7: 203 | GV7: 204 | GW7: 205 | GX7: 206 | GY7: 207 | GZ7: 208 | HA7: 209 | HB7: 210 | HC7: 211 | HD7: 212 | HE7: 213 | HF7: 214 | HG7: 215 | HH7: 216 | HI7: 217 | HJ7: 218 | HK7: 219 | HL7: 220 | HM7: 221 | HN7: 222 | HO7: 223 | HP7: 224 | HQ7: 225 | HR7: 226 | HS7: 227 | HT7: 228 | HU7: 229 | HV7: 230 | HW7: 231 | HX7: 232 | HY7: 233 | HZ7: 234 | IA7: 235 | IB7: 236 | IC7: 237 | ID7: 238 | IE7: 239 | IF7: 240 | IG7: 241 | IH7: 242 | II7: 243 | IJ7: 244 | IK7: 245 | IL7: 246 | IM7: 247 | IN7: 248 | IO7: 249 | IP7: 250 | IQ7: 251 | IR7: 252 | IS7: 253 | IT7: 254 | IU7: 255 | IV7: 256 | IW7: 257 | IX7: 258 | IY7: 259 | IZ7: 260 | JA7: 261 | JB7: 262 | JC7: 263 | JD7: 264 | JE7: 265 | JF7: 266 | JG7: 267 | JH7: 268 | JI7: 269 | JJ7: 270 | JK7: 271 | JL7: 272 | JM7: 273 | JN7: 274 | JO7: 275 | JP7: 276 | JQ7: 277 | JR7: 278 | JS7: 279 | JT7: 280 | JU7: 281 | JV7: 282 | JW7: 283 | JX7: 284 | JY7: 285 | JZ7: 286 | KA7: 287 | KB7: 288 | KC7: 289 | KD7: 290 | KE7: 291 | KF7: 292 | KG7: 293 | KH7: 294 | KI7: 295 | KJ7: 296 | KK7: 297 | KL7: 298 | KM7: 299 | KN7: 300 | KO7: 301 | KP7: 302 | KQ7: 303 | KR7: 304 | KS7: 305 | KT7: 306 | KU7: 307 | KV7: 308 | KW7: 309 | KX7: 310 | KY7: 311 | KZ7: 312 | LA7: 313 | LB7: 314 | LC7: 315 | LD7: 316 | LE7: 317 | LF7: 318 | LG7: 319 | LH7: 320 | LI7: 321 | LJ7: 322 | LK7: 323 | LL7: 324 | LM7: 325 | LN7: 326 | LO7: 327 | LP7: 328 | LQ7: 329 | LR7: 330 | LS7: 331 | LT7: 332 | LU7: 333 | LV7: 334 | LW7: 335 | LX7: 336 | LY7: 337 | LZ7: 338 | MA7: 339 | MB7: 340 | MC7: 341 | MD7: 342 | ME7: 343 | MF7: 344 | MG7: 345 | MH7: 346 | MI7: 347 | MJ7: 348 | MK7: 349 | ML7: 350 | MM7: 351 | MN7: 352 | MO7: 353 | MP7: 354 | MQ7: 355 | MR7: 356 | MS7: 357 | MT7: 358 | MU7: 359 | MV7: 360 | MW7: 361 | MX7: 362 | MY7: 363 | MZ7: 364 | NA7: 365 | NB7: 366 | NC7: 367 | ND7: 368 | NE7: 369 | NF7: 370 | NG7: 371 | NH7: 372 | NI7: 373 | NJ7: 374 | NK7: 375 | NL7: 376 | NM7: 377 | NN7: 378 | NO7: 379 | NP7: 380 | NQ7: 381 | NR7: 382 | NS7: 383 | NT7: 384 | NU7: 385 | NV7: 386 | NW7: 387 | NX7: 388 | NY7: 389 | NZ7: 390 | OA7: 391 | OB7: 392 | OC7: 393 | OD7: 394 | OE7: 395 | OF7: 396 | OG7: 397 | OH7: 398 | OI7: 399 | OJ7: 400 | OK7: 401 | OL7: 402 | OM7: 403 | ON7: 404 | OO7: 405 | OP7: 406 | OQ7: 407 | OR7: 408 | OS7: 409 | OT7: 410 | OU7: 411 | OV7: 412 | OW7: 413 | OX7: 414 | OY7: 415 | OZ7: 416 | PA7: 417 | PB7: 418 | PC7: 419 | PD7: 420 | PE7: 421 | PF7: 422 | PG7: 423 | PH7: 424 | PI7: 425 | PJ7: 426 | PK7: 427 | PL7: 428 | PM7: 429 | PN7: 430 | PO7: 431 | PP7: 432 | PQ7: 433 | PR7: 434 | PS7: 435 | PT7: 436 | PU7: 437 | PV7: 438 | PW7: 439 | PX7: 440 | PY7: 441 | PZ7: 442 | QA7: 443 | QB7: 444 | QC7: 445 | QD7: 446 | QE7: 447 | QF7: 448 | QG7: 449 | QH7: 450 | QI7: 451 | QJ7: 452 | QK7: 453 | QL7: 454 | QM7: 455 | QN7: 456 | QO7: 457 | QP7: 458 | QQ7: 459 | QR7: 460 | QS7: 461 | QT7: 462 | QU7: 463 | QV7: 464 | QW7: 465 | QX7: 466 | QY7: 467 | QZ7: 468 | RA7: 469 | RB7: 470 | RC7: 471 | RD7: 472 | RE7: 473 | RF7: 474 | RG7: 475 | RH7: 476 | RI7: 477 | RJ7: 478 | RK7: 479 | RL7: 480 | RM7: 481 | RN7: 482 | RO7: 483 | RP7: 484 | RQ7: 485 | RR7: 486 | RS7: 487 | RT7: 488 | RU7: 489 | RV7: 490 | RW7: 491 | RX7: 492 | RY7: 493 | RZ7: 494 | SA7: 495 | SB7: 496 | SC7: 497 | SD7: 498 | SE7: 499 | SF7: 500 | SG7: 501 | SH7: 502 | SI7: 503 | SJ7: 504 | SK7: 505 | SL7: 506 | SM7: 507 | SN7: 508 | SO7: 509 | SP7: 510 | SQ7: 511 | SR7: 512 | SS7: 513 | ST7: 514 | SU7: 515 | SV7: 516 | SW7: 517 | SX7: 518 | SY7: 519 | SZ7: 520 | TA7: 521 | TB7: 522 | TC7: 523 | TD7: 524
A8: Versicherer | B8: VersName | C8: Tariftyp | D8: Tarifbezeichnung | E8: Altersuntergruppe | F8: 8 | G8: FRA-300 | H8: FRA-500 | I8: FRA-1000 | J8: FRA-1500 | K8: FRA-2000 | L8: FRA-2500 | M8: FRA-300 | N8: FRA-500 | O8: FRA-1000 | P8: FRA-1500 | Q8: FRA-2000 | R8: FRA-2500 | S8: FRA-300 | T8: FRA-500 | U8: FRA-1000 | V8: FRA-1500 | W8: FRA-2000 | X8: FRA-2500 | Y8: FRA-300 | Z8: FRA-500 | AA8: FRA-1000 | AB8: FRA-1500 | AC8: FRA-2000 | AD8: FRA-2500 | AE8: FRA-300 | AF8: FRA-500 | AG8: FRA-1000 | AH8: FRA-1500 | AI8: FRA-2000 | AJ8: FRA-2500 | AK8: FRA-300 | AL8: FRA-500 | AM8: FRA-1000 | AN8: FRA-1500 | AO8: FRA-2000 | AP8: FRA-2500 | AQ8: FRA-300 | AR8: FRA-500 | AS8: FRA-1000 | AT8: FRA-1500 | AU8: FRA-2000 | AV8: FRA-2500 | AW8: FRA-300 | AX8: FRA-500 | AY8: FRA-1000 | AZ8: FRA-1500 | BA8: FRA-2000 | BB8: FRA-2500 | BC8: FRA-300 | BD8: FRA-500 | BE8: FRA-1000 | BF8: FRA-1500 | BG8: FRA-2000 | BH8: FRA-2500 | BI8: FRA-300 | BJ8: FRA-500 | BK8: FRA-1000 | BL8: FRA-1500 | BM8: FRA-2000 | BN8: FRA-2500 | BO8: FRA-300 | BP8: FRA-500 | BQ8: FRA-1000 | BR8: FRA-1500 | BS8: FRA-2000 | BT8: FRA-2500 | BU8: FRA-300 | BV8: FRA-500 | BW8: FRA-1000 | BX8: FRA-1500 | BY8: FRA-2000 | BZ8: FRA-2500 | CA8: FRA-300 | CB8: FRA-500 | CC8: FRA-1000 | CD8: FRA-1500 | CE8: FRA-2000 | CF8: FRA-2500 | CG8: FRA-300 | CH8: FRA-500 | CI8: FRA-1000 | CJ8: FRA-1500 | CK8: FRA-2000 | CL8: FRA-2500 | CM8: FRA-300 | CN8: FRA-500 | CO8: FRA-1000 | CP8: FRA-1500 | CQ8: FRA-2000 | CR8: FRA-2500 | CS8: FRA-300 | CT8: FRA-500 | CU8: FRA-1000 | CV8: FRA-1500 | CW8: FRA-2000 | CX8: FRA-2500 | CY8: FRA-300 | CZ8: FRA-500 | DA8: FRA-1000 | DB8: FRA-1500 | DC8: FRA-2000 | DD8: FRA-2500 | DE8: FRA-300 | DF8: FRA-500 | DG8: FRA-1000 | DH8: FRA-1500 | DI8: FRA-2000 | DJ8: FRA-2500 | DK8: FRA-300 | DL8: FRA-500 | DM8: FRA-1000 | DN8: FRA-1500 | DO8: FRA-2000 | DP8: FRA-2500 | DQ8: FRA-300 | DR8: FRA-500 | DS8: FRA-1000 | DT8: FRA-1500 | DU8: FRA-2000 | DV8: FRA-2500 | DW8: FRA-300 | DX8: FRA-500 | DY8: FRA-1000 | DZ8: FRA-1500 | EA8: FRA-2000 | EB8: FRA-2500 | EC8: FRA-300 | ED8: FRA-500 | EE8: FRA-1000 | EF8: FRA-1500 | EG8: FRA-2000 | EH8: FRA-2500 | EI8: FRA-300 | EJ8: FRA-500 | EK8: FRA-1000 | EL8: FRA-1500 | EM8: FRA-2000 | EN8: FRA-2500 | EO8: FRA-300 | EP8: FRA-500 | EQ8: FRA-1000 | ER8: FRA-1500 | ES8: FRA-2000 | ET8: FRA-2500 | EU8: FRA-300 | EV8: FRA-500 | EW8: FRA-1000 | EX8: FRA-1500 | EY8: FRA-2000 | EZ8: FRA-2500 | FA8: FRA-300 | FB8: FRA-500 | FC8: FRA-1000 | FD8: FRA-1500 | FE8: FRA-2000 | FF8: FRA-2500 | FG8: FRA-300 | FH8: FRA-500 | FI8: FRA-1000 | FJ8: FRA-1500 | FK8: FRA-2000 | FL8: FRA-2500 | FM8: FRA-300 | FN8: FRA-500 | FO8: FRA-1000 | FP8: FRA-1500 | FQ8: FRA-2000 | FR8: FRA-2500 | FS8: FRA-300 | FT8: FRA-500 | FU8: FRA-1000 | FV8: FRA-1500 | FW8: FRA-2000 | FX8: FRA-2500 | FY8: FRA-300 | FZ8: FRA-500 | GA8: FRA-1000 | GB8: FRA-1500 | GC8: FRA-2000 | GD8: FRA-2500 | GE8: FRA-300 | GF8: FRA-500 | GG8: FRA-1000 | GH8: FRA-1500 | GI8: FRA-2000 | GJ8: FRA-2500 | GK8: FRA-300 | GL8: FRA-500 | GM8: FRA-1000 | GN8: FRA-1500 | GO8: FRA-2000 | GP8: FRA-2500 | GQ8: FRA-300 | GR8: FRA-500 | GS8: FRA-1000 | GT8: FRA-1500 | GU8: FRA-2000 | GV8: FRA-2500 | GW8: FRA-300 | GX8: FRA-500 | GY8: FRA-1000 | GZ8: FRA-1500 | HA8: FRA-2000 | HB8: FRA-2500 | HC8: FRA-300 | HD8: FRA-500 | HE8: FRA-1000 | HF8: FRA-1500 | HG8: FRA-2000 | HH8: FRA-2500 | HI8: FRA-300 | HJ8: FRA-500 | HK8: FRA-1000 | HL8: FRA-1500 | HM8: FRA-2000 | HN8: FRA-2500 | HO8: FRA-300 | HP8: FRA-500 | HQ8: FRA-1000 | HR8: FRA-1500 | HS8: FRA-2000 | HT8: FRA-2500 | HU8: FRA-300 | HV8: FRA-500 | HW8: FRA-1000 | HX8: FRA-1500 | HY8: FRA-2000 | HZ8: FRA-2500 | IA8: FRA-300 | IB8: FRA-500 | IC8: FRA-1000 | ID8: FRA-1500 | IE8: FRA-2000 | IF8: FRA-2500 | IG8: FRA-300 | IH8: FRA-500 | II8: FRA-1000 | IJ8: FRA-1500 | IK8: FRA-2000 | IL8: FRA-2500 | IM8: FRA-300 | IN8: FRA-500 | IO8: FRA-1000 | IP8: FRA-1500 | IQ8: FRA-2000 | IR8: FRA-2500 | IS8: FRA-300 | IT8: FRA-500 | IU8: FRA-1000 | IV8: FRA-1500 | IW8: FRA-2000 | IX8: FRA-2500 | IY8: FRA-300 | IZ8: FRA-500 | JA8: FRA-1000 | JB8: FRA-1500 | JC8: FRA-2000 | JD8: FRA-2500 | JE8: FRA-300 | JF8: FRA-500 | JG8: FRA-1000 | JH8: FRA-1500 | JI8: FRA-2000 | JJ8: FRA-2500 | JK8: FRA-300 | JL8: FRA-500 | JM8: FRA-1000 | JN8: FRA-1500 | JO8: FRA-2000 | JP8: FRA-2500 | JQ8: FRA-300 | JR8: FRA-500 | JS8: FRA-1000 | JT8: FRA-1500 | JU8: FRA-2000 | JV8: FRA-2500 | JW8: FRA-300 | JX8: FRA-500 | JY8: FRA-1000 | JZ8: FRA-1500 | KA8: FRA-2000 | KB8: FRA-2500 | KC8: FRA-300 | KD8: FRA-500 | KE8: FRA-1000 | KF8: FRA-1500 | KG8: FRA-2000 | KH8: FRA-2500 | KI8: FRA-300 | KJ8: FRA-500 | KK8: FRA-1000 | KL8: FRA-1500 | KM8: FRA-2000 | KN8: FRA-2500 | KO8: FRA-300 | KP8: FRA-500 | KQ8: FRA-1000 | KR8: FRA-1500 | KS8: FRA-2000 | KT8: FRA-2500 | KU8: FRA-300 | KV8: FRA-500 | KW8: FRA-1000 | KX8: FRA-1500 | KY8: FRA-2000 | KZ8: FRA-2500 | LA8: FRA-300 | LB8: FRA-500 | LC8: FRA-1000 | LD8: FRA-1500 | LE8: FRA-2000 | LF8: FRA-2500 | LG8: FRA-300 | LH8: FRA-500 | LI8: FRA-1000 | LJ8: FRA-1500 | LK8: FRA-2000 | LL8: FRA-2500 | LM8: FRA-300 | LN8: FRA-500 | LO8: FRA-1000 | LP8: FRA-1500 | LQ8: FRA-2000 | LR8: FRA-2500 | LS8: FRA-300 | LT8: FRA-500 | LU8: FRA-1000 | LV8: FRA-1500 | LW8: FRA-2000 | LX8: FRA-2500 | LY8: FRA-300 | LZ8: FRA-500 | MA8: FRA-1000 | MB8: FRA-1500 | MC8: FRA-2000 | MD8: FRA-2500 | ME8: FRA-300 | MF8: FRA-500 | MG8: FRA-1000 | MH8: FRA-1500 | MI8: FRA-2000 | MJ8: FRA-2500 | MK8: FRA-300 | ML8: FRA-500 | MM8: FRA-1000 | MN8: FRA-1500 | MO8: FRA-2000 | MP8: FRA-2500 | MQ8: FRA-300 | MR8: FRA-500 | MS8: FRA-1000 | MT8: FRA-1500 | MU8: FRA-2000 | MV8: FRA-2500 | MW8: FRA-300 | MX8: FRA-500 | MY8: FRA-1000 | MZ8: FRA-1500 | NA8: FRA-2000 | NB8: FRA-2500 | NC8: FRA-300 | ND8: FRA-500 | NE8: FRA-1000 | NF8: FRA-1500 | NG8: FRA-2000 | NH8: FRA-2500 | NI8: FRA-300 | NJ8: FRA-500 | NK8: FRA-1000 | NL8: FRA-1500 | NM8: FRA-2000 | NN8: FRA-2500 | NO8: FRA-300 | NP8: FRA-500 | NQ8: FRA-1000 | NR8: FRA-1500 | NS8: FRA-2000 | NT8: FRA-2500 | NU8: FRA-300 | NV8: FRA-500 | NW8: FRA-1000 | NX8: FRA-1500 | NY8: FRA-2000 | NZ8: FRA-2500 | OA8: FRA-300 | OB8: FRA-500 | OC8: FRA-1000 | OD8: FRA-1500 | OE8: FRA-2000 | OF8: FRA-2500 | OG8: FRA-300 | OH8: FRA-500 | OI8: FRA-1000 | OJ8: FRA-1500 | OK8: FRA-2000 | OL8: FRA-2500 | OM8: FRA-300 | ON8: FRA-500 | OO8: FRA-1000 | OP8: FRA-1500 | OQ8: FRA-2000 | OR8: FRA-2500 | OS8: FRA-300 | OT8: FRA-500 | OU8: FRA-1000 | OV8: FRA-1500 | OW8: FRA-2000 | OX8: FRA-2500 | OY8: FRA-300 | OZ8: FRA-500 | PA8: FRA-1000 | PB8: FRA-1500 | PC8: FRA-2000 | PD8: FRA-2500 | PE8: FRA-300 | PF8: FRA-500 | PG8: FRA-1000 | PH8: FRA-1500 | PI8: FRA-2000 | PJ8: FRA-2500 | PK8: FRA-300 | PL8: FRA-500 | PM8: FRA-1000 | PN8: FRA-1500 | PO8: FRA-2000 | PP8: FRA-2500 | PQ8: FRA-300 | PR8: FRA-500 | PS8: FRA-1000 | PT8: FRA-1500 | PU8: FRA-2000 | PV8: FRA-2500 | PW8: FRA-300 | PX8: FRA-500 | PY8: FRA-1000 | PZ8: FRA-1500 | QA8: FRA-2000 | QB8: FRA-2500 | QC8: FRA-300 | QD8: FRA-500 | QE8: FRA-1000 | QF8: FRA-1500 | QG8: FRA-2000 | QH8: FRA-2500 | QI8: FRA-300 | QJ8: FRA-500 | QK8: FRA-1000 | QL8: FRA-1500 | QM8: FRA-2000 | QN8: FRA-2500 | QO8: FRA-300 | QP8: FRA-500 | QQ8: FRA-1000 | QR8: FRA-1500 | QS8: FRA-2000 | QT8: FRA-2500 | QU8: FRA-300 | QV8: FRA-500 | QW8: FRA-1000 | QX8: FRA-1500 | QY8: FRA-2000 | QZ8: FRA-2500 | RA8: FRA-300 | RB8: FRA-500 | RC8: FRA-1000 | RD8: FRA-1500 | RE8: FRA-2000 | RF8: FRA-2500 | RG8: FRA-300 | RH8: FRA-500 | RI8: FRA-1000 | RJ8: FRA-1500 | RK8: FRA-2000 | RL8: FRA-2500 | RM8: FRA-300 | RN8: FRA-500 | RO8: FRA-1000 | RP8: FRA-1500 | RQ8: FRA-2000 | RR8: FRA-2500 | RS8: FRA-300 | RT8: FRA-500 | RU8: FRA-1000 | RV8: FRA-1500 | RW8: FRA-2000 | RX8: FRA-2500 | RY8: FRA-300 | RZ8: FRA-500 | SA8: FRA-1000 | SB8: FRA-1500 | SC8: FRA-2000 | SD8: FRA-2500 | SE8: FRA-300 | SF8: FRA-500 | SG8: FRA-1000 | SH8: FRA-1500 | SI8: FRA-2000 | SJ8: FRA-2500 | SK8: FRA-300 | SL8: FRA-500 | SM8: FRA-1000 | SN8: FRA-1500 | SO8: FRA-2000 | SP8: FRA-2500 | SQ8: FRA-300 | SR8: FRA-500 | SS8: FRA-1000 | ST8: FRA-1500 | SU8: FRA-2000 | SV8: FRA-2500 | SW8: FRA-300 | SX8: FRA-500 | SY8: FRA-1000 | SZ8: FRA-1500 | TA8: FRA-2000 | TB8: FRA-2500 | TC8: FRA-300 | TD8: FRA-300
A9: 8 | B9: CSS Kranken-Versicherung AG | C9: TAR-BASE | D9: Assurance de base | F9: 9 | G9: 519 | H9: 507.4 | I9: 478.2 | J9: 449 | K9: 419.9 | L9: 390.7 | M9: 482.7 | N9: 471.9 | O9: 444.7 | P9: 417.6 | Q9: 390.5 | R9: 363.4 | S9: 469 | T9: 457.4 | U9: 428.2 | V9: 399 | W9: 369.9 | X9: 340.7 | Y9: 436.2 | Z9: 425.4 | AA9: 398.2 | AB9: 371.1 | AC9: 344 | AD9: 316.9 | AE9: 493 | AF9: 481.4 | AG9: 452.2 | AH9: 423 | AI9: 393.9 | AJ9: 364.7 | AK9: 458.5 | AL9: 447.7 | AM9: 420.5 | AN9: 393.4 | AO9: 366.3 | AP9: 339.2 | AQ9: 466 | AR9: 454.4 | AS9: 425.2 | AT9: 396 | AU9: 366.9 | AV9: 337.7 | AW9: 433.4 | AX9: 422.6 | AY9: 395.4 | AZ9: 368.3 | BA9: 341.2 | BB9: 314.1 | BC9: 379 | BD9: 367.4 | BE9: 338.2 | BF9: 309 | BG9: 279.9 | BH9: 250.7 | BI9: 352.5 | BJ9: 341.7 | BK9: 314.5 | BL9: 287.4 | BM9: 260.3 | BN9: 233.2 | BO9: 454 | BP9: 442.4 | BQ9: 413.2 | BR9: 384 | BS9: 354.9 | BT9: 325.7 | BU9: 422.2 | BV9: 411.4 | BW9: 384.3 | BX9: 357.1 | BY9: 330.1 | BZ9: 302.9 | CA9: 581 | CB9: 569.4 | CC9: 540.2 | CD9: 511 | CE9: 481.9 | CF9: 452.7 | CG9: 540.3 | CH9: 529.5 | CI9: 502.4 | CJ9: 475.2 | CK9: 448.2 | CL9: 421 | CM9: 505 | CN9: 493.4 | CO9: 464.2 | CP9: 435 | CQ9: 405.9 | CR9: 376.7 | CS9: 469.7 | CT9: 458.9 | CU9: 431.7 | CV9: 404.6 | CW9: 377.5 | CX9: 350.3 | CY9: 472 | CZ9: 460.4 | DA9: 431.2 | DB9: 402 | DC9: 372.9 | DD9: 343.7 | DE9: 439 | DF9: 428.2 | DG9: 401 | DH9: 373.9 | DI9: 346.8 | DJ9: 319.6 | DK9: 568 | DL9: 556.4 | DM9: 527.2 | DN9: 498 | DO9: 468.9 | DP9: 439.7 | DQ9: 528.2 | DR9: 517.5 | DS9: 490.3 | DT9: 463.1 | DU9: 436.1 | DV9: 408.9 | DW9: 523 | DX9: 511.4 | DY9: 482.2 | DZ9: 453 | EA9: 423.9 | EB9: 394.7 | EC9: 486.4 | ED9: 475.6 | EE9: 448.4 | EF9: 421.3 | EG9: 394.2 | EH9: 367.1 | EI9: 625 | EJ9: 613.4 | EK9: 584.2 | EL9: 555 | EM9: 525.9 | EN9: 496.7 | EO9: 581.3 | EP9: 570.5 | EQ9: 543.3 | ER9: 516.2 | ES9: 489.1 | ET9: 461.9 | EU9: 645 | EV9: 633.4 | EW9: 604.2 | EX9: 575 | EY9: 545.9 | EZ9: 516.7 | FA9: 599.9 | FB9: 589.1 | FC9: 561.9 | FD9: 534.8 | FE9: 507.7 | FF9: 480.5 | FG9: 441 | FH9: 429.4 | FI9: 400.2 | FJ9: 371 | FK9: 341.9 | FL9: 312.7 | FM9: 410.1 | FN9: 399.3 | FO9: 372.2 | FP9: 345 | FQ9: 318 | FR9: 290.8 | FS9: 457 | FT9: 445.4 | FU9: 416.2 | FV9: 387 | FW9: 357.9 | FX9: 328.7 | FY9: 425 | FZ9: 414.2 | GA9: 387.1 | GB9: 359.9 | GC9: 332.8 | GD9: 305.7 | GE9: 437 | GF9: 425.4 | GG9: 396.2 | GH9: 367 | GI9: 337.9 | GJ9: 308.7 | GK9: 406.4 | GL9: 395.6 | GM9: 368.5 | GN9: 341.3 | GO9: 314.2 | GP9: 287.1 | GQ9: 408 | GR9: 396.4 | GS9: 367.2 | GT9: 338 | GU9: 308.9 | GV9: 279.7 | GW9: 379.4 | GX9: 368.7 | GY9: 341.5 | GZ9: 314.3 | HA9: 287.3 | HB9: 260.1 | HC9: 553 | HD9: 541.4 | HE9: 512.2 | HF9: 483 | HG9: 453.9 | HH9: 424.7 | HI9: 514.3 | HJ9: 503.5 | HK9: 476.3 | HL9: 449.2 | HM9: 422.1 | HN9: 395 | HO9: 473 | HP9: 461.4 | HQ9: 432.2 | HR9: 403 | HS9: 373.9 | HT9: 344.7 | HU9: 439.9 | HV9: 429.1 | HW9: 401.9 | HX9: 374.8 | HY9: 347.7 | HZ9: 320.6 | IA9: 438 | IB9: 426.4 | IC9: 397.2 | ID9: 368 | IE9: 338.9 | IF9: 309.7 | IG9: 407.3 | IH9: 396.6 | II9: 369.4 | IJ9: 342.2 | IK9: 315.2 | IL9: 288 | IM9: 419 | IN9: 407.4 | IO9: 378.2 | IP9: 349 | IQ9: 319.9 | IR9: 290.7 | IS9: 389.7 | IT9: 378.9 | IU9: 351.7 | IV9: 324.6 | IW9: 297.5 | IX9: 270.4 | IY9: 610 | IZ9: 598.4 | JA9: 569.2 | JB9: 540 | JC9: 510.9 | JD9: 481.7 | JE9: 567.3 | JF9: 556.5 | JG9: 529.4 | JH9: 502.2 | JI9: 475.1 | JJ9: 448 | JK9: 420 | JL9: 408.4 | JM9: 379.2 | JN9: 350 | JO9: 320.9 | JP9: 291.7 | JQ9: 390.6 | JR9: 379.8 | JS9: 352.7 | JT9: 325.5 | JU9: 298.4 | JV9: 271.3 | JW9: 433 | JX9: 421.4 | JY9: 392.2 | JZ9: 363 | KA9: 333.9 | KB9: 304.7 | KC9: 402.7 | KD9: 391.9 | KE9: 364.7 | KF9: 337.6 | KG9: 310.5 | KH9: 283.4 | KI9: 489 | KJ9: 477.4 | KK9: 448.2 | KL9: 419 | KM9: 389.9 | KN9: 360.7 | KO9: 454.8 | KP9: 444 | KQ9: 416.8 | KR9: 389.7 | KS9: 362.6 | KT9: 335.5 | KU9: 448 | KV9: 436.4 | KW9: 407.2 | KX9: 378 | KY9: 348.9 | KZ9: 319.7 | LA9: 416.6 | LB9: 405.9 | LC9: 378.7 | LD9: 351.5 | LE9: 324.5 | LF9: 297.3 | LG9: 434 | LH9: 422.4 | LI9: 393.2 | LJ9: 364 | LK9: 334.9 | LL9: 305.7 | LM9: 403.6 | LN9: 392.8 | LO9: 365.7 | LP9: 338.5 | LQ9: 311.5 | LR9: 284.3 | LS9: 500 | LT9: 488.4 | LU9: 459.2 | LV9: 430 | LW9: 400.9 | LX9: 371.7 | LY9: 465 | LZ9: 454.2 | MA9: 427.1 | MB9: 399.9 | MC9: 372.8 | MD9: 345.7 | ME9: 474 | MF9: 462.4 | MG9: 433.2 | MH9: 404 | MI9: 374.9 | MJ9: 345.7 | MK9: 440.8 | ML9: 430 | MM9: 402.9 | MN9: 375.7 | MO9: 348.7 | MP9: 321.5 | MQ9: 428 | MR9: 416.4 | MS9: 387.2 | MT9: 358 | MU9: 328.9 | MV9: 299.7 | MW9: 398 | MX9: 387.3 | MY9: 360.1 | MZ9: 332.9 | NA9: 305.9 | NB9: 278.7 | NC9: 459 | ND9: 447.4 | NE9: 418.2 | NF9: 389 | NG9: 359.9 | NH9: 330.7 | NI9: 426.9 | NJ9: 416.1 | NK9: 388.9 | NL9: 361.8 | NM9: 334.7 | NN9: 307.6 | NO9: 576 | NP9: 564.4 | NQ9: 535.2 | NR9: 506 | NS9: 476.9 | NT9: 447.7 | NU9: 535.7 | NV9: 524.9 | NW9: 497.7 | NX9: 470.6 | NY9: 443.5 | NZ9: 416.4 | OA9: 549 | OB9: 537.4 | OC9: 508.2 | OD9: 479 | OE9: 449.9 | OF9: 420.7 | OG9: 510.6 | OH9: 499.8 | OI9: 472.6 | OJ9: 445.5 | OK9: 418.4 | OL9: 391.3 | OM9: 398 | ON9: 386.4 | OO9: 357.2 | OP9: 328 | OQ9: 298.9 | OR9: 269.7 | OS9: 370.1 | OT9: 359.4 | OU9: 332.2 | OV9: 305 | OW9: 278 | OX9: 250.8 | OY9: 598 | OZ9: 586.4 | PA9: 557.2 | PB9: 528 | PC9: 498.9 | PD9: 469.7 | PE9: 556.1 | PF9: 545.4 | PG9: 518.2 | PH9: 491 | PI9: 464 | PJ9: 436.8 | PK9: 564 | PL9: 552.4 | PM9: 523.2 | PN9: 494 | PO9: 464.9 | PP9: 435.7 | PQ9: 524.5 | PR9: 513.7 | PS9: 486.6 | PT9: 459.4 | PU9: 432.4 | PV9: 405.2 | PW9: 490 | PX9: 478.4 | PY9: 449.2 | PZ9: 420 | QA9: 390.9 | QB9: 361.7 | QC9: 455.7 | QD9: 444.9 | QE9: 417.8 | QF9: 390.6 | QG9: 363.5 | QH9: 336.4 | QI9: 442 | QJ9: 430.4 | QK9: 401.2 | QL9: 372 | QM9: 342.9 | QN9: 313.7 | QO9: 411.1 | QP9: 400.3 | QQ9: 373.1 | QR9: 346 | QS9: 318.9 | QT9: 291.7 | RG9: 417 | RH9: 405.4 | RI9: 376.2 | RJ9: 347 | RK9: 317.9 | RL9: 288.7 | RM9: 387.8 | RN9: 377 | RO9: 349.9 | RP9: 322.7 | RQ9: 295.6 | RR9: 268.5 | RS9: 557 | RT9: 545.4 | RU9: 516.2 | RV9: 487 | RW9: 457.9 | RX9: 428.7 | RY9: 518 | RZ9: 507.2 | SA9: 480.1 | SB9: 452.9 | SC9: 425.8 | SD9: 398.7 | SE9: 502 | SF9: 490.4 | SG9: 461.2 | SH9: 432 | SI9: 402.9 | SJ9: 373.7 | SK9: 466.9 | SL9: 456.1 | SM9: 428.9 | SN9: 401.8 | SO9: 374.7 | SP9: 347.5 | SQ9: 464 | SR9: 452.4 | SS9: 423.2 | ST9: 394 | SU9: 364.9 | SV9: 335.7 | SW9: 431.5 | SX9: 420.7 | SY9: 393.6 | SZ9: 366.4 | TA9: 339.4 | TB9: 312.2
C10: TAR-HAM | D10: Hausarztversicherung Profit | F10: 10 | G10: 451.5 | H10: 439.9 | I10: 410.7 | J10: 381.5 | K10: 352.4 | L10: 323.2 | M10: 419.9 | N10: 409.1 | O10: 382 | P10: 354.8 | Q10: 327.8 | R10: 300.6 | S10: 408 | T10: 396.4 | U10: 367.2 | V10: 338 | W10: 308.9 | X10: 279.7 | Y10: 379.5 | Z10: 368.7 | AA10: 341.5 | AB10: 314.4 | AC10: 287.3 | AD10: 260.1 | AE10: 424 | AF10: 412.4 | AG10: 383.2 | AH10: 354 | AI10: 324.9 | AJ10: 295.7 | AK10: 394.3 | AL10: 383.5 | AM10: 356.4 | AN10: 329.2 | AO10: 302.1 | AP10: 275 | AQ10: 410.1 | AR10: 398.5 | AS10: 369.3 | AT10: 340.1 | AU10: 311 | AV10: 281.8 | AW10: 381.4 | AX10: 370.6 | AY10: 343.4 | AZ10: 316.3 | BA10: 289.2 | BB10: 262.1 | BC10: 341.1 | BD10: 329.5 | BE10: 300.3 | BF10: 271.1 | BG10: 242 | BH10: 212.8 | BI10: 317.2 | BJ10: 306.4 | BK10: 279.3 | BL10: 252.1 | BM10: 225.1 | BN10: 197.9 | BO10: 408.6 | BP10: 397 | BQ10: 367.8 | BR10: 338.6 | BS10: 309.5 | BT10: 280.3 | BU10: 380 | BV10: 369.2 | BW10: 342.1 | BX10: 314.9 | BY10: 287.8 | BZ10: 260.7 | CA10: 517.1 | CB10: 505.5 | CC10: 476.3 | CD10: 447.1 | CE10: 418 | CF10: 388.8 | CG10: 480.9 | CH10: 470.1 | CI10: 442.9 | CJ10: 415.8 | CK10: 388.7 | CL10: 361.6 | CM10: 449.5 | CN10: 437.9 | CO10: 408.7 | CP10: 379.5 | CQ10: 350.4 | CR10: 321.2 | CS10: 418 | CT10: 407.2 | CU10: 380 | CV10: 352.9 | CW10: 325.8 | CX10: 298.7 | CY10: 415.4 | CZ10: 403.8 | DA10: 374.6 | DB10: 345.4 | DC10: 316.3 | DD10: 287.1 | DE10: 386.3 | DF10: 375.5 | DG10: 348.3 | DH10: 321.2 | DI10: 294.1 | DJ10: 267 | DK10: 499.8 | DL10: 488.2 | DM10: 459 | DN10: 429.8 | DO10: 400.7 | DP10: 371.5 | DQ10: 464.9 | DR10: 454.1 | DS10: 426.9 | DT10: 399.8 | DU10: 372.7 | DV10: 345.5 | DW10: 465.5 | DX10: 453.9 | DY10: 424.7 | DZ10: 395.5 | EA10: 366.4 | EB10: 337.2 | EC10: 432.9 | ED10: 422.1 | EE10: 394.9 | EF10: 367.8 | EG10: 340.7 | EH10: 313.6 | EI10: 556.3 | EJ10: 544.7 | EK10: 515.5 | EL10: 486.3 | EM10: 457.2 | EN10: 428 | EO10: 517.3 | EP10: 506.5 | EQ10: 479.4 | ER10: 452.2 | ES10: 425.1 | ET10: 398 | EU10: 574.1 | EV10: 562.5 | EW10: 533.3 | EX10: 504.1 | EY10: 475 | EZ10: 445.8 | FA10: 533.9 | FB10: 523.1 | FC10: 495.9 | FD10: 468.8 | FE10: 441.7 | FF10: 414.5 | FG10: 396.9 | FH10: 385.3 | FI10: 356.1 | FJ10: 326.9 | FK10: 297.8 | FL10: 268.6 | FM10: 369.1 | FN10: 358.3 | FO10: 331.2 | FP10: 304 | FQ10: 277 | FR10: 249.8 | FS10: 411.3 | FT10: 399.7 | FU10: 370.5 | FV10: 341.3 | FW10: 312.2 | FX10: 283 | FY10: 382.5 | FZ10: 371.7 | GA10: 344.6 | GB10: 317.4 | GC10: 290.3 | GD10: 263.2 | GE10: 393.3 | GF10: 381.7 | GG10: 352.5 | GH10: 323.3 | GI10: 294.2 | GJ10: 265 | GK10: 365.8 | GL10: 355 | GM10: 327.8 | GN10: 300.7 | GO10: 273.6 | GP10: 246.5 | GQ10: 367.2 | GR10: 355.6 | GS10: 326.4 | GT10: 297.2 | GU10: 268.1 | GV10: 238.9 | GW10: 341.5 | GX10: 330.7 | GY10: 303.6 | GZ10: 276.4 | HA10: 249.3 | HB10: 222.2 | HC10: 492.2 | HD10: 480.6 | HE10: 451.4 | HF10: 422.2 | HG10: 393.1 | HH10: 363.9 | HI10: 457.7 | HJ10: 446.9 | HK10: 419.8 | HL10: 392.6 | HM10: 365.6 | HN10: 338.4 | HO10: 411.5 | HP10: 399.9 | HQ10: 370.7 | HR10: 341.5 | HS10: 312.4 | HT10: 283.2 | HU10: 382.7 | HV10: 371.9 | HW10: 344.8 | HX10: 317.6 | HY10: 290.5 | HZ10: 263.4 | IA10: 381.1 | IB10: 369.5 | IC10: 340.3 | ID10: 311.1 | IE10: 282 | IF10: 252.8 | IG10: 354.4 | IH10: 343.6 | II10: 316.4 | IJ10: 289.3 | IK10: 262.2 | IL10: 235.1 | IM10: 364.5 | IN10: 352.9 | IO10: 323.7 | IP10: 294.5 | IQ10: 265.4 | IR10: 236.2 | IS10: 339 | IT10: 328.2 | IU10: 301.1 | IV10: 273.9 | IW10: 246.8 | IX10: 219.7 | IY10: 530.7 | IZ10: 519.1 | JA10: 489.9 | JB10: 460.7 | JC10: 431.6 | JD10: 402.4 | JE10: 493.6 | JF10: 482.8 | JG10: 455.6 | JH10: 428.5 | JI10: 401.4 | JJ10: 374.2 | JK10: 369.6 | JL10: 358 | JM10: 328.8 | JN10: 299.6 | JO10: 270.5 | JP10: 241.3 | JQ10: 343.7 | JR10: 332.9 | JS10: 305.8 | JT10: 278.6 | JU10: 251.6 | JV10: 224.4 | JW10: 381 | JX10: 369.4 | JY10: 340.2 | JZ10: 311 | KA10: 281.9 | KB10: 252.7 | KC10: 354.4 | KD10: 343.6 | KE10: 316.4 | KF10: 289.3 | KG10: 262.2 | KH10: 235 | KI10: 430.3 | KJ10: 418.7 | KK10: 389.5 | KL10: 360.3 | KM10: 331.2 | KN10: 302 | KO10: 400.2 | KP10: 389.4 | KQ10: 362.3 | KR10: 335.1 | KS10: 308 | KT10: 280.9 | KU10: 394.2 | KV10: 382.6 | KW10: 353.4 | KX10: 324.2 | KY10: 295.1 | KZ10: 265.9 | LA10: 366.6 | LB10: 355.9 | LC10: 328.7 | LD10: 301.5 | LE10: 274.5 | LF10: 247.3 | LG10: 381.9 | LH10: 370.3 | LI10: 341.1 | LJ10: 311.9 | LK10: 282.8 | LL10: 253.6 | LM10: 355.2 | LN10: 344.4 | LO10: 317.2 | LP10: 290.1 | LQ10: 263 | LR10: 235.9 | LS10: 440 | LT10: 428.4 | LU10: 399.2 | LV10: 370 | LW10: 340.9 | LX10: 311.7 | LY10: 409.2 | LZ10: 398.4 | MA10: 371.3 | MB10: 344.1 | MC10: 317 | MD10: 289.9 | ME10: 417.1 | MF10: 405.5 | MG10: 376.3 | MH10: 347.1 | MI10: 318 | MJ10: 288.8 | MK10: 387.9 | ML10: 377.1 | MM10: 350 | MN10: 322.8 | MO10: 295.8 | MP10: 268.6 | MQ10: 385.2 | MR10: 373.6 | MS10: 344.4 | MT10: 315.2 | MU10: 286.1 | MV10: 256.9 | MW10: 358.2 | MX10: 347.4 | MY10: 320.3 | MZ10: 293.1 | NA10: 266.1 | NB10: 238.9 | NC10: 403.9 | ND10: 392.3 | NE10: 363.1 | NF10: 333.9 | NG10: 304.8 | NH10: 275.6 | NI10: 375.6 | NJ10: 364.9 | NK10: 337.7 | NL10: 310.5 | NM10: 283.5 | NN10: 256.3 | NO10: 501.1 | NP10: 489.5 | NQ10: 460.3 | NR10: 431.1 | NS10: 402 | NT10: 372.8 | NU10: 466 | NV10: 455.3 | NW10: 428.1 | NX10: 400.9 | NY10: 373.9 | NZ10: 346.7 | OA10: 477.6 | OB10: 466 | OC10: 436.8 | OD10: 407.6 | OE10: 378.5 | OF10: 349.3 | OG10: 444.2 | OH10: 433.4 | OI10: 406.3 | OJ10: 379.1 | OK10: 352 | OL10: 324.9 | OM10: 350.2 | ON10: 338.6 | OO10: 309.4 | OP10: 280.2 | OQ10: 251.1 | OR10: 221.9 | OS10: 325.7 | OT10: 314.9 | OU10: 287.8 | OV10: 260.6 | OW10: 233.6 | OX10: 206.4 | OY10: 520.3 | OZ10: 508.7 | PA10: 479.5 | PB10: 450.3 | PC10: 421.2 | PD10: 392 | PE10: 483.8 | PF10: 473.1 | PG10: 445.9 | PH10: 418.7 | PI10: 391.7 | PJ10: 364.5 | PK10: 490.7 | PL10: 479.1 | PM10: 449.9 | PN10: 420.7 | PO10: 391.6 | PP10: 362.4 | PQ10: 456.3 | PR10: 445.5 | PS10: 418.4 | PT10: 391.2 | PU10: 364.2 | PV10: 337 | PW10: 421.4 | PX10: 409.8 | PY10: 380.6 | PZ10: 351.4 | QA10: 322.3 | QB10: 293.1 | QC10: 391.9 | QD10: 381.1 | QE10: 354 | QF10: 326.8 | QG10: 299.7 | QH10: 272.6 | QI10: 384.5 | QJ10: 372.9 | QK10: 343.7 | QL10: 314.5 | QM10: 285.4 | QN10: 256.2 | QO10: 357.6 | QP10: 346.8 | QQ10: 319.7 | QR10: 292.5 | QS10: 265.5 | QT10: 238.3 | RG10: 371.1 | RH10: 359.5 | RI10: 330.3 | RJ10: 301.1 | RK10: 272 | RL10: 242.8 | RM10: 345.2 | RN10: 334.4 | RO10: 307.2 | RP10: 280.1 | RQ10: 253 | RR10: 225.8 | RS10: 490.2 | RT10: 478.6 | RU10: 449.4 | RV10: 420.2 | RW10: 391.1 | RX10: 361.9 | RY10: 455.8 | RZ10: 445.1 | SA10: 417.9 | SB10: 390.7 | SC10: 363.7 | SD10: 336.5 | SE10: 441.8 | SF10: 430.2 | SG10: 401 | SH10: 371.8 | SI10: 342.7 | SJ10: 313.5 | SK10: 410.8 | SL10: 400 | SM10: 372.9 | SN10: 345.7 | SO10: 318.7 | SP10: 291.5 | SQ10: 408.3 | SR10: 396.7 | SS10: 367.5 | ST10: 338.3 | SU10: 309.2 | SV10: 280 | SW10: 379.7 | SX10: 368.9 | SY10: 341.8 | SZ10: 314.6 | TA10: 287.6 | TB10: 260.4
D11: Gesundheitspraxisversicherung T3 | F11: 11 | G11: 446.3 | H11: 434.7 | I11: 405.5 | J11: 376.3 | K11: 347.2 | L11: 318 | M11: 415.1 | N11: 404.3 | O11: 377.2 | P11: 350 | Q11: 322.9 | R11: 295.8 | S11: 403.3 | T11: 391.7 | U11: 362.5 | V11: 333.3 | W11: 304.2 | X11: 275 | Y11: 375.1 | Z11: 364.3 | AA11: 337.2 | AB11: 310 | AC11: 282.9 | AD11: 255.8 | AE11: 424 | AF11: 412.4 | AG11: 383.2 | AH11: 354 | AI11: 324.9 | AJ11: 295.7 | AK11: 394.3 | AL11: 383.5 | AM11: 356.4 | AN11: 329.2 | AO11: 302.1 | AP11: 275 | AQ11: 400.8 | AR11: 389.2 | AS11: 360 | AT11: 330.8 | AU11: 301.7 | AV11: 272.5 | AW11: 372.7 | AX11: 361.9 | AY11: 334.8 | AZ11: 307.6 | BA11: 280.5 | BB11: 253.4 | BC11: 325.9 | BD11: 314.3 | BE11: 285.1 | BF11: 255.9 | BG11: 226.8 | BH11: 203.8 | BI11: 303.1 | BJ11: 292.3 | BK11: 265.2 | BL11: 238 | BM11: 211 | BN11: 189.5 | BO11: 390.4 | BP11: 378.8 | BQ11: 349.6 | BR11: 320.4 | BS11: 291.3 | BT11: 262.1 | BU11: 363.1 | BV11: 352.3 | BW11: 325.2 | BX11: 298 | BY11: 270.9 | BZ11: 243.8 | CA11: 499.7 | CB11: 488.1 | CC11: 458.9 | CD11: 429.7 | CE11: 400.6 | CF11: 371.4 | CG11: 464.7 | CH11: 453.9 | CI11: 426.7 | CJ11: 399.6 | CK11: 372.5 | CL11: 345.4 | CM11: 434.3 | CN11: 422.7 | CO11: 393.5 | CP11: 364.3 | CQ11: 335.2 | CR11: 306 | CS11: 403.9 | CT11: 393.1 | CU11: 366 | CV11: 338.8 | CW11: 311.7 | CX11: 284.6 | CY11: 405.9 | CZ11: 394.3 | DA11: 365.1 | DB11: 335.9 | DC11: 306.8 | DD11: 277.6 | DE11: 377.5 | DF11: 366.7 | DG11: 339.6 | DH11: 312.4 | DI11: 285.3 | DJ11: 258.2 | DK11: 488.5 | DL11: 476.9 | DM11: 447.7 | DN11: 418.5 | DO11: 389.4 | DP11: 360.2 | DQ11: 454.3 | DR11: 443.5 | DS11: 416.3 | DT11: 389.2 | DU11: 362.1 | DV11: 335 | DW11: 449.8 | DX11: 438.2 | DY11: 409 | DZ11: 379.8 | EA11: 350.7 | EB11: 321.5 | EC11: 418.3 | ED11: 407.5 | EE11: 380.4 | EF11: 353.2 | EG11: 326.1 | EH11: 299 | EI11: 537.5 | EJ11: 525.9 | EK11: 496.7 | EL11: 467.5 | EM11: 438.4 | EN11: 409.2 | EO11: 499.9 | EP11: 489.1 | EQ11: 461.9 | ER11: 434.8 | ES11: 407.7 | ET11: 380.6 | EU11: 554.7 | EV11: 543.1 | EW11: 513.9 | EX11: 484.7 | EY11: 455.6 | EZ11: 426.4 | FA11: 515.9 | FB11: 505.1 | FC11: 477.9 | FD11: 450.8 | FE11: 423.7 | FF11: 396.6 | FG11: 379.3 | FH11: 367.7 | FI11: 338.5 | FJ11: 309.3 | FK11: 280.2 | FL11: 251 | FM11: 352.7 | FN11: 341.9 | FO11: 314.8 | FP11: 287.6 | FQ11: 260.5 | FR11: 233.4 | FS11: 393 | FT11: 381.4 | FU11: 352.2 | FV11: 323 | FW11: 293.9 | FX11: 264.7 | FY11: 365.5 | FZ11: 354.7 | GA11: 327.6 | GB11: 300.4 | GC11: 273.3 | GD11: 246.2 | GE11: 375.8 | GF11: 364.2 | GG11: 335 | GH11: 305.8 | GI11: 276.7 | GJ11: 247.5 | GK11: 349.5 | GL11: 338.7 | GM11: 311.6 | GN11: 284.4 | GO11: 257.3 | GP11: 230.2 | GQ11: 350.9 | GR11: 339.3 | GS11: 310.1 | GT11: 280.9 | GU11: 251.8 | GV11: 222.6 | GW11: 326.3 | GX11: 315.5 | GY11: 288.4 | GZ11: 261.2 | HA11: 234.2 | HB11: 207 | HC11: 475.6 | HD11: 464 | HE11: 434.8 | HF11: 405.6 | HG11: 376.5 | HH11: 347.3 | HI11: 442.3 | HJ11: 431.5 | HK11: 404.3 | HL11: 377.2 | HM11: 350.1 | HN11: 323 | HO11: 406.8 | HP11: 395.2 | HQ11: 366 | HR11: 336.8 | HS11: 307.7 | HT11: 278.5 | HU11: 378.3 | HV11: 367.5 | HW11: 340.4 | HX11: 313.2 | HY11: 286.1 | HZ11: 259 | IA11: 376.7 | IB11: 365.1 | IC11: 335.9 | ID11: 306.7 | IE11: 277.6 | IF11: 248.4 | IG11: 350.3 | IH11: 339.5 | II11: 312.4 | IJ11: 285.2 | IK11: 258.1 | IL11: 231 | IM11: 360.3 | IN11: 348.7 | IO11: 319.5 | IP11: 290.3 | IQ11: 261.2 | IR11: 232 | IS11: 335.1 | IT11: 324.3 | IU11: 297.2 | IV11: 270 | IW11: 243 | IX11: 215.8 | IY11: 524.6 | IZ11: 513 | JA11: 483.8 | JB11: 454.6 | JC11: 425.5 | JD11: 396.3 | JE11: 487.9 | JF11: 477.1 | JG11: 449.9 | JH11: 422.8 | JI11: 395.7 | JJ11: 368.6 | JK11: 361.2 | JL11: 349.6 | JM11: 320.4 | JN11: 291.2 | JO11: 262.1 | JP11: 232.9 | JQ11: 335.9 | JR11: 325.1 | JS11: 298 | JT11: 270.8 | JU11: 243.8 | JV11: 216.6 | JW11: 372.4 | JX11: 360.8 | JY11: 331.6 | JZ11: 302.4 | KA11: 273.3 | KB11: 244.1 | KC11: 346.3 | KD11: 335.5 | KE11: 308.4 | KF11: 281.2 | KG11: 254.2 | KH11: 227 | KI11: 420.5 | KJ11: 408.9 | KK11: 379.7 | KL11: 350.5 | KM11: 321.4 | KN11: 292.2 | KO11: 391.1 | KP11: 380.3 | KQ11: 353.2 | KR11: 326 | KS11: 298.9 | KT11: 271.8 | KU11: 385.3 | KV11: 373.7 | KW11: 344.5 | KX11: 315.3 | KY11: 286.2 | KZ11: 257 | LA11: 358.3 | LB11: 347.5 | LC11: 320.4 | LD11: 293.2 | LE11: 266.1 | LF11: 239 | LG11: 373.2 | LH11: 361.6 | LI11: 332.4 | LJ11: 303.2 | LK11: 274.1 | LL11: 244.9 | LM11: 347.1 | LN11: 336.3 | LO11: 309.2 | LP11: 282 | LQ11: 255 | LR11: 227.8 | LS11: 430 | LT11: 418.4 | LU11: 389.2 | LV11: 360 | LW11: 330.9 | LX11: 301.7 | LY11: 399.9 | LZ11: 389.1 | MA11: 362 | MB11: 334.8 | MC11: 307.7 | MD11: 280.6 | ME11: 407.6 | MF11: 396 | MG11: 366.8 | MH11: 337.6 | MI11: 308.5 | MJ11: 279.3 | MK11: 379.1 | ML11: 368.3 | MM11: 341.2 | MN11: 314 | MO11: 286.9 | MP11: 259.8 | MQ11: 368.1 | MR11: 356.5 | MS11: 327.3 | MT11: 298.1 | MU11: 269 | MV11: 239.8 | MW11: 342.3 | MX11: 331.5 | MY11: 304.4 | MZ11: 277.2 | NA11: 250.2 | NB11: 223 | NC11: 394.7 | ND11: 383.1 | NE11: 353.9 | NF11: 324.7 | NG11: 295.6 | NH11: 266.4 | NI11: 367.1 | NJ11: 356.3 | NK11: 329.2 | NL11: 302 | NM11: 274.9 | NN11: 247.8 | NO11: 495.4 | NP11: 483.8 | NQ11: 454.6 | NR11: 425.4 | NS11: 396.3 | NT11: 367.1 | NU11: 460.7 | NV11: 449.9 | NW11: 422.7 | NX11: 395.6 | NY11: 368.5 | NZ11: 341.4 | OA11: 472.1 | OB11: 460.5 | OC11: 431.3 | OD11: 402.1 | OE11: 373 | OF11: 343.8 | OG11: 439.1 | OH11: 428.3 | OI11: 401.1 | OJ11: 374 | OK11: 346.9 | OL11: 319.8 | OM11: 342.3 | ON11: 330.7 | OO11: 301.5 | OP11: 272.3 | OQ11: 243.2 | OR11: 214 | OS11: 318.3 | OT11: 307.5 | OU11: 280.4 | OV11: 253.2 | OW11: 226.2 | OX11: 199 | OY11: 514.3 | OZ11: 502.7 | PA11: 473.5 | PB11: 444.3 | PC11: 415.2 | PD11: 386 | PE11: 478.3 | PF11: 467.5 | PG11: 440.3 | PH11: 413.2 | PI11: 386.1 | PJ11: 359 | PK11: 485 | PL11: 473.4 | PM11: 444.2 | PN11: 415 | PO11: 385.9 | PP11: 356.7 | PQ11: 451.1 | PR11: 440.3 | PS11: 413.1 | PT11: 386 | PU11: 358.9 | PV11: 331.8 | PW11: 421.4 | PX11: 409.8 | PY11: 380.6 | PZ11: 351.4 | QA11: 322.3 | QB11: 293.1 | QC11: 391.9 | QD11: 381.1 | QE11: 354 | QF11: 326.8 | QG11: 299.7 | QH11: 272.6 | QI11: 380.1 | QJ11: 368.5 | QK11: 339.3 | QL11: 310.1 | QM11: 281 | QN11: 251.8 | QO11: 353.5 | QP11: 342.7 | QQ11: 315.6 | QR11: 288.4 | QS11: 261.3 | QT11: 234.2 | RG11: 358.6 | RH11: 347 | RI11: 317.8 | RJ11: 288.6 | RK11: 259.5 | RL11: 230.3 | RM11: 333.5 | RN11: 322.7 | RO11: 295.6 | RP11: 268.4 | RQ11: 241.4 | RR11: 214.2 | RS11: 479 | RT11: 467.4 | RU11: 438.2 | RV11: 409 | RW11: 379.9 | RX11: 350.7 | RY11: 445.5 | RZ11: 434.7 | SA11: 407.5 | SB11: 380.4 | SC11: 353.3 | SD11: 326.2 | SE11: 431.7 | SF11: 420.1 | SG11: 390.9 | SH11: 361.7 | SI11: 332.6 | SJ11: 303.4 | SK11: 401.5 | SL11: 390.7 | SM11: 363.6 | SN11: 336.4 | SO11: 309.3 | SP11: 282.2 | SQ11: 399 | SR11: 387.4 | SS11: 358.2 | ST11: 329 | SU11: 299.9 | SV11: 270.7 | SW11: 371.1 | SX11: 360.3 | SY11: 333.2 | SZ11: 306 | TA11: 278.9 | TB11: 251.8
D12: Gesundheitspraxisversicherung T2 | F12: 12 | G12: 441.2 | H12: 429.6 | I12: 400.4 | J12: 371.2 | K12: 342.1 | L12: 312.9 | M12: 410.3 | N12: 399.5 | O12: 372.3 | P12: 345.2 | Q12: 318.1 | R12: 291 | S12: 398.7 | T12: 387.1 | U12: 357.9 | V12: 328.7 | W12: 299.6 | X12: 270.4 | Y12: 370.7 | Z12: 360 | AA12: 332.8 | AB12: 305.6 | AC12: 278.6 | AD12: 251.4 | AE12: 419.1 | AF12: 407.5 | AG12: 378.3 | AH12: 349.1 | AI12: 320 | AJ12: 290.8 | AK12: 389.7 | AL12: 378.9 | AM12: 351.8 | AN12: 324.6 | AO12: 297.6 | AP12: 270.4 | AQ12: 396.1 | AR12: 384.5 | AS12: 355.3 | AT12: 326.1 | AU12: 297 | AV12: 267.8 | AW12: 368.4 | AX12: 357.6 | AY12: 330.4 | AZ12: 303.3 | BA12: 276.2 | BB12: 249.1 | BC12: 322.2 | BD12: 310.6 | BE12: 281.4 | BF12: 252.2 | BG12: 223.1 | BH12: 203.8 | BI12: 299.6 | BJ12: 288.8 | BK12: 261.7 | BL12: 234.5 | BM12: 207.4 | BN12: 189.5 | BO12: 385.9 | BP12: 374.3 | BQ12: 345.1 | BR12: 315.9 | BS12: 286.8 | BT12: 257.6 | BU12: 358.9 | BV12: 348.1 | BW12: 320.9 | BX12: 293.8 | BY12: 266.7 | BZ12: 239.6 | CA12: 493.9 | CB12: 482.3 | CC12: 453.1 | CD12: 423.9 | CE12: 394.8 | CF12: 365.6 | CG12: 459.3 | CH12: 448.5 | CI12: 421.3 | CJ12: 394.2 | CK12: 367.1 | CL12: 340 | CM12: 429.3 | CN12: 417.7 | CO12: 388.5 | CP12: 359.3 | CQ12: 330.2 | CR12: 301 | CS12: 399.2 | CT12: 388.4 | CU12: 361.3 | CV12: 334.1 | CW12: 307 | CX12: 279.9 | CY12: 401.2 | CZ12: 389.6 | DA12: 360.4 | DB12: 331.2 | DC12: 302.1 | DD12: 272.9 | DE12: 373.1 | DF12: 362.3 | DG12: 335.2 | DH12: 308 | DI12: 281 | DJ12: 253.8 | DK12: 482.8 | DL12: 471.2 | DM12: 442 | DN12: 412.8 | DO12: 383.7 | DP12: 354.5 | DQ12: 449 | DR12: 438.2 | DS12: 411.1 | DT12: 383.9 | DU12: 356.8 | DV12: 329.7 | DW12: 444.6 | DX12: 433 | DY12: 403.8 | DZ12: 374.6 | EA12: 345.5 | EB12: 316.3 | EC12: 413.4 | ED12: 402.6 | EE12: 375.5 | EF12: 348.3 | EG12: 321.3 | EH12: 294.1 | EI12: 531.3 | EJ12: 519.7 | EK12: 490.5 | EL12: 461.3 | EM12: 432.2 | EN12: 403 | EO12: 494.1 | EP12: 483.3 | EQ12: 456.1 | ER12: 429 | ES12: 401.9 | ET12: 374.7 | EU12: 548.3 | EV12: 536.7 | EW12: 507.5 | EX12: 478.3 | EY12: 449.2 | EZ12: 420 | FA12: 509.9 | FB12: 499.1 | FC12: 471.9 | FD12: 444.8 | FE12: 417.7 | FF12: 390.6 | FG12: 374.9 | FH12: 363.3 | FI12: 334.1 | FJ12: 304.9 | FK12: 275.8 | FL12: 246.6 | FM12: 348.6 | FN12: 337.8 | FO12: 310.7 | FP12: 283.5 | FQ12: 256.4 | FR12: 229.3 | FS12: 388.5 | FT12: 376.9 | FU12: 347.7 | FV12: 318.5 | FW12: 289.4 | FX12: 260.2 | FY12: 361.3 | FZ12: 350.5 | GA12: 323.3 | GB12: 296.2 | GC12: 269.1 | GD12: 241.9 | GE12: 371.5 | GF12: 359.9 | GG12: 330.7 | GH12: 301.5 | GI12: 272.4 | GJ12: 243.2 | GK12: 345.4 | GL12: 334.7 | GM12: 307.5 | GN12: 280.3 | GO12: 253.3 | GP12: 226.1 | GQ12: 346.8 | GR12: 335.2 | GS12: 306 | GT12: 276.8 | GU12: 247.7 | GV12: 219.4 | GW12: 322.5 | GX12: 311.7 | GY12: 284.6 | GZ12: 257.4 | HA12: 230.4 | HB12: 204 | HC12: 470.1 | HD12: 458.5 | HE12: 429.3 | HF12: 400.1 | HG12: 371 | HH12: 341.8 | HI12: 437.1 | HJ12: 426.4 | HK12: 399.2 | HL12: 372 | HM12: 345 | HN12: 317.8 | HO12: 402.1 | HP12: 390.5 | HQ12: 361.3 | HR12: 332.1 | HS12: 303 | HT12: 273.8 | HU12: 373.9 | HV12: 363.1 | HW12: 336 | HX12: 308.8 | HY12: 281.7 | HZ12: 254.6 | IA12: 372.3 | IB12: 360.7 | IC12: 331.5 | ID12: 302.3 | IE12: 273.2 | IF12: 244 | IG12: 346.2 | IH12: 335.5 | II12: 308.3 | IJ12: 281.1 | IK12: 254.1 | IL12: 226.9 | IM12: 356.2 | IN12: 344.6 | IO12: 315.4 | IP12: 286.2 | IQ12: 257.1 | IR12: 227.9 | IS12: 331.2 | IT12: 320.4 | IU12: 293.3 | IV12: 266.1 | IW12: 239.1 | IX12: 211.9 | IY12: 518.5 | IZ12: 506.9 | JA12: 477.7 | JB12: 448.5 | JC12: 419.4 | JD12: 390.2 | JE12: 482.2 | JF12: 471.4 | JG12: 444.3 | JH12: 417.1 | JI12: 390 | JJ12: 362.9 | JK12: 357 | JL12: 345.4 | JM12: 316.2 | JN12: 287 | JO12: 257.9 | JP12: 228.7 | JQ12: 332 | JR12: 321.2 | JS12: 294.1 | JT12: 266.9 | JU12: 239.8 | JV12: 212.7 | JW12: 368.1 | JX12: 356.5 | JY12: 327.3 | JZ12: 298.1 | KA12: 269 | KB12: 239.8 | KC12: 342.3 | KD12: 331.5 | KE12: 304.3 | KF12: 277.2 | KG12: 250.1 | KH12: 223 | KI12: 415.7 | KJ12: 404.1 | KK12: 374.9 | KL12: 345.7 | KM12: 316.6 | KN12: 287.4 | KO12: 386.6 | KP12: 375.8 | KQ12: 348.6 | KR12: 321.5 | KS12: 294.4 | KT12: 267.2 | KU12: 380.8 | KV12: 369.2 | KW12: 340 | KX12: 310.8 | KY12: 281.7 | KZ12: 252.5 | LA12: 354.1 | LB12: 343.4 | LC12: 316.2 | LD12: 289 | LE12: 262 | LF12: 234.8 | LG12: 368.9 | LH12: 357.3 | LI12: 328.1 | LJ12: 298.9 | LK12: 269.8 | LL12: 240.6 | LM12: 343.1 | LN12: 332.3 | LO12: 305.1 | LP12: 278 | LQ12: 250.9 | LR12: 223.8 | LS12: 425 | LT12: 413.4 | LU12: 384.2 | LV12: 355 | LW12: 325.9 | LX12: 296.7 | LY12: 395.3 | LZ12: 384.5 | MA12: 357.3 | MB12: 330.2 | MC12: 303.1 | MD12: 275.9 | ME12: 402.9 | MF12: 391.3 | MG12: 362.1 | MH12: 332.9 | MI12: 303.8 | MJ12: 274.6 | MK12: 374.7 | ML12: 363.9 | MM12: 336.8 | MN12: 309.6 | MO12: 282.5 | MP12: 255.4 | MQ12: 363.8 | MR12: 352.2 | MS12: 323 | MT12: 293.8 | MU12: 264.7 | MV12: 235.5 | MW12: 338.3 | MX12: 327.5 | MY12: 300.4 | MZ12: 273.2 | NA12: 246.2 | NB12: 219 | NC12: 390.2 | ND12: 378.6 | NE12: 349.4 | NF12: 320.2 | NG12: 291.1 | NH12: 261.9 | NI12: 362.8 | NJ12: 352.1 | NK12: 324.9 | NL12: 297.7 | NM12: 270.7 | NN12: 243.5 | NO12: 489.6 | NP12: 478 | NQ12: 448.8 | NR12: 419.6 | NS12: 390.5 | NT12: 361.3 | NU12: 455.3 | NV12: 444.5 | NW12: 417.4 | NX12: 390.2 | NY12: 363.2 | NZ12: 336 | OA12: 466.7 | OB12: 455.1 | OC12: 425.9 | OD12: 396.7 | OE12: 367.6 | OF12: 338.4 | OG12: 434 | OH12: 423.2 | OI12: 396 | OJ12: 368.9 | OK12: 341.8 | OL12: 314.7 | OM12: 338.3 | ON12: 326.7 | OO12: 297.5 | OP12: 268.3 | OQ12: 239.2 | OR12: 214 | OS12: 314.6 | OT12: 303.8 | OU12: 276.7 | OV12: 249.5 | OW12: 222.5 | OX12: 199 | OY12: 508.3 | OZ12: 496.7 | PA12: 467.5 | PB12: 438.3 | PC12: 409.2 | PD12: 380 | PE12: 472.7 | PF12: 461.9 | PG12: 434.8 | PH12: 407.6 | PI12: 380.6 | PJ12: 353.4 | PK12: 479.4 | PL12: 467.8 | PM12: 438.6 | PN12: 409.4 | PO12: 380.3 | PP12: 351.1 | PQ12: 445.8 | PR12: 435.1 | PS12: 407.9 | PT12: 380.7 | PU12: 353.7 | PV12: 326.5 | PW12: 416.5 | PX12: 404.9 | PY12: 375.7 | PZ12: 346.5 | QA12: 317.4 | QB12: 288.2 | QC12: 387.3 | QD12: 376.6 | QE12: 349.4 | QF12: 322.2 | QG12: 295.2 | QH12: 268 | QI12: 375.7 | QJ12: 364.1 | QK12: 334.9 | QL12: 305.7 | QM12: 276.6 | QN12: 247.4 | QO12: 349.4 | QP12: 338.6 | QQ12: 311.5 | QR12: 284.3 | QS12: 257.2 | QT12: 230.1 | RG12: 354.5 | RH12: 342.9 | RI12: 313.7 | RJ12: 284.5 | RK12: 255.4 | RL12: 226.2 | RM12: 329.6 | RN12: 318.9 | RO12: 291.7 | RP12: 264.5 | RQ12: 237.5 | RR12: 210.3 | RS12: 473.5 | RT12: 461.9 | RU12: 432.7 | RV12: 403.5 | RW12: 374.4 | RX12: 345.2 | RY12: 440.3 | RZ12: 429.5 | SA12: 402.4 | SB12: 375.2 | SC12: 348.1 | SD12: 321 | SE12: 426.7 | SF12: 415.1 | SG12: 385.9 | SH12: 356.7 | SI12: 327.6 | SJ12: 298.4 | SK12: 396.8 | SL12: 386 | SM12: 358.9 | SN12: 331.7 | SO12: 304.7 | SP12: 277.5 | SQ12: 394.4 | SR12: 382.8 | SS12: 353.6 | ST12: 324.4 | SU12: 295.3 | SV12: 266.1 | SW12: 366.8 | SX12: 356 | SY12: 328.8 | SZ12: 301.7 | TA12: 274.6 | TB12: 247.5
D13: Gesundheitspraxisversicherung T1 | F13: 13 | G13: 436 | H13: 424.4 | I13: 395.2 | J13: 366 | K13: 336.9 | L13: 307.7 | M13: 405.4 | N13: 394.7 | O13: 367.5 | P13: 340.3 | Q13: 313.3 | R13: 286.1 | S13: 394 | T13: 382.4 | U13: 353.2 | V13: 324 | W13: 294.9 | X13: 265.7 | Y13: 366.4 | Z13: 355.6 | AA13: 328.4 | AB13: 301.3 | AC13: 274.2 | AD13: 247.1 | AE13: 414.1 | AF13: 402.5 | AG13: 373.3 | AH13: 344.1 | AI13: 315 | AJ13: 285.8 | AK13: 385.1 | AL13: 374.3 | AM13: 347.2 | AN13: 320 | AO13: 293 | AP13: 265.8 | AQ13: 391.4 | AR13: 379.8 | AS13: 350.6 | AT13: 321.4 | AU13: 292.3 | AV13: 263.1 | AW13: 364 | AX13: 353.3 | AY13: 326.1 | AZ13: 298.9 | BA13: 271.9 | BB13: 244.7 | BC13: 318.4 | BD13: 306.8 | BE13: 277.6 | BF13: 248.4 | BG13: 219.3 | BH13: 203.8 | BI13: 296.1 | BJ13: 285.3 | BK13: 258.1 | BL13: 231 | BM13: 203.9 | BN13: 189.5 | BO13: 381.4 | BP13: 369.8 | BQ13: 340.6 | BR13: 311.4 | BS13: 282.3 | BT13: 253.1 | BU13: 354.7 | BV13: 343.9 | BW13: 316.7 | BX13: 289.6 | BY13: 262.5 | BZ13: 235.3 | CA13: 488 | CB13: 476.4 | CC13: 447.2 | CD13: 418 | CE13: 388.9 | CF13: 359.7 | CG13: 453.9 | CH13: 443.1 | CI13: 415.9 | CJ13: 388.8 | CK13: 361.7 | CL13: 334.6 | CM13: 424.2 | CN13: 412.6 | CO13: 383.4 | CP13: 354.2 | CQ13: 325.1 | CR13: 295.9 | CS13: 394.5 | CT13: 383.7 | CU13: 356.6 | CV13: 329.4 | CW13: 302.3 | CX13: 275.2 | CY13: 396.5 | CZ13: 384.9 | DA13: 355.7 | DB13: 326.5 | DC13: 297.4 | DD13: 268.2 | DE13: 368.7 | DF13: 357.9 | DG13: 330.8 | DH13: 303.6 | DI13: 276.6 | DJ13: 249.4 | DK13: 477.1 | DL13: 465.5 | DM13: 436.3 | DN13: 407.1 | DO13: 378 | DP13: 348.8 | DQ13: 443.7 | DR13: 432.9 | DS13: 405.8 | DT13: 378.6 | DU13: 351.6 | DV13: 324.4 | DW13: 439.3 | DX13: 427.7 | DY13: 398.5 | DZ13: 369.3 | EA13: 340.2 | EB13: 311 | EC13: 408.6 | ED13: 397.8 | EE13: 370.6 | EF13: 343.5 | EG13: 316.4 | EH13: 289.2 | EI13: 525 | EJ13: 513.4 | EK13: 484.2 | EL13: 455 | EM13: 425.9 | EN13: 396.7 | EO13: 488.3 | EP13: 477.5 | EQ13: 450.3 | ER13: 423.2 | ES13: 396.1 | ET13: 368.9 | EU13: 541.8 | EV13: 530.2 | EW13: 501 | EX13: 471.8 | EY13: 442.7 | EZ13: 413.5 | FA13: 503.9 | FB13: 493.1 | FC13: 465.9 | FD13: 438.8 | FE13: 411.7 | FF13: 384.6 | FG13: 370.4 | FH13: 358.8 | FI13: 329.6 | FJ13: 300.4 | FK13: 271.3 | FL13: 242.1 | FM13: 344.5 | FN13: 333.7 | FO13: 306.6 | FP13: 279.4 | FQ13: 252.3 | FR13: 225.2 | FS13: 383.9 | FT13: 372.3 | FU13: 343.1 | FV13: 313.9 | FW13: 284.8 | FX13: 255.6 | FY13: 357 | FZ13: 346.2 | GA13: 319.1 | GB13: 291.9 | GC13: 264.8 | GD13: 237.7 | GE13: 367.1 | GF13: 355.5 | GG13: 326.3 | GH13: 297.1 | GI13: 268 | GJ13: 238.8 | GK13: 341.4 | GL13: 330.6 | GM13: 303.4 | GN13: 276.3 | GO13: 249.2 | GP13: 222.1 | GQ13: 342.7 | GR13: 331.1 | GS13: 301.9 | GT13: 272.7 | GU13: 243.6 | GV13: 219.4 | GW13: 318.7 | GX13: 307.9 | GY13: 280.8 | GZ13: 253.6 | HA13: 226.6 | HB13: 204 | HC13: 464.5 | HD13: 452.9 | HE13: 423.7 | HF13: 394.5 | HG13: 365.4 | HH13: 336.2 | HI13: 432 | HJ13: 421.2 | HK13: 394.1 | HL13: 366.9 | HM13: 339.8 | HN13: 312.7 | HO13: 397.3 | HP13: 385.7 | HQ13: 356.5 | HR13: 327.3 | HS13: 298.2 | HT13: 269 | HU13: 369.5 | HV13: 358.7 | HW13: 331.6 | HX13: 304.4 | HY13: 277.3 | HZ13: 250.2 | IA13: 367.9 | IB13: 356.3 | IC13: 327.1 | ID13: 297.9 | IE13: 268.8 | IF13: 239.6 | IG13: 342.2 | IH13: 331.4 | II13: 304.2 | IJ13: 277.1 | IK13: 250 | IL13: 222.8 | IM13: 352 | IN13: 340.4 | IO13: 311.2 | IP13: 282 | IQ13: 252.9 | IR13: 225.3 | IS13: 327.3 | IT13: 316.5 | IU13: 289.4 | IV13: 262.2 | IW13: 235.2 | IX13: 209.5 | IY13: 512.4 | IZ13: 500.8 | JA13: 471.6 | JB13: 442.4 | JC13: 413.3 | JD13: 384.1 | JE13: 476.5 | JF13: 465.7 | JG13: 438.6 | JH13: 411.4 | JI13: 384.4 | JJ13: 357.2 | JK13: 352.8 | JL13: 341.2 | JM13: 312 | JN13: 282.8 | JO13: 253.7 | JP13: 225.8 | JQ13: 328.1 | JR13: 317.3 | JS13: 290.2 | JT13: 263 | JU13: 235.9 | JV13: 210 | JW13: 363.7 | JX13: 352.1 | JY13: 322.9 | JZ13: 293.7 | KA13: 264.6 | KB13: 235.4 | KC13: 338.3 | KD13: 327.5 | KE13: 300.3 | KF13: 273.2 | KG13: 246.1 | KH13: 218.9 | KI13: 410.8 | KJ13: 399.2 | KK13: 370 | KL13: 340.8 | KM13: 311.7 | KN13: 282.5 | KO13: 382 | KP13: 371.2 | KQ13: 344.1 | KR13: 316.9 | KS13: 289.8 | KT13: 262.7 | KU13: 376.3 | KV13: 364.7 | KW13: 335.5 | KX13: 306.3 | KY13: 277.2 | KZ13: 248 | LA13: 350 | LB13: 339.2 | LC13: 312 | LD13: 284.9 | LE13: 257.8 | LF13: 230.7 | LG13: 364.6 | LH13: 353 | LI13: 323.8 | LJ13: 294.6 | LK13: 265.5 | LL13: 236.3 | LM13: 339 | LN13: 328.3 | LO13: 301.1 | LP13: 273.9 | LQ13: 246.9 | LR13: 219.7 | LS13: 420 | LT13: 408.4 | LU13: 379.2 | LV13: 350 | LW13: 320.9 | LX13: 291.7 | LY13: 390.6 | LZ13: 379.8 | MA13: 352.7 | MB13: 325.5 | MC13: 298.4 | MD13: 271.3 | ME13: 398.2 | MF13: 386.6 | MG13: 357.4 | MH13: 328.2 | MI13: 299.1 | MJ13: 269.9 | MK13: 370.3 | ML13: 359.5 | MM13: 332.3 | MN13: 305.2 | MO13: 278.1 | MP13: 251 | MQ13: 359.5 | MR13: 347.9 | MS13: 318.7 | MT13: 289.5 | MU13: 260.4 | MV13: 231.2 | MW13: 334.4 | MX13: 323.6 | MY13: 296.4 | MZ13: 269.3 | NA13: 242.2 | NB13: 215 | NC13: 385.6 | ND13: 374 | NE13: 344.8 | NF13: 315.6 | NG13: 286.5 | NH13: 257.3 | NI13: 358.6 | NJ13: 347.8 | NK13: 320.6 | NL13: 293.5 | NM13: 266.4 | NN13: 239.3 | NO13: 483.8 | NP13: 472.2 | NQ13: 443 | NR13: 413.8 | NS13: 384.7 | NT13: 355.5 | NU13: 450 | NV13: 439.2 | NW13: 412 | NX13: 384.9 | NY13: 357.8 | NZ13: 330.7 | OA13: 461.2 | OB13: 449.6 | OC13: 420.4 | OD13: 391.2 | OE13: 362.1 | OF13: 332.9 | OG13: 428.9 | OH13: 418.1 | OI13: 390.9 | OJ13: 363.8 | OK13: 336.7 | OL13: 309.6 | OM13: 334.3 | ON13: 322.7 | OO13: 293.5 | OP13: 264.3 | OQ13: 235.2 | OR13: 214 | OS13: 310.9 | OT13: 300.1 | OU13: 273 | OV13: 245.8 | OW13: 218.8 | OX13: 199 | OY13: 502.3 | OZ13: 490.7 | PA13: 461.5 | PB13: 432.3 | PC13: 403.2 | PD13: 374 | PE13: 467.2 | PF13: 456.4 | PG13: 429.2 | PH13: 402.1 | PI13: 375 | PJ13: 347.8 | PK13: 473.8 | PL13: 462.2 | PM13: 433 | PN13: 403.8 | PO13: 374.7 | PP13: 345.5 | PQ13: 440.6 | PR13: 429.8 | PS13: 402.7 | PT13: 375.5 | PU13: 348.4 | PV13: 321.3 | PW13: 411.6 | PX13: 400 | PY13: 370.8 | PZ13: 341.6 | QA13: 312.5 | QB13: 283.3 | QC13: 382.8 | QD13: 372 | QE13: 344.8 | QF13: 317.7 | QG13: 290.6 | QH13: 263.5 | QI13: 371.3 | QJ13: 359.7 | QK13: 330.5 | QL13: 301.3 | QM13: 272.2 | QN13: 243 | QO13: 345.3 | QP13: 334.5 | QQ13: 307.3 | QR13: 280.2 | QS13: 253.1 | QT13: 226 | RG13: 350.3 | RH13: 338.7 | RI13: 309.5 | RJ13: 280.3 | RK13: 251.2 | RL13: 224.2 | RM13: 325.8 | RN13: 315 | RO13: 287.8 | RP13: 260.7 | RQ13: 233.6 | RR13: 208.5 | RS13: 467.9 | RT13: 456.3 | RU13: 427.1 | RV13: 397.9 | RW13: 368.8 | RX13: 339.6 | RY13: 435.1 | RZ13: 424.3 | SA13: 397.2 | SB13: 370 | SC13: 343 | SD13: 315.8 | SE13: 421.7 | SF13: 410.1 | SG13: 380.9 | SH13: 351.7 | SI13: 322.6 | SJ13: 293.4 | SK13: 392.2 | SL13: 381.4 | SM13: 354.2 | SN13: 327.1 | SO13: 300 | SP13: 272.8 | SQ13: 389.8 | SR13: 378.2 | SS13: 349 | ST13: 319.8 | SU13: 290.7 | SV13: 261.5 | SW13: 362.5 | SX13: 351.7 | SY13: 324.5 | SZ13: 297.4 | TA13: 270.3 | TB13: 243.2
D14: Multimed | F14: 14 | G14: 441.2 | H14: 429.6 | I14: 400.4 | J14: 371.2 | K14: 342.1 | L14: 327.7 | M14: 410.3 | N14: 399.5 | O14: 372.3 | P14: 345.2 | Q14: 318.1 | R14: 304.8 | S14: 398.7 | T14: 387.1 | U14: 357.9 | V14: 328.7 | W14: 299.6 | X14: 285.2 | Y14: 370.7 | Z14: 360 | AA14: 332.8 | AB14: 305.6 | AC14: 278.6 | AD14: 265.2 | AE14: 419.1 | AF14: 407.5 | AG14: 378.3 | AH14: 349.1 | AI14: 320 | AJ14: 305.6 | AK14: 389.7 | AL14: 378.9 | AM14: 351.8 | AN14: 324.6 | AO14: 297.6 | AP14: 284.2 | AQ14: 391.4 | AR14: 379.8 | AS14: 350.6 | AT14: 321.4 | AU14: 292.3 | AV14: 279 | AW14: 364 | AX14: 353.3 | AY14: 326.1 | AZ14: 298.9 | BA14: 271.9 | BB14: 259.4 | BC14: 318.4 | BD14: 306.8 | BE14: 277.6 | BF14: 248.4 | BG14: 219.3 | BH14: 219 | BI14: 296.1 | BJ14: 285.3 | BK14: 258.1 | BL14: 231 | BM14: 203.9 | BN14: 203.7 | BO14: 381.4 | BP14: 369.8 | BQ14: 340.6 | BR14: 311.4 | BS14: 282.3 | BT14: 267.9 | BU14: 354.7 | BV14: 343.9 | BW14: 316.7 | BX14: 289.6 | BY14: 262.5 | BZ14: 249.1 | CA14: 493.9 | CB14: 482.3 | CC14: 453.1 | CD14: 423.9 | CE14: 394.8 | CF14: 380.4 | CG14: 459.3 | CH14: 448.5 | CI14: 421.3 | CJ14: 394.2 | CK14: 367.1 | CL14: 353.8 | CM14: 429.3 | CN14: 417.7 | CO14: 388.5 | CP14: 359.3 | CQ14: 330.2 | CR14: 315.8 | CS14: 399.2 | CT14: 388.4 | CU14: 361.3 | CV14: 334.1 | CW14: 307 | CX14: 293.7 | CY14: 401.2 | CZ14: 389.6 | DA14: 360.4 | DB14: 331.2 | DC14: 302.1 | DD14: 287.7 | DE14: 373.1 | DF14: 362.3 | DG14: 335.2 | DH14: 308 | DI14: 281 | DJ14: 267.6 | DK14: 482.8 | DL14: 471.2 | DM14: 442 | DN14: 412.8 | DO14: 383.7 | DP14: 369.3 | DQ14: 449 | DR14: 438.2 | DS14: 411.1 | DT14: 383.9 | DU14: 356.8 | DV14: 343.5 | DW14: 444.6 | DX14: 433 | DY14: 403.8 | DZ14: 374.6 | EA14: 345.5 | EB14: 331.1 | EC14: 413.4 | ED14: 402.6 | EE14: 375.5 | EF14: 348.3 | EG14: 321.3 | EH14: 307.9 | EI14: 531.3 | EJ14: 519.7 | EK14: 490.5 | EL14: 461.3 | EM14: 432.2 | EN14: 417.8 | EO14: 494.1 | EP14: 483.3 | EQ14: 456.1 | ER14: 429 | ES14: 401.9 | ET14: 388.5 | EU14: 541.8 | EV14: 530.2 | EW14: 501 | EX14: 471.8 | EY14: 442.7 | EZ14: 428.3 | FA14: 503.9 | FB14: 493.1 | FC14: 465.9 | FD14: 438.8 | FE14: 411.7 | FF14: 398.4 | FG14: 374.9 | FH14: 363.3 | FI14: 334.1 | FJ14: 304.9 | FK14: 275.8 | FL14: 261.4 | FM14: 348.6 | FN14: 337.8 | FO14: 310.7 | FP14: 283.5 | FQ14: 256.4 | FR14: 243.1 | FS14: 388.5 | FT14: 376.9 | FU14: 347.7 | FV14: 318.5 | FW14: 289.4 | FX14: 275.4 | FY14: 361.3 | FZ14: 350.5 | GA14: 323.3 | GB14: 296.2 | GC14: 269.1 | GD14: 256.2 | GE14: 371.5 | GF14: 359.9 | GG14: 330.7 | GH14: 301.5 | GI14: 272.4 | GJ14: 258.4 | GK14: 345.4 | GL14: 334.7 | GM14: 307.5 | GN14: 280.3 | GO14: 253.3 | GP14: 240.3 | GQ14: 346.8 | GR14: 335.2 | GS14: 306 | GT14: 276.8 | GU14: 247.7 | GV14: 233.8 | GW14: 322.5 | GX14: 311.7 | GY14: 284.6 | GZ14: 257.4 | HA14: 230.4 | HB14: 217.4 | HC14: 475.6 | HD14: 464 | HE14: 434.8 | HF14: 405.6 | HG14: 376.5 | HH14: 362.1 | HI14: 442.3 | HJ14: 431.5 | HK14: 404.3 | HL14: 377.2 | HM14: 350.1 | HN14: 336.8 | HO14: 402.1 | HP14: 390.5 | HQ14: 361.3 | HR14: 332.1 | HS14: 303 | HT14: 288.6 | HU14: 373.9 | HV14: 363.1 | HW14: 336 | HX14: 308.8 | HY14: 281.7 | HZ14: 268.4 | IA14: 372.3 | IB14: 360.7 | IC14: 331.5 | ID14: 302.3 | IE14: 273.2 | IF14: 258.8 | IG14: 346.2 | IH14: 335.5 | II14: 308.3 | IJ14: 281.1 | IK14: 254.1 | IL14: 240.7 | IM14: 356.2 | IN14: 344.6 | IO14: 315.4 | IP14: 286.2 | IQ14: 257.1 | IR14: 242.7 | IS14: 331.2 | IT14: 320.4 | IU14: 293.3 | IV14: 266.1 | IW14: 239.1 | IX14: 225.7 | IY14: 518.5 | IZ14: 506.9 | JA14: 477.7 | JB14: 448.5 | JC14: 419.4 | JD14: 405 | JE14: 482.2 | JF14: 471.4 | JG14: 444.3 | JH14: 417.1 | JI14: 390 | JJ14: 376.7 | JK14: 357 | JL14: 345.4 | JM14: 316.2 | JN14: 287 | JO14: 257.9 | JP14: 243.5 | JQ14: 332 | JR14: 321.2 | JS14: 294.1 | JT14: 266.9 | JU14: 239.8 | JV14: 226.5 | JW14: 368.1 | JX14: 356.5 | JY14: 327.3 | JZ14: 298.1 | KA14: 269 | KB14: 254.6 | KC14: 342.3 | KD14: 331.5 | KE14: 304.3 | KF14: 277.2 | KG14: 250.1 | KH14: 236.8 | KI14: 410.8 | KJ14: 399.2 | KK14: 370 | KL14: 340.8 | KM14: 311.7 | KN14: 297.3 | KO14: 382 | KP14: 371.2 | KQ14: 344.1 | KR14: 316.9 | KS14: 289.8 | KT14: 276.5 | KU14: 376.3 | KV14: 364.7 | KW14: 335.5 | KX14: 306.3 | KY14: 277.2 | KZ14: 262.9 | LA14: 350 | LB14: 339.2 | LC14: 312 | LD14: 284.9 | LE14: 257.8 | LF14: 244.5 | LG14: 364.6 | LH14: 353 | LI14: 323.8 | LJ14: 294.6 | LK14: 265.5 | LL14: 251.1 | LM14: 339 | LN14: 328.3 | LO14: 301.1 | LP14: 273.9 | LQ14: 246.9 | LR14: 233.5 | LS14: 420 | LT14: 408.4 | LU14: 379.2 | LV14: 350 | LW14: 320.9 | LX14: 306.5 | LY14: 390.6 | LZ14: 379.8 | MA14: 352.7 | MB14: 325.5 | MC14: 298.4 | MD14: 285.1 | ME14: 398.2 | MF14: 386.6 | MG14: 357.4 | MH14: 328.2 | MI14: 299.1 | MJ14: 284.7 | MK14: 370.3 | ML14: 359.5 | MM14: 332.3 | MN14: 305.2 | MO14: 278.1 | MP14: 264.8 | MQ14: 359.5 | MR14: 347.9 | MS14: 318.7 | MT14: 289.5 | MU14: 260.4 | MV14: 246.2 | MW14: 334.4 | MX14: 323.6 | MY14: 296.4 | MZ14: 269.3 | NA14: 242.2 | NB14: 228.9 | NC14: 385.6 | ND14: 374 | NE14: 344.8 | NF14: 315.6 | NG14: 286.5 | NH14: 272.1 | NI14: 358.6 | NJ14: 347.8 | NK14: 320.6 | NL14: 293.5 | NM14: 266.4 | NN14: 253.1 | NO14: 489.6 | NP14: 478 | NQ14: 448.8 | NR14: 419.6 | NS14: 390.5 | NT14: 376.1 | NU14: 455.3 | NV14: 444.5 | NW14: 417.4 | NX14: 390.2 | NY14: 363.2 | NZ14: 349.8 | OA14: 466.7 | OB14: 455.1 | OC14: 425.9 | OD14: 396.7 | OE14: 367.6 | OF14: 353.2 | OG14: 434 | OH14: 423.2 | OI14: 396 | OJ14: 368.9 | OK14: 341.8 | OL14: 328.5 | OM14: 338.3 | ON14: 326.7 | OO14: 297.5 | OP14: 268.3 | OQ14: 239.2 | OR14: 230.3 | OS14: 314.6 | OT14: 303.8 | OU14: 276.7 | OV14: 249.5 | OW14: 222.5 | OX14: 214.2 | OY14: 502.3 | OZ14: 490.7 | PA14: 461.5 | PB14: 432.3 | PC14: 403.2 | PD14: 388.9 | PE14: 467.2 | PF14: 456.4 | PG14: 429.2 | PH14: 402.1 | PI14: 375 | PJ14: 361.6 | PK14: 473.8 | PL14: 462.2 | PM14: 433 | PN14: 403.8 | PO14: 374.7 | PP14: 360.3 | PQ14: 440.6 | PR14: 429.8 | PS14: 402.7 | PT14: 375.5 | PU14: 348.4 | PV14: 335.1 | PW14: 416.5 | PX14: 404.9 | PY14: 375.7 | PZ14: 346.5 | QA14: 317.4 | QB14: 303 | QC14: 387.3 | QD14: 376.6 | QE14: 349.4 | QF14: 322.2 | QG14: 295.2 | QH14: 281.8 | QI14: 375.7 | QJ14: 364.1 | QK14: 334.9 | QL14: 305.7 | QM14: 276.6 | QN14: 262.2 | QO14: 349.4 | QP14: 338.6 | QQ14: 311.5 | QR14: 284.3 | QS14: 257.2 | QT14: 243.9 | RG14: 350.3 | RH14: 338.7 | RI14: 309.5 | RJ14: 280.3 | RK14: 251.2 | RL14: 240 | RM14: 325.8 | RN14: 315 | RO14: 287.8 | RP14: 260.7 | RQ14: 233.6 | RR14: 223.2 | RS14: 467.9 | RT14: 456.3 | RU14: 427.1 | RV14: 397.9 | RW14: 368.8 | RX14: 354.4 | RY14: 435.1 | RZ14: 424.3 | SA14: 397.2 | SB14: 370 | SC14: 343 | SD14: 329.6 | SE14: 421.7 | SF14: 410.1 | SG14: 380.9 | SH14: 351.7 | SI14: 322.6 | SJ14: 308.2 | SK14: 392.2 | SL14: 381.4 | SM14: 354.2 | SN14: 327.1 | SO14: 300 | SP14: 286.6 | SQ14: 389.8 | SR14: 378.2 | SS14: 349 | ST14: 319.8 | SU14: 290.7 | SV14: 276.3 | SW14: 362.5 | SX14: 351.7 | SY14: 324.5 | SZ14: 297.4 | TA14: 270.3 | TB14: 257
C15: TAR-DIV | D15: Callmed | F15: 15 | G15: 461.9 | H15: 450.3 | I15: 421.1 | J15: 391.9 | K15: 362.8 | L15: 333.6 | M15: 429.6 | N15: 418.8 | O15: 391.6 | P15: 364.5 | Q15: 337.4 | R15: 310.3 | S15: 412.7 | T15: 401.1 | U15: 371.9 | V15: 342.7 | W15: 313.6 | X15: 284.4 | Y15: 383.8 | Z15: 373 | AA15: 345.9 | AB15: 318.7 | AC15: 291.7 | AD15: 264.5 | AE15: 438.8 | AF15: 427.2 | AG15: 398 | AH15: 368.8 | AI15: 339.7 | AJ15: 310.5 | AK15: 408.1 | AL15: 397.3 | AM15: 370.1 | AN15: 343 | AO15: 315.9 | AP15: 288.7 | AQ15: 414.7 | AR15: 403.1 | AS15: 373.9 | AT15: 344.7 | AU15: 315.6 | AV15: 286.4 | AW15: 385.7 | AX15: 374.9 | AY15: 347.8 | AZ15: 320.6 | BA15: 293.5 | BB15: 266.4 | BC15: 337.3 | BD15: 325.7 | BE15: 296.5 | BF15: 267.3 | BG15: 238.2 | BH15: 209 | BI15: 313.7 | BJ15: 302.9 | BK15: 275.8 | BL15: 248.6 | BM15: 221.5 | BN15: 194.4 | BO15: 404.1 | BP15: 392.5 | BQ15: 363.3 | BR15: 334.1 | BS15: 305 | BT15: 275.8 | BU15: 375.8 | BV15: 365 | BW15: 337.8 | BX15: 310.7 | BY15: 283.6 | BZ15: 256.5 | CA15: 511.3 | CB15: 499.7 | CC15: 470.5 | CD15: 441.3 | CE15: 412.2 | CF15: 383 | CG15: 475.5 | CH15: 464.7 | CI15: 437.5 | CJ15: 410.4 | CK15: 383.3 | CL15: 356.2 | CM15: 444.4 | CN15: 432.8 | CO15: 403.6 | CP15: 374.4 | CQ15: 345.3 | CR15: 316.1 | CS15: 413.3 | CT15: 402.5 | CU15: 375.3 | CV15: 348.2 | CW15: 321.1 | CX15: 294 | CY15: 420.1 | CZ15: 408.5 | DA15: 379.3 | DB15: 350.1 | DC15: 321 | DD15: 291.8 | DE15: 390.7 | DF15: 379.9 | DG15: 352.7 | DH15: 325.6 | DI15: 298.5 | DJ15: 271.4 | DK15: 505.5 | DL15: 493.9 | DM15: 464.7 | DN15: 435.5 | DO15: 406.4 | DP15: 377.2 | DQ15: 470.1 | DR15: 459.3 | DS15: 432.2 | DT15: 405 | DU15: 378 | DV15: 350.8 | DW15: 465.5 | DX15: 453.9 | DY15: 424.7 | DZ15: 395.5 | EA15: 366.4 | EB15: 337.2 | EC15: 432.9 | ED15: 422.1 | EE15: 394.9 | EF15: 367.8 | EG15: 340.7 | EH15: 313.6 | EI15: 556.3 | EJ15: 544.7 | EK15: 515.5 | EL15: 486.3 | EM15: 457.2 | EN15: 428 | EO15: 517.3 | EP15: 506.5 | EQ15: 479.4 | ER15: 452.2 | ES15: 425.1 | ET15: 398 | EU15: 567.6 | EV15: 556 | EW15: 526.8 | EX15: 497.6 | EY15: 468.5 | EZ15: 439.3 | FA15: 527.9 | FB15: 517.1 | FC15: 489.9 | FD15: 462.8 | FE15: 435.7 | FF15: 408.5 | FG15: 396.9 | FH15: 385.3 | FI15: 356.1 | FJ15: 326.9 | FK15: 297.8 | FL15: 268.6 | FM15: 369.1 | FN15: 358.3 | FO15: 331.2 | FP15: 304 | FQ15: 277 | FR15: 249.8 | FS15: 406.7 | FT15: 395.1 | FU15: 365.9 | FV15: 336.7 | FW15: 307.6 | FX15: 278.4 | FY15: 378.3 | FZ15: 367.5 | GA15: 340.3 | GB15: 313.2 | GC15: 286.1 | GD15: 258.9 | GE15: 388.9 | GF15: 377.3 | GG15: 348.1 | GH15: 318.9 | GI15: 289.8 | GJ15: 260.6 | GK15: 361.7 | GL15: 350.9 | GM15: 323.8 | GN15: 296.6 | GO15: 269.5 | GP15: 242.4 | GQ15: 363.1 | GR15: 351.5 | GS15: 322.3 | GT15: 293.1 | GU15: 264 | GV15: 234.8 | GW15: 337.7 | GX15: 326.9 | GY15: 299.8 | GZ15: 272.6 | HA15: 245.5 | HB15: 218.4 | HC15: 497.7 | HD15: 486.1 | HE15: 456.9 | HF15: 427.7 | HG15: 398.6 | HH15: 369.4 | HI15: 462.9 | HJ15: 452.1 | HK15: 424.9 | HL15: 397.8 | HM15: 370.7 | HN15: 343.5 | HO15: 425.7 | HP15: 414.1 | HQ15: 384.9 | HR15: 355.7 | HS15: 326.6 | HT15: 297.4 | HU15: 395.9 | HV15: 385.1 | HW15: 358 | HX15: 330.8 | HY15: 303.7 | HZ15: 276.6 | IA15: 389.8 | IB15: 378.2 | IC15: 349 | ID15: 319.8 | IE15: 290.7 | IF15: 261.5 | IG15: 362.5 | IH15: 351.7 | II15: 324.6 | IJ15: 297.4 | IK15: 270.4 | IL15: 243.2 | IM15: 372.9 | IN15: 361.3 | IO15: 332.1 | IP15: 302.9 | IQ15: 273.8 | IR15: 244.6 | IS15: 346.8 | IT15: 336 | IU15: 308.9 | IV15: 281.7 | IW15: 254.6 | IX15: 227.5 | IY15: 542.9 | IZ15: 531.3 | JA15: 502.1 | JB15: 472.9 | JC15: 443.8 | JD15: 414.6 | JE15: 504.9 | JF15: 494.1 | JG15: 467 | JH15: 439.8 | JI15: 412.7 | JJ15: 385.6 | JK15: 369.6 | JL15: 358 | JM15: 328.8 | JN15: 299.6 | JO15: 270.5 | JP15: 241.3 | JQ15: 343.7 | JR15: 332.9 | JS15: 305.8 | JT15: 278.6 | JU15: 251.6 | JV15: 224.4 | JW15: 385.4 | JX15: 373.8 | JY15: 344.6 | JZ15: 315.4 | KA15: 286.3 | KB15: 257.1 | KC15: 358.4 | KD15: 347.6 | KE15: 320.5 | KF15: 293.3 | KG15: 266.2 | KH15: 239.1 | KI15: 435.2 | KJ15: 423.6 | KK15: 394.4 | KL15: 365.2 | KM15: 336.1 | KN15: 306.9 | KO15: 404.7 | KP15: 394 | KQ15: 366.8 | KR15: 339.6 | KS15: 312.6 | KT15: 285.4 | KU15: 398.7 | KV15: 387.1 | KW15: 357.9 | KX15: 328.7 | KY15: 299.6 | KZ15: 270.4 | LA15: 370.8 | LB15: 360 | LC15: 332.9 | LD15: 305.7 | LE15: 278.6 | LF15: 251.5 | LG15: 386.3 | LH15: 374.7 | LI15: 345.5 | LJ15: 316.3 | LK15: 287.2 | LL15: 258 | LM15: 359.2 | LN15: 348.4 | LO15: 321.3 | LP15: 294.1 | LQ15: 267.1 | LR15: 239.9 | LS15: 440 | LT15: 428.4 | LU15: 399.2 | LV15: 370 | LW15: 340.9 | LX15: 311.7 | LY15: 409.2 | LZ15: 398.4 | MA15: 371.3 | MB15: 344.1 | MC15: 317 | MD15: 289.9 | ME15: 417.1 | MF15: 405.5 | MG15: 376.3 | MH15: 347.1 | MI15: 318 | MJ15: 288.8 | MK15: 387.9 | ML15: 377.1 | MM15: 350 | MN15: 322.8 | MO15: 295.8 | MP15: 268.6 | MQ15: 376.6 | MR15: 365 | MS15: 335.8 | MT15: 306.6 | MU15: 277.5 | MV15: 248.3 | MW15: 350.3 | MX15: 339.5 | MY15: 312.3 | MZ15: 285.2 | NA15: 258.1 | NB15: 231 | NC15: 408.5 | ND15: 396.9 | NE15: 367.7 | NF15: 338.5 | NG15: 309.4 | NH15: 280.2 | NI15: 379.9 | NJ15: 369.1 | NK15: 342 | NL15: 314.8 | NM15: 287.8 | NN15: 260.6 | NO15: 518.4 | NP15: 506.8 | NQ15: 477.6 | NR15: 448.4 | NS15: 419.3 | NT15: 390.1 | NU15: 482.1 | NV15: 471.3 | NW15: 444.2 | NX15: 417 | NY15: 389.9 | NZ15: 362.8 | OA15: 494.1 | OB15: 482.5 | OC15: 453.3 | OD15: 424.1 | OE15: 395 | OF15: 365.8 | OG15: 459.5 | OH15: 448.7 | OI15: 421.6 | OJ15: 394.4 | OK15: 367.4 | OL15: 340.2 | OM15: 358.2 | ON15: 346.6 | OO15: 317.4 | OP15: 288.2 | OQ15: 259.1 | OR15: 229.9 | OS15: 333.1 | OT15: 322.3 | OU15: 295.2 | OV15: 268 | OW15: 241 | OX15: 213.8 | OY15: 538.2 | OZ15: 526.6 | PA15: 497.4 | PB15: 468.2 | PC15: 439.1 | PD15: 409.9 | PE15: 500.5 | PF15: 489.7 | PG15: 462.6 | PH15: 435.4 | PI15: 408.4 | PJ15: 381.2 | PK15: 507.6 | PL15: 496 | PM15: 466.8 | PN15: 437.6 | PO15: 408.5 | PP15: 379.3 | PQ15: 472.1 | PR15: 461.3 | PS15: 434.1 | PT15: 407 | PU15: 379.9 | PV15: 352.7 | PW15: 436.1 | PX15: 424.5 | PY15: 395.3 | PZ15: 366.1 | QA15: 337 | QB15: 307.8 | QC15: 405.6 | QD15: 394.8 | QE15: 367.6 | QF15: 340.5 | QG15: 313.4 | QH15: 286.3 | QI15: 393.4 | QJ15: 381.8 | QK15: 352.6 | QL15: 323.4 | QM15: 294.3 | QN15: 265.1 | QO15: 365.8 | QP15: 355.1 | QQ15: 327.9 | QR15: 300.7 | QS15: 273.7 | QT15: 246.5 | RG15: 367 | RH15: 355.4 | RI15: 326.2 | RJ15: 297 | RK15: 267.9 | RL15: 238.7 | RM15: 341.3 | RN15: 330.5 | RO15: 303.3 | RP15: 276.2 | RQ15: 249.1 | RR15: 222 | RS15: 495.7 | RT15: 484.1 | RU15: 454.9 | RV15: 425.7 | RW15: 396.6 | RX15: 367.4 | RY15: 461 | RZ15: 450.2 | SA15: 423.1 | SB15: 395.9 | SC15: 368.9 | SD15: 341.7 | SE15: 446.8 | SF15: 435.2 | SG15: 406 | SH15: 376.8 | SI15: 347.7 | SJ15: 318.5 | SK15: 415.5 | SL15: 404.7 | SM15: 377.6 | SN15: 350.4 | SO15: 323.3 | SP15: 296.2 | SQ15: 413 | SR15: 401.4 | SS15: 372.2 | ST15: 343 | SU15: 313.9 | SV15: 284.7 | SW15: 384.1 | SX15: 373.3 | SY15: 346.1 | SZ15: 319 | TA15: 291.9 | TB15: 264.7
A16: 32 | B16: AQUILANA Versicherungen | C16: TAR-BASE | D16: Assurance de base | F16: 16 | G16: 492.4 | H16: 480.8 | I16: 451.6 | J16: 422.5 | K16: 393.3 | L16: 364.1 | M16: 458 | N16: 447.2 | O16: 420 | P16: 393 | Q16: 365.8 | R16: 338.7 | S16: 443.1 | T16: 431.5 | U16: 402.3 | V16: 373.2 | W16: 344 | X16: 314.8 | Y16: 412.1 | Z16: 401.3 | AA16: 374.2 | AB16: 347.1 | AC16: 320 | AD16: 292.8 | AE16: 505.3 | AF16: 493.7 | AG16: 464.5 | AH16: 435.4 | AI16: 406.2 | AJ16: 377 | AK16: 470 | AL16: 459.2 | AM16: 432 | AN16: 405 | AO16: 377.8 | AP16: 350.7 | AQ16: 435.2 | AR16: 423.6 | AS16: 394.4 | AT16: 365.3 | AU16: 336.1 | AV16: 306.9 | AW16: 404.8 | AX16: 394 | AY16: 366.8 | AZ16: 339.8 | BA16: 312.6 | BB16: 285.5 | BC16: 428.6 | BD16: 417 | BE16: 387.8 | BF16: 358.7 | BG16: 329.5 | BH16: 300.3 | BI16: 398.6 | BJ16: 387.9 | BK16: 360.7 | BL16: 333.6 | BM16: 306.5 | BN16: 279.3 | BO16: 442.5 | BP16: 430.9 | BQ16: 401.7 | BR16: 372.6 | BS16: 343.4 | BT16: 314.2 | BU16: 411.6 | BV16: 400.8 | BW16: 373.6 | BX16: 346.6 | BY16: 319.4 | BZ16: 292.3 | CA16: 544.2 | CB16: 532.6 | CC16: 503.4 | CD16: 474.3 | CE16: 445.1 | CF16: 415.9 | CG16: 506.2 | CH16: 495.4 | CI16: 468.2 | CJ16: 441.1 | CK16: 414 | CL16: 386.8 | CM16: 471.2 | CN16: 459.6 | CO16: 430.4 | CP16: 401.3 | CQ16: 372.1 | CR16: 342.9 | CS16: 438.3 | CT16: 427.5 | CU16: 400.3 | CV16: 373.3 | CW16: 346.1 | CX16: 318.9 | CY16: 432.1 | CZ16: 420.5 | DA16: 391.3 | DB16: 362.2 | DC16: 333 | DD16: 303.8 | DE16: 401.9 | DF16: 391.1 | DG16: 364 | DH16: 336.9 | DI16: 309.7 | DJ16: 282.6 | DK16: 618.5 | DL16: 606.9 | DM16: 577.7 | DN16: 548.6 | DO16: 519.4 | DP16: 490.2 | DQ16: 575.3 | DR16: 564.5 | DS16: 537.3 | DT16: 510.2 | DU16: 483.1 | DV16: 455.9 | DW16: 551.9 | DX16: 540.3 | DY16: 511.1 | DZ16: 482 | EA16: 452.8 | EB16: 423.6 | EC16: 513.3 | ED16: 502.5 | EE16: 475.4 | EF16: 448.3 | EG16: 421.2 | EH16: 394 | EI16: 674.2 | EJ16: 662.6 | EK16: 633.4 | EL16: 604.3 | EM16: 575.1 | EN16: 545.9 | EO16: 627.1 | EP16: 616.3 | EQ16: 589.1 | ER16: 562 | ES16: 534.9 | ET16: 507.7 | EU16: 633.7 | EV16: 622.1 | EW16: 592.9 | EX16: 563.8 | EY16: 534.6 | EZ16: 505.4 | FA16: 589.4 | FB16: 578.6 | FC16: 551.4 | FD16: 524.4 | FE16: 497.2 | FF16: 470.1 | FG16: 457.3 | FH16: 445.7 | FI16: 416.5 | FJ16: 387.4 | FK16: 358.2 | FL16: 329 | FM16: 425.3 | FN16: 414.6 | FO16: 387.4 | FP16: 360.3 | FQ16: 333.2 | FR16: 306 | FS16: 465.5 | FT16: 453.9 | FU16: 424.7 | FV16: 395.6 | FW16: 366.4 | FX16: 337.2 | FY16: 433 | FZ16: 422.2 | GA16: 395 | GB16: 368 | GC16: 340.8 | GD16: 313.6 | GE16: 431.7 | GF16: 420.1 | GG16: 390.9 | GH16: 361.8 | GI16: 332.6 | GJ16: 303.4 | GK16: 401.5 | GL16: 390.7 | GM16: 363.6 | GN16: 336.5 | GO16: 309.4 | GP16: 282.2 | GQ16: 427.3 | GR16: 415.7 | GS16: 386.5 | GT16: 357.4 | GU16: 328.2 | GV16: 299 | GW16: 397.4 | GX16: 386.7 | GY16: 359.5 | GZ16: 332.4 | HA16: 305.3 | HB16: 278.1 | HC16: 570.8 | HD16: 559.2 | HE16: 530 | HF16: 500.9 | HG16: 471.7 | HH16: 442.5 | HI16: 530.9 | HJ16: 520.1 | HK16: 492.9 | HL16: 465.9 | HM16: 438.7 | HN16: 411.6 | HO16: 478.9 | HP16: 467.3 | HQ16: 438.1 | HR16: 409 | HS16: 379.8 | HT16: 350.6 | HU16: 445.4 | HV16: 434.6 | HW16: 407.5 | HX16: 380.4 | HY16: 353.3 | HZ16: 326.1 | IA16: 447.8 | IB16: 436.2 | IC16: 407 | ID16: 377.9 | IE16: 348.7 | IF16: 319.5 | IG16: 416.5 | IH16: 405.7 | II16: 378.6 | IJ16: 351.5 | IK16: 324.3 | IL16: 297.2 | IM16: 431.4 | IN16: 419.8 | IO16: 390.6 | IP16: 361.5 | IQ16: 332.3 | IR16: 303.1 | IS16: 401.3 | IT16: 390.5 | IU16: 363.3 | IV16: 336.2 | IW16: 309.1 | IX16: 281.9 | IY16: 576.3 | IZ16: 564.7 | JA16: 535.5 | JB16: 506.4 | JC16: 477.2 | JD16: 448 | JE16: 536 | JF16: 525.2 | JG16: 498.1 | JH16: 471 | JI16: 443.8 | JJ16: 416.7 | JK16: 405.5 | JL16: 393.9 | JM16: 364.7 | JN16: 335.6 | JO16: 306.4 | JP16: 277.2 | JQ16: 377.2 | JR16: 366.4 | JS16: 339.2 | JT16: 312.2 | JU16: 285 | JV16: 257.8 | JW16: 423.6 | JX16: 412 | JY16: 382.8 | JZ16: 353.7 | KA16: 324.5 | KB16: 295.3 | KC16: 394 | KD16: 383.2 | KE16: 356.1 | KF16: 329 | KG16: 301.8 | KH16: 274.7 | KI16: 471.7 | KJ16: 460.1 | KK16: 430.9 | KL16: 402.2 | KM16: 372.6 | KN16: 343.4 | KO16: 438.7 | KP16: 427.9 | KQ16: 400.8 | KR16: 374.1 | KS16: 346.6 | KT16: 319.4 | KU16: 437.4 | KV16: 425.8 | KW16: 396.6 | KX16: 367.9 | KY16: 338.3 | KZ16: 309.1 | LA16: 406.8 | LB16: 396 | LC16: 368.9 | LD16: 342.2 | LE16: 314.7 | LF16: 287.5 | LG16: 428.4 | LH16: 416.8 | LI16: 387.6 | LJ16: 358.9 | LK16: 329.3 | LL16: 300.1 | LM16: 398.5 | LN16: 387.7 | LO16: 360.5 | LP16: 333.8 | LQ16: 306.3 | LR16: 279.1 | LS16: 474.7 | LT16: 463.1 | LU16: 433.9 | LV16: 404.8 | LW16: 375.6 | LX16: 346.4 | LY16: 441.5 | LZ16: 430.7 | MA16: 403.6 | MB16: 376.5 | MC16: 349.4 | MD16: 322.2 | ME16: 443.8 | MF16: 432.2 | MG16: 403 | MH16: 373.9 | MI16: 344.7 | MJ16: 315.5 | MK16: 412.8 | ML16: 402 | MM16: 374.8 | MN16: 347.8 | MO16: 320.6 | MP16: 293.5 | MQ16: 443.1 | MR16: 431.5 | MS16: 402.3 | MT16: 373.2 | MU16: 344 | MV16: 314.8 | MW16: 412.1 | MX16: 401.3 | MY16: 374.2 | MZ16: 347.1 | NA16: 320 | NB16: 292.8 | NC16: 496.8 | ND16: 485.2 | NE16: 456 | NF16: 427.3 | NG16: 397.7 | NH16: 368.5 | NI16: 462.1 | NJ16: 451.3 | NK16: 424.1 | NL16: 397.4 | NM16: 369.9 | NN16: 342.8 | NO16: 520 | NP16: 508.4 | NQ16: 479.2 | NR16: 450.1 | NS16: 420.9 | NT16: 391.7 | NU16: 483.6 | NV16: 472.9 | NW16: 445.7 | NX16: 418.6 | NY16: 391.5 | NZ16: 364.3 | OA16: 504.9 | OB16: 493.3 | OC16: 464.1 | OD16: 435 | OE16: 405.8 | OF16: 376.6 | OG16: 469.6 | OH16: 458.8 | OI16: 431.7 | OJ16: 404.6 | OK16: 377.4 | OL16: 350.3 | OM16: 392.9 | ON16: 381.3 | OO16: 352.1 | OP16: 323 | OQ16: 293.8 | OR16: 264.6 | OS16: 365.4 | OT16: 354.7 | OU16: 327.5 | OV16: 300.4 | OW16: 273.3 | OX16: 246.1 | OY16: 567.5 | OZ16: 555.9 | PA16: 526.7 | PB16: 497.6 | PC16: 468.4 | PD16: 439.2 | PE16: 527.8 | PF16: 517 | PG16: 489.9 | PH16: 462.8 | PI16: 435.7 | PJ16: 408.5 | PK16: 540.4 | PL16: 528.8 | PM16: 499.6 | PN16: 470.5 | PO16: 441.3 | PP16: 412.1 | PQ16: 502.6 | PR16: 491.8 | PS16: 464.7 | PT16: 437.6 | PU16: 410.5 | PV16: 383.3 | PW16: 478.5 | PX16: 466.9 | PY16: 437.7 | PZ16: 408.6 | QA16: 379.4 | QB16: 350.2 | QC16: 445.1 | QD16: 434.3 | QE16: 407.1 | QF16: 380 | QG16: 352.9 | QH16: 325.7 | QI16: 428 | QJ16: 416.4 | QK16: 387.2 | QL16: 358.1 | QM16: 328.9 | QN16: 299.7 | QO16: 398.1 | QP16: 387.3 | QQ16: 360.1 | QR16: 333.1 | QS16: 305.9 | QT16: 278.8 | RG16: 443.5 | RH16: 431.9 | RI16: 402.7 | RJ16: 373.6 | RK16: 344.4 | RL16: 315.2 | RM16: 412.5 | RN16: 401.7 | RO16: 374.6 | RP16: 347.5 | RQ16: 320.3 | RR16: 293.2 | RS16: 544.7 | RT16: 533.1 | RU16: 503.9 | RV16: 474.9 | RW16: 445.6 | RX16: 416.4 | RY16: 506.6 | RZ16: 495.8 | SA16: 468.7 | SB16: 441.7 | SC16: 414.5 | SD16: 387.3 | SE16: 478.3 | SF16: 466.7 | SG16: 437.5 | SH16: 408.4 | SI16: 379.2 | SJ16: 350 | SK16: 444.9 | SL16: 434.1 | SM16: 406.9 | SN16: 379.9 | SO16: 352.7 | SP16: 325.5 | SQ16: 441.1 | SR16: 429.5 | SS16: 400.3 | ST16: 371.2 | SU16: 342 | SV16: 312.8 | SW16: 410.3 | SX16: 399.5 | SY16: 372.3 | SZ16: 345.3 | TA16: 318.1 | TB16: 291
C17: TAR-HAM | D17: CASAMED | F17: 17 | G17: 453.1 | H17: 441.5 | I17: 412.3 | J17: 383.2 | K17: 354 | L17: 324.8 | M17: 421.4 | N17: 410.6 | O17: 383.5 | P17: 356.4 | Q17: 329.3 | R17: 302.1 | S17: 407.7 | T17: 396.1 | U17: 366.9 | V17: 337.8 | W17: 308.6 | X17: 279.4 | Y17: 379.2 | Z17: 368.4 | AA17: 341.3 | AB17: 314.2 | AC17: 287 | AD17: 259.9 | AE17: 459.9 | AF17: 448.3 | AG17: 419.1 | AH17: 390 | AI17: 360.8 | AJ17: 331.6 | AK17: 427.8 | AL17: 417 | AM17: 389.8 | AN17: 362.7 | AO17: 335.6 | AP17: 308.4 | AQ17: 383 | AR17: 371.4 | AS17: 342.2 | AT17: 313.1 | AU17: 283.9 | AV17: 254.7 | AW17: 356.2 | AX17: 345.5 | AY17: 318.3 | AZ17: 291.2 | BA17: 264.1 | BB17: 236.9 | BC17: 394.4 | BD17: 382.8 | BE17: 353.6 | BF17: 324.5 | BG17: 295.3 | BH17: 266.3 | BI17: 366.8 | BJ17: 356.1 | BK17: 328.9 | BL17: 301.8 | BM17: 274.7 | BN17: 247.7 | BO17: 407.1 | BP17: 395.5 | BQ17: 366.3 | BR17: 337.2 | BS17: 308 | BT17: 278.8 | BU17: 378.7 | BV17: 367.9 | BW17: 340.7 | BX17: 313.6 | BY17: 286.5 | BZ17: 259.3 | CA17: 489.8 | CB17: 478.2 | CC17: 449 | CD17: 419.9 | CE17: 390.7 | CF17: 361.5 | CG17: 455.6 | CH17: 444.8 | CI17: 417.6 | CJ17: 390.6 | CK17: 363.4 | CL17: 336.2 | CM17: 424.1 | CN17: 412.5 | CO17: 383.3 | CP17: 354.2 | CQ17: 325 | CR17: 295.8 | CS17: 394.5 | CT17: 383.7 | CU17: 356.5 | CV17: 329.5 | CW17: 302.3 | CX17: 275.1 | CY17: 388.9 | CZ17: 377.3 | DA17: 348.1 | DB17: 319 | DC17: 289.8 | DD17: 260.6 | DE17: 361.7 | DF17: 350.9 | DG17: 323.8 | DH17: 296.7 | DI17: 269.6 | DJ17: 242.4 | DK17: 569.1 | DL17: 557.5 | DM17: 528.3 | DN17: 499.2 | DO17: 470 | DP17: 440.8 | DQ17: 529.3 | DR17: 518.5 | DS17: 491.4 | DT17: 464.3 | DU17: 437.1 | DV17: 410 | DW17: 507.8 | DX17: 496.2 | DY17: 467 | DZ17: 437.9 | EA17: 408.7 | EB17: 379.5 | EC17: 472.3 | ED17: 461.5 | EE17: 434.4 | EF17: 407.3 | EG17: 380.1 | EH17: 353 | EI17: 620.3 | EJ17: 608.7 | EK17: 579.5 | EL17: 550.4 | EM17: 521.2 | EN17: 492 | EO17: 576.9 | EP17: 566.1 | EQ17: 539 | ER17: 511.9 | ES17: 484.8 | ET17: 457.6 | FG17: 420.8 | FH17: 409.2 | FI17: 380 | FJ17: 350.9 | FK17: 321.7 | FL17: 292.5 | FM17: 391.4 | FN17: 380.6 | FO17: 353.4 | FP17: 326.4 | FQ17: 299.2 | FR17: 272.1 | FS17: 414.3 | FT17: 402.7 | FU17: 373.5 | FV17: 344.4 | FW17: 315.2 | FX17: 286 | FY17: 385.3 | FZ17: 374.6 | GA17: 347.4 | GB17: 320.3 | GC17: 293.2 | GD17: 266 | GE17: 384.3 | GF17: 372.7 | GG17: 343.5 | GH17: 314.4 | GI17: 285.2 | GJ17: 256 | GK17: 357.4 | GL17: 346.7 | GM17: 319.5 | GN17: 292.4 | GO17: 265.3 | GP17: 238.1 | GQ17: 380.3 | GR17: 368.7 | GS17: 339.5 | GT17: 310.4 | GU17: 281.2 | GV17: 252 | GW17: 353.7 | GX17: 342.9 | GY17: 315.8 | GZ17: 288.7 | HA17: 261.6 | HB17: 234.4 | HO17: 435.8 | HP17: 424.2 | HQ17: 395 | HR17: 365.9 | HS17: 336.7 | HT17: 307.5 | HU17: 405.3 | HV17: 394.6 | HW17: 367.4 | HX17: 340.3 | HY17: 313.2 | HZ17: 286 | IA17: 407.5 | IB17: 395.9 | IC17: 366.7 | ID17: 337.6 | IE17: 308.4 | IF17: 279.2 | IG17: 379 | IH17: 368.2 | II17: 341.1 | IJ17: 314 | IK17: 286.9 | IL17: 259.7 | IM17: 392.6 | IN17: 381 | IO17: 351.8 | IP17: 322.7 | IQ17: 293.5 | IR17: 264.3 | IS17: 365.2 | IT17: 354.4 | IU17: 327.2 | IV17: 300.2 | IW17: 273 | IX17: 245.8 | JK17: 369.1 | JL17: 357.5 | JM17: 328.3 | JN17: 299.2 | JO17: 270 | JP17: 240.8 | JQ17: 343.3 | JR17: 332.5 | JS17: 305.4 | JT17: 278.3 | JU17: 251.1 | JV17: 224 | JW17: 385.5 | JX17: 373.9 | JY17: 344.7 | JZ17: 315.6 | KA17: 286.4 | KB17: 257.2 | KC17: 358.6 | KD17: 347.8 | KE17: 320.6 | KF17: 293.6 | KG17: 266.4 | KH17: 239.2 | KI17: 429.3 | KJ17: 417.7 | KK17: 388.5 | KL17: 359.8 | KM17: 330.2 | KN17: 301 | KO17: 399.3 | KP17: 388.5 | KQ17: 361.4 | KR17: 334.7 | KS17: 307.1 | KT17: 280 | KU17: 398.1 | KV17: 386.5 | KW17: 357.3 | KX17: 328.5 | KY17: 299 | KZ17: 269.8 | LA17: 370.3 | LB17: 359.5 | LC17: 332.3 | LD17: 305.6 | LE17: 278.1 | LF17: 251 | LG17: 389.9 | LH17: 378.3 | LI17: 349.1 | LJ17: 320.3 | LK17: 290.8 | LL17: 261.6 | LM17: 362.7 | LN17: 351.9 | LO17: 324.7 | LP17: 297.9 | LQ17: 270.5 | LR17: 243.3 | LS17: 432 | LT17: 420.4 | LU17: 391.2 | LV17: 362.1 | LW17: 332.9 | LX17: 303.7 | LY17: 401.8 | LZ17: 391 | MA17: 363.9 | MB17: 336.8 | MC17: 309.6 | MD17: 282.5 | ME17: 403.9 | MF17: 392.3 | MG17: 363.1 | MH17: 334 | MI17: 304.8 | MJ17: 275.6 | MK17: 375.7 | ML17: 364.9 | MM17: 337.7 | MN17: 310.7 | MO17: 283.5 | MP17: 256.4 | MQ17: 403.3 | MR17: 391.7 | MS17: 362.5 | MT17: 333.4 | MU17: 304.3 | MV17: 275 | MW17: 375.1 | MX17: 364.3 | MY17: 337.2 | MZ17: 310.1 | NA17: 283 | NB17: 255.8 | NC17: 447.2 | ND17: 435.6 | NE17: 406.4 | NF17: 377.7 | NG17: 348.1 | NH17: 318.9 | NI17: 415.9 | NJ17: 405.2 | NK17: 378 | NL17: 351.3 | NM17: 323.8 | NN17: 296.6 | OM17: 357.6 | ON17: 346 | OO17: 316.8 | OP17: 287.7 | OQ17: 258.5 | OR17: 229.3 | OS17: 332.6 | OT17: 321.8 | OU17: 294.7 | OV17: 267.6 | OW17: 240.5 | OX17: 213.3 | QI17: 393.8 | QJ17: 382.2 | QK17: 353 | QL17: 323.9 | QM17: 294.7 | QN17: 265.5 | QO17: 366.3 | QP17: 355.5 | QQ17: 328.3 | QR17: 301.3 | QS17: 274.1 | QT17: 247 | RG17: 403.6 | RH17: 392 | RI17: 362.8 | RJ17: 333.7 | RK17: 304.5 | RL17: 275.3 | RM17: 375.4 | RN17: 364.6 | RO17: 337.5 | RP17: 310.4 | RQ17: 283.2 | RR17: 256.1 | RS17: 490.3 | RT17: 478.7 | RU17: 449.5 | RV17: 420.4 | RW17: 391.2 | RX17: 362 | RY17: 456 | RZ17: 445.2 | SA17: 418.1 | SB17: 391 | SC17: 363.9 | SD17: 336.7 | SE17: 430.5 | SF17: 418.9 | SG17: 389.7 | SH17: 360.6 | SI17: 331.4 | SJ17: 302.2 | SK17: 400.4 | SL17: 389.6 | SM17: 362.5 | SN17: 335.4 | SO17: 308.3 | SP17: 281.1 | SQ17: 397 | SR17: 385.4 | SS17: 356.2 | ST17: 327.1 | SU17: 297.9 | SV17: 268.7 | SW17: 369.3 | SX17: 358.5 | SY17: 331.3 | SZ17: 304.3 | TA17: 277.1 | TB17: 249.9
C18: TAR-DIV | D18: SMARTMED | F18: 18 | G18: 428.4 | H18: 418.4 | I18: 392.9 | J18: 363.4 | K18: 334.4 | L18: 300.4 | M18: 398.5 | N18: 389.2 | O18: 365.4 | P18: 338 | Q18: 311 | R18: 279.4 | S18: 385.5 | T18: 375.4 | U18: 350 | V18: 321 | W18: 292.5 | X18: 258.2 | Y18: 358.6 | Z18: 349.2 | AA18: 325.5 | AB18: 298.6 | AC18: 272.1 | AD18: 240.2 | AE18: 439.7 | AF18: 429.6 | AG18: 404.3 | AH18: 374.6 | AI18: 345.4 | AJ18: 311.4 | AK18: 409 | AL18: 399.6 | AM18: 376 | AN18: 348.4 | AO18: 321.3 | AP18: 289.7 | AQ18: 378.7 | AR18: 368.6 | AS18: 343.3 | AT18: 314.3 | AU18: 285.8 | AV18: 251.8 | AW18: 352.2 | AX18: 342.8 | AY18: 319.3 | AZ18: 292.3 | BA18: 265.8 | BB18: 234.2 | BC18: 372.9 | BD18: 362.8 | BE18: 337.4 | BF18: 308.6 | BG18: 280.1 | BH18: 246.3 | BI18: 346.8 | BJ18: 337.5 | BK18: 313.8 | BL18: 287 | BM18: 260.5 | BN18: 229.1 | BO18: 385 | BP18: 375 | BQ18: 349.6 | BR18: 320.5 | BS18: 292 | BT18: 257.7 | BU18: 358.1 | BV18: 348.8 | BW18: 325.2 | BX18: 298.1 | BY18: 271.6 | BZ18: 239.7 | CA18: 473.5 | CB18: 463.5 | CC18: 438 | CD18: 408 | CE18: 378.4 | CF18: 345.7 | CG18: 440.4 | CH18: 431.1 | CI18: 407.4 | CJ18: 379.5 | CK18: 352 | CL18: 321.6 | CM18: 410 | CN18: 400 | CO18: 374.5 | CP18: 345.2 | CQ18: 316.4 | CR18: 281.7 | CS18: 381.3 | CT18: 372 | CU18: 348.3 | CV18: 321.1 | CW18: 294.3 | CX18: 262 | CY18: 376 | CZ18: 366 | DA18: 340.6 | DB18: 311.6 | DC18: 283.1 | DD18: 249.2 | DE18: 349.7 | DF18: 340.4 | DG18: 316.8 | DH18: 289.8 | DI18: 263.3 | DJ18: 231.8 | DK18: 538.1 | DL18: 528 | DM18: 502.6 | DN18: 471.9 | DO18: 441.6 | DP18: 410.1 | DQ18: 500.5 | DR18: 491.1 | DS18: 467.5 | DT18: 438.9 | DU18: 410.7 | DV18: 381.4 | DW18: 480.2 | DX18: 470.2 | DY18: 444.8 | DZ18: 414.6 | EA18: 385 | EB18: 352 | EC18: 446.6 | ED18: 437.3 | EE18: 413.7 | EF18: 385.6 | EG18: 358.1 | EH18: 327.4 | EI18: 586.6 | EJ18: 576.6 | EK18: 551.2 | EL18: 519.8 | EM18: 488.9 | EN18: 458.5 | EO18: 545.6 | EP18: 536.3 | EQ18: 512.7 | ER18: 483.5 | ES18: 454.7 | ET18: 426.5 | EU18: 551.4 | EV18: 541.4 | EW18: 515.9 | EX18: 485 | EY18: 454.5 | EZ18: 423.5 | FA18: 513 | FB18: 504 | FC18: 480 | FD18: 452 | FE18: 423 | FF18: 394 | FG18: 397.9 | FH18: 387.8 | FI18: 362.5 | FJ18: 333.3 | FK18: 304.6 | FL18: 269.9 | FM18: 370.1 | FN18: 360.7 | FO18: 337.2 | FP18: 310 | FQ18: 283.3 | FR18: 251.1 | FS18: 405 | FT18: 395 | FU18: 369.6 | FV18: 340.3 | FW18: 311.5 | FX18: 276.6 | FY18: 376.7 | FZ18: 367.4 | GA18: 343.8 | GB18: 316.5 | GC18: 289.7 | GD18: 257.3 | GE18: 375.6 | GF18: 365.5 | GG18: 340.2 | GH18: 311.2 | GI18: 282.8 | GJ18: 248.8 | GK18: 349.4 | GL18: 340 | GM18: 316.4 | GN18: 289.5 | GO18: 263.1 | GP18: 231.4 | GQ18: 371.8 | GR18: 361.8 | GS18: 336.3 | GT18: 307.5 | GU18: 279 | GV18: 245.3 | GW18: 345.8 | GX18: 336.5 | GY18: 312.8 | GZ18: 286 | HA18: 259.5 | HB18: 228.2 | HC18: 496.6 | HD18: 486.6 | HE18: 461.1 | HF18: 430.9 | HG18: 401 | HH18: 368.5 | HI18: 461.9 | HJ18: 452.6 | HK18: 428.9 | HL18: 400.8 | HM18: 373 | HN18: 342.8 | HO18: 416.7 | HP18: 406.7 | HQ18: 381.2 | HR18: 351.8 | HS18: 322.9 | HT18: 288.4 | HU18: 387.6 | HV18: 378.3 | HW18: 354.6 | HX18: 327.2 | HY18: 300.3 | HZ18: 268.3 | IA18: 389.6 | IB18: 379.6 | IC18: 354.2 | ID18: 325.1 | IE18: 296.5 | IF18: 262.1 | IG18: 362.4 | IH18: 353.1 | II18: 329.5 | IJ18: 302.4 | IK18: 275.8 | IL18: 243.8 | IM18: 375.4 | IN18: 365.4 | IO18: 339.9 | IP18: 311 | IQ18: 282.6 | IR18: 248.6 | IS18: 349.2 | IT18: 339.9 | IU18: 316.2 | IV18: 289.3 | IW18: 262.9 | IX18: 231.2 | IY18: 501.4 | IZ18: 491.4 | JA18: 466 | JB18: 435.6 | JC18: 405.7 | JD18: 373.1 | JE18: 466.4 | JF18: 457.1 | JG18: 433.4 | JH18: 405.2 | JI18: 377.4 | JJ18: 347 | JK18: 352.8 | JL18: 342.8 | JM18: 317.4 | JN18: 288.7 | JO18: 260.5 | JP18: 227.4 | JQ18: 328.2 | JR18: 318.9 | JS18: 295.2 | JT18: 268.5 | JU18: 242.3 | JV18: 211.5 | JW18: 368.6 | JX18: 358.6 | JY18: 333.2 | JZ18: 304.3 | KA18: 275.9 | KB18: 242.3 | KC18: 342.8 | KD18: 333.5 | KE18: 309.9 | KF18: 283 | KG18: 256.6 | KH18: 225.4 | KI18: 410.4 | KJ18: 400.4 | KK18: 375 | KL18: 346 | KM18: 316.8 | KN18: 282.2 | KO18: 381.7 | KP18: 372.4 | KQ18: 348.8 | KR18: 321.8 | KS18: 294.7 | KT18: 262.5 | KU18: 380.6 | KV18: 370.6 | KW18: 345.1 | KX18: 316.5 | KY18: 287.7 | KZ18: 253.6 | LA18: 354 | LB18: 344.7 | LC18: 321 | LD18: 294.4 | LE18: 267.6 | LF18: 235.9 | LG18: 372.8 | LH18: 362.7 | LI18: 337.4 | LJ18: 308.8 | LK18: 280 | LL18: 246.2 | LM18: 346.8 | LN18: 337.4 | LO18: 313.8 | LP18: 287.2 | LQ18: 260.4 | LR18: 229 | LS18: 413 | LT18: 403 | LU18: 377.6 | LV18: 348.2 | LW18: 319.3 | LX18: 285 | LY18: 384.1 | LZ18: 374.8 | MA18: 351.2 | MB18: 323.9 | MC18: 297 | MD18: 265.1 | ME18: 386.2 | MF18: 376.2 | MG18: 350.8 | MH18: 321.7 | MI18: 293.1 | MJ18: 258.8 | MK18: 359.2 | ML18: 349.9 | MM18: 326.3 | MN18: 299.2 | MO18: 272.6 | MP18: 240.7 | MQ18: 385.5 | MR18: 375.4 | MS18: 350 | MT18: 321 | MU18: 292.5 | MV18: 258.2 | MW18: 358.6 | MX18: 349.2 | MY18: 325.5 | MZ18: 298.6 | NA18: 272.1 | NB18: 240.2 | NC18: 432.3 | ND18: 422.3 | NE18: 396.9 | NF18: 367.6 | NG18: 338.2 | NH18: 304 | NI18: 402.1 | NJ18: 392.8 | NK18: 369.2 | NL18: 341.9 | NM18: 314.6 | NN18: 282.8 | NO18: 452.4 | NP18: 442.4 | NQ18: 416.9 | NR18: 387.1 | NS18: 357.8 | NT18: 324.2 | NU18: 420.8 | NV18: 411.5 | NW18: 387.8 | NX18: 360.1 | NY18: 332.8 | NZ18: 301.6 | OA18: 439.3 | OB18: 429.2 | OC18: 403.9 | OD18: 374.2 | OE18: 345 | OF18: 311.1 | OG18: 408.6 | OH18: 399.2 | OI18: 375.7 | OJ18: 348.1 | OK18: 320.9 | OL18: 289.4 | OM18: 341.9 | ON18: 331.9 | OO18: 306.5 | OP18: 277.9 | OQ18: 249.8 | OR18: 217.1 | OS18: 318 | OT18: 308.7 | OU18: 285.1 | OV18: 258.5 | OW18: 232.4 | OX18: 202 | OY18: 493.8 | OZ18: 483.8 | PA18: 458.3 | PB18: 428 | PC18: 398.3 | PD18: 365.5 | PE18: 459.3 | PF18: 450 | PG18: 426.3 | PH18: 398.1 | PI18: 370.5 | PJ18: 340 | PK18: 470.2 | PL18: 460.1 | PM18: 434.7 | PN18: 404.7 | PO18: 375.2 | PP18: 341.9 | PQ18: 437.3 | PR18: 427.9 | PS18: 404.3 | PT18: 376.4 | PU18: 349 | PV18: 318 | PW18: 416.3 | PX18: 406.3 | PY18: 380.8 | PZ18: 351.4 | QA18: 322.6 | QB18: 288.1 | QC18: 387.2 | QD18: 377.9 | QE18: 354.2 | QF18: 326.9 | QG18: 300.1 | QH18: 268 | QI18: 372.4 | QJ18: 362.4 | QK18: 337 | QL18: 308.1 | QM18: 279.6 | QN18: 245.8 | QO18: 346.4 | QP18: 337.1 | QQ18: 313.5 | QR18: 286.6 | QS18: 260.1 | QT18: 228.6 | RG18: 385.9 | RH18: 375.8 | RI18: 350.4 | RJ18: 321.4 | RK18: 292.8 | RL18: 258.6 | RM18: 358.9 | RN18: 349.5 | RO18: 325.9 | RP18: 299 | RQ18: 272.4 | RR18: 240.5 | RS18: 473.9 | RT18: 463.9 | RU18: 438.5 | RV18: 408.5 | RW18: 378.8 | RX18: 345.6 | RY18: 440.8 | RZ18: 431.5 | SA18: 407.9 | SB18: 380 | SC18: 352.3 | SD18: 321.5 | SE18: 416.2 | SF18: 406.1 | SG18: 380.7 | SH18: 351.3 | SI18: 322.4 | SJ18: 287.9 | SK18: 387.1 | SL18: 377.7 | SM18: 354.1 | SN18: 326.8 | SO18: 299.9 | SP18: 267.8 | SQ18: 383.8 | SR18: 373.8 | SS18: 348.3 | ST18: 319.3 | SU18: 290.8 | SV18: 256.6 | SW18: 357 | SX18: 347.7 | SY18: 324 | SZ18: 297 | TA18: 270.5 | TB18: 238.7
A19: 57 | B19: Moove Sympany AG | C19: TAR-BASE | D19: Assurance de base | F19: 19 | G19: 557 | H19: 545.4 | I19: 516.2 | J19: 487 | K19: 457.9 | L19: 428.7 | M19: 529.2 | N19: 518.1 | O19: 490.4 | P19: 462.7 | Q19: 435 | R19: 407.3 | S19: 502 | T19: 490.4 | U19: 461.2 | V19: 432 | W19: 402.9 | X19: 373.7 | Y19: 476.9 | Z19: 465.9 | AA19: 438.2 | AB19: 410.4 | AC19: 382.7 | AD19: 355 | AE19: 521 | AF19: 509.4 | AG19: 480.2 | AH19: 451 | AI19: 421.9 | AJ19: 392.7 | AK19: 484.6 | AL19: 473.8 | AM19: 446.6 | AN19: 419.5 | AO19: 392.4 | AP19: 365.3 | AQ19: 486 | AR19: 474.4 | AS19: 445.2 | AT19: 416 | AU19: 386.9 | AV19: 357.7 | AW19: 461.7 | AX19: 450.7 | AY19: 423 | AZ19: 395.2 | BA19: 367.5 | BB19: 339.8 | BC19: 436 | BD19: 424.4 | BE19: 395.2 | BF19: 366 | BG19: 336.9 | BH19: 307.7 | BI19: 414.2 | BJ19: 403.2 | BK19: 375.5 | BL19: 347.7 | BM19: 320 | BN19: 292.3 | BO19: 485 | BP19: 473.4 | BQ19: 444.2 | BR19: 415 | BS19: 385.9 | BT19: 356.7 | BU19: 451.1 | BV19: 440.3 | BW19: 413.2 | BX19: 386 | BY19: 358.9 | BZ19: 331.8 | CA19: 608 | CB19: 596.4 | CC19: 567.2 | CD19: 538 | CE19: 508.9 | CF19: 479.7 | CG19: 577.6 | CH19: 566.6 | CI19: 538.9 | CJ19: 511.1 | CK19: 483.4 | CL19: 455.7 | CM19: 567 | CN19: 555.4 | CO19: 526.2 | CP19: 497 | CQ19: 467.9 | CR19: 438.7 | CS19: 538.7 | CT19: 527.6 | CU19: 499.9 | CV19: 472.2 | CW19: 444.5 | CX19: 416.8 | CY19: 543 | CZ19: 531.4 | DA19: 502.2 | DB19: 473 | DC19: 443.9 | DD19: 414.7 | DE19: 515.9 | DF19: 504.8 | DG19: 477.1 | DH19: 449.4 | DI19: 421.7 | DJ19: 394 | DK19: 588 | DL19: 576.4 | DM19: 547.2 | DN19: 518 | DO19: 488.9 | DP19: 459.7 | DQ19: 546.9 | DR19: 536.1 | DS19: 508.9 | DT19: 481.8 | DU19: 454.7 | DV19: 427.6 | DW19: 564 | DX19: 552.4 | DY19: 523.2 | DZ19: 494 | EA19: 464.9 | EB19: 435.7 | EC19: 524.6 | ED19: 513.8 | EE19: 486.6 | EF19: 459.5 | EG19: 432.4 | EH19: 405.3 | EI19: 637 | EJ19: 625.4 | EK19: 596.2 | EL19: 567 | EM19: 537.9 | EN19: 508.7 | EO19: 605.2 | EP19: 594.1 | EQ19: 566.4 | ER19: 538.7 | ES19: 511 | ET19: 483.3 | EU19: 599 | EV19: 587.4 | EW19: 558.2 | EX19: 529 | EY19: 499.9 | EZ19: 470.7 | FA19: 557.1 | FB19: 546.3 | FC19: 519.2 | FD19: 492 | FE19: 465 | FF19: 437.8 | FG19: 485 | FH19: 473.4 | FI19: 444.2 | FJ19: 415 | FK19: 385.9 | FL19: 356.7 | FM19: 451.1 | FN19: 440.3 | FO19: 413.2 | FP19: 386 | FQ19: 358.9 | FR19: 331.8 | FS19: 516 | FT19: 504.4 | FU19: 475.2 | FV19: 446 | FW19: 416.9 | FX19: 387.7 | FY19: 490.2 | FZ19: 479.2 | GA19: 451.5 | GB19: 423.7 | GC19: 396 | GD19: 368.3 | GE19: 497 | GF19: 485.4 | GG19: 456.2 | GH19: 427 | GI19: 397.9 | GJ19: 368.7 | GK19: 472.2 | GL19: 461.1 | GM19: 433.4 | GN19: 405.7 | GO19: 378 | GP19: 350.3 | GQ19: 461 | GR19: 449.4 | GS19: 420.2 | GT19: 391 | GU19: 361.9 | GV19: 332.7 | GW19: 438 | GX19: 426.9 | GY19: 399.2 | GZ19: 371.5 | HA19: 343.8 | HB19: 316.1 | HC19: 567 | HD19: 555.4 | HE19: 526.2 | HF19: 497 | HG19: 467.9 | HH19: 438.7 | HI19: 538.7 | HJ19: 527.6 | HK19: 499.9 | HL19: 472.2 | HM19: 444.5 | HN19: 416.8 | HO19: 473 | HP19: 461.4 | HQ19: 432.2 | HR19: 403 | HS19: 373.9 | HT19: 344.7 | HU19: 439.9 | HV19: 429.2 | HW19: 402 | HX19: 374.8 | HY19: 347.8 | HZ19: 320.6 | IA19: 446 | IB19: 434.4 | IC19: 405.2 | ID19: 376 | IE19: 346.9 | IF19: 317.7 | IG19: 414.8 | IH19: 404 | II19: 376.9 | IJ19: 349.7 | IK19: 322.7 | IL19: 295.5 | IM19: 443 | IN19: 431.4 | IO19: 402.2 | IP19: 373 | IQ19: 343.9 | IR19: 314.7 | IS19: 412 | IT19: 401.3 | IU19: 374.1 | IV19: 346.9 | IW19: 319.9 | IX19: 292.7 | IY19: 677 | IZ19: 665.4 | JA19: 636.2 | JB19: 607 | JC19: 577.9 | JD19: 548.7 | JE19: 643.2 | JF19: 632.1 | JG19: 604.4 | JH19: 576.7 | JI19: 549 | JJ19: 521.3 | JK19: 433 | JL19: 421.4 | JM19: 392.2 | JN19: 363 | JO19: 333.9 | JP19: 304.7 | JQ19: 411.4 | JR19: 400.3 | JS19: 372.6 | JT19: 344.9 | JU19: 317.2 | JV19: 289.5 | JW19: 431 | JX19: 419.4 | JY19: 390.2 | JZ19: 361 | KA19: 331.9 | KB19: 302.7 | KC19: 409.5 | KD19: 398.4 | KE19: 370.7 | KF19: 343 | KG19: 315.3 | KH19: 287.6 | KI19: 500 | KJ19: 488.4 | KK19: 459.2 | KL19: 430 | KM19: 400.9 | KN19: 371.7 | KO19: 465 | KP19: 454.3 | KQ19: 427.1 | KR19: 399.9 | KS19: 372.9 | KT19: 345.7 | KU19: 498 | KV19: 486.4 | KW19: 457.2 | KX19: 428 | KY19: 398.9 | KZ19: 369.7 | LA19: 463.2 | LB19: 452.4 | LC19: 425.2 | LD19: 398.1 | LE19: 371 | LF19: 343.9 | LG19: 488 | LH19: 476.4 | LI19: 447.2 | LJ19: 418 | LK19: 388.9 | LL19: 359.7 | LM19: 453.9 | LN19: 443.1 | LO19: 415.9 | LP19: 388.8 | LQ19: 361.7 | LR19: 334.6 | LS19: 531 | LT19: 519.4 | LU19: 490.2 | LV19: 461 | LW19: 431.9 | LX19: 402.7 | LY19: 493.9 | LZ19: 483.1 | MA19: 455.9 | MB19: 428.8 | MC19: 401.7 | MD19: 374.6 | ME19: 494 | MF19: 482.4 | MG19: 453.2 | MH19: 424 | MI19: 394.9 | MJ19: 365.7 | MK19: 459.5 | ML19: 448.7 | MM19: 421.5 | MN19: 394.4 | MO19: 367.3 | MP19: 340.2 | MQ19: 478 | MR19: 466.4 | MS19: 437.2 | MT19: 408 | MU19: 378.9 | MV19: 349.7 | MW19: 454.1 | MX19: 443.1 | MY19: 415.4 | MZ19: 387.6 | NA19: 359.9 | NB19: 332.2 | NC19: 470 | ND19: 458.4 | NE19: 429.2 | NF19: 400 | NG19: 370.9 | NH19: 341.7 | NI19: 437.1 | NJ19: 426.4 | NK19: 399.2 | NL19: 372 | NM19: 345 | NN19: 317.8 | NO19: 608 | NP19: 596.4 | NQ19: 567.2 | NR19: 538 | NS19: 508.9 | NT19: 479.7 | NU19: 565.5 | NV19: 554.7 | NW19: 527.5 | NX19: 500.4 | NY19: 473.3 | NZ19: 446.2 | OA19: 540 | OB19: 528.4 | OC19: 499.2 | OD19: 470 | OE19: 440.9 | OF19: 411.7 | OG19: 502.2 | OH19: 491.5 | OI19: 464.3 | OJ19: 437.1 | OK19: 410.1 | OL19: 382.9 | OM19: 408 | ON19: 396.4 | OO19: 367.2 | OP19: 338 | OQ19: 308.9 | OR19: 279.7 | OS19: 379.5 | OT19: 368.7 | OU19: 341.5 | OV19: 314.4 | OW19: 287.3 | OX19: 260.2 | OY19: 631 | OZ19: 619.4 | PA19: 590.2 | PB19: 561 | PC19: 531.9 | PD19: 502.7 | PE19: 599.5 | PF19: 588.4 | PG19: 560.7 | PH19: 533 | PI19: 505.3 | PJ19: 477.6 | PK19: 613 | PL19: 601.4 | PM19: 572.2 | PN19: 543 | PO19: 513.9 | PP19: 484.7 | PQ19: 582.4 | PR19: 571.3 | PS19: 543.6 | PT19: 515.9 | PU19: 488.2 | PV19: 460.5 | PW19: 506 | PX19: 494.4 | PY19: 465.2 | PZ19: 436 | QA19: 406.9 | QB19: 377.7 | QC19: 470.6 | QD19: 459.8 | QE19: 432.7 | QF19: 405.5 | QG19: 378.5 | QH19: 351.3 | QI19: 459 | QJ19: 447.4 | QK19: 418.2 | QL19: 389 | QM19: 359.9 | QN19: 330.7 | QO19: 426.9 | QP19: 416.1 | QQ19: 389 | QR19: 361.8 | QS19: 334.8 | QT19: 307.6 | RG19: 413 | RH19: 401.4 | RI19: 372.2 | RJ19: 343 | RK19: 313.9 | RL19: 284.7 | RM19: 384.1 | RN19: 373.4 | RO19: 346.2 | RP19: 319 | RQ19: 292 | RR19: 264.8 | RS19: 549 | RT19: 537.4 | RU19: 508.2 | RV19: 479 | RW19: 449.9 | RX19: 420.7 | RY19: 510.6 | RZ19: 499.8 | SA19: 472.7 | SB19: 445.5 | SC19: 418.5 | SD19: 391.3 | SE19: 514 | SF19: 502.4 | SG19: 473.2 | SH19: 444 | SI19: 414.9 | SJ19: 385.7 | SK19: 478.1 | SL19: 467.3 | SM19: 440.1 | SN19: 413 | SO19: 385.9 | SP19: 358.8 | SQ19: 493 | SR19: 481.4 | SS19: 452.2 | ST19: 423 | SU19: 393.9 | SV19: 364.7 | SW19: 458.5 | SX19: 447.8 | SY19: 420.6 | SZ19: 393.4 | TA19: 366.4 | TB19: 339.2
C20: TAR-HAM | D20: callmed 24 | F20: 20 | G20: 506.9 | H20: 495.3 | I20: 466.1 | J20: 436.9 | K20: 407.8 | L20: 378.6 | M20: 481.6 | N20: 470.5 | O20: 442.8 | P20: 415.1 | Q20: 387.4 | R20: 359.7 | S20: 456.9 | T20: 445.2 | U20: 416 | V20: 386.9 | W20: 357.7 | X20: 328.5 | Y20: 434 | Z20: 422.9 | AA20: 395.2 | AB20: 367.5 | AC20: 339.8 | AD20: 312.1 | AE20: 474.2 | AF20: 462.5 | AG20: 433.3 | AH20: 404.2 | AI20: 375 | AJ20: 345.8 | AK20: 441.1 | AL20: 430.2 | AM20: 403 | AN20: 376 | AO20: 348.8 | AP20: 321.6 | AQ20: 437.4 | AR20: 425.8 | AS20: 396.6 | AT20: 367.4 | AU20: 338.3 | AV20: 309.1 | AW20: 415.6 | AX20: 404.5 | AY20: 376.8 | AZ20: 349.1 | BA20: 321.4 | BB20: 293.7 | BC20: 396.8 | BD20: 385.1 | BE20: 356 | BF20: 326.8 | BG20: 297.6 | BH20: 268.5 | BI20: 377 | BJ20: 365.9 | BK20: 338.2 | BL20: 310.5 | BM20: 282.8 | BN20: 255.1 | BO20: 441.4 | BP20: 429.7 | BQ20: 400.6 | BR20: 371.4 | BS20: 342.2 | BT20: 313.1 | BU20: 410.6 | BV20: 399.7 | BW20: 372.6 | BX20: 345.5 | BY20: 318.3 | BZ20: 291.2 | CA20: 553.3 | CB20: 541.7 | CC20: 512.5 | CD20: 483.3 | CE20: 454.2 | CF20: 425 | CG20: 525.7 | CH20: 514.6 | CI20: 486.9 | CJ20: 459.2 | CK20: 431.5 | CL20: 403.7 | CM20: 516 | CN20: 504.4 | CO20: 475.2 | CP20: 446 | CQ20: 416.9 | CR20: 387.7 | CS20: 490.2 | CT20: 479.1 | CU20: 451.4 | CV20: 423.7 | CW20: 396 | CX20: 368.3 | CY20: 494.2 | CZ20: 482.5 | DA20: 453.3 | DB20: 424.2 | DC20: 395 | DD20: 365.8 | DE20: 469.5 | DF20: 458.4 | DG20: 430.7 | DH20: 403 | DI20: 375.3 | DJ20: 347.6 | DK20: 535.1 | DL20: 523.5 | DM20: 494.3 | DN20: 465.1 | DO20: 436 | DP20: 406.8 | DQ20: 497.7 | DR20: 486.9 | DS20: 459.7 | DT20: 432.6 | DU20: 405.5 | DV20: 378.4 | DW20: 513.3 | DX20: 501.6 | DY20: 472.5 | DZ20: 443.3 | EA20: 414.1 | EB20: 385 | EC20: 477.4 | ED20: 466.5 | EE20: 439.5 | EF20: 412.3 | EG20: 385.2 | EH20: 358.1 | EI20: 573.3 | EJ20: 561.7 | EK20: 532.5 | EL20: 503.3 | EM20: 474.2 | EN20: 445 | EO20: 544.7 | EP20: 533.6 | EQ20: 505.9 | ER20: 478.2 | ES20: 450.5 | ET20: 422.8 | EU20: 545.1 | EV20: 533.5 | EW20: 504.3 | EX20: 475.1 | EY20: 446 | EZ20: 416.8 | FA20: 507 | FB20: 496.2 | FC20: 469 | FD20: 441.9 | FE20: 414.8 | FF20: 387.7 | FG20: 446.2 | FH20: 434.6 | FI20: 405.4 | FJ20: 376.2 | FK20: 347.1 | FL20: 317.9 | FM20: 415 | FN20: 404.2 | FO20: 377.1 | FP20: 349.9 | FQ20: 322.9 | FR20: 295.7 | FS20: 474.8 | FT20: 463.1 | FU20: 433.9 | FV20: 404.8 | FW20: 375.6 | FX20: 346.4 | FY20: 451 | FZ20: 440 | GA20: 412.2 | GB20: 384.5 | GC20: 356.8 | GD20: 329.1 | GE20: 457.3 | GF20: 445.6 | GG20: 416.5 | GH20: 387.3 | GI20: 358.1 | GJ20: 329 | GK20: 434.4 | GL20: 423.3 | GM20: 395.6 | GN20: 367.9 | GO20: 340.2 | GP20: 312.5 | GQ20: 424.2 | GR20: 412.5 | GS20: 383.3 | GT20: 354.2 | GU20: 325 | GV20: 295.8 | GW20: 403 | GX20: 391.9 | GY20: 364.2 | GZ20: 336.5 | HA20: 308.8 | HB20: 281 | HC20: 516 | HD20: 504.4 | HE20: 475.2 | HF20: 446 | HG20: 416.9 | HH20: 387.7 | HI20: 490.2 | HJ20: 479.1 | HK20: 451.4 | HL20: 423.7 | HM20: 396 | HN20: 368.3 | HO20: 430.5 | HP20: 418.8 | HQ20: 389.6 | HR20: 360.5 | HS20: 331.3 | HT20: 302.1 | HU20: 400.4 | HV20: 389.5 | HW20: 362.4 | HX20: 335.3 | HY20: 308.2 | HZ20: 281 | IA20: 405.9 | IB20: 394.2 | IC20: 365.1 | ID20: 335.9 | IE20: 306.7 | IF20: 277.6 | IG20: 377.5 | IH20: 366.7 | II20: 339.6 | IJ20: 312.4 | IK20: 285.3 | IL20: 258.2 | IM20: 403.2 | IN20: 391.5 | IO20: 362.3 | IP20: 333.2 | IQ20: 304 | IR20: 274.8 | IS20: 375 | IT20: 364.1 | IU20: 337 | IV20: 309.9 | IW20: 282.8 | IX20: 255.6 | IY20: 616.1 | IZ20: 604.5 | JA20: 575.3 | JB20: 546.1 | JC20: 517 | JD20: 487.8 | JE20: 585.3 | JF20: 574.2 | JG20: 546.5 | JH20: 518.8 | JI20: 491.1 | JJ20: 463.4 | JK20: 394.1 | JL20: 382.4 | JM20: 353.2 | JN20: 324.1 | JO20: 294.9 | JP20: 265.7 | JQ20: 374.4 | JR20: 363.3 | JS20: 335.6 | JT20: 307.9 | JU20: 280.2 | JV20: 252.5 | JW20: 392.3 | JX20: 380.6 | JY20: 351.4 | JZ20: 322.3 | KA20: 293.1 | KB20: 263.9 | KC20: 372.6 | KD20: 361.6 | KE20: 333.9 | KF20: 306.1 | KG20: 278.4 | KH20: 250.7 | KI20: 455 | KJ20: 443.4 | KK20: 414.2 | KL20: 385 | KM20: 355.9 | KN20: 326.7 | KO20: 423.2 | KP20: 412.4 | KQ20: 385.3 | KR20: 358.1 | KS20: 331 | KT20: 303.9 | KU20: 453.2 | KV20: 441.6 | KW20: 412.4 | KX20: 383.2 | KY20: 354.1 | KZ20: 324.9 | LA20: 421.5 | LB20: 410.7 | LC20: 383.6 | LD20: 356.4 | LE20: 329.4 | LF20: 302.2 | LG20: 444.1 | LH20: 432.5 | LI20: 403.3 | LJ20: 374.1 | LK20: 345 | LL20: 315.8 | LM20: 413.1 | LN20: 402.3 | LO20: 375.1 | LP20: 348 | LQ20: 320.9 | LR20: 293.7 | LS20: 483.3 | LT20: 471.6 | LU20: 442.4 | LV20: 413.3 | LW20: 384.1 | LX20: 354.9 | LY20: 449.5 | LZ20: 438.6 | MA20: 411.5 | MB20: 384.4 | MC20: 357.3 | MD20: 330.1 | ME20: 449.6 | MF20: 437.9 | MG20: 408.8 | MH20: 379.6 | MI20: 350.4 | MJ20: 321.3 | MK20: 418.2 | ML20: 407.3 | MM20: 380.2 | MN20: 353.1 | MO20: 325.9 | MP20: 298.9 | MQ20: 435 | MR20: 423.4 | MS20: 394.2 | MT20: 365 | MU20: 335.9 | MV20: 306.7 | MW20: 413.3 | MX20: 402.2 | MY20: 374.5 | MZ20: 346.8 | NA20: 319.1 | NB20: 291.4 | NC20: 432.4 | ND20: 420.8 | NE20: 391.6 | NF20: 362.4 | NG20: 333.3 | NH20: 304.1 | NI20: 402.2 | NJ20: 391.4 | NK20: 364.2 | NL20: 337.1 | NM20: 310 | NN20: 282.9 | NO20: 553.3 | NP20: 541.7 | NQ20: 512.5 | NR20: 483.3 | NS20: 454.2 | NT20: 425 | NU20: 514.6 | NV20: 503.8 | NW20: 476.7 | NX20: 449.5 | NY20: 422.5 | NZ20: 395.3 | OA20: 491.4 | OB20: 479.8 | OC20: 450.6 | OD20: 421.4 | OE20: 392.3 | OF20: 363.1 | OG20: 457.1 | OH20: 446.3 | OI20: 419.1 | OJ20: 392 | OK20: 364.9 | OL20: 337.7 | OM20: 371.3 | ON20: 359.7 | OO20: 330.5 | OP20: 301.3 | OQ20: 272.2 | OR20: 243 | OS20: 345.4 | OT20: 334.6 | OU20: 307.4 | OV20: 280.3 | OW20: 253.2 | OX20: 226 | OY20: 574.3 | OZ20: 562.6 | PA20: 533.4 | PB20: 504.3 | PC20: 475.1 | PD20: 445.9 | PE20: 545.5 | PF20: 534.5 | PG20: 506.8 | PH20: 479 | PI20: 451.3 | PJ20: 423.6 | PK20: 557.9 | PL20: 546.2 | PM20: 517 | PN20: 487.9 | PO20: 458.7 | PP20: 429.5 | PQ20: 530 | PR20: 518.9 | PS20: 491.2 | PT20: 463.5 | PU20: 435.8 | PV20: 408.1 | PW20: 460.5 | PX20: 448.8 | PY20: 419.7 | PZ20: 390.5 | QA20: 361.3 | QB20: 332.2 | QC20: 428.3 | QD20: 417.4 | QE20: 390.4 | QF20: 363.2 | QG20: 336.1 | QH20: 309 | QI20: 417.7 | QJ20: 406.1 | QK20: 376.9 | QL20: 347.7 | QM20: 318.6 | QN20: 289.4 | QO20: 388.5 | QP20: 377.7 | QQ20: 350.6 | QR20: 323.4 | QS20: 296.3 | QT20: 269.2 | RG20: 375.9 | RH20: 364.2 | RI20: 335 | RJ20: 305.9 | RK20: 276.7 | RL20: 247.5 | RM20: 349.6 | RN20: 338.8 | RO20: 311.6 | RP20: 284.5 | RQ20: 257.4 | RR20: 230.2 | RS20: 499.6 | RT20: 488 | RU20: 458.8 | RV20: 429.6 | RW20: 400.5 | RX20: 371.3 | RY20: 464.7 | RZ20: 453.9 | SA20: 426.7 | SB20: 399.6 | SC20: 372.5 | SD20: 345.4 | SE20: 467.8 | SF20: 456.1 | SG20: 427 | SH20: 397.8 | SI20: 368.6 | SJ20: 339.5 | SK20: 435.1 | SL20: 424.2 | SM20: 397.2 | SN20: 370 | SO20: 342.8 | SP20: 315.8 | SQ20: 448.7 | SR20: 437 | SS20: 407.8 | ST20: 378.7 | SU20: 349.5 | SV20: 320.3 | SW20: 417.3 | SX20: 406.5 | SY20: 379.3 | SZ20: 352.2 | TA20: 325.1 | TB20: 297.9
D21: casamed hausarzt | F21: 21 | G21: 501.3 | H21: 489.7 | I21: 460.5 | J21: 431.3 | K21: 402.2 | L21: 373 | M21: 476.3 | N21: 465.2 | O21: 437.5 | P21: 409.8 | Q21: 382.1 | R21: 354.4 | S21: 451.8 | T21: 440.2 | U21: 411 | V21: 381.8 | W21: 352.7 | X21: 323.5 | Y21: 429.3 | Z21: 418.2 | AA21: 390.5 | AB21: 362.8 | AC21: 335.1 | AD21: 307.3 | AE21: 468.9 | AF21: 457.3 | AG21: 428.1 | AH21: 398.9 | AI21: 369.8 | AJ21: 340.6 | AK21: 436.1 | AL21: 425.3 | AM21: 398.2 | AN21: 371 | AO21: 344 | AP21: 316.8 | AQ21: 442.3 | AR21: 430.6 | AS21: 401.5 | AT21: 372.3 | AU21: 343.1 | AV21: 314 | AW21: 420.2 | AX21: 409.1 | AY21: 381.4 | AZ21: 353.7 | BA21: 326 | BB21: 298.3 | BC21: 392.4 | BD21: 380.8 | BE21: 351.6 | BF21: 322.4 | BG21: 293.3 | BH21: 264.1 | BI21: 372.8 | BJ21: 361.7 | BK21: 334 | BL21: 306.3 | BM21: 278.6 | BN21: 250.9 | BO21: 455.9 | BP21: 444.3 | BQ21: 415.1 | BR21: 385.9 | BS21: 356.8 | BT21: 327.6 | BU21: 424 | BV21: 413.2 | BW21: 386.1 | BX21: 358.9 | BY21: 331.9 | BZ21: 304.7 | CA21: 547.2 | CB21: 535.6 | CC21: 506.4 | CD21: 477.2 | CE21: 448.1 | CF21: 418.9 | CG21: 519.9 | CH21: 508.8 | CI21: 481.1 | CJ21: 453.4 | CK21: 425.7 | CL21: 398 | CM21: 510.3 | CN21: 498.7 | CO21: 469.5 | CP21: 440.3 | CQ21: 411.2 | CR21: 382 | CS21: 484.8 | CT21: 473.8 | CU21: 446 | CV21: 418.3 | CW21: 390.6 | CX21: 362.9 | CY21: 488.7 | CZ21: 477.1 | DA21: 447.9 | DB21: 418.7 | DC21: 389.6 | DD21: 360.4 | DE21: 464.3 | DF21: 453.2 | DG21: 425.5 | DH21: 397.8 | DI21: 370.1 | DJ21: 342.4 | DK21: 543.9 | DL21: 532.3 | DM21: 503.1 | DN21: 473.9 | DO21: 444.8 | DP21: 415.6 | DQ21: 505.9 | DR21: 495.1 | DS21: 467.9 | DT21: 440.8 | DU21: 413.7 | DV21: 386.6 | DW21: 521.7 | DX21: 510.1 | DY21: 480.9 | DZ21: 451.7 | EA21: 422.6 | EB21: 393.4 | EC21: 485.2 | ED21: 474.4 | EE21: 447.3 | EF21: 420.1 | EG21: 393.1 | EH21: 365.9 | EI21: 586.1 | EJ21: 574.4 | EK21: 545.3 | EL21: 516.1 | EM21: 486.9 | EN21: 457.8 | EO21: 556.8 | EP21: 545.7 | EQ21: 518 | ER21: 490.3 | ES21: 462.6 | ET21: 434.9 | EU21: 539.1 | EV21: 527.5 | EW21: 498.3 | EX21: 469.1 | EY21: 440 | EZ21: 410.8 | FA21: 501.4 | FB21: 490.6 | FC21: 463.5 | FD21: 436.3 | FE21: 409.2 | FF21: 382.1 | FG21: 436.5 | FH21: 424.9 | FI21: 395.7 | FJ21: 366.5 | FK21: 337.4 | FL21: 308.2 | FM21: 406 | FN21: 395.2 | FO21: 368.1 | FP21: 340.9 | FQ21: 313.8 | FR21: 286.7 | FS21: 464.4 | FT21: 452.8 | FU21: 423.6 | FV21: 394.4 | FW21: 365.3 | FX21: 336.1 | FY21: 441.2 | FZ21: 430.1 | GA21: 402.4 | GB21: 374.7 | GC21: 347 | GD21: 319.3 | GE21: 447.3 | GF21: 435.7 | GG21: 406.5 | GH21: 377.3 | GI21: 348.2 | GJ21: 319 | GK21: 425 | GL21: 413.9 | GM21: 386.2 | GN21: 358.5 | GO21: 330.8 | GP21: 303.1 | GQ21: 414.9 | GR21: 403.3 | GS21: 374.1 | GT21: 344.9 | GU21: 315.8 | GV21: 286.6 | GW21: 394.2 | GX21: 383.1 | GY21: 355.4 | GZ21: 327.7 | HA21: 300 | HB21: 272.3 | HC21: 510.3 | HD21: 498.7 | HE21: 469.5 | HF21: 440.3 | HG21: 411.2 | HH21: 382 | HI21: 484.8 | HJ21: 473.8 | HK21: 446 | HL21: 418.3 | HM21: 390.6 | HN21: 362.9 | HO21: 425.7 | HP21: 414.1 | HQ21: 384.9 | HR21: 355.7 | HS21: 326.6 | HT21: 297.4 | HU21: 396 | HV21: 385.2 | HW21: 358 | HX21: 330.9 | HY21: 303.8 | HZ21: 276.6 | IA21: 401.4 | IB21: 389.8 | IC21: 360.6 | ID21: 331.4 | IE21: 302.3 | IF21: 273.1 | IG21: 373.4 | IH21: 362.6 | II21: 335.4 | IJ21: 308.3 | IK21: 281.2 | IL21: 254 | IM21: 398.7 | IN21: 387.1 | IO21: 357.9 | IP21: 328.7 | IQ21: 299.6 | IR21: 270.4 | IS21: 370.8 | IT21: 360.1 | IU21: 332.9 | IV21: 305.7 | IW21: 278.7 | IX21: 251.5 | IY21: 609.3 | IZ21: 597.7 | JA21: 568.5 | JB21: 539.3 | JC21: 510.2 | JD21: 481 | JE21: 578.9 | JF21: 567.8 | JG21: 540.1 | JH21: 512.4 | JI21: 484.7 | JJ21: 457 | JK21: 394.1 | JL21: 382.4 | JM21: 353.2 | JN21: 324.1 | JO21: 294.9 | JP21: 265.7 | JQ21: 374.4 | JR21: 363.3 | JS21: 335.6 | JT21: 307.9 | JU21: 280.2 | JV21: 252.5 | JW21: 387.9 | JX21: 376.3 | JY21: 347.1 | JZ21: 317.9 | KA21: 288.8 | KB21: 259.6 | KC21: 368.6 | KD21: 357.5 | KE21: 329.8 | KF21: 302.1 | KG21: 274.3 | KH21: 246.6 | KI21: 450 | KJ21: 438.4 | KK21: 409.2 | KL21: 380 | KM21: 350.9 | KN21: 321.7 | KO21: 418.5 | KP21: 407.8 | KQ21: 380.6 | KR21: 353.4 | KS21: 326.4 | KT21: 299.2 | KU21: 448.2 | KV21: 436.6 | KW21: 407.4 | KX21: 378.2 | KY21: 349.1 | KZ21: 319.9 | LA21: 416.9 | LB21: 406.1 | LC21: 378.9 | LD21: 351.8 | LE21: 324.7 | LF21: 297.6 | LG21: 439.2 | LH21: 427.6 | LI21: 398.4 | LJ21: 369.2 | LK21: 340.1 | LL21: 310.9 | LM21: 408.5 | LN21: 397.7 | LO21: 370.6 | LP21: 343.4 | LQ21: 316.3 | LR21: 289.2 | LS21: 477.9 | LT21: 466.3 | LU21: 437.1 | LV21: 407.9 | LW21: 378.8 | LX21: 349.6 | LY21: 444.5 | LZ21: 433.7 | MA21: 406.6 | MB21: 379.4 | MC21: 352.3 | MD21: 325.2 | ME21: 444.6 | MF21: 433 | MG21: 403.8 | MH21: 374.6 | MI21: 345.5 | MJ21: 316.3 | MK21: 413.5 | ML21: 402.7 | MM21: 375.6 | MN21: 348.4 | MO21: 321.4 | MP21: 294.2 | MQ21: 435 | MR21: 423.4 | MS21: 394.2 | MT21: 365 | MU21: 335.9 | MV21: 306.7 | MW21: 413.3 | MX21: 402.2 | MY21: 374.5 | MZ21: 346.8 | NA21: 319.1 | NB21: 291.4 | NC21: 427.7 | ND21: 416.1 | NE21: 386.9 | NF21: 357.7 | NG21: 328.6 | NH21: 299.4 | NI21: 397.8 | NJ21: 387 | NK21: 359.9 | NL21: 332.7 | NM21: 305.6 | NN21: 278.5 | NO21: 547.2 | NP21: 535.6 | NQ21: 506.4 | NR21: 477.2 | NS21: 448.1 | NT21: 418.9 | NU21: 508.9 | NV21: 498.2 | NW21: 471 | NX21: 443.8 | NY21: 416.8 | NZ21: 389.6 | OA21: 486 | OB21: 474.4 | OC21: 445.2 | OD21: 416 | OE21: 386.9 | OF21: 357.7 | OG21: 452 | OH21: 441.2 | OI21: 414.1 | OJ21: 386.9 | OK21: 359.9 | OL21: 332.7 | OM21: 367.2 | ON21: 355.6 | OO21: 326.4 | OP21: 297.2 | OQ21: 268.1 | OR21: 238.9 | OS21: 341.5 | OT21: 330.8 | OU21: 303.6 | OV21: 276.4 | OW21: 249.4 | OX21: 222.2 | OY21: 567.9 | OZ21: 556.3 | PA21: 527.1 | PB21: 497.9 | PC21: 468.8 | PD21: 439.6 | PE21: 539.6 | PF21: 528.5 | PG21: 500.8 | PH21: 473.1 | PI21: 445.3 | PJ21: 417.6 | PK21: 551.7 | PL21: 540.1 | PM21: 510.9 | PN21: 481.7 | PO21: 452.6 | PP21: 423.4 | PQ21: 524.2 | PR21: 513.1 | PS21: 485.4 | PT21: 457.7 | PU21: 430 | PV21: 402.2 | PW21: 455.4 | PX21: 443.8 | PY21: 414.6 | PZ21: 385.4 | QA21: 356.3 | QB21: 327.1 | QC21: 423.6 | QD21: 412.8 | QE21: 385.6 | QF21: 358.5 | QG21: 331.4 | QH21: 304.3 | QI21: 413.1 | QJ21: 401.5 | QK21: 372.3 | QL21: 343.1 | QM21: 314 | QN21: 284.8 | QO21: 384.2 | QP21: 373.4 | QQ21: 346.3 | QR21: 319.1 | QS21: 292.1 | QT21: 264.9 | RG21: 371.7 | RH21: 360.1 | RI21: 330.9 | RJ21: 301.7 | RK21: 272.6 | RL21: 243.4 | RM21: 345.7 | RN21: 334.9 | RO21: 307.8 | RP21: 280.6 | RQ21: 253.6 | RR21: 226.4 | RS21: 494.1 | RT21: 482.5 | RU21: 453.3 | RV21: 424.1 | RW21: 395 | RX21: 365.8 | RY21: 459.6 | RZ21: 448.8 | SA21: 421.6 | SB21: 394.5 | SC21: 367.4 | SD21: 340.2 | SE21: 457.5 | SF21: 445.8 | SG21: 416.7 | SH21: 387.5 | SI21: 358.3 | SJ21: 329.2 | SK21: 425.5 | SL21: 414.6 | SM21: 387.6 | SN21: 360.4 | SO21: 333.3 | SP21: 306.2 | SQ21: 438.8 | SR21: 427.2 | SS21: 398 | ST21: 368.8 | SU21: 339.7 | SV21: 310.5 | SW21: 408.1 | SX21: 397.3 | SY21: 370.2 | SZ21: 343 | TA21: 316 | TB21: 288.8
D22: casamed pharm | F22: 22 | G22: 501.3 | H22: 489.7 | I22: 460.5 | J22: 431.3 | K22: 402.2 | L22: 373 | M22: 476.3 | N22: 465.2 | O22: 437.5 | P22: 409.8 | Q22: 382.1 | R22: 354.4 | S22: 451.8 | T22: 440.2 | U22: 411 | V22: 381.8 | W22: 352.7 | X22: 323.5 | Y22: 429.3 | Z22: 418.2 | AA22: 390.5 | AB22: 362.8 | AC22: 335.1 | AD22: 307.3 | AE22: 468.9 | AF22: 457.3 | AG22: 428.1 | AH22: 398.9 | AI22: 369.8 | AJ22: 340.6 | AK22: 436.1 | AL22: 425.3 | AM22: 398.2 | AN22: 371 | AO22: 344 | AP22: 316.8 | AQ22: 437.4 | AR22: 425.8 | AS22: 396.6 | AT22: 367.4 | AU22: 338.3 | AV22: 309.1 | AW22: 415.6 | AX22: 404.5 | AY22: 376.8 | AZ22: 349.1 | BA22: 321.4 | BB22: 293.7 | BC22: 392.4 | BD22: 380.8 | BE22: 351.6 | BF22: 322.4 | BG22: 293.3 | BH22: 264.1 | BI22: 372.8 | BJ22: 361.7 | BK22: 334 | BL22: 306.3 | BM22: 278.6 | BN22: 250.9 | BO22: 436.5 | BP22: 424.9 | BQ22: 395.7 | BR22: 366.5 | BS22: 337.4 | BT22: 308.2 | BU22: 406 | BV22: 395.2 | BW22: 368.1 | BX22: 340.9 | BY22: 313.8 | BZ22: 286.7 | CA22: 547.2 | CB22: 535.6 | CC22: 506.4 | CD22: 477.2 | CE22: 448.1 | CF22: 418.9 | CG22: 519.9 | CH22: 508.8 | CI22: 481.1 | CJ22: 453.4 | CK22: 425.7 | CL22: 398 | CM22: 510.3 | CN22: 498.7 | CO22: 469.5 | CP22: 440.3 | CQ22: 411.2 | CR22: 382 | CS22: 484.8 | CT22: 473.8 | CU22: 446 | CV22: 418.3 | CW22: 390.6 | CX22: 362.9 | CY22: 488.7 | CZ22: 477.1 | DA22: 447.9 | DB22: 418.7 | DC22: 389.6 | DD22: 360.4 | DE22: 464.3 | DF22: 453.2 | DG22: 425.5 | DH22: 397.8 | DI22: 370.1 | DJ22: 342.4 | DK22: 535.1 | DL22: 523.5 | DM22: 494.3 | DN22: 465.1 | DO22: 436 | DP22: 406.8 | DQ22: 497.7 | DR22: 486.9 | DS22: 459.7 | DT22: 432.6 | DU22: 405.5 | DV22: 378.4 | DW22: 513.3 | DX22: 501.6 | DY22: 472.5 | DZ22: 443.3 | EA22: 414.1 | EB22: 385 | EC22: 477.4 | ED22: 466.5 | EE22: 439.5 | EF22: 412.3 | EG22: 385.2 | EH22: 358.1 | EI22: 573.3 | EJ22: 561.7 | EK22: 532.5 | EL22: 503.3 | EM22: 474.2 | EN22: 445 | EO22: 544.7 | EP22: 533.6 | EQ22: 505.9 | ER22: 478.2 | ES22: 450.5 | ET22: 422.8 | EU22: 539.1 | EV22: 527.5 | EW22: 498.3 | EX22: 469.1 | EY22: 440 | EZ22: 410.8 | FA22: 501.4 | FB22: 490.6 | FC22: 463.5 | FD22: 436.3 | FE22: 409.2 | FF22: 382.1 | FG22: 436.5 | FH22: 424.9 | FI22: 395.7 | FJ22: 366.5 | FK22: 337.4 | FL22: 308.2 | FM22: 406 | FN22: 395.2 | FO22: 368.1 | FP22: 340.9 | FQ22: 313.8 | FR22: 286.7 | FS22: 464.4 | FT22: 452.8 | FU22: 423.6 | FV22: 394.4 | FW22: 365.3 | FX22: 336.1 | FY22: 441.2 | FZ22: 430.1 | GA22: 402.4 | GB22: 374.7 | GC22: 347 | GD22: 319.3 | GE22: 447.3 | GF22: 435.7 | GG22: 406.5 | GH22: 377.3 | GI22: 348.2 | GJ22: 319 | GK22: 425 | GL22: 413.9 | GM22: 386.2 | GN22: 358.5 | GO22: 330.8 | GP22: 303.1 | GQ22: 414.9 | GR22: 403.3 | GS22: 374.1 | GT22: 344.9 | GU22: 315.8 | GV22: 286.6 | GW22: 394.2 | GX22: 383.1 | GY22: 355.4 | GZ22: 327.7 | HA22: 300 | HB22: 272.3 | HC22: 510.3 | HD22: 498.7 | HE22: 469.5 | HF22: 440.3 | HG22: 411.2 | HH22: 382 | HI22: 484.8 | HJ22: 473.8 | HK22: 446 | HL22: 418.3 | HM22: 390.6 | HN22: 362.9 | HO22: 425.7 | HP22: 414.1 | HQ22: 384.9 | HR22: 355.7 | HS22: 326.6 | HT22: 297.4 | HU22: 396 | HV22: 385.2 | HW22: 358 | HX22: 330.9 | HY22: 303.8 | HZ22: 276.6 | IA22: 401.4 | IB22: 389.8 | IC22: 360.6 | ID22: 331.4 | IE22: 302.3 | IF22: 273.1 | IG22: 373.4 | IH22: 362.6 | II22: 335.4 | IJ22: 308.3 | IK22: 281.2 | IL22: 254 | IM22: 398.7 | IN22: 387.1 | IO22: 357.9 | IP22: 328.7 | IQ22: 299.6 | IR22: 270.4 | IS22: 370.8 | IT22: 360.1 | IU22: 332.9 | IV22: 305.7 | IW22: 278.7 | IX22: 251.5 | IY22: 616.1 | IZ22: 604.5 | JA22: 575.3 | JB22: 546.1 | JC22: 517 | JD22: 487.8 | JE22: 585.3 | JF22: 574.2 | JG22: 546.5 | JH22: 518.8 | JI22: 491.1 | JJ22: 463.4 | JK22: 389.7 | JL22: 378.1 | JM22: 348.9 | JN22: 319.7 | JO22: 290.6 | JP22: 261.4 | JQ22: 370.3 | JR22: 359.2 | JS22: 331.5 | JT22: 303.8 | JU22: 276.1 | JV22: 248.3 | JW22: 387.9 | JX22: 376.3 | JY22: 347.1 | JZ22: 317.9 | KA22: 288.8 | KB22: 259.6 | KC22: 368.6 | KD22: 357.5 | KE22: 329.8 | KF22: 302.1 | KG22: 274.3 | KH22: 246.6 | KI22: 450 | KJ22: 438.4 | KK22: 409.2 | KL22: 380 | KM22: 350.9 | KN22: 321.7 | KO22: 418.5 | KP22: 407.8 | KQ22: 380.6 | KR22: 353.4 | KS22: 326.4 | KT22: 299.2 | KU22: 448.2 | KV22: 436.6 | KW22: 407.4 | KX22: 378.2 | KY22: 349.1 | KZ22: 319.9 | LA22: 416.9 | LB22: 406.1 | LC22: 378.9 | LD22: 351.8 | LE22: 324.7 | LF22: 297.6 | LG22: 439.2 | LH22: 427.6 | LI22: 398.4 | LJ22: 369.2 | LK22: 340.1 | LL22: 310.9 | LM22: 408.5 | LN22: 397.7 | LO22: 370.6 | LP22: 343.4 | LQ22: 316.3 | LR22: 289.2 | LS22: 477.9 | LT22: 466.3 | LU22: 437.1 | LV22: 407.9 | LW22: 378.8 | LX22: 349.6 | LY22: 444.5 | LZ22: 433.7 | MA22: 406.6 | MB22: 379.4 | MC22: 352.3 | MD22: 325.2 | ME22: 444.6 | MF22: 433 | MG22: 403.8 | MH22: 374.6 | MI22: 345.5 | MJ22: 316.3 | MK22: 413.5 | ML22: 402.7 | MM22: 375.6 | MN22: 348.4 | MO22: 321.4 | MP22: 294.2 | MQ22: 430.2 | MR22: 418.6 | MS22: 389.4 | MT22: 360.2 | MU22: 331.1 | MV22: 301.9 | MW22: 408.7 | MX22: 397.7 | MY22: 369.9 | MZ22: 342.2 | NA22: 314.5 | NB22: 286.8 | NC22: 423 | ND22: 411.4 | NE22: 382.2 | NF22: 353 | NG22: 323.9 | NH22: 294.7 | NI22: 393.4 | NJ22: 382.7 | NK22: 355.5 | NL22: 328.3 | NM22: 301.3 | NN22: 274.1 | NO22: 547.2 | NP22: 535.6 | NQ22: 506.4 | NR22: 477.2 | NS22: 448.1 | NT22: 418.9 | NU22: 508.9 | NV22: 498.2 | NW22: 471 | NX22: 443.8 | NY22: 416.8 | NZ22: 389.6 | OA22: 486 | OB22: 474.4 | OC22: 445.2 | OD22: 416 | OE22: 386.9 | OF22: 357.7 | OG22: 452 | OH22: 441.2 | OI22: 414.1 | OJ22: 386.9 | OK22: 359.9 | OL22: 332.7 | OM22: 367.2 | ON22: 355.6 | OO22: 326.4 | OP22: 297.2 | OQ22: 268.1 | OR22: 238.9 | OS22: 341.5 | OT22: 330.8 | OU22: 303.6 | OV22: 276.4 | OW22: 249.4 | OX22: 222.2 | OY22: 567.9 | OZ22: 556.3 | PA22: 527.1 | PB22: 497.9 | PC22: 468.8 | PD22: 439.6 | PE22: 539.6 | PF22: 528.5 | PG22: 500.8 | PH22: 473.1 | PI22: 445.3 | PJ22: 417.6 | PK22: 551.7 | PL22: 540.1 | PM22: 510.9 | PN22: 481.7 | PO22: 452.6 | PP22: 423.4 | PQ22: 524.2 | PR22: 513.1 | PS22: 485.4 | PT22: 457.7 | PU22: 430 | PV22: 402.2 | PW22: 455.4 | PX22: 443.8 | PY22: 414.6 | PZ22: 385.4 | QA22: 356.3 | QB22: 327.1 | QC22: 423.6 | QD22: 412.8 | QE22: 385.6 | QF22: 358.5 | QG22: 331.4 | QH22: 304.3 | QI22: 413.1 | QJ22: 401.5 | QK22: 372.3 | QL22: 343.1 | QM22: 314 | QN22: 284.8 | QO22: 384.2 | QP22: 373.4 | QQ22: 346.3 | QR22: 319.1 | QS22: 292.1 | QT22: 264.9 | RG22: 371.7 | RH22: 360.1 | RI22: 330.9 | RJ22: 301.7 | RK22: 272.6 | RL22: 243.4 | RM22: 345.7 | RN22: 334.9 | RO22: 307.8 | RP22: 280.6 | RQ22: 253.6 | RR22: 226.4 | RS22: 494.1 | RT22: 482.5 | RU22: 453.3 | RV22: 424.1 | RW22: 395 | RX22: 365.8 | RY22: 459.6 | RZ22: 448.8 | SA22: 421.6 | SB22: 394.5 | SC22: 367.4 | SD22: 340.2 | SE22: 462.6 | SF22: 451 | SG22: 421.8 | SH22: 392.6 | SI22: 363.5 | SJ22: 334.3 | SK22: 430.3 | SL22: 419.5 | SM22: 392.3 | SN22: 365.2 | SO22: 338.1 | SP22: 310.9 | SQ22: 443.7 | SR22: 432.1 | SS22: 402.9 | ST22: 373.7 | SU22: 344.6 | SV22: 315.4 | SW22: 412.7 | SX22: 401.9 | SY22: 374.7 | SZ22: 347.6 | TA22: 320.5 | TB22: 293.4
C23: TAR-DIV | D23: FlexHelp 24 | F23: 23 | G23: 467.9 | H23: 456.3 | I23: 427.1 | J23: 397.9 | K23: 368.8 | L23: 339.6 | M23: 444.5 | N23: 433.5 | O23: 405.7 | P23: 378 | Q23: 350.3 | R23: 322.6 | S23: 421.7 | T23: 410.1 | U23: 380.9 | V23: 351.7 | W23: 322.6 | X23: 293.4 | Y23: 400.6 | Z23: 389.6 | AA23: 361.9 | AB23: 334.1 | AC23: 306.4 | AD23: 278.7 | AE23: 437.7 | AF23: 426 | AG23: 396.9 | AH23: 367.7 | AI23: 338.5 | AJ23: 309.4 | AK23: 407.1 | AL23: 396.2 | AM23: 369.2 | AN23: 342 | AO23: 314.9 | AP23: 287.8 | AQ23: 408.3 | AR23: 396.6 | AS23: 367.5 | AT23: 338.3 | AU23: 309.1 | AV23: 280 | AW23: 387.9 | AX23: 376.8 | AY23: 349.1 | AZ23: 321.4 | BA23: 293.7 | BB23: 266 | BC23: 366.3 | BD23: 354.6 | BE23: 325.5 | BF23: 296.3 | BG23: 267.1 | BH23: 238 | BI23: 348 | BJ23: 336.9 | BK23: 309.2 | BL23: 281.5 | BM23: 253.8 | BN23: 226.1 | BO23: 407.4 | BP23: 395.8 | BQ23: 366.6 | BR23: 337.4 | BS23: 308.3 | BT23: 279.1 | BU23: 378.9 | BV23: 368.1 | BW23: 341 | BX23: 313.8 | BY23: 286.8 | BZ23: 259.6 | CA23: 510.8 | CB23: 499.1 | CC23: 469.9 | CD23: 440.8 | CE23: 411.6 | CF23: 382.4 | CG23: 485.2 | CH23: 474.2 | CI23: 446.4 | CJ23: 418.7 | CK23: 391 | CL23: 363.3 | CM23: 476.3 | CN23: 464.7 | CO23: 435.5 | CP23: 406.3 | CQ23: 377.2 | CR23: 348 | CS23: 452.5 | CT23: 441.4 | CU23: 413.7 | CV23: 386 | CW23: 358.3 | CX23: 330.6 | CY23: 456.2 | CZ23: 444.5 | DA23: 415.3 | DB23: 386.2 | DC23: 357 | DD23: 327.8 | DE23: 433.4 | DF23: 422.3 | DG23: 394.6 | DH23: 366.9 | DI23: 339.2 | DJ23: 311.4 | DK23: 499.8 | DL23: 488.2 | DM23: 459 | DN23: 429.8 | DO23: 400.7 | DP23: 371.5 | DQ23: 464.9 | DR23: 454.1 | DS23: 426.9 | DT23: 399.8 | DU23: 372.7 | DV23: 345.5 | DW23: 479.4 | DX23: 467.8 | DY23: 438.6 | DZ23: 409.4 | EA23: 380.3 | EB23: 351.1 | EC23: 445.9 | ED23: 435.1 | EE23: 407.9 | EF23: 380.8 | EG23: 353.7 | EH23: 326.6 | EI23: 535.1 | EJ23: 523.5 | EK23: 494.3 | EL23: 465.1 | EM23: 436 | EN23: 406.8 | EO23: 508.4 | EP23: 497.3 | EQ23: 469.6 | ER23: 441.9 | ES23: 414.2 | ET23: 386.5 | EU23: 515.2 | EV23: 503.5 | EW23: 474.4 | EX23: 445.2 | EY23: 416 | EZ23: 386.9 | FA23: 479.2 | FB23: 468.3 | FC23: 441.2 | FD23: 414.1 | FE23: 386.9 | FF23: 359.9 | FG23: 407.4 | FH23: 395.8 | FI23: 366.6 | FJ23: 337.4 | FK23: 308.3 | FL23: 279.1 | FM23: 378.9 | FN23: 368.1 | FO23: 341 | FP23: 313.8 | FQ23: 286.8 | FR23: 259.6 | FS23: 433.5 | FT23: 421.8 | FU23: 392.7 | FV23: 363.5 | FW23: 334.3 | FX23: 305.2 | FY23: 411.8 | FZ23: 400.7 | GA23: 373 | GB23: 345.3 | GC23: 317.6 | GD23: 289.9 | GE23: 417.5 | GF23: 405.9 | GG23: 376.7 | GH23: 347.5 | GI23: 318.4 | GJ23: 289.2 | GK23: 396.7 | GL23: 385.6 | GM23: 357.9 | GN23: 330.2 | GO23: 302.4 | GP23: 274.7 | GQ23: 387.3 | GR23: 375.6 | GS23: 346.5 | GT23: 317.3 | GU23: 288.1 | GV23: 259 | GW23: 367.9 | GX23: 356.8 | GY23: 329.1 | GZ23: 301.4 | HA23: 273.7 | HB23: 246 | HC23: 476.3 | HD23: 464.7 | HE23: 435.5 | HF23: 406.3 | HG23: 377.2 | HH23: 348 | HI23: 452.5 | HJ23: 441.4 | HK23: 413.7 | HL23: 386 | HM23: 358.3 | HN23: 330.6 | HO23: 397.4 | HP23: 385.7 | HQ23: 356.5 | HR23: 327.4 | HS23: 298.2 | HT23: 269 | HU23: 369.6 | HV23: 358.8 | HW23: 331.6 | HX23: 304.5 | HY23: 277.4 | HZ23: 250.2 | IA23: 374.7 | IB23: 363 | IC23: 333.9 | ID23: 304.7 | IE23: 275.5 | IF23: 246.4 | IG23: 348.5 | IH23: 337.6 | II23: 310.6 | IJ23: 283.4 | IK23: 256.3 | IL23: 229.2 | IM23: 372.2 | IN23: 360.5 | IO23: 331.3 | IP23: 302.2 | IQ23: 273 | IR23: 243.8 | IS23: 346.2 | IT23: 335.3 | IU23: 308.2 | IV23: 281.1 | IW23: 253.9 | IX23: 226.8 | IY23: 568.7 | IZ23: 557.1 | JA23: 527.9 | JB23: 498.7 | JC23: 469.6 | JD23: 440.4 | JE23: 540.3 | JF23: 529.2 | JG23: 501.5 | JH23: 473.8 | JI23: 446.1 | JJ23: 418.4 | JK23: 363.8 | JL23: 352.1 | JM23: 322.9 | JN23: 293.8 | JO23: 264.6 | JP23: 235.4 | JQ23: 345.6 | JR23: 334.5 | JS23: 306.8 | JT23: 279.1 | JU23: 251.4 | JV23: 223.7 | JW23: 362.1 | JX23: 350.4 | JY23: 321.3 | JZ23: 292.1 | KA23: 262.9 | KB23: 233.8 | KC23: 344 | KD23: 332.9 | KE23: 305.2 | KF23: 277.5 | KG23: 249.8 | KH23: 222.1 | KI23: 420 | KJ23: 408.4 | KK23: 379.2 | KL23: 350 | KM23: 320.9 | KN23: 291.7 | KO23: 390.6 | KP23: 379.9 | KQ23: 352.7 | KR23: 325.5 | KS23: 298.5 | KT23: 271.3 | KU23: 418.4 | KV23: 406.7 | KW23: 377.5 | KX23: 348.4 | KY23: 319.2 | KZ23: 290 | LA23: 389.2 | LB23: 378.3 | LC23: 351.1 | LD23: 324.1 | LE23: 296.9 | LF23: 269.7 | LG23: 410 | LH23: 398.3 | LI23: 369.1 | LJ23: 340 | LK23: 310.8 | LL23: 281.6 | LM23: 381.3 | LN23: 370.5 | LO23: 343.3 | LP23: 316.2 | LQ23: 289.1 | LR23: 261.9 | LS23: 451.4 | LT23: 439.7 | LU23: 410.6 | LV23: 381.4 | LW23: 352.2 | LX23: 323.1 | LY23: 419.9 | LZ23: 409 | MA23: 381.9 | MB23: 354.8 | MC23: 327.6 | MD23: 300.5 | ME23: 419.9 | MF23: 408.3 | MG23: 379.1 | MH23: 349.9 | MI23: 320.8 | MJ23: 291.6 | MK23: 390.6 | ML23: 379.8 | MM23: 352.6 | MN23: 325.5 | MO23: 298.4 | MP23: 271.2 | MQ23: 401.6 | MR23: 389.9 | MS23: 360.7 | MT23: 331.6 | MU23: 302.4 | MV23: 273.2 | MW23: 381.5 | MX23: 370.4 | MY23: 342.7 | MZ23: 315 | NA23: 287.3 | NB23: 259.6 | NC23: 394.8 | ND23: 383.2 | NE23: 354 | NF23: 324.8 | NG23: 295.7 | NH23: 266.5 | NI23: 367.2 | NJ23: 356.4 | NK23: 329.3 | NL23: 302.1 | NM23: 275.1 | NN23: 247.9 | NO23: 510.8 | NP23: 499.1 | NQ23: 469.9 | NR23: 440.8 | NS23: 411.6 | NT23: 382.4 | NU23: 475.1 | NV23: 464.2 | NW23: 437.1 | NX23: 410 | NY23: 382.8 | NZ23: 355.7 | OA23: 453.6 | OB23: 442 | OC23: 412.8 | OD23: 383.6 | OE23: 354.5 | OF23: 325.3 | OG23: 421.9 | OH23: 411.1 | OI23: 384 | OJ23: 356.8 | OK23: 329.7 | OL23: 302.6 | OM23: 344.8 | ON23: 333.1 | OO23: 304 | OP23: 274.8 | OQ23: 245.6 | OR23: 219.4 | OS23: 320.7 | OT23: 309.8 | OU23: 282.8 | OV23: 255.6 | OW23: 228.5 | OX23: 204.1 | OY23: 530.1 | OZ23: 518.4 | PA23: 489.3 | PB23: 460.1 | PC23: 430.9 | PD23: 401.8 | PE23: 503.6 | PF23: 492.5 | PG23: 464.8 | PH23: 437.1 | PI23: 409.4 | PJ23: 381.7 | PK23: 515 | PL23: 503.3 | PM23: 474.1 | PN23: 445 | PO23: 415.8 | PP23: 386.6 | PQ23: 489.2 | PR23: 478.1 | PS23: 450.4 | PT23: 422.7 | PU23: 395 | PV23: 367.3 | PW23: 425.1 | PX23: 413.4 | PY23: 384.3 | PZ23: 355.1 | QA23: 325.9 | QB23: 296.8 | QC23: 395.4 | QD23: 384.5 | QE23: 357.4 | QF23: 330.3 | QG23: 303.1 | QH23: 276.1 | QI23: 385.6 | QJ23: 373.9 | QK23: 344.8 | QL23: 315.6 | QM23: 286.4 | QN23: 257.3 | QO23: 358.7 | QP23: 347.8 | QQ23: 320.7 | QR23: 293.6 | QS23: 266.4 | QT23: 239.3 | RG23: 347 | RH23: 335.3 | RI23: 306.1 | RJ23: 277 | RK23: 247.8 | RL23: 222.1 | RM23: 322.8 | RN23: 311.9 | RO23: 284.7 | RP23: 257.7 | RQ23: 230.5 | RR23: 206.6 | RS23: 461.2 | RT23: 449.5 | RU23: 420.4 | RV23: 391.2 | RW23: 362 | RX23: 332.9 | RY23: 429 | RZ23: 418.1 | SA23: 391 | SB23: 363.9 | SC23: 336.7 | SD23: 309.6 | SE23: 431.8 | SF23: 420.1 | SG23: 391 | SH23: 361.8 | SI23: 332.6 | SJ23: 303.5 | SK23: 401.6 | SL23: 390.7 | SM23: 363.7 | SN23: 336.5 | SO23: 309.4 | SP23: 282.3 | SQ23: 414.2 | SR23: 402.5 | SS23: 373.3 | ST23: 344.2 | SU23: 315 | SV23: 285.8 | SW23: 385.3 | SX23: 374.4 | SY23: 347.2 | SZ23: 320.2 | TA23: 293 | TB23: 265.8
C24: TAR-HMO | D24: casamed hmo | F24: 24 | G24: 490.2 | H24: 478.5 | I24: 449.4 | J24: 420.2 | K24: 391 | L24: 361.9 | M24: 465.7 | N24: 454.6 | O24: 426.9 | P24: 399.2 | Q24: 371.5 | R24: 343.8 | S24: 441.8 | T24: 430.1 | U24: 401 | V24: 371.8 | W24: 342.6 | X24: 313.5 | Y24: 419.7 | Z24: 408.6 | AA24: 380.9 | AB24: 353.2 | AC24: 325.5 | AD24: 297.8 | AE24: 458.5 | AF24: 446.9 | AG24: 417.7 | AH24: 388.5 | AI24: 359.4 | AJ24: 330.2 | AK24: 426.5 | AL24: 415.7 | AM24: 388.5 | AN24: 361.4 | AO24: 334.3 | AP24: 307.1 | AQ24: 418 | AR24: 406.3 | AS24: 377.2 | AT24: 348 | AU24: 318.8 | AV24: 289.7 | AW24: 397.1 | AX24: 386 | AY24: 358.3 | AZ24: 330.6 | BA24: 302.9 | BB24: 275.2 | BC24: 383.7 | BD24: 372.1 | BE24: 342.9 | BF24: 313.7 | BG24: 284.6 | BH24: 255.4 | BI24: 364.5 | BJ24: 353.5 | BK24: 325.8 | BL24: 298 | BM24: 270.3 | BN24: 242.6 | BO24: 426.8 | BP24: 415.2 | BQ24: 386 | BR24: 356.8 | BS24: 327.7 | BT24: 298.5 | BU24: 397 | BV24: 386.2 | BW24: 359 | BX24: 331.9 | BY24: 304.8 | BZ24: 277.7 | CA24: 535.1 | CB24: 523.4 | CC24: 494.3 | CD24: 465.1 | CE24: 435.9 | CF24: 406.8 | CG24: 508.3 | CH24: 497.3 | CI24: 469.5 | CJ24: 441.8 | CK24: 414.1 | CL24: 386.4 | CM24: 499 | CN24: 487.3 | CO24: 458.2 | CP24: 429 | CQ24: 399.8 | CR24: 370.7 | CS24: 474.1 | CT24: 463 | CU24: 435.3 | CV24: 407.6 | CW24: 379.9 | CX24: 352.1 | CY24: 477.9 | CZ24: 466.2 | DA24: 437.1 | DB24: 407.9 | DC24: 378.7 | DD24: 349.6 | DE24: 454 | DF24: 442.9 | DG24: 415.2 | DH24: 387.5 | DI24: 359.8 | DJ24: 332.1 | DK24: 505.7 | DL24: 494.1 | DM24: 464.9 | DN24: 435.7 | DO24: 406.6 | DP24: 377.4 | DQ24: 470.4 | DR24: 459.6 | DS24: 432.4 | DT24: 405.3 | DU24: 378.2 | DV24: 351 | DW24: 485.1 | DX24: 473.4 | DY24: 444.3 | DZ24: 415.1 | EA24: 385.9 | EB24: 356.8 | EC24: 451.2 | ED24: 440.3 | EE24: 413.2 | EF24: 386.1 | EG24: 358.9 | EH24: 331.9 | EI24: 547.9 | EJ24: 536.2 | EK24: 507 | EL24: 477.9 | EM24: 448.7 | EN24: 419.5 | EO24: 520.5 | EP24: 509.4 | EQ24: 481.7 | ER24: 454 | ES24: 426.3 | ET24: 398.6 | EU24: 515.2 | EV24: 503.5 | EW24: 474.4 | EX24: 445.2 | EY24: 416 | EZ24: 386.9 | FA24: 479.2 | FB24: 468.3 | FC24: 441.2 | FD24: 414.1 | FE24: 386.9 | FF24: 359.9 | FG24: 417.1 | FH24: 405.5 | FI24: 376.3 | FJ24: 347.1 | FK24: 318 | FL24: 288.8 | FM24: 388 | FN24: 377.2 | FO24: 350 | FP24: 322.9 | FQ24: 295.8 | FR24: 268.6 | FS24: 438.6 | FT24: 427 | FU24: 397.8 | FV24: 368.6 | FW24: 339.5 | FX24: 310.3 | FY24: 416.7 | FZ24: 405.6 | GA24: 377.9 | GB24: 350.2 | GC24: 322.5 | GD24: 294.8 | GE24: 422.5 | GF24: 410.8 | GG24: 381.7 | GH24: 352.5 | GI24: 323.3 | GJ24: 294.2 | GK24: 401.4 | GL24: 390.3 | GM24: 362.6 | GN24: 334.9 | GO24: 307.2 | GP24: 279.5 | GQ24: 391.9 | GR24: 380.2 | GS24: 351.1 | GT24: 321.9 | GU24: 292.7 | GV24: 263.6 | GW24: 372.3 | GX24: 361.2 | GY24: 333.5 | GZ24: 305.8 | HA24: 278.1 | HB24: 250.4 | HC24: 482 | HD24: 470.3 | HE24: 441.2 | HF24: 412 | HG24: 382.8 | HH24: 353.7 | HI24: 457.9 | HJ24: 446.8 | HK24: 419.1 | HL24: 391.4 | HM24: 363.7 | HN24: 336 | HO24: 402.1 | HP24: 390.4 | HQ24: 361.3 | HR24: 332.1 | HS24: 302.9 | HT24: 273.8 | HU24: 374 | HV24: 363.1 | HW24: 336.1 | HX24: 308.9 | HY24: 281.7 | HZ24: 254.7 | IA24: 379.1 | IB24: 367.5 | IC24: 338.3 | ID24: 309.1 | IE24: 280 | IF24: 250.8 | IG24: 352.6 | IH24: 341.8 | II24: 314.7 | IJ24: 287.5 | IK24: 260.4 | IL24: 233.3 | IM24: 376.6 | IN24: 364.9 | IO24: 335.8 | IP24: 306.6 | IQ24: 277.4 | IR24: 248.3 | IS24: 350.3 | IT24: 339.4 | IU24: 312.3 | IV24: 285.2 | IW24: 258 | IX24: 231 | IY24: 582.3 | IZ24: 570.6 | JA24: 541.4 | JB24: 512.3 | JC24: 483.1 | JD24: 453.9 | JE24: 553.2 | JF24: 542.1 | JG24: 514.4 | JH24: 486.7 | JI24: 459 | JJ24: 431.2 | JK24: 381.1 | JL24: 369.4 | JM24: 340.3 | JN24: 311.1 | JO24: 281.9 | JP24: 252.8 | JQ24: 362 | JR24: 351 | JS24: 323.2 | JT24: 295.5 | JU24: 267.8 | JV24: 240.1 | JW24: 362.1 | JX24: 350.4 | JY24: 321.3 | JZ24: 292.1 | KA24: 262.9 | KB24: 233.8 | KC24: 344 | KD24: 332.9 | KE24: 305.2 | KF24: 277.5 | KG24: 249.8 | KH24: 222.1 | KI24: 440 | KJ24: 428.4 | KK24: 399.2 | KL24: 370 | KM24: 340.9 | KN24: 311.7 | KO24: 409.2 | KP24: 398.5 | KQ24: 371.3 | KR24: 344.1 | KS24: 317.1 | KT24: 289.9 | KU24: 438.3 | KV24: 426.6 | KW24: 397.5 | KX24: 368.3 | KY24: 339.1 | KZ24: 310 | LA24: 407.7 | LB24: 396.8 | LC24: 369.7 | LD24: 342.6 | LE24: 315.4 | LF24: 288.3 | LG24: 429.5 | LH24: 417.8 | LI24: 388.7 | LJ24: 359.5 | LK24: 330.3 | LL24: 301.2 | LM24: 399.5 | LN24: 388.6 | LO24: 361.5 | LP24: 334.4 | LQ24: 307.2 | LR24: 280.2 | LS24: 451.4 | LT24: 439.7 | LU24: 410.6 | LV24: 381.4 | LW24: 352.2 | LX24: 323.1 | LY24: 419.9 | LZ24: 409 | MA24: 381.9 | MB24: 354.8 | MC24: 327.6 | MD24: 300.5 | ME24: 419.9 | MF24: 408.3 | MG24: 379.1 | MH24: 349.9 | MI24: 320.8 | MJ24: 291.6 | MK24: 390.6 | ML24: 379.8 | MM24: 352.6 | MN24: 325.5 | MO24: 298.4 | MP24: 271.2 | MQ24: 420.7 | MR24: 409 | MS24: 379.9 | MT24: 350.7 | MU24: 321.5 | MV24: 292.4 | MW24: 399.7 | MX24: 388.6 | MY24: 360.9 | MZ24: 333.2 | NA24: 305.4 | NB24: 277.7 | NC24: 413.6 | ND24: 402 | NE24: 372.8 | NF24: 343.6 | NG24: 314.5 | NH24: 285.3 | NI24: 384.7 | NJ24: 373.9 | NK24: 346.8 | NL24: 319.6 | NM24: 292.5 | NN24: 265.4 | NO24: 522.9 | NP24: 511.3 | NQ24: 482.1 | NR24: 452.9 | NS24: 423.8 | NT24: 394.6 | NU24: 486.3 | NV24: 475.6 | NW24: 448.4 | NX24: 421.2 | NY24: 394.2 | NZ24: 367 | OA24: 464.4 | OB24: 452.8 | OC24: 423.6 | OD24: 394.4 | OE24: 365.3 | OF24: 336.1 | OG24: 431.9 | OH24: 421.2 | OI24: 394 | OJ24: 366.8 | OK24: 339.8 | OL24: 312.6 | OM24: 350.9 | ON24: 339.3 | OO24: 310.1 | OP24: 280.9 | OQ24: 251.8 | OR24: 222.6 | OS24: 326.4 | OT24: 315.6 | OU24: 288.4 | OV24: 261.3 | OW24: 234.2 | OX24: 207.1 | OY24: 542.7 | OZ24: 531 | PA24: 501.9 | PB24: 472.7 | PC24: 443.5 | PD24: 414.4 | PE24: 515.6 | PF24: 504.5 | PG24: 476.8 | PH24: 449.1 | PI24: 421.4 | PJ24: 393.7 | PK24: 527.2 | PL24: 515.6 | PM24: 486.4 | PN24: 457.2 | PO24: 428.1 | PP24: 398.9 | PQ24: 500.9 | PR24: 489.8 | PS24: 462.1 | PT24: 434.4 | PU24: 406.7 | PV24: 379 | PW24: 435.2 | PX24: 423.5 | PY24: 394.4 | PZ24: 365.2 | QA24: 336 | QB24: 306.9 | QC24: 404.8 | QD24: 393.9 | QE24: 366.8 | QF24: 339.7 | QG24: 312.5 | QH24: 285.5 | QI24: 394.8 | QJ24: 383.1 | QK24: 354 | QL24: 324.8 | QM24: 295.6 | QN24: 266.5 | QO24: 367.2 | QP24: 356.3 | QQ24: 329.3 | QR24: 302.1 | QS24: 275 | QT24: 247.9 | RG24: 363.5 | RH24: 351.8 | RI24: 322.7 | RJ24: 293.5 | RK24: 264.3 | RL24: 235.2 | RM24: 338.1 | RN24: 327.2 | RO24: 300.2 | RP24: 273 | RQ24: 245.8 | RR24: 218.8 | RS24: 461.2 | RT24: 449.5 | RU24: 420.4 | RV24: 391.2 | RW24: 362 | RX24: 332.9 | RY24: 429 | RZ24: 418.1 | SA24: 391 | SB24: 363.9 | SC24: 336.7 | SD24: 309.6 | SE24: 431.8 | SF24: 420.1 | SG24: 391 | SH24: 361.8 | SI24: 332.6 | SJ24: 303.5 | SK24: 401.6 | SL24: 390.7 | SM24: 363.7 | SN24: 336.5 | SO24: 309.4 | SP24: 282.3 | SQ24: 414.2 | SR24: 402.5 | SS24: 373.3 | ST24: 344.2 | SU24: 315 | SV24: 285.8 | SW24: 385.3 | SX24: 374.4 | SY24: 347.2 | SZ24: 320.2 | TA24: 293 | TB24: 265.8
A25: 62 | B25: SUPRA-1846 SA | C25: TAR-BASE | D25: Assurance de base | F25: 25 | G25: 591.5 | H25: 580 | I25: 551 | J25: 521.5 | K25: 492.5 | L25: 463.5 | M25: 550.1 | N25: 539.4 | O25: 512.5 | P25: 485 | Q25: 458.1 | R25: 431.1 | S25: 567.9 | T25: 556.4 | U25: 527.4 | V25: 497.9 | W25: 468.9 | X25: 439.9 | Y25: 528.2 | Z25: 517.5 | AA25: 490.5 | AB25: 463.1 | AC25: 436.1 | AD25: 409.2 | AE25: 595.4 | AF25: 583.9 | AG25: 554.9 | AH25: 525.4 | AI25: 496.4 | AJ25: 467.4 | AK25: 553.8 | AL25: 543.1 | AM25: 516.1 | AN25: 488.7 | AO25: 461.7 | AP25: 434.7 | AQ25: 504.7 | AR25: 493.2 | AS25: 464.2 | AT25: 434.7 | AU25: 405.7 | AV25: 376.7 | AW25: 469.4 | AX25: 458.7 | AY25: 431.8 | AZ25: 404.3 | BA25: 377.4 | BB25: 350.4 | BC25: 395 | BD25: 383.5 | BE25: 354.5 | BF25: 325 | BG25: 296 | BH25: 267 | BI25: 367.4 | BJ25: 356.7 | BK25: 329.7 | BL25: 302.3 | BM25: 275.3 | BN25: 248.4 | BO25: 465.1 | BP25: 453.6 | BQ25: 424.6 | BR25: 395.1 | BS25: 366.1 | BT25: 337.1 | BU25: 432.6 | BV25: 421.9 | BW25: 394.9 | BX25: 367.5 | BY25: 340.5 | BZ25: 313.6 | CA25: 608.3 | CB25: 596.8 | CC25: 567.8 | CD25: 538.3 | CE25: 509.3 | CF25: 480.3 | CG25: 565.8 | CH25: 555.1 | CI25: 528.1 | CJ25: 500.7 | CK25: 473.7 | CL25: 446.7 | CM25: 559.7 | CN25: 548.2 | CO25: 519.2 | CP25: 489.7 | CQ25: 460.7 | CR25: 431.7 | CS25: 520.6 | CT25: 509.9 | CU25: 482.9 | CV25: 455.5 | CW25: 428.5 | CX25: 401.5 | CY25: 541.4 | CZ25: 529.9 | DA25: 500.9 | DB25: 471.4 | DC25: 442.4 | DD25: 413.4 | DE25: 503.6 | DF25: 492.9 | DG25: 465.9 | DH25: 438.5 | DI25: 411.5 | DJ25: 384.5 | DK25: 554.5 | DL25: 543 | DM25: 514 | DN25: 484.5 | DO25: 455.5 | DP25: 426.5 | DQ25: 515.7 | DR25: 505 | DS25: 478.1 | DT25: 450.6 | DU25: 423.7 | DV25: 396.7 | DW25: 532.4 | DX25: 520.9 | DY25: 491.9 | DZ25: 462.4 | EA25: 433.4 | EB25: 404.4 | EC25: 495.2 | ED25: 484.5 | EE25: 457.5 | EF25: 430.1 | EG25: 403.1 | EH25: 376.1 | EI25: 627 | EJ25: 615.5 | EK25: 586.5 | EL25: 557 | EM25: 528 | EN25: 499 | EO25: 583.2 | EP25: 572.5 | EQ25: 545.5 | ER25: 518.1 | ES25: 491.1 | ET25: 464.1 | EU25: 667.1 | EV25: 655.6 | EW25: 626.6 | EX25: 597.1 | EY25: 568.1 | EZ25: 539.1 | FA25: 620.5 | FB25: 609.8 | FC25: 582.8 | FD25: 555.4 | FE25: 528.4 | FF25: 501.4 | FG25: 514.5 | FH25: 503 | FI25: 474 | FJ25: 444.5 | FK25: 415.5 | FL25: 386.5 | FM25: 478.5 | FN25: 467.8 | FO25: 440.9 | FP25: 413.4 | FQ25: 386.5 | FR25: 359.5 | FS25: 456.9 | FT25: 445.4 | FU25: 416.4 | FV25: 386.9 | FW25: 357.9 | FX25: 328.9 | FY25: 425 | FZ25: 414.3 | GA25: 387.3 | GB25: 359.9 | GC25: 332.9 | GD25: 305.9 | GE25: 445.5 | GF25: 434 | GG25: 405 | GH25: 375.5 | GI25: 346.5 | GJ25: 317.5 | GK25: 414.4 | GL25: 403.7 | GM25: 376.7 | GN25: 349.3 | GO25: 322.3 | GP25: 295.3 | GQ25: 434.1 | GR25: 422.6 | GS25: 393.6 | GT25: 364.1 | GU25: 335.1 | GV25: 306.1 | GW25: 403.8 | GX25: 393.1 | GY25: 366.1 | GZ25: 338.7 | HA25: 311.7 | HB25: 284.7 | HC25: 587.6 | HD25: 576.1 | HE25: 547.1 | HF25: 517.6 | HG25: 488.6 | HH25: 459.6 | HI25: 546.5 | HJ25: 535.8 | HK25: 508.9 | HL25: 481.4 | HM25: 454.4 | HN25: 427.5 | HO25: 524.8 | HP25: 513.3 | HQ25: 484.3 | HR25: 454.8 | HS25: 425.8 | HT25: 396.8 | HU25: 488.1 | HV25: 477.4 | HW25: 450.4 | HX25: 423 | HY25: 396 | HZ25: 369.1 | IA25: 498.6 | IB25: 487.1 | IC25: 458.1 | ID25: 428.6 | IE25: 399.6 | IF25: 370.6 | IG25: 463.7 | IH25: 453.1 | II25: 426.1 | IJ25: 398.6 | IK25: 371.7 | IL25: 344.7 | IM25: 493.4 | IN25: 481.9 | IO25: 452.9 | IP25: 423.4 | IQ25: 394.4 | IR25: 365.4 | IS25: 458.9 | IT25: 448.2 | IU25: 421.2 | IV25: 393.8 | IW25: 366.8 | IX25: 339.9 | IY25: 636.2 | IZ25: 624.7 | JA25: 595.7 | JB25: 566.2 | JC25: 537.2 | JD25: 508.2 | JE25: 591.7 | JF25: 581 | JG25: 554.1 | JH25: 526.6 | JI25: 499.6 | JJ25: 472.7 | JK25: 451.9 | JL25: 440.4 | JM25: 411.4 | JN25: 381.9 | JO25: 352.9 | JP25: 323.9 | JQ25: 420.3 | JR25: 409.6 | JS25: 382.7 | JT25: 355.2 | JU25: 328.2 | JV25: 301.3 | JW25: 434 | JX25: 422.5 | JY25: 393.5 | JZ25: 364 | KA25: 335 | KB25: 306 | KC25: 403.7 | KD25: 393 | KE25: 366 | KF25: 338.6 | KG25: 311.6 | KH25: 284.6 | KI25: 485.6 | KJ25: 474.1 | KK25: 445.1 | KL25: 415.6 | KM25: 386.6 | KN25: 357.6 | KO25: 451.7 | KP25: 441 | KQ25: 414 | KR25: 386.6 | KS25: 359.6 | KT25: 332.6 | KU25: 466.2 | KV25: 454.7 | KW25: 425.7 | KX25: 396.2 | KY25: 367.2 | KZ25: 338.2 | LA25: 433.6 | LB25: 422.9 | LC25: 396 | LD25: 368.5 | LE25: 341.5 | LF25: 314.6 | LG25: 446.8 | LH25: 435.3 | LI25: 406.3 | LJ25: 376.8 | LK25: 347.8 | LL25: 318.8 | LM25: 415.6 | LN25: 404.9 | LO25: 377.9 | LP25: 350.5 | LQ25: 323.5 | LR25: 296.5 | LS25: 593.6 | LT25: 582.1 | LU25: 553.1 | LV25: 523.6 | LW25: 494.6 | LX25: 465.6 | LY25: 552.1 | LZ25: 541.4 | MA25: 514.4 | MB25: 487 | MC25: 460 | MD25: 433.1 | ME25: 564 | MF25: 552.5 | MG25: 523.5 | MH25: 494 | MI25: 465 | MJ25: 436 | MK25: 524.6 | ML25: 513.9 | MM25: 486.9 | MN25: 459.5 | MO25: 432.5 | MP25: 405.5 | MQ25: 465.6 | MR25: 454.1 | MS25: 425.1 | MT25: 395.6 | MU25: 366.6 | MV25: 337.6 | MW25: 433.1 | MX25: 422.4 | MY25: 395.4 | MZ25: 368 | NA25: 341 | NB25: 314 | NC25: 511.3 | ND25: 499.8 | NE25: 470.8 | NF25: 441.3 | NG25: 412.3 | NH25: 383.3 | NI25: 475.6 | NJ25: 464.9 | NK25: 437.9 | NL25: 410.5 | NM25: 383.5 | NN25: 356.5 | NO25: 613.3 | NP25: 601.8 | NQ25: 572.8 | NR25: 543.3 | NS25: 514.3 | NT25: 485.3 | NU25: 570.4 | NV25: 559.7 | NW25: 532.8 | NX25: 505.3 | NY25: 478.3 | NZ25: 451.4 | OA25: 588.8 | OB25: 577.3 | OC25: 548.3 | OD25: 518.8 | OE25: 489.8 | OF25: 460.8 | OG25: 547.6 | OH25: 536.9 | OI25: 510 | OJ25: 482.5 | OK25: 455.6 | OL25: 428.6 | OM25: 418 | ON25: 406.5 | OO25: 377.5 | OP25: 348 | OQ25: 319 | OR25: 290 | OS25: 388.8 | OT25: 378.1 | OU25: 351.1 | OV25: 323.7 | OW25: 296.7 | OX25: 269.7 | OY25: 607.3 | OZ25: 595.8 | PA25: 566.8 | PB25: 537.3 | PC25: 508.3 | PD25: 479.3 | PE25: 564.8 | PF25: 554.1 | PG25: 527.2 | PH25: 499.7 | PI25: 472.8 | PJ25: 445.8 | PK25: 570.9 | PL25: 559.4 | PM25: 530.4 | PN25: 500.9 | PO25: 471.9 | PP25: 442.9 | PQ25: 531 | PR25: 520.3 | PS25: 493.3 | PT25: 465.9 | PU25: 438.9 | PV25: 411.9 | PW25: 487.7 | PX25: 476.2 | PY25: 447.2 | PZ25: 417.7 | QA25: 388.7 | QB25: 359.7 | QC25: 453.6 | QD25: 442.9 | QE25: 415.9 | QF25: 388.5 | QG25: 361.5 | QH25: 334.6 | QI25: 487.7 | QJ25: 476.2 | QK25: 447.2 | QL25: 417.7 | QM25: 388.7 | QN25: 359.7 | QO25: 453.6 | QP25: 442.9 | QQ25: 415.9 | QR25: 388.5 | QS25: 361.5 | QT25: 334.6 | RG25: 507.5 | RH25: 496 | RI25: 467 | RJ25: 437.5 | RK25: 408.5 | RL25: 379.5 | RM25: 472 | RN25: 461.3 | RO25: 434.4 | RP25: 406.9 | RQ25: 380 | RR25: 353 | RS25: 637.8 | RT25: 626.3 | RU25: 597.3 | RV25: 567.8 | RW25: 538.8 | RX25: 509.8 | RY25: 593.2 | RZ25: 582.5 | SA25: 555.5 | SB25: 528.1 | SC25: 501.1 | SD25: 474.2 | SE25: 618.7 | SF25: 607.2 | SG25: 578.2 | SH25: 548.7 | SI25: 519.7 | SJ25: 490.7 | SK25: 575.4 | SL25: 564.7 | SM25: 537.8 | SN25: 510.3 | SO25: 483.4 | SP25: 456.4 | SQ25: 606 | SR25: 594.5 | SS25: 565.5 | ST25: 536 | SU25: 507 | SV25: 478 | SW25: 563.6 | SX25: 552.9 | SY25: 526 | SZ25: 498.5 | TA25: 471.6 | TB25: 444.6
C26: TAR-HAM | D26: PrimaCare | F26: 26 | G26: 496.9 | H26: 485.4 | I26: 456.4 | J26: 426.9 | K26: 397.9 | L26: 368.9 | M26: 462.2 | N26: 451.5 | O26: 424.5 | P26: 397.1 | Q26: 370.1 | R26: 343.1 | S26: 477 | T26: 465.5 | U26: 436.5 | V26: 407 | W26: 378 | X26: 349 | Y26: 443.7 | Z26: 433 | AA26: 406 | AB26: 378.6 | AC26: 351.6 | AD26: 324.6 | AE26: 500.2 | AF26: 488.7 | AG26: 459.7 | AH26: 430.2 | AI26: 401.2 | AJ26: 372.2 | AK26: 465.2 | AL26: 454.5 | AM26: 427.6 | AN26: 400.1 | AO26: 373.2 | AP26: 346.2 | AQ26: 424 | AR26: 412.5 | AS26: 383.5 | AT26: 354 | AU26: 325 | AV26: 296 | AW26: 394.4 | AX26: 383.7 | AY26: 356.7 | AZ26: 329.3 | BA26: 302.3 | BB26: 275.3 | BC26: 331.8 | BD26: 320.3 | BE26: 291.3 | BF26: 261.8 | BG26: 232.8 | BH26: 203.8 | BI26: 308.6 | BJ26: 297.9 | BK26: 271 | BL26: 243.5 | BM26: 216.6 | BN26: 197.5 | BO26: 409.3 | BP26: 397.8 | BQ26: 368.8 | BR26: 339.3 | BS26: 310.3 | BT26: 281.3 | BU26: 380.7 | BV26: 370 | BW26: 343 | BX26: 315.6 | BY26: 288.6 | BZ26: 261.7 | CA26: 511 | CB26: 499.5 | CC26: 470.5 | CD26: 441 | CE26: 412 | CF26: 383 | CG26: 475.3 | CH26: 464.6 | CI26: 437.6 | CJ26: 410.2 | CK26: 383.2 | CL26: 356.2 | CM26: 470.1 | CN26: 458.6 | CO26: 429.6 | CP26: 400.1 | CQ26: 371.1 | CR26: 342.1 | CS26: 437.2 | CT26: 426.5 | CU26: 399.6 | CV26: 372.1 | CW26: 345.2 | CX26: 318.2 | CY26: 454.8 | CZ26: 443.3 | DA26: 414.3 | DB26: 384.8 | DC26: 355.8 | DD26: 326.8 | DE26: 423 | DF26: 412.3 | DG26: 385.3 | DH26: 357.9 | DI26: 330.9 | DJ26: 304 | DK26: 465.8 | DL26: 454.3 | DM26: 425.3 | DN26: 395.8 | DO26: 366.8 | DP26: 337.8 | DQ26: 433.2 | DR26: 422.5 | DS26: 395.6 | DT26: 368.1 | DU26: 341.2 | DV26: 314.2 | DW26: 447.2 | DX26: 435.7 | DY26: 406.7 | DZ26: 377.2 | EA26: 348.2 | EB26: 319.2 | EC26: 415.9 | ED26: 405.3 | EE26: 378.3 | EF26: 350.8 | EG26: 323.9 | EH26: 296.9 | EI26: 526.7 | EJ26: 515.2 | EK26: 486.2 | EL26: 456.7 | EM26: 427.7 | EN26: 398.7 | EO26: 489.9 | EP26: 479.2 | EQ26: 452.2 | ER26: 424.8 | ES26: 397.8 | ET26: 370.8 | EU26: 560.4 | EV26: 548.9 | EW26: 519.9 | EX26: 490.4 | EY26: 461.4 | EZ26: 432.4 | FA26: 521.2 | FB26: 510.5 | FC26: 483.6 | FD26: 456.1 | FE26: 429.2 | FF26: 402.2 | FG26: 432.2 | FH26: 420.7 | FI26: 391.7 | FJ26: 362.2 | FK26: 333.2 | FL26: 304.2 | FM26: 402 | FN26: 391.3 | FO26: 364.3 | FP26: 336.9 | FQ26: 309.9 | FR26: 283 | FS26: 383.8 | FT26: 372.3 | FU26: 343.3 | FV26: 313.8 | FW26: 284.8 | FX26: 255.8 | FY26: 357 | FZ26: 346.3 | GA26: 319.3 | GB26: 291.9 | GC26: 264.9 | GD26: 237.9 | GE26: 374.3 | GF26: 362.8 | GG26: 333.8 | GH26: 304.3 | GI26: 275.3 | GJ26: 246.3 | GK26: 348.1 | GL26: 337.5 | GM26: 310.5 | GN26: 283 | GO26: 256.1 | GP26: 229.1 | GQ26: 364.7 | GR26: 353.2 | GS26: 324.2 | GT26: 294.7 | GU26: 265.7 | GV26: 236.7 | GW26: 339.2 | GX26: 328.5 | GY26: 301.6 | GZ26: 274.1 | HA26: 247.2 | HB26: 220.2 | HC26: 517.1 | HD26: 505.6 | HE26: 476.6 | HF26: 447.1 | HG26: 418.1 | HH26: 389.1 | HI26: 481 | HJ26: 470.3 | HK26: 443.3 | HL26: 415.9 | HM26: 388.9 | HN26: 361.9 | HO26: 440.9 | HP26: 429.4 | HQ26: 400.4 | HR26: 370.9 | HS26: 341.9 | HT26: 312.9 | HU26: 410.1 | HV26: 399.4 | HW26: 372.4 | HX26: 345 | HY26: 318 | HZ26: 291 | IA26: 418.8 | IB26: 407.3 | IC26: 378.3 | ID26: 348.8 | IE26: 319.8 | IF26: 290.8 | IG26: 389.5 | IH26: 378.8 | II26: 351.9 | IJ26: 324.4 | IK26: 297.5 | IL26: 270.5 | IM26: 414.4 | IN26: 402.9 | IO26: 373.9 | IP26: 344.4 | IQ26: 315.4 | IR26: 286.4 | IS26: 385.4 | IT26: 374.7 | IU26: 347.8 | IV26: 320.3 | IW26: 293.4 | IX26: 266.4 | IY26: 559.9 | IZ26: 548.4 | JA26: 519.4 | JB26: 489.9 | JC26: 460.9 | JD26: 431.9 | JE26: 520.8 | JF26: 510.1 | JG26: 483.1 | JH26: 455.7 | JI26: 428.7 | JJ26: 401.7 | JK26: 379.6 | JL26: 368.1 | JM26: 339.1 | JN26: 309.6 | JO26: 280.6 | JP26: 251.6 | JQ26: 353.1 | JR26: 342.4 | JS26: 315.4 | JT26: 288 | JU26: 261 | JV26: 234 | JW26: 364.6 | JX26: 353.1 | JY26: 324.1 | JZ26: 294.6 | KA26: 265.6 | KB26: 236.6 | KC26: 339.1 | KD26: 328.4 | KE26: 301.5 | KF26: 274 | KG26: 247.1 | KH26: 220.1 | KI26: 408 | KJ26: 396.5 | KK26: 367.5 | KL26: 338 | KM26: 309 | KN26: 280 | KO26: 379.5 | KP26: 368.8 | KQ26: 341.8 | KR26: 314.4 | KS26: 287.4 | KT26: 260.4 | KU26: 391.6 | KV26: 380.1 | KW26: 351.1 | KX26: 321.6 | KY26: 292.6 | KZ26: 263.6 | LA26: 364.2 | LB26: 353.5 | LC26: 326.6 | LD26: 299.1 | LE26: 272.2 | LF26: 245.2 | LG26: 375.3 | LH26: 363.8 | LI26: 334.8 | LJ26: 305.3 | LK26: 276.3 | LL26: 247.3 | LM26: 349.1 | LN26: 338.4 | LO26: 311.4 | LP26: 284 | LQ26: 257 | LR26: 230 | LS26: 498.7 | LT26: 487.2 | LU26: 458.2 | LV26: 428.7 | LW26: 399.7 | LX26: 370.7 | LY26: 463.8 | LZ26: 453.1 | MA26: 426.2 | MB26: 398.7 | MC26: 371.8 | MD26: 344.8 | ME26: 473.7 | MF26: 462.2 | MG26: 433.2 | MH26: 403.7 | MI26: 374.7 | MJ26: 345.7 | MK26: 440.6 | ML26: 429.9 | MM26: 402.9 | MN26: 375.5 | MO26: 348.5 | MP26: 321.6 | MQ26: 391.2 | MR26: 379.7 | MS26: 350.7 | MT26: 321.2 | MU26: 292.2 | MV26: 263.2 | MW26: 363.9 | MX26: 353.2 | MY26: 326.2 | MZ26: 298.8 | NA26: 271.8 | NB26: 244.8 | NC26: 429.5 | ND26: 418 | NE26: 389 | NF26: 359.5 | NG26: 330.5 | NH26: 301.5 | NI26: 399.5 | NJ26: 388.8 | NK26: 361.8 | NL26: 334.4 | NM26: 307.4 | NN26: 280.4 | NO26: 539.8 | NP26: 528.3 | NQ26: 499.3 | NR26: 469.8 | NS26: 440.8 | NT26: 411.8 | NU26: 502.1 | NV26: 491.4 | NW26: 464.4 | NX26: 437 | NY26: 410 | NZ26: 383 | OA26: 518.2 | OB26: 506.7 | OC26: 477.7 | OD26: 448.2 | OE26: 419.2 | OF26: 390.2 | OG26: 482 | OH26: 471.3 | OI26: 444.3 | OJ26: 416.9 | OK26: 389.9 | OL26: 362.9 | OM26: 351.2 | ON26: 339.7 | OO26: 310.7 | OP26: 281.2 | OQ26: 252.2 | OR26: 223.2 | OS26: 326.7 | OT26: 316 | OU26: 289 | OV26: 261.6 | OW26: 234.6 | OX26: 209 | OY26: 510.2 | OZ26: 498.7 | PA26: 469.7 | PB26: 440.2 | PC26: 411.2 | PD26: 382.2 | PE26: 474.5 | PF26: 463.8 | PG26: 436.9 | PH26: 409.4 | PI26: 382.5 | PJ26: 355.5 | PK26: 479.6 | PL26: 468.1 | PM26: 439.1 | PN26: 409.6 | PO26: 380.6 | PP26: 351.6 | PQ26: 446.1 | PR26: 435.4 | PS26: 408.4 | PT26: 381 | PU26: 354 | PV26: 327 | PW26: 409.7 | PX26: 398.2 | PY26: 369.2 | PZ26: 339.7 | QA26: 310.7 | QB26: 281.7 | QC26: 381.1 | QD26: 370.4 | QE26: 343.4 | QF26: 316 | QG26: 289 | QH26: 262 | QI26: 409.7 | QJ26: 398.2 | QK26: 369.2 | QL26: 339.7 | QM26: 310.7 | QN26: 281.7 | QO26: 381.1 | QP26: 370.4 | QQ26: 343.4 | QR26: 316 | QS26: 289 | QT26: 262 | RG26: 426.3 | RH26: 414.8 | RI26: 385.8 | RJ26: 356.3 | RK26: 327.3 | RL26: 298.3 | RM26: 396.5 | RN26: 385.8 | RO26: 358.8 | RP26: 331.4 | RQ26: 304.4 | RR26: 277.5 | RS26: 535.8 | RT26: 524.3 | RU26: 495.3 | RV26: 465.8 | RW26: 436.8 | RX26: 407.8 | RY26: 498.3 | RZ26: 487.6 | SA26: 460.7 | SB26: 433.2 | SC26: 406.3 | SD26: 379.3 | SE26: 519.7 | SF26: 508.2 | SG26: 479.2 | SH26: 449.7 | SI26: 420.7 | SJ26: 391.7 | SK26: 483.4 | SL26: 472.7 | SM26: 445.7 | SN26: 418.3 | SO26: 391.3 | SP26: 364.3 | SQ26: 509 | SR26: 497.5 | SS26: 468.5 | ST26: 439 | SU26: 410 | SV26: 381 | SW26: 473.4 | SX26: 462.7 | SY26: 435.8 | SZ26: 408.3 | TA26: 381.3 | TB26: 354.4
C27: TAR-DIV | D27: PrimaFlex | F27: 27 | G27: 511.7 | H27: 500.2 | I27: 471.2 | J27: 441.7 | K27: 412.7 | L27: 383.7 | M27: 475.9 | N27: 465.2 | O27: 438.3 | P27: 410.8 | Q27: 383.9 | R27: 356.9 | S27: 491.2 | T27: 479.7 | U27: 450.7 | V27: 421.2 | W27: 392.2 | X27: 363.2 | Y27: 456.9 | Z27: 446.2 | AA27: 419.2 | AB27: 391.8 | AC27: 364.8 | AD27: 337.8 | AE27: 515.1 | AF27: 503.6 | AG27: 474.6 | AH27: 445.1 | AI27: 416.1 | AJ27: 387.1 | AK27: 479.1 | AL27: 468.4 | AM27: 441.4 | AN27: 414 | AO27: 387 | AP27: 360.1 | AQ27: 436.6 | AR27: 425.1 | AS27: 396.1 | AT27: 366.6 | AU27: 337.6 | AV27: 308.6 | AW27: 406.1 | AX27: 395.4 | AY27: 368.4 | AZ27: 341 | BA27: 314 | BB27: 287 | BC27: 341.7 | BD27: 330.2 | BE27: 301.2 | BF27: 271.7 | BG27: 242.7 | BH27: 213.7 | BI27: 317.8 | BJ27: 307.1 | BK27: 280.2 | BL27: 252.7 | BM27: 225.8 | BN27: 198.8 | BO27: 402.4 | BP27: 390.9 | BQ27: 361.9 | BR27: 332.4 | BS27: 303.4 | BT27: 274.4 | BU27: 374.3 | BV27: 363.6 | BW27: 336.6 | BX27: 309.2 | BY27: 282.2 | BZ27: 255.2 | CA27: 526.2 | CB27: 514.7 | CC27: 485.7 | CD27: 456.2 | CE27: 427.2 | CF27: 398.2 | CG27: 489.4 | CH27: 478.7 | CI27: 451.8 | CJ27: 424.3 | CK27: 397.3 | CL27: 370.4 | CM27: 484.1 | CN27: 472.6 | CO27: 443.6 | CP27: 414.1 | CQ27: 385.1 | CR27: 356.1 | CS27: 450.3 | CT27: 439.6 | CU27: 412.6 | CV27: 385.2 | CW27: 358.2 | CX27: 331.2 | CY27: 468.3 | CZ27: 456.8 | DA27: 427.8 | DB27: 398.3 | DC27: 369.3 | DD27: 340.3 | DE27: 435.6 | DF27: 424.9 | DG27: 397.9 | DH27: 370.5 | DI27: 343.5 | DJ27: 316.5 | DK27: 479.7 | DL27: 468.2 | DM27: 439.2 | DN27: 409.7 | DO27: 380.7 | DP27: 351.7 | DQ27: 446.2 | DR27: 435.5 | DS27: 408.5 | DT27: 381.1 | DU27: 354.1 | DV27: 327.1 | DW27: 460.5 | DX27: 449 | DY27: 420 | DZ27: 390.5 | EA27: 361.5 | EB27: 332.5 | EC27: 428.3 | ED27: 417.6 | EE27: 390.6 | EF27: 363.2 | EG27: 336.2 | EH27: 309.3 | EI27: 542.4 | EJ27: 530.9 | EK27: 501.9 | EL27: 472.4 | EM27: 443.4 | EN27: 414.4 | EO27: 504.5 | EP27: 493.8 | EQ27: 466.8 | ER27: 439.4 | ES27: 412.4 | ET27: 385.4 | EU27: 577.1 | EV27: 565.6 | EW27: 536.6 | EX27: 507.1 | EY27: 478.1 | EZ27: 449.1 | FA27: 536.8 | FB27: 526.1 | FC27: 499.1 | FD27: 471.7 | FE27: 444.7 | FF27: 417.7 | FG27: 445.1 | FH27: 433.6 | FI27: 404.6 | FJ27: 375.1 | FK27: 346.1 | FL27: 317.1 | FM27: 414 | FN27: 403.3 | FO27: 376.3 | FP27: 348.9 | FQ27: 321.9 | FR27: 295 | FS27: 395.3 | FT27: 383.8 | FU27: 354.8 | FV27: 325.3 | FW27: 296.3 | FX27: 267.3 | FY27: 367.7 | FZ27: 357 | GA27: 330 | GB27: 302.6 | GC27: 275.6 | GD27: 248.6 | GE27: 385.4 | GF27: 373.9 | GG27: 344.9 | GH27: 315.4 | GI27: 286.4 | GJ27: 257.4 | GK27: 358.5 | GL27: 347.8 | GM27: 320.8 | GN27: 293.4 | GO27: 266.4 | GP27: 239.4 | GQ27: 375.5 | GR27: 364 | GS27: 335 | GT27: 305.5 | GU27: 276.5 | GV27: 247.5 | GW27: 349.3 | GX27: 338.6 | GY27: 311.6 | GZ27: 284.2 | HA27: 257.2 | HB27: 230.2 | HC27: 508.3 | HD27: 496.8 | HE27: 467.8 | HF27: 438.3 | HG27: 409.3 | HH27: 380.3 | HI27: 472.8 | HJ27: 462.1 | HK27: 435.1 | HL27: 407.7 | HM27: 380.7 | HN27: 353.7 | HO27: 454 | HP27: 442.5 | HQ27: 413.5 | HR27: 384 | HS27: 355 | HT27: 326 | HU27: 422.3 | HV27: 411.6 | HW27: 384.6 | HX27: 357.2 | HY27: 330.2 | HZ27: 303.2 | IA27: 431.3 | IB27: 419.8 | IC27: 390.8 | ID27: 361.3 | IE27: 332.3 | IF27: 303.3 | IG27: 401.2 | IH27: 390.5 | II27: 363.5 | IJ27: 336.1 | IK27: 309.1 | IL27: 282.1 | IM27: 426.8 | IN27: 415.3 | IO27: 386.3 | IP27: 356.8 | IQ27: 327.8 | IR27: 298.8 | IS27: 397 | IT27: 386.3 | IU27: 359.3 | IV27: 331.9 | IW27: 304.9 | IX27: 277.9 | IY27: 550.4 | IZ27: 538.9 | JA27: 509.9 | JB27: 480.4 | JC27: 451.4 | JD27: 422.4 | JE27: 511.9 | JF27: 501.2 | JG27: 474.3 | JH27: 446.8 | JI27: 419.9 | JJ27: 392.9 | JK27: 390.9 | JL27: 379.4 | JM27: 350.4 | JN27: 320.9 | JO27: 291.9 | JP27: 262.9 | JQ27: 363.6 | JR27: 352.9 | JS27: 325.9 | JT27: 298.5 | JU27: 271.5 | JV27: 244.5 | JW27: 375.5 | JX27: 364 | JY27: 335 | JZ27: 305.5 | KA27: 276.5 | KB27: 247.5 | KC27: 349.3 | KD27: 338.6 | KE27: 311.6 | KF27: 284.2 | KG27: 257.2 | KH27: 230.2 | KI27: 420.1 | KJ27: 408.6 | KK27: 379.6 | KL27: 350.1 | KM27: 321.1 | KN27: 292.1 | KO27: 390.7 | KP27: 380 | KQ27: 353.1 | KR27: 325.6 | KS27: 298.7 | KT27: 271.7 | KU27: 403.3 | KV27: 391.8 | KW27: 362.8 | KX27: 333.3 | KY27: 304.3 | KZ27: 275.3 | LA27: 375.1 | LB27: 364.4 | LC27: 337.5 | LD27: 310 | LE27: 283 | LF27: 256.1 | LG27: 386.5 | LH27: 375 | LI27: 346 | LJ27: 316.5 | LK27: 287.5 | LL27: 258.5 | LM27: 359.5 | LN27: 348.8 | LO27: 321.8 | LP27: 294.4 | LQ27: 267.4 | LR27: 240.5 | LS27: 513.5 | LT27: 502 | LU27: 473 | LV27: 443.5 | LW27: 414.5 | LX27: 385.5 | LY27: 477.6 | LZ27: 466.9 | MA27: 439.9 | MB27: 412.5 | MC27: 385.5 | MD27: 358.6 | ME27: 487.8 | MF27: 476.3 | MG27: 447.3 | MH27: 417.8 | MI27: 388.8 | MJ27: 359.8 | MK27: 453.7 | ML27: 443 | MM27: 416 | MN27: 388.6 | MO27: 361.6 | MP27: 334.7 | MQ27: 402.8 | MR27: 391.3 | MS27: 362.3 | MT27: 332.8 | MU27: 303.8 | MV27: 274.8 | MW27: 374.7 | MX27: 364 | MY27: 337 | MZ27: 309.6 | NA27: 282.6 | NB27: 255.6 | NC27: 442.3 | ND27: 430.8 | NE27: 401.8 | NF27: 372.3 | NG27: 343.3 | NH27: 314.3 | NI27: 411.4 | NJ27: 400.7 | NK27: 373.7 | NL27: 346.3 | NM27: 319.3 | NN27: 292.3 | NO27: 530.6 | NP27: 519.1 | NQ27: 490.1 | NR27: 460.6 | NS27: 431.6 | NT27: 402.6 | NU27: 493.5 | NV27: 482.8 | NW27: 455.8 | NX27: 428.4 | NY27: 401.4 | NZ27: 374.5 | OA27: 509.3 | OB27: 497.8 | OC27: 468.8 | OD27: 439.3 | OE27: 410.3 | OF27: 381.3 | OG27: 473.7 | OH27: 463 | OI27: 436 | OJ27: 408.6 | OK27: 381.6 | OL27: 354.7 | OM27: 361.6 | ON27: 350.1 | OO27: 321.1 | OP27: 291.6 | OQ27: 262.6 | OR27: 233.6 | OS27: 336.3 | OT27: 325.6 | OU27: 298.7 | OV27: 271.2 | OW27: 244.3 | OX27: 217.3 | OY27: 525.4 | OZ27: 513.9 | PA27: 484.9 | PB27: 455.4 | PC27: 426.4 | PD27: 397.4 | PE27: 488.7 | PF27: 478 | PG27: 451 | PH27: 423.6 | PI27: 396.6 | PJ27: 369.6 | PK27: 493.8 | PL27: 482.3 | PM27: 453.3 | PN27: 423.8 | PO27: 394.8 | PP27: 365.8 | PQ27: 459.3 | PR27: 448.6 | PS27: 421.6 | PT27: 394.2 | PU27: 367.2 | PV27: 340.2 | PW27: 421.9 | PX27: 410.4 | PY27: 381.4 | PZ27: 351.9 | QA27: 322.9 | QB27: 293.9 | QC27: 392.4 | QD27: 381.7 | QE27: 354.8 | QF27: 327.3 | QG27: 300.3 | QH27: 273.4 | QI27: 421.9 | QJ27: 410.4 | QK27: 381.4 | QL27: 351.9 | QM27: 322.9 | QN27: 293.9 | QO27: 392.4 | QP27: 381.7 | QQ27: 354.8 | QR27: 327.3 | QS27: 300.3 | QT27: 273.4 | RG27: 439 | RH27: 427.5 | RI27: 398.5 | RJ27: 369 | RK27: 340 | RL27: 311 | RM27: 408.3 | RN27: 397.6 | RO27: 370.7 | RP27: 343.2 | RQ27: 316.2 | RR27: 289.3 | RS27: 551.7 | RT27: 540.2 | RU27: 511.2 | RV27: 481.7 | RW27: 452.7 | RX27: 423.7 | RY27: 513.1 | RZ27: 502.4 | SA27: 475.5 | SB27: 448 | SC27: 421.1 | SD27: 394.1 | SE27: 535.2 | SF27: 523.7 | SG27: 494.7 | SH27: 465.2 | SI27: 436.2 | SJ27: 407.2 | SK27: 497.8 | SL27: 487.1 | SM27: 460.1 | SN27: 432.7 | SO27: 405.7 | SP27: 378.7 | SQ27: 524.2 | SR27: 512.7 | SS27: 483.7 | ST27: 454.2 | SU27: 425.2 | SV27: 396.2 | SW27: 487.6 | SX27: 476.9 | SY27: 449.9 | SZ27: 422.5 | TA27: 395.5 | TB27: 368.5
A28: 134 | B28: Einsiedler Krankenkasse | C28: TAR-BASE | D28: Assurance de base | F28: 28 | FG28: 452.2 | FH28: 440.6 | FI28: 411.4 | FJ28: 382.2 | FK28: 353.1 | FL28: 323.9 | FM28: 425 | FN28: 414.1 | FO28: 386.7 | FP28: 359.2 | FQ28: 331.9 | FR28: 304.4 | HO28: 493.4 | HP28: 481.8 | HQ28: 452.6 | HR28: 423.5 | HS28: 394.3 | HT28: 365.2 | HU28: 463.7 | HV28: 452.8 | HW28: 425.4 | HX28: 398 | HY28: 370.6 | HZ28: 343.2 | IA28: 456.4 | IB28: 444.8 | IC28: 415.6 | ID28: 386.4 | IE28: 357.3 | IF28: 328.1 | IG28: 429 | IH28: 418.1 | II28: 390.6 | IJ28: 363.2 | IK28: 335.8 | IL28: 308.4 | IM28: 456.4 | IN28: 444.8 | IO28: 415.6 | IP28: 386.4 | IQ28: 357.3 | IR28: 328.1 | IS28: 429 | IT28: 418.1 | IU28: 390.6 | IV28: 363.2 | IW28: 335.8 | IX28: 308.4 | JK28: 422.3 | JL28: 411.2 | JM28: 383.1 | JN28: 355 | JO28: 326.9 | JP28: 298.9 | JQ28: 396.9 | JR28: 386.5 | JS28: 360.1 | JT28: 333.7 | JU28: 307.2 | JV28: 280.9 | JW28: 429.5 | JX28: 418.2 | JY28: 389.6 | JZ28: 361 | KA28: 332.6 | KB28: 304 | KC28: 403.7 | KD28: 393.1 | KE28: 366.2 | KF28: 339.3 | KG28: 312.6 | KH28: 285.7 | KI28: 491.3 | KJ28: 479.7 | KK28: 450.5 | KL28: 421.3 | KM28: 392.2 | KN28: 363 | KO28: 461.8 | KP28: 450.9 | KQ28: 423.4 | KR28: 396 | KS28: 368.6 | KT28: 341.2 | KU28: 452.3 | KV28: 440.7 | KW28: 411.5 | KX28: 382.3 | KY28: 353.2 | KZ28: 324 | LA28: 425.1 | LB28: 414.2 | LC28: 386.8 | LD28: 359.3 | LE28: 332 | LF28: 304.5 | LG28: 432.3 | LH28: 421.2 | LI28: 392.4 | LJ28: 363.6 | LK28: 334.9 | LL28: 306.2 | LM28: 406.3 | LN28: 395.9 | LO28: 368.8 | LP28: 341.7 | LQ28: 314.8 | LR28: 287.8 | MQ28: 374.3 | MR28: 362.7 | MS28: 333.5 | MT28: 304.3 | MU28: 275.2 | MV28: 246 | MW28: 351.8 | MX28: 340.9 | MY28: 313.4 | MZ28: 286 | NA28: 258.6 | NB28: 231.2 | OM28: 432.6 | ON28: 421.2 | OO28: 392.4 | OP28: 363.6 | OQ28: 335 | OR28: 306.2 | OS28: 406.6 | OT28: 395.9 | OU28: 368.8 | OV28: 341.7 | OW28: 314.9 | OX28: 287.8 | RG28: 454.2 | RH28: 442.6 | RI28: 413.5 | RJ28: 384.2 | RK28: 355.2 | RL28: 325.9 | RM28: 426.9 | RN28: 416 | RO28: 388.6 | RP28: 361.1 | RQ28: 333.8 | RR28: 306.3 | RS28: 607.7 | RT28: 596.1 | RU28: 566.9 | RV28: 537.7 | RW28: 508.6 | RX28: 479.4 | RY28: 571.2 | RZ28: 560.3 | SA28: 532.8 | SB28: 505.4 | SC28: 478 | SD28: 450.6 | SE28: 533.7 | SF28: 522.1 | SG28: 492.9 | SH28: 463.7 | SI28: 434.6 | SJ28: 405.4 | SK28: 501.6 | SL28: 490.7 | SM28: 463.3 | SN28: 435.8 | SO28: 408.5 | SP28: 381 | SQ28: 496.7 | SR28: 485.2 | SS28: 455.9 | ST28: 426.8 | SU28: 397.6 | SV28: 368.5 | SW28: 466.8 | SX28: 456 | SY28: 428.5 | SZ28: 401.1 | TA28: 373.7 | TB28: 346.3
A29: 182 | B29: PROVITA Gesundheitsversicherung AG | C29: TAR-BASE | D29: Assurance de base | F29: 29 | G29: 649.9 | H29: 638.3 | I29: 609.1 | J29: 579.9 | K29: 550.8 | L29: 521.6 | M29: 604.5 | N29: 593.7 | O29: 566.5 | P29: 539.4 | Q29: 512.3 | R29: 485.1 | S29: 585 | T29: 573.4 | U29: 544.2 | V29: 515 | W29: 485.9 | X29: 456.7 | Y29: 544.1 | Z29: 533.3 | AA29: 506.2 | AB29: 479 | AC29: 451.9 | AD29: 424.8 | AE29: 554.9 | AF29: 543.3 | AG29: 514.1 | AH29: 484.9 | AI29: 455.8 | AJ29: 426.6 | AK29: 516.1 | AL29: 505.3 | AM29: 478.2 | AN29: 451 | AO29: 423.9 | AP29: 396.8 | AQ29: 513.9 | AR29: 502.3 | AS29: 473.1 | AT29: 443.9 | AU29: 414.8 | AV29: 385.6 | AW29: 478 | AX29: 467.2 | AY29: 440 | AZ29: 412.9 | BA29: 385.8 | BB29: 358.7 | BC29: 444.9 | BD29: 433.3 | BE29: 404.1 | BF29: 374.9 | BG29: 345.8 | BH29: 316.6 | BI29: 413.8 | BJ29: 403 | BK29: 375.9 | BL29: 348.7 | BM29: 321.6 | BN29: 294.5 | BO29: 454.9 | BP29: 443.3 | BQ29: 414.1 | BR29: 384.9 | BS29: 355.8 | BT29: 326.6 | BU29: 423.1 | BV29: 412.3 | BW29: 385.2 | BX29: 358 | BY29: 330.9 | BZ29: 303.8 | CA29: 623.9 | CB29: 612.3 | CC29: 583.1 | CD29: 553.9 | CE29: 524.8 | CF29: 495.6 | CG29: 580.3 | CH29: 569.5 | CI29: 542.3 | CJ29: 515.2 | CK29: 488.1 | CL29: 461 | CM29: 543.9 | CN29: 532.3 | CO29: 503.1 | CP29: 473.9 | CQ29: 444.8 | CR29: 415.6 | CS29: 505.9 | CT29: 495.1 | CU29: 467.9 | CV29: 440.8 | CW29: 413.7 | CX29: 386.6 | CY29: 507.9 | CZ29: 496.3 | DA29: 467.1 | DB29: 437.9 | DC29: 408.8 | DD29: 379.6 | DE29: 472.4 | DF29: 461.6 | DG29: 434.5 | DH29: 407.3 | DI29: 380.2 | DJ29: 353.1 | DK29: 599.9 | DL29: 588.3 | DM29: 559.1 | DN29: 529.9 | DO29: 500.8 | DP29: 471.6 | DQ29: 558 | DR29: 547.2 | DS29: 520 | DT29: 492.9 | DU29: 465.8 | DV29: 438.6 | DW29: 552.9 | DX29: 541.3 | DY29: 512.1 | DZ29: 482.9 | EA29: 453.8 | EB29: 424.6 | EC29: 514.2 | ED29: 503.5 | EE29: 476.3 | EF29: 449.1 | EG29: 422.1 | EH29: 394.9 | EI29: 729.9 | EJ29: 718.3 | EK29: 689.1 | EL29: 659.9 | EM29: 630.8 | EN29: 601.6 | EO29: 678.9 | EP29: 668.1 | EQ29: 640.9 | ER29: 613.8 | ES29: 586.7 | ET29: 559.5 | EU29: 743.9 | EV29: 732.3 | EW29: 703.1 | EX29: 673.9 | EY29: 644.8 | EZ29: 615.6 | FA29: 691.9 | FB29: 681.1 | FC29: 653.9 | FD29: 626.8 | FE29: 599.7 | FF29: 572.6 | FG29: 477.9 | FH29: 466.3 | FI29: 437.1 | FJ29: 407.9 | FK29: 378.8 | FL29: 349.6 | FM29: 444.5 | FN29: 433.7 | FO29: 406.6 | FP29: 379.4 | FQ29: 352.3 | FR29: 325.2 | FS29: 508.5 | FT29: 496.9 | FU29: 467.7 | FV29: 438.5 | FW29: 409.4 | FX29: 380.2 | FY29: 473 | FZ29: 462.2 | GA29: 435 | GB29: 407.9 | GC29: 380.8 | GD29: 353.6 | GE29: 464.5 | GF29: 452.9 | GG29: 423.7 | GH29: 394.5 | GI29: 365.4 | GJ29: 336.2 | GK29: 432 | GL29: 421.2 | GM29: 394.1 | GN29: 366.9 | GO29: 339.9 | GP29: 312.7 | GQ29: 444.5 | GR29: 432.9 | GS29: 403.7 | GT29: 374.5 | GU29: 345.4 | GV29: 316.2 | GW29: 413.4 | GX29: 402.6 | GY29: 375.5 | GZ29: 348.3 | HA29: 321.3 | HB29: 294.1 | HC29: 623.9 | HD29: 612.3 | HE29: 583.1 | HF29: 553.9 | HG29: 524.8 | HH29: 495.6 | HI29: 580.3 | HJ29: 569.5 | HK29: 542.3 | HL29: 515.2 | HM29: 488.1 | HN29: 461 | HO29: 547.9 | HP29: 536.3 | HQ29: 507.1 | HR29: 477.9 | HS29: 448.8 | HT29: 419.6 | HU29: 509.6 | HV29: 498.8 | HW29: 471.7 | HX29: 444.5 | HY29: 417.4 | HZ29: 390.3 | IA29: 515.9 | IB29: 504.3 | IC29: 475.1 | ID29: 445.9 | IE29: 416.8 | IF29: 387.6 | IG29: 479.8 | IH29: 469 | II29: 441.9 | IJ29: 414.7 | IK29: 387.7 | IL29: 360.5 | IM29: 496.5 | IN29: 484.9 | IO29: 455.7 | IP29: 426.5 | IQ29: 397.4 | IR29: 368.2 | IS29: 461.8 | IT29: 451 | IU29: 423.9 | IV29: 396.7 | IW29: 369.6 | IX29: 342.5 | IY29: 779.9 | IZ29: 768.3 | JA29: 739.1 | JB29: 709.9 | JC29: 680.8 | JD29: 651.6 | JE29: 725.4 | JF29: 714.6 | JG29: 687.4 | JH29: 660.3 | JI29: 633.2 | JJ29: 606 | JK29: 452.9 | JL29: 441.3 | JM29: 412.1 | JN29: 382.9 | JO29: 353.8 | JP29: 324.6 | JQ29: 421.2 | JR29: 410.5 | JS29: 383.3 | JT29: 356.1 | JU29: 329.1 | JV29: 301.9 | JW29: 482.9 | JX29: 471.3 | JY29: 442.1 | JZ29: 412.9 | KA29: 383.8 | KB29: 354.6 | KC29: 449.1 | KD29: 438.4 | KE29: 411.2 | KF29: 384 | KG29: 357 | KH29: 329.8 | KI29: 535.9 | KJ29: 524.3 | KK29: 495.1 | KL29: 465.9 | KM29: 436.8 | KN29: 407.6 | KO29: 498.4 | KP29: 487.6 | KQ29: 460.5 | KR29: 433.3 | KS29: 406.3 | KT29: 379.1 | KU29: 482.9 | KV29: 471.3 | KW29: 442.1 | KX29: 412.9 | KY29: 383.8 | KZ29: 354.6 | LA29: 449.1 | LB29: 438.4 | LC29: 411.2 | LD29: 384 | LE29: 357 | LF29: 329.8 | LG29: 468.9 | LH29: 457.3 | LI29: 428.1 | LJ29: 398.9 | LK29: 369.8 | LL29: 340.6 | LM29: 436.1 | LN29: 425.3 | LO29: 398.2 | LP29: 371 | LQ29: 344 | LR29: 316.8 | LS29: 542.9 | LT29: 531.3 | LU29: 502.1 | LV29: 472.9 | LW29: 443.8 | LX29: 414.6 | LY29: 504.9 | LZ29: 494.2 | MA29: 467 | MB29: 439.8 | MC29: 412.8 | MD29: 385.6 | ME29: 505.9 | MF29: 494.3 | MG29: 465.1 | MH29: 435.9 | MI29: 406.8 | MJ29: 377.6 | MK29: 470.5 | ML29: 459.7 | MM29: 432.6 | MN29: 405.4 | MO29: 378.4 | MP29: 351.2 | MQ29: 519.5 | MR29: 507.9 | MS29: 478.7 | MT29: 449.5 | MU29: 420.4 | MV29: 391.2 | MW29: 483.2 | MX29: 472.4 | MY29: 445.2 | MZ29: 418.1 | NA29: 391 | NB29: 363.9 | NC29: 503.5 | ND29: 491.9 | NE29: 462.7 | NF29: 433.5 | NG29: 404.4 | NH29: 375.2 | NI29: 468.3 | NJ29: 457.5 | NK29: 430.4 | NL29: 403.2 | NM29: 376.1 | NN29: 349 | NO29: 691.9 | NP29: 680.3 | NQ29: 651.1 | NR29: 621.9 | NS29: 592.8 | NT29: 563.6 | NU29: 643.5 | NV29: 632.7 | NW29: 605.6 | NX29: 578.4 | NY29: 551.4 | NZ29: 524.2 | OA29: 665.9 | OB29: 654.3 | OC29: 625.1 | OD29: 595.9 | OE29: 566.8 | OF29: 537.6 | OG29: 619.3 | OH29: 608.5 | OI29: 581.4 | OJ29: 554.2 | OK29: 527.2 | OL29: 500 | OM29: 504.9 | ON29: 493.3 | OO29: 464.1 | OP29: 434.9 | OQ29: 405.8 | OR29: 376.6 | OS29: 469.6 | OT29: 458.8 | OU29: 431.7 | OV29: 404.5 | OW29: 377.4 | OX29: 350.3 | OY29: 599.9 | OZ29: 588.3 | PA29: 559.1 | PB29: 529.9 | PC29: 500.8 | PD29: 471.6 | PE29: 558 | PF29: 547.2 | PG29: 520 | PH29: 492.9 | PI29: 465.8 | PJ29: 438.6 | PK29: 573.5 | PL29: 561.9 | PM29: 532.7 | PN29: 503.5 | PO29: 474.4 | PP29: 445.2 | PQ29: 533.4 | PR29: 522.6 | PS29: 495.5 | PT29: 468.3 | PU29: 441.2 | PV29: 414.1 | PW29: 478.5 | PX29: 466.9 | PY29: 437.7 | PZ29: 408.5 | QA29: 379.4 | QB29: 350.2 | QC29: 445.1 | QD29: 434.3 | QE29: 407.1 | QF29: 380 | QG29: 352.9 | QH29: 325.7 | QI29: 438.9 | QJ29: 427.3 | QK29: 398.1 | QL29: 368.9 | QM29: 339.8 | QN29: 310.6 | QO29: 408.2 | QP29: 397.4 | QQ29: 370.3 | QR29: 343.1 | QS29: 316.1 | QT29: 288.9 | RG29: 477.9 | RH29: 466.3 | RI29: 437.1 | RJ29: 407.9 | RK29: 378.8 | RL29: 349.6 | RM29: 444.5 | RN29: 433.7 | RO29: 406.6 | RP29: 379.4 | RQ29: 352.3 | RR29: 325.2 | RS29: 592.5 | RT29: 580.9 | RU29: 551.7 | RV29: 522.5 | RW29: 493.4 | RX29: 464.2 | RY29: 551.1 | RZ29: 540.3 | SA29: 513.1 | SB29: 486 | SC29: 458.9 | SD29: 431.8 | SE29: 511.5 | SF29: 499.9 | SG29: 470.7 | SH29: 441.5 | SI29: 412.4 | SJ29: 383.2 | SK29: 475.7 | SL29: 465 | SM29: 437.8 | SN29: 410.6 | SO29: 383.6 | SP29: 356.4 | SQ29: 474.5 | SR29: 462.9 | SS29: 433.7 | ST29: 404.5 | SU29: 375.4 | SV29: 346.2 | SW29: 441.3 | SX29: 430.5 | SY29: 403.4 | SZ29: 376.2 | TA29: 349.2 | TB29: 322
C30: TAR-HAM | D30: MEDICASA Netz PROVITA | F30: 30 | AE30: 488.4 | AF30: 476.8 | AG30: 447.6 | AH30: 418.4 | AI30: 389.3 | AJ30: 360.1 | AK30: 454.3 | AL30: 443.5 | AM30: 416.3 | AN30: 389.2 | AO30: 362.1 | AP30: 334.9 | AQ30: 457.4 | AR30: 445.8 | AS30: 416.6 | AT30: 387.4 | AU30: 358.3 | AV30: 329.1 | AW30: 425.4 | AX30: 414.6 | AY30: 387.5 | AZ30: 360.3 | BA30: 333.3 | BB30: 306.1 | BC30: 387.1 | BD30: 375.5 | BE30: 346.3 | BF30: 317.1 | BG30: 288 | BH30: 258.8 | BI30: 360.1 | BJ30: 349.3 | BK30: 322.1 | BL30: 295 | BM30: 267.9 | BN30: 240.7 | BO30: 395.8 | BP30: 384.2 | BQ30: 355 | BR30: 325.8 | BS30: 296.7 | BT30: 267.5 | BU30: 368.1 | BV30: 357.4 | BW30: 330.2 | BX30: 303 | BY30: 276 | BZ30: 248.8 | CA30: 549.1 | CB30: 537.5 | CC30: 508.3 | CD30: 479.1 | CE30: 450 | CF30: 420.8 | CG30: 510.7 | CH30: 499.9 | CI30: 472.8 | CJ30: 445.6 | CK30: 418.5 | CL30: 391.4 | CM30: 478.7 | CN30: 467.1 | CO30: 437.9 | CP30: 408.7 | CQ30: 379.6 | CR30: 350.4 | CS30: 445.2 | CT30: 434.5 | CU30: 407.3 | CV30: 380.1 | CW30: 353.1 | CX30: 325.9 | CY30: 447 | CZ30: 435.4 | DA30: 406.2 | DB30: 377 | DC30: 347.9 | DD30: 318.7 | DE30: 415.8 | DF30: 405 | DG30: 377.8 | DH30: 350.7 | DI30: 323.6 | DJ30: 296.4 | DK30: 528 | DL30: 516.4 | DM30: 487.2 | DN30: 458 | DO30: 428.9 | DP30: 399.7 | DQ30: 491.1 | DR30: 480.3 | DS30: 453.1 | DT30: 426 | DU30: 398.9 | DV30: 371.8 | DW30: 486.6 | DX30: 475 | DY30: 445.8 | DZ30: 416.6 | EA30: 387.5 | EB30: 358.3 | EC30: 452.6 | ED30: 441.8 | EE30: 414.6 | EF30: 387.5 | EG30: 360.4 | EH30: 333.3 | EI30: 642.4 | EJ30: 630.8 | EK30: 601.6 | EL30: 572.4 | EM30: 543.3 | EN30: 514.1 | EO30: 597.5 | EP30: 586.7 | EQ30: 559.5 | ER30: 532.4 | ES30: 505.3 | ET30: 478.2 | EU30: 654.7 | EV30: 643.1 | EW30: 613.9 | EX30: 584.7 | EY30: 555.6 | EZ30: 526.4 | FA30: 608.9 | FB30: 598.1 | FC30: 571 | FD30: 543.8 | FE30: 516.8 | FF30: 489.6 | FG30: 420.6 | FH30: 409 | FI30: 379.8 | FJ30: 350.6 | FK30: 321.5 | FL30: 292.3 | FM30: 391.2 | FN30: 380.4 | FO30: 353.3 | FP30: 326.1 | FQ30: 299 | FR30: 271.9 | FS30: 447.5 | FT30: 435.9 | FU30: 406.7 | FV30: 377.5 | FW30: 348.4 | FX30: 319.2 | FY30: 416.2 | FZ30: 405.4 | GA30: 378.3 | GB30: 351.1 | GC30: 324.1 | GD30: 296.9 | GE30: 408.8 | GF30: 397.2 | GG30: 368 | GH30: 338.8 | GI30: 309.7 | GJ30: 280.5 | GK30: 380.2 | GL30: 369.4 | GM30: 342.3 | GN30: 315.1 | GO30: 288.1 | GP30: 260.9 | GQ30: 391.2 | GR30: 379.6 | GS30: 350.4 | GT30: 321.2 | GU30: 292.1 | GV30: 262.9 | GW30: 363.9 | GX30: 353.1 | GY30: 325.9 | GZ30: 298.8 | HA30: 271.7 | HB30: 244.5 | HC30: 549.1 | HD30: 537.5 | HE30: 508.3 | HF30: 479.1 | HG30: 450 | HH30: 420.8 | HI30: 510.7 | HJ30: 499.9 | HK30: 472.8 | HL30: 445.6 | HM30: 418.5 | HN30: 391.4 | HO30: 476.7 | HP30: 465.1 | HQ30: 435.9 | HR30: 406.7 | HS30: 377.6 | HT30: 348.4 | HU30: 443.4 | HV30: 432.6 | HW30: 405.4 | HX30: 378.3 | HY30: 351.2 | HZ30: 324.1 | IA30: 448.9 | IB30: 437.3 | IC30: 408.1 | ID30: 378.9 | IE30: 349.8 | IF30: 320.6 | IG30: 417.5 | IH30: 406.7 | II30: 379.6 | IJ30: 352.4 | IK30: 325.4 | IL30: 298.2 | IM30: 432 | IN30: 420.4 | IO30: 391.2 | IP30: 362 | IQ30: 332.9 | IR30: 303.7 | IS30: 401.8 | IT30: 391 | IU30: 363.9 | IV30: 336.7 | IW30: 309.6 | IX30: 282.5 | JK30: 398.6 | JL30: 387 | JM30: 357.8 | JN30: 328.6 | JO30: 299.5 | JP30: 270.3 | JQ30: 370.7 | JR30: 360 | JS30: 332.8 | JT30: 305.6 | JU30: 278.6 | JV30: 251.4 | JW30: 425 | JX30: 413.4 | JY30: 384.2 | JZ30: 355 | KA30: 325.9 | KB30: 296.7 | KC30: 395.3 | KD30: 384.5 | KE30: 357.4 | KF30: 330.2 | KG30: 303.1 | KH30: 276 | KI30: 471.6 | KJ30: 460 | KK30: 430.8 | KL30: 401.6 | KM30: 372.5 | KN30: 343.3 | KO30: 438.6 | KP30: 427.8 | KQ30: 400.7 | KR30: 373.5 | KS30: 346.5 | KT30: 319.3 | KU30: 425 | KV30: 413.4 | KW30: 384.2 | KX30: 355 | KY30: 325.9 | KZ30: 296.7 | LA30: 395.3 | LB30: 384.5 | LC30: 357.4 | LD30: 330.2 | LE30: 303.1 | LF30: 276 | LG30: 412.7 | LH30: 401.1 | LI30: 371.9 | LJ30: 342.7 | LK30: 313.6 | LL30: 284.4 | LM30: 383.9 | LN30: 373.1 | LO30: 345.9 | LP30: 318.8 | LQ30: 291.7 | LR30: 264.5 | LS30: 477.8 | LT30: 466.2 | LU30: 437 | LV30: 407.8 | LW30: 378.7 | LX30: 349.5 | LY30: 444.4 | LZ30: 433.6 | MA30: 406.5 | MB30: 379.3 | MC30: 352.2 | MD30: 325.1 | ME30: 445.2 | MF30: 433.6 | MG30: 404.4 | MH30: 375.2 | MI30: 346.1 | MJ30: 316.9 | MK30: 414.1 | ML30: 403.3 | MM30: 376.1 | MN30: 349 | MO30: 321.9 | MP30: 294.8 | MQ30: 457.2 | MR30: 445.6 | MS30: 416.4 | MT30: 387.2 | MU30: 358.1 | MV30: 328.9 | MW30: 425.2 | MX30: 414.5 | MY30: 387.3 | MZ30: 360.1 | NA30: 333.1 | NB30: 305.9 | NC30: 443.1 | ND30: 431.5 | NE30: 402.3 | NF30: 373.1 | NG30: 344 | NH30: 314.8 | NI30: 412.1 | NJ30: 401.3 | NK30: 374.2 | NL30: 347 | NM30: 320 | NN30: 292.8 | NO30: 608.9 | NP30: 597.3 | NQ30: 568.1 | NR30: 538.9 | NS30: 509.8 | NT30: 480.6 | NU30: 566.3 | NV30: 555.5 | NW30: 528.4 | NX30: 501.2 | NY30: 474.2 | NZ30: 447 | OA30: 586 | OB30: 574.4 | OC30: 545.2 | OD30: 516 | OE30: 486.9 | OF30: 457.7 | OG30: 545 | OH30: 534.2 | OI30: 507.1 | OJ30: 479.9 | OK30: 452.9 | OL30: 425.7 | OM30: 449.4 | ON30: 437.8 | OO30: 408.6 | OP30: 379.4 | OQ30: 350.3 | OR30: 321.1 | OS30: 418 | OT30: 407.2 | OU30: 380 | OV30: 352.9 | OW30: 325.8 | OX30: 298.7 | OY30: 549 | OZ30: 537.4 | PA30: 508.2 | PB30: 479 | PC30: 449.9 | PD30: 420.7 | PE30: 510.6 | PF30: 499.8 | PG30: 472.7 | PH30: 445.5 | PI30: 418.5 | PJ30: 391.3 | PK30: 524.8 | PL30: 513.2 | PM30: 484 | PN30: 454.8 | PO30: 425.7 | PP30: 396.5 | PQ30: 488.1 | PR30: 477.3 | PS30: 450.2 | PT30: 423 | PU30: 396 | PV30: 368.8 | RG30: 430.2 | RH30: 418.6 | RI30: 389.4 | RJ30: 360.2 | RK30: 331.1 | RL30: 301.9 | RM30: 400.1 | RN30: 389.3 | RO30: 362.2 | RP30: 335 | RQ30: 308 | RR30: 280.8 | RS30: 521.4 | RT30: 509.8 | RU30: 480.6 | RV30: 451.4 | RW30: 422.3 | RX30: 393.1 | RY30: 485 | RZ30: 474.2 | SA30: 447 | SB30: 419.9 | SC30: 392.8 | SD30: 365.6 | SE30: 450.2 | SF30: 438.6 | SG30: 409.4 | SH30: 380.2 | SI30: 351.1 | SJ30: 321.9 | SK30: 418.7 | SL30: 407.9 | SM30: 380.8 | SN30: 353.6 | SO30: 326.6 | SP30: 299.4 | SQ30: 417.6 | SR30: 406 | SS30: 376.8 | ST30: 347.6 | SU30: 318.5 | SV30: 289.3 | SW30: 388.4 | SX30: 377.6 | SY30: 350.5 | SZ30: 323.3 | TA30: 296.3 | TB30: 269.1
D31: MEDICASA PROVITA | F31: 31 | G31: 598 | H31: 586.4 | I31: 557.2 | J31: 528 | K31: 498.9 | L31: 469.7 | M31: 556.2 | N31: 545.4 | O31: 518.2 | P31: 491.1 | Q31: 464 | R31: 436.9 | S31: 538.2 | T31: 526.6 | U31: 497.4 | V31: 468.2 | W31: 439.1 | X31: 409.9 | Y31: 500.6 | Z31: 489.8 | AA31: 462.6 | AB31: 435.5 | AC31: 408.4 | AD31: 381.3 | AE31: 510.6 | AF31: 499 | AG31: 469.8 | AH31: 440.6 | AI31: 411.5 | AJ31: 382.3 | AK31: 474.9 | AL31: 464.1 | AM31: 437 | AN31: 409.8 | AO31: 382.7 | AP31: 355.6 | AQ31: 472.8 | AR31: 461.2 | AS31: 432 | AT31: 402.8 | AU31: 373.7 | AV31: 344.5 | AW31: 439.8 | AX31: 429 | AY31: 401.8 | AZ31: 374.7 | BA31: 347.6 | BB31: 320.4 | BC31: 409.4 | BD31: 397.8 | BE31: 368.6 | BF31: 339.4 | BG31: 310.3 | BH31: 281.1 | BI31: 380.8 | BJ31: 370 | BK31: 342.8 | BL31: 315.7 | BM31: 288.6 | BN31: 261.5 | BO31: 418.6 | BP31: 407 | BQ31: 377.8 | BR31: 348.6 | BS31: 319.5 | BT31: 290.3 | BU31: 389.3 | BV31: 378.6 | BW31: 351.4 | BX31: 324.2 | BY31: 297.2 | BZ31: 270 | CA31: 561.6 | CB31: 550 | CC31: 520.8 | CD31: 491.6 | CE31: 462.5 | CF31: 433.3 | CG31: 522.3 | CH31: 511.5 | CI31: 484.4 | CJ31: 457.2 | CK31: 430.2 | CL31: 403 | CM31: 495 | CN31: 483.4 | CO31: 454.2 | CP31: 425 | CQ31: 395.9 | CR31: 366.7 | CS31: 460.4 | CT31: 449.6 | CU31: 422.5 | CV31: 395.3 | CW31: 368.2 | CX31: 341.1 | CY31: 472.4 | CZ31: 460.8 | DA31: 431.6 | DB31: 402.4 | DC31: 373.3 | DD31: 344.1 | DE31: 439.4 | DF31: 428.6 | DG31: 401.4 | DH31: 374.3 | DI31: 347.2 | DJ31: 320.1 | DK31: 546 | DL31: 534.4 | DM31: 505.2 | DN31: 476 | DO31: 446.9 | DP31: 417.7 | DQ31: 507.8 | DR31: 497 | DS31: 469.9 | DT31: 442.7 | DU31: 415.7 | DV31: 388.5 | DW31: 503.2 | DX31: 491.6 | DY31: 462.4 | DZ31: 433.2 | EA31: 404.1 | EB31: 374.9 | EC31: 468 | ED31: 457.2 | EE31: 430.1 | EF31: 402.9 | EG31: 375.9 | EH31: 348.7 | EI31: 649.7 | EJ31: 638.1 | EK31: 608.9 | EL31: 579.7 | EM31: 550.6 | EN31: 521.4 | EO31: 604.3 | EP31: 593.5 | EQ31: 566.3 | ER31: 539.2 | ES31: 512.1 | ET31: 485 | EU31: 684.4 | EV31: 672.8 | EW31: 643.6 | EX31: 614.4 | EY31: 585.3 | EZ31: 556.1 | FA31: 636.5 | FB31: 625.8 | FC31: 598.6 | FD31: 571.4 | FE31: 544.4 | FF31: 517.2 | FG31: 442.1 | FH31: 430.5 | FI31: 401.3 | FJ31: 372.1 | FK31: 343 | FL31: 313.8 | FM31: 411.2 | FN31: 400.4 | FO31: 373.3 | FP31: 346.1 | FQ31: 319 | FR31: 291.9 | FS31: 465.3 | FT31: 453.7 | FU31: 424.5 | FV31: 395.3 | FW31: 366.2 | FX31: 337 | FY31: 432.8 | FZ31: 422 | GA31: 394.8 | GB31: 367.7 | GC31: 340.6 | GD31: 313.5 | GE31: 429.7 | GF31: 418.1 | GG31: 388.9 | GH31: 359.7 | GI31: 330.6 | GJ31: 301.4 | GK31: 399.7 | GL31: 388.9 | GM31: 361.7 | GN31: 334.6 | GO31: 307.5 | GP31: 280.4 | GQ31: 420.1 | GR31: 408.5 | GS31: 379.3 | GT31: 350.1 | GU31: 321 | GV31: 291.8 | GW31: 390.7 | GX31: 380 | GY31: 352.8 | GZ31: 325.6 | HA31: 298.6 | HB31: 271.4 | HO31: 504.1 | HP31: 492.5 | HQ31: 463.3 | HR31: 434.1 | HS31: 405 | HT31: 375.8 | HU31: 468.9 | HV31: 458.1 | HW31: 430.9 | HX31: 403.8 | HY31: 376.7 | HZ31: 349.5 | IA31: 474.7 | IB31: 463.1 | IC31: 433.9 | ID31: 404.7 | IE31: 375.6 | IF31: 346.4 | IG31: 441.5 | IH31: 430.7 | II31: 403.6 | IJ31: 376.4 | IK31: 349.4 | IL31: 322.2 | IM31: 456.8 | IN31: 445.2 | IO31: 416 | IP31: 386.8 | IQ31: 357.7 | IR31: 328.5 | IS31: 424.9 | IT31: 414.1 | IU31: 386.9 | IV31: 359.8 | IW31: 332.7 | IX31: 305.6 | JK31: 403.1 | JL31: 391.5 | JM31: 362.3 | JN31: 333.1 | JO31: 304 | JP31: 274.8 | JQ31: 374.9 | JR31: 364.1 | JS31: 337 | JT31: 309.8 | JU31: 282.8 | JV31: 255.6 | JW31: 434.7 | JX31: 423.1 | JY31: 393.9 | JZ31: 364.7 | KA31: 335.6 | KB31: 306.4 | KC31: 404.3 | KD31: 393.5 | KE31: 366.4 | KF31: 339.2 | KG31: 312.2 | KH31: 285 | KI31: 498.4 | KJ31: 486.8 | KK31: 457.6 | KL31: 428.4 | KM31: 399.3 | KN31: 370.1 | KO31: 463.6 | KP31: 452.8 | KQ31: 425.6 | KR31: 398.5 | KS31: 371.4 | KT31: 344.2 | KU31: 449.1 | KV31: 437.5 | KW31: 408.3 | KX31: 379.1 | KY31: 350 | KZ31: 320.8 | LA31: 417.7 | LB31: 406.9 | LC31: 379.8 | LD31: 352.6 | LE31: 325.5 | LF31: 298.4 | LG31: 436.1 | LH31: 424.5 | LI31: 395.3 | LJ31: 366.1 | LK31: 337 | LL31: 307.8 | LM31: 405.6 | LN31: 394.8 | LO31: 367.7 | LP31: 340.5 | LQ31: 313.5 | LR31: 286.3 | LS31: 499.5 | LT31: 487.9 | LU31: 458.7 | LV31: 429.5 | LW31: 400.4 | LX31: 371.2 | LY31: 464.6 | LZ31: 453.8 | MA31: 426.6 | MB31: 399.5 | MC31: 372.4 | MD31: 345.3 | ME31: 465.5 | MF31: 453.9 | MG31: 424.7 | MH31: 395.5 | MI31: 366.4 | MJ31: 337.2 | MK31: 433 | ML31: 422.2 | MM31: 395 | MN31: 367.9 | MO31: 340.8 | MP31: 313.6 | MQ31: 478 | MR31: 466.4 | MS31: 437.2 | MT31: 408 | MU31: 378.9 | MV31: 349.7 | MW31: 444.6 | MX31: 433.8 | MY31: 406.6 | MZ31: 379.5 | NA31: 352.4 | NB31: 325.3 | NC31: 473.3 | ND31: 461.7 | NE31: 432.5 | NF31: 403.3 | NG31: 374.2 | NH31: 345 | NI31: 440.2 | NJ31: 429.4 | NK31: 402.3 | NL31: 375.1 | NM31: 348.1 | NN31: 320.9 | NO31: 636.6 | NP31: 625 | NQ31: 595.8 | NR31: 566.6 | NS31: 537.5 | NT31: 508.3 | NU31: 592.1 | NV31: 581.3 | NW31: 554.1 | NX31: 527 | NY31: 499.9 | NZ31: 472.8 | OA31: 612.7 | OB31: 601.1 | OC31: 571.9 | OD31: 542.7 | OE31: 513.6 | OF31: 484.4 | OG31: 569.9 | OH31: 559.1 | OI31: 531.9 | OJ31: 504.8 | OK31: 477.7 | OL31: 450.5 | OM31: 464.6 | ON31: 453 | OO31: 423.8 | OP31: 394.6 | OQ31: 365.5 | OR31: 336.3 | OS31: 432.1 | OT31: 421.3 | OU31: 394.2 | OV31: 367 | OW31: 340 | OX31: 312.8 | RG31: 439.7 | RH31: 428.1 | RI31: 398.9 | RJ31: 369.7 | RK31: 340.6 | RL31: 311.4 | RM31: 409 | RN31: 398.2 | RO31: 371 | RP31: 343.9 | RQ31: 316.8 | RR31: 289.7 | RS31: 551.1 | RT31: 539.5 | RU31: 510.3 | RV31: 481.1 | RW31: 452 | RX31: 422.8 | RY31: 512.6 | RZ31: 501.8 | SA31: 474.6 | SB31: 447.5 | SC31: 420.4 | SD31: 393.3 | SE31: 475.7 | SF31: 464.1 | SG31: 434.9 | SH31: 405.7 | SI31: 376.6 | SJ31: 347.4 | SK31: 442.5 | SL31: 431.7 | SM31: 404.5 | SN31: 377.4 | SO31: 350.3 | SP31: 323.1 | SQ31: 441.3 | SR31: 429.7 | SS31: 400.5 | ST31: 371.3 | SU31: 342.2 | SV31: 313 | SW31: 410.5 | SX31: 399.7 | SY31: 372.5 | SZ31: 345.4 | TA31: 318.3 | TB31: 291.1
D32: MEDPHARM PROVITA | F32: 32 | G32: 568.7 | H32: 557.1 | I32: 527.9 | J32: 498.7 | K32: 469.6 | L32: 440.4 | M32: 528.9 | N32: 518.2 | O32: 491 | P32: 463.8 | Q32: 436.8 | R32: 409.6 | S32: 511.9 | T32: 500.3 | U32: 471.1 | V32: 441.9 | W32: 412.8 | X32: 383.6 | Y32: 476.1 | Z32: 465.3 | AA32: 438.2 | AB32: 411 | AC32: 384 | AD32: 356.8 | AE32: 416.2 | AF32: 404.6 | AG32: 375.4 | AH32: 346.2 | AI32: 317.1 | AJ32: 298.3 | AK32: 387.1 | AL32: 376.3 | AM32: 349.2 | AN32: 322 | AO32: 295 | AP32: 277.5 | AQ32: 398.3 | AR32: 386.7 | AS32: 357.5 | AT32: 328.3 | AU32: 299.2 | AV32: 276.3 | AW32: 370.5 | AX32: 359.7 | AY32: 332.5 | AZ32: 305.4 | BA32: 278.3 | BB32: 257 | BC32: 376 | BD32: 364.4 | BE32: 335.2 | BF32: 306 | BG32: 276.9 | BH32: 247.7 | BI32: 349.7 | BJ32: 338.9 | BK32: 311.8 | BL32: 284.6 | BM32: 257.6 | BN32: 230.4 | BO32: 341.2 | BP32: 329.6 | BQ32: 300.4 | BR32: 271.2 | BS32: 244.6 | BT32: 244.6 | BU32: 317.4 | BV32: 306.6 | BW32: 279.4 | BX32: 252.3 | BY32: 227.5 | BZ32: 227.5 | CA32: 483.6 | CB32: 472 | CC32: 442.8 | CD32: 413.6 | CE32: 384.5 | CF32: 355.3 | CG32: 449.8 | CH32: 439 | CI32: 411.9 | CJ32: 384.7 | CK32: 357.6 | CL32: 330.5 | CM32: 421.6 | CN32: 410 | CO32: 380.8 | CP32: 351.6 | CQ32: 322.5 | CR32: 293.3 | CS32: 392.1 | CT32: 381.3 | CU32: 354.2 | CV32: 327 | CW32: 300 | CX32: 272.8 | CY32: 393.7 | CZ32: 382.1 | DA32: 352.9 | DB32: 323.7 | DC32: 294.6 | DD32: 273.1 | DE32: 366.2 | DF32: 355.4 | DG32: 328.2 | DH32: 301.1 | DI32: 274 | DJ32: 254 | DK32: 465 | DL32: 453.4 | DM32: 424.2 | DN32: 395 | DO32: 365.9 | DP32: 336.7 | DQ32: 432.5 | DR32: 421.7 | DS32: 394.6 | DT32: 367.4 | DU32: 340.3 | DV32: 313.2 | DW32: 428.5 | DX32: 416.9 | DY32: 387.7 | DZ32: 358.5 | EA32: 329.4 | EB32: 300.2 | EC32: 398.6 | ED32: 387.8 | EE32: 360.6 | EF32: 333.5 | EG32: 306.4 | EH32: 279.2 | EI32: 616.8 | EJ32: 605.2 | EK32: 576 | EL32: 546.8 | EM32: 517.7 | EN32: 488.5 | EO32: 573.7 | EP32: 562.9 | EQ32: 535.7 | ER32: 508.6 | ES32: 481.5 | ET32: 454.4 | EU32: 576.6 | EV32: 565 | EW32: 535.8 | EX32: 506.6 | EY32: 477.5 | EZ32: 448.3 | FA32: 536.3 | FB32: 525.5 | FC32: 498.3 | FD32: 471.2 | FE32: 444.1 | FF32: 417 | FG32: 372.8 | FH32: 361.2 | FI32: 332 | FJ32: 302.8 | FK32: 273.7 | FL32: 256.9 | FM32: 346.8 | FN32: 336 | FO32: 308.8 | FP32: 281.7 | FQ32: 254.6 | FR32: 239 | FS32: 391.6 | FT32: 380 | FU32: 350.8 | FV32: 321.6 | FW32: 292.5 | FX32: 273.4 | FY32: 364.2 | FZ32: 353.4 | GA32: 326.3 | GB32: 299.1 | GC32: 272.1 | GD32: 254.3 | GE32: 357.7 | GF32: 346.1 | GG32: 316.9 | GH32: 287.7 | GI32: 258.6 | GJ32: 249.7 | GK32: 332.7 | GL32: 321.9 | GM32: 294.8 | GN32: 267.6 | GO32: 240.5 | GP32: 232.3 | GQ32: 342.3 | GR32: 330.7 | GS32: 301.5 | GT32: 272.3 | GU32: 243.2 | GV32: 239 | GW32: 318.4 | GX32: 307.6 | GY32: 280.4 | GZ32: 253.3 | HA32: 226.2 | HB32: 222.3 | HC32: 530.4 | HD32: 518.8 | HE32: 489.6 | HF32: 460.4 | HG32: 431.3 | HH32: 402.1 | HI32: 493.3 | HJ32: 482.5 | HK32: 455.4 | HL32: 428.2 | HM32: 401.2 | HN32: 374 | HO32: 424.7 | HP32: 413.1 | HQ32: 383.9 | HR32: 354.7 | HS32: 325.6 | HT32: 296.4 | HU32: 395 | HV32: 384.2 | HW32: 357.1 | HX32: 329.9 | HY32: 302.9 | HZ32: 275.7 | IA32: 436 | IB32: 424.4 | IC32: 395.2 | ID32: 366 | IE32: 336.9 | IF32: 307.7 | IG32: 405.5 | IH32: 394.7 | II32: 367.6 | IJ32: 340.4 | IK32: 313.4 | IL32: 286.2 | IM32: 419.6 | IN32: 408 | IO32: 378.8 | IP32: 349.6 | IQ32: 320.5 | IR32: 291.3 | IS32: 390.3 | IT32: 379.5 | IU32: 352.3 | IV32: 325.2 | IW32: 298.1 | IX32: 271 | IY32: 666.9 | IZ32: 655.3 | JA32: 626.1 | JB32: 596.9 | JC32: 567.8 | JD32: 538.6 | JE32: 620.3 | JF32: 609.5 | JG32: 582.3 | JH32: 555.2 | JI32: 528.1 | JJ32: 500.9 | JK32: 391.8 | JL32: 380.2 | JM32: 351 | JN32: 321.8 | JO32: 292.7 | JP32: 263.5 | JQ32: 364.4 | JR32: 353.6 | JS32: 326.5 | JT32: 299.3 | JU32: 272.3 | JV32: 245.1 | JW32: 417.8 | JX32: 406.2 | JY32: 377 | JZ32: 347.8 | KA32: 318.7 | KB32: 289.5 | KC32: 388.6 | KD32: 377.8 | KE32: 350.7 | KF32: 323.5 | KG32: 296.4 | KH32: 269.3 | KI32: 399.3 | KJ32: 387.7 | KK32: 358.5 | KL32: 329.3 | KM32: 300.2 | KN32: 288.1 | KO32: 371.4 | KP32: 360.6 | KQ32: 333.5 | KR32: 306.3 | KS32: 279.2 | KT32: 268 | KU32: 374.3 | KV32: 362.7 | KW32: 333.5 | KX32: 304.3 | KY32: 275.2 | KZ32: 259.6 | LA32: 348.1 | LB32: 337.4 | LC32: 310.2 | LD32: 283 | LE32: 256 | LF32: 241.5 | LG32: 349.4 | LH32: 337.8 | LI32: 308.6 | LJ32: 279.4 | LK32: 252.1 | LL32: 252.1 | LM32: 325 | LN32: 314.2 | LO32: 287 | LP32: 259.9 | LQ32: 234.5 | LR32: 234.5 | LS32: 480.5 | LT32: 468.9 | LU32: 439.7 | LV32: 410.5 | LW32: 381.4 | LX32: 352.2 | LY32: 446.9 | LZ32: 436.1 | MA32: 409 | MB32: 381.8 | MC32: 354.8 | MD32: 327.6 | ME32: 417.4 | MF32: 405.8 | MG32: 376.6 | MH32: 347.4 | MI32: 318.3 | MJ32: 289.1 | MK32: 388.2 | ML32: 377.4 | MM32: 350.3 | MN32: 323.1 | MO32: 296.1 | MP32: 268.9 | MQ32: 402.7 | MR32: 391.1 | MS32: 361.9 | MT32: 332.7 | MU32: 303.6 | MV32: 279.3 | MW32: 374.6 | MX32: 363.8 | MY32: 336.6 | MZ32: 309.5 | NA32: 282.4 | NB32: 259.8 | NC32: 377.7 | ND32: 366.1 | NE32: 336.9 | NF32: 307.7 | NG32: 278.6 | NH32: 270.7 | NI32: 351.3 | NJ32: 340.5 | NK32: 313.4 | NL32: 286.2 | NM32: 259.1 | NN32: 251.8 | NO32: 581.2 | NP32: 569.6 | NQ32: 540.4 | NR32: 511.2 | NS32: 482.1 | NT32: 452.9 | NU32: 540.6 | NV32: 529.8 | NW32: 502.6 | NX32: 475.5 | NY32: 448.4 | NZ32: 421.2 | OA32: 559.4 | OB32: 547.8 | OC32: 518.6 | OD32: 489.4 | OE32: 460.3 | OF32: 431.1 | OG32: 520.3 | OH32: 509.5 | OI32: 482.3 | OJ32: 455.2 | OK32: 428.1 | OL32: 401 | OM32: 431.7 | ON32: 420.1 | OO32: 390.9 | OP32: 361.7 | OQ32: 332.6 | OR32: 303.4 | OS32: 401.5 | OT32: 390.7 | OU32: 363.6 | OV32: 336.4 | OW32: 309.4 | OX32: 282.2 | OY32: 525 | OZ32: 513.4 | PA32: 484.2 | PB32: 455 | PC32: 425.9 | PD32: 396.7 | PE32: 488.3 | PF32: 477.5 | PG32: 450.4 | PH32: 423.2 | PI32: 396.1 | PJ32: 369 | PK32: 501.9 | PL32: 490.3 | PM32: 461.1 | PN32: 431.9 | PO32: 402.8 | PP32: 373.6 | PQ32: 466.8 | PR32: 456 | PS32: 428.9 | PT32: 401.7 | PU32: 374.7 | PV32: 347.5 | PW32: 378.1 | PX32: 366.5 | PY32: 337.3 | PZ32: 308.1 | QA32: 279 | QB32: 257.3 | QC32: 351.7 | QD32: 340.9 | QE32: 313.7 | QF32: 286.6 | QG32: 259.5 | QH32: 239.3 | QI32: 346.8 | QJ32: 335.2 | QK32: 306 | QL32: 276.8 | QM32: 247.7 | QN32: 236 | QO32: 322.6 | QP32: 311.8 | QQ32: 284.6 | QR32: 257.5 | QS32: 230.4 | QT32: 219.5 | RG32: 394.3 | RH32: 382.7 | RI32: 353.5 | RJ32: 324.3 | RK32: 295.2 | RL32: 266 | RM32: 366.7 | RN32: 356 | RO32: 328.8 | RP32: 301.6 | RQ32: 274.6 | RR32: 247.4 | RS32: 459.2 | RT32: 447.6 | RU32: 418.4 | RV32: 389.2 | RW32: 360.1 | RX32: 330.9 | RY32: 427.1 | RZ32: 416.3 | SA32: 389.2 | SB32: 362 | SC32: 334.9 | SD32: 307.8 | SE32: 396.5 | SF32: 384.9 | SG32: 355.7 | SH32: 326.5 | SI32: 297.4 | SJ32: 275 | SK32: 368.8 | SL32: 358 | SM32: 330.9 | SN32: 303.7 | SO32: 276.6 | SP32: 255.8 | SQ32: 367.8 | SR32: 356.2 | SS32: 327 | ST32: 297.8 | SU32: 268.7 | SV32: 255.1 | SW32: 342.1 | SX32: 331.3 | SY32: 304.2 | SZ32: 277 | TA32: 249.9 | TB32: 237.3
C33: TAR-HMO | D33: HMO PROVITA | F33: 33 | AE33: 430.1 | AF33: 418.5 | AG33: 389.3 | AH33: 360.1 | AI33: 331 | AJ33: 301.8 | AK33: 400 | AL33: 389.3 | AM33: 362.1 | AN33: 334.9 | AO33: 307.9 | AP33: 280.7 | AQ33: 398.3 | AR33: 386.7 | AS33: 357.5 | AT33: 328.3 | AU33: 299.2 | AV33: 276.3 | AW33: 370.5 | AX33: 359.7 | AY33: 332.5 | AZ33: 305.4 | BA33: 278.3 | BB33: 257 | BO33: 393.5 | BP33: 381.9 | BQ33: 352.7 | BR33: 323.5 | BS33: 294.4 | BT33: 265.2 | BU33: 366 | BV33: 355.2 | BW33: 328.1 | BX33: 300.9 | BY33: 273.8 | BZ33: 246.7 | CA33: 496.1 | CB33: 484.5 | CC33: 455.3 | CD33: 426.1 | CE33: 397 | CF33: 367.8 | CG33: 461.4 | CH33: 450.6 | CI33: 423.5 | CJ33: 396.3 | CK33: 369.3 | CL33: 342.1 | CM33: 421.6 | CN33: 410 | CO33: 380.8 | CP33: 351.6 | CQ33: 322.5 | CR33: 293.3 | CS33: 392.1 | CT33: 381.3 | CU33: 354.2 | CV33: 327 | CW33: 300 | CX33: 272.8 | CY33: 393.7 | CZ33: 382.1 | DA33: 352.9 | DB33: 323.7 | DC33: 294.6 | DD33: 273.1 | DE33: 366.2 | DF33: 355.4 | DG33: 328.2 | DH33: 301.1 | DI33: 274 | DJ33: 254 | EI33: 616.8 | EJ33: 605.2 | EK33: 576 | EL33: 546.8 | EM33: 517.7 | EN33: 488.5 | EO33: 573.7 | EP33: 562.9 | EQ33: 535.7 | ER33: 508.6 | ES33: 481.5 | ET33: 454.4 | EU33: 651 | EV33: 639.4 | EW33: 610.2 | EX33: 581 | EY33: 551.9 | EZ33: 522.7 | FA33: 605.5 | FB33: 594.7 | FC33: 567.5 | FD33: 540.4 | FE33: 513.3 | FF33: 486.2 | HO33: 479.5 | HP33: 467.9 | HQ33: 438.7 | HR33: 409.5 | HS33: 380.4 | HT33: 351.2 | HU33: 446 | HV33: 435.2 | HW33: 408 | HX33: 380.9 | HY33: 353.8 | HZ33: 326.7 | IA33: 451.5 | IB33: 439.9 | IC33: 410.7 | ID33: 381.5 | IE33: 352.4 | IF33: 323.2 | IG33: 419.9 | IH33: 409.2 | II33: 382 | IJ33: 354.8 | IK33: 327.8 | IL33: 300.6 | IM33: 434.5 | IN33: 422.9 | IO33: 393.7 | IP33: 364.5 | IQ33: 335.4 | IR33: 306.2 | IS33: 404.1 | IT33: 393.3 | IU33: 366.2 | IV33: 339 | IW33: 312 | IX33: 284.8 | KI33: 463.6 | KJ33: 452 | KK33: 422.8 | KL33: 393.6 | KM33: 364.5 | KN33: 335.3 | KO33: 431.2 | KP33: 420.4 | KQ33: 393.3 | KR33: 366.1 | KS33: 339 | KT33: 311.9 | KU33: 417.8 | KV33: 406.2 | KW33: 377 | KX33: 347.8 | KY33: 318.7 | KZ33: 289.5 | LA33: 388.6 | LB33: 377.8 | LC33: 350.7 | LD33: 323.5 | LE33: 296.4 | LF33: 269.3 | LG33: 363.4 | LH33: 351.8 | LI33: 322.6 | LJ33: 293.4 | LK33: 264.3 | LL33: 252.1 | LM33: 338 | LN33: 327.2 | LO33: 300.1 | LP33: 272.9 | LQ33: 245.8 | LR33: 234.5 | MQ33: 475.4 | MR33: 463.8 | MS33: 434.6 | MT33: 405.4 | MU33: 376.3 | MV33: 347.1 | MW33: 442.2 | MX33: 431.4 | MY33: 404.2 | MZ33: 377.1 | NA33: 350 | NB33: 322.9 | NC33: 377.7 | ND33: 366.1 | NE33: 336.9 | NF33: 307.7 | NG33: 278.6 | NH33: 270.7 | NI33: 351.3 | NJ33: 340.5 | NK33: 313.4 | NL33: 286.2 | NM33: 259.1 | NN33: 251.8 | NO33: 612.4 | NP33: 600.8 | NQ33: 571.6 | NR33: 542.4 | NS33: 513.3 | NT33: 484.1 | NU33: 569.6 | NV33: 558.8 | NW33: 531.6 | NX33: 504.5 | NY33: 477.4 | NZ33: 450.3 | OA33: 596 | OB33: 584.4 | OC33: 555.2 | OD33: 526 | OE33: 496.9 | OF33: 467.7 | OG33: 554.3 | OH33: 543.5 | OI33: 516.4 | OJ33: 489.2 | OK33: 462.2 | OL33: 435 | OM33: 431.7 | ON33: 420.1 | OO33: 390.9 | OP33: 361.7 | OQ33: 332.6 | OR33: 303.4 | OS33: 401.5 | OT33: 390.7 | OU33: 363.6 | OV33: 336.4 | OW33: 309.4 | OX33: 282.2 | OY33: 546 | OZ33: 534.4 | PA33: 505.2 | PB33: 476 | PC33: 446.9 | PD33: 417.7 | PE33: 507.8 | PF33: 497 | PG33: 469.9 | PH33: 442.7 | PI33: 415.7 | PJ33: 388.5 | PK33: 521.9 | PL33: 510.3 | PM33: 481.1 | PN33: 451.9 | PO33: 422.8 | PP33: 393.6 | PQ33: 485.4 | PR33: 474.6 | PS33: 447.5 | PT33: 420.3 | PU33: 393.3 | PV33: 366.1 | RS33: 459.2 | RT33: 447.6 | RU33: 418.4 | RV33: 389.2 | RW33: 360.1 | RX33: 330.9 | RY33: 427.1 | RZ33: 416.3 | SA33: 389.2 | SB33: 362 | SC33: 334.9 | SD33: 307.8 | SE33: 422 | SF33: 410.4 | SG33: 381.2 | SH33: 352 | SI33: 322.9 | SJ33: 293.7 | SK33: 392.5 | SL33: 381.7 | SM33: 354.6 | SN33: 327.4 | SO33: 300.3 | SP33: 273.2 | SQ33: 391.5 | SR33: 379.9 | SS33: 350.7 | ST33: 321.5 | SU33: 292.4 | SV33: 263.2 | SW33: 364.1 | SX33: 353.4 | SY33: 326.2 | SZ33: 299 | TA33: 272 | TB33: 244.8
A34: 194 | B34: Sumiswalder Krankenkasse | C34: TAR-BASE | D34: Assurance de base | F34: 34 | G34: 514 | H34: 502.7 | I34: 473.4 | J34: 444.1 | K34: 415.3 | L34: 386 | M34: 478.1 | N34: 467.6 | O34: 440.3 | P34: 413.1 | Q34: 386.3 | R34: 359 | S34: 463 | T34: 451.4 | U34: 422.3 | V34: 393.1 | W34: 363.9 | X34: 334.7 | Y34: 430.6 | Z34: 419.9 | AA34: 392.8 | AB34: 365.6 | AC34: 338.5 | AD34: 311.3 | AE34: 501 | AF34: 489.5 | AG34: 460.4 | AH34: 431.4 | AI34: 402.3 | AJ34: 372.7 | AK34: 466 | AL34: 455.3 | AM34: 428.2 | AN34: 401.3 | AO34: 374.2 | AP34: 346.7 | AQ34: 450.5 | AR34: 439.2 | AS34: 410 | AT34: 380.7 | AU34: 351.4 | AV34: 322.6 | AW34: 419 | AX34: 408.5 | AY34: 381.3 | AZ34: 354.1 | BA34: 326.9 | BB34: 300.1 | BC34: 408 | BD34: 396.6 | BE34: 367.2 | BF34: 338.2 | BG34: 309.3 | BH34: 279.9 | BI34: 379.5 | BJ34: 368.9 | BK34: 341.5 | BL34: 314.6 | BM34: 287.7 | BN34: 260.4 | BO34: 434 | BP34: 422.7 | BQ34: 393.2 | BR34: 364.1 | BS34: 335 | BT34: 306 | BU34: 403.7 | BV34: 393.2 | BW34: 365.7 | BX34: 338.7 | BY34: 311.6 | BZ34: 284.6 | CA34: 547 | CB34: 535.5 | CC34: 506.5 | CD34: 477.5 | CE34: 448 | CF34: 419 | CG34: 508.8 | CH34: 498.1 | CI34: 471.1 | CJ34: 444.1 | CK34: 416.7 | CL34: 389.7 | CM34: 482 | CN34: 470.4 | CO34: 441.5 | CP34: 412.1 | CQ34: 383.2 | CR34: 353.8 | CS34: 448.3 | CT34: 437.5 | CU34: 410.6 | CV34: 383.3 | CW34: 356.4 | CX34: 329.1 | CY34: 445.5 | CZ34: 433.9 | DA34: 405 | DB34: 375.6 | DC34: 346.6 | DD34: 317.2 | DE34: 414.4 | DF34: 403.6 | DG34: 376.7 | DH34: 349.4 | DI34: 322.4 | DJ34: 295 | DK34: 544 | DL34: 532.6 | DM34: 503.2 | DN34: 474.4 | DO34: 445 | DP34: 416.2 | DQ34: 506 | DR34: 495.4 | DS34: 468 | DT34: 441.2 | DU34: 413.9 | DV34: 387.1 | DW34: 514 | DX34: 502.7 | DY34: 473.4 | DZ34: 444.1 | EA34: 415.3 | EB34: 386 | EC34: 478.1 | ED34: 467.6 | EE34: 440.3 | EF34: 413.1 | EG34: 386.3 | EH34: 359 | EI34: 674 | EJ34: 662.5 | EK34: 633.6 | EL34: 604.6 | EM34: 574.9 | EN34: 545.9 | EO34: 626.9 | EP34: 616.2 | EQ34: 589.3 | ER34: 562.3 | ES34: 534.7 | ET34: 507.7 | FG34: 439 | FH34: 427.6 | FI34: 398.6 | FJ34: 369.2 | FK34: 340.2 | FL34: 310.8 | FM34: 408.3 | FN34: 397.7 | FO34: 370.7 | FP34: 343.4 | FQ34: 316.4 | FR34: 289.1 | FS34: 443 | FT34: 431.5 | FU34: 402.2 | FV34: 373.4 | FW34: 344.2 | FX34: 315 | FY34: 412 | FZ34: 401.3 | GA34: 374.1 | GB34: 347.3 | GC34: 320.2 | GD34: 293 | GE34: 414 | GF34: 402.4 | GG34: 373.4 | GH34: 344 | GI34: 315.1 | GJ34: 286.1 | GK34: 385.1 | GL34: 374.3 | GM34: 347.3 | GN34: 320 | GO34: 293.1 | GP34: 266.1 | GQ34: 392 | GR34: 380.6 | GS34: 351.2 | GT34: 322.2 | GU34: 293.2 | GV34: 263.8 | GW34: 364.6 | GX34: 354 | GY34: 326.7 | GZ34: 299.7 | HA34: 272.7 | HB34: 245.4 | HO34: 449 | HP34: 437.8 | HQ34: 408.6 | HR34: 379.4 | HS34: 350.2 | HT34: 321 | HU34: 417.6 | HV34: 407.2 | HW34: 380 | HX34: 352.9 | HY34: 325.7 | HZ34: 298.6 | IA34: 410 | IB34: 398.5 | IC34: 369.4 | ID34: 340.3 | IE34: 311.2 | IF34: 282.1 | IG34: 381.3 | IH34: 370.7 | II34: 343.6 | IJ34: 316.5 | IK34: 289.5 | IL34: 262.4 | IM34: 398 | IN34: 386.5 | IO34: 357.4 | IP34: 328.4 | IQ34: 298.9 | IR34: 269.8 | IS34: 370.2 | IT34: 359.5 | IU34: 332.4 | IV34: 305.5 | IW34: 278 | IX34: 251 | JK34: 398.5 | JL34: 386.9 | JM34: 357.9 | JN34: 328.8 | JO34: 299.7 | JP34: 270.6 | JQ34: 370.7 | JR34: 359.9 | JS34: 332.9 | JT34: 305.8 | JU34: 278.8 | JV34: 251.7 | JW34: 409 | JX34: 397.5 | JY34: 368.5 | JZ34: 339.1 | KA34: 310 | KB34: 281 | KC34: 380.4 | KD34: 369.7 | KE34: 342.8 | KF34: 315.4 | KG34: 288.3 | KH34: 261.4 | KI34: 479 | KJ34: 467.5 | KK34: 438.3 | KL34: 409.1 | KM34: 380.3 | KN34: 351.1 | KO34: 445.5 | KP34: 434.8 | KQ34: 407.7 | KR34: 380.5 | KS34: 353.7 | KT34: 326.6 | KU34: 442 | KV34: 430.5 | KW34: 401.3 | KX34: 372.2 | KY34: 343 | KZ34: 313.8 | LA34: 411.1 | LB34: 400.4 | LC34: 373.3 | LD34: 346.2 | LE34: 319 | LF34: 291.9 | LG34: 421 | LH34: 409.6 | LI34: 380.6 | LJ34: 351.1 | LK34: 322.1 | LL34: 293 | LM34: 391.6 | LN34: 381 | LO34: 354 | LP34: 326.6 | LQ34: 299.6 | LR34: 272.5 | LS34: 482 | LT34: 470.4 | LU34: 441.5 | LV34: 412.1 | LW34: 383.2 | LX34: 353.8 | LY34: 448.3 | LZ34: 437.5 | MA34: 410.6 | MB34: 383.3 | MC34: 356.4 | MD34: 329.1 | ME34: 445.1 | MF34: 433.5 | MG34: 404.6 | MH34: 375.2 | MI34: 346.3 | MJ34: 316.9 | MK34: 414 | ML34: 403.2 | MM34: 376.3 | MN34: 349 | MO34: 322.1 | MP34: 294.8 | MQ34: 425 | MR34: 413.5 | MS34: 384.2 | MT34: 355.3 | MU34: 326 | MV34: 297.1 | MW34: 395.3 | MX34: 384.6 | MY34: 357.4 | MZ34: 330.5 | NA34: 303.2 | NB34: 276.4 | NC34: 467 | ND34: 455.8 | NE34: 426.4 | NF34: 397.4 | NG34: 368 | NH34: 339 | NI34: 434.4 | NJ34: 423.9 | NK34: 396.6 | NL34: 369.6 | NM34: 342.3 | NN34: 315.3 | OM34: 402 | ON34: 390.5 | OO34: 361.4 | OP34: 332.1 | OQ34: 303.1 | OR34: 273.8 | OS34: 373.9 | OT34: 363.2 | OU34: 336.2 | OV34: 308.9 | OW34: 281.9 | OX34: 254.7 | PW34: 468.8 | PX34: 457.5 | PY34: 428 | PZ34: 398.9 | QA34: 369.9 | QB34: 340.8 | QC34: 436 | QD34: 425.5 | QE34: 398.1 | QF34: 371 | QG34: 344.1 | QH34: 317 | QI34: 414.4 | QJ34: 402.8 | QK34: 373.8 | QL34: 344.8 | QM34: 315.4 | QN34: 286.4 | QO34: 385.4 | QP34: 374.7 | QQ34: 347.7 | QR34: 320.7 | QS34: 293.4 | QT34: 266.4 | RG34: 402 | RH34: 390.5 | RI34: 361.4 | RJ34: 332.1 | RK34: 303.1 | RL34: 273.8 | RM34: 373.9 | RN34: 363.2 | RO34: 336.2 | RP34: 308.9 | RQ34: 281.9 | RR34: 254.7 | RS34: 541 | RT34: 529.6 | RU34: 500.4 | RV34: 471.2 | RW34: 442 | RX34: 412.8 | RY34: 503.2 | RZ34: 492.6 | SA34: 465.4 | SB34: 438.3 | SC34: 411.1 | SD34: 384 | SE34: 488.5 | SF34: 477.3 | SG34: 448 | SH34: 418.6 | SI34: 389.8 | SJ34: 360.5 | SK34: 454.4 | SL34: 443.9 | SM34: 416.7 | SN34: 389.3 | SO34: 362.6 | SP34: 335.3 | SQ34: 439 | SR34: 427.6 | SS34: 398.6 | ST34: 369.2 | SU34: 340.2 | SV34: 310.8 | SW34: 408.3 | SX34: 397.7 | SY34: 370.7 | SZ34: 343.4 | TA34: 316.4 | TB34: 289.1
C35: TAR-HAM | D35: Hausarzt | F35: 35 | G35: 462.6 | H35: 452.4 | I35: 426.1 | J35: 399.7 | K35: 373.8 | L35: 347.4 | M35: 430.3 | N35: 420.8 | O35: 396.3 | P35: 371.8 | Q35: 347.7 | R35: 323.1 | S35: 416.7 | T35: 406.3 | U35: 380 | V35: 353.8 | W35: 327.5 | X35: 301.3 | Y35: 387.6 | Z35: 377.9 | AA35: 353.5 | AB35: 329.1 | AC35: 304.6 | AD35: 280.3 | AE35: 450.9 | AF35: 440.5 | AG35: 414.4 | AH35: 388.2 | AI35: 362.1 | AJ35: 335.5 | AK35: 419.4 | AL35: 409.7 | AM35: 385.4 | AN35: 361.1 | AO35: 336.8 | AP35: 312.1 | AQ35: 405.5 | AR35: 395.4 | AS35: 369 | AT35: 342.6 | AU35: 316.3 | AV35: 290.3 | AW35: 377.2 | AX35: 367.8 | AY35: 343.2 | AZ35: 318.7 | BA35: 294.2 | BB35: 270 | BC35: 367.2 | BD35: 356.9 | BE35: 330.5 | BF35: 304.4 | BG35: 278.3 | BH35: 251.9 | BI35: 341.5 | BJ35: 332 | BK35: 307.4 | BL35: 283.1 | BM35: 258.9 | BN35: 234.3 | BO35: 390.6 | BP35: 380.4 | BQ35: 353.9 | BR35: 327.7 | BS35: 301.5 | BT35: 275.4 | BU35: 363.3 | BV35: 353.8 | BW35: 329.2 | BX35: 304.8 | BY35: 280.4 | BZ35: 256.2 | CA35: 492.3 | CB35: 482 | CC35: 455.9 | CD35: 429.8 | CE35: 403.2 | CF35: 377.1 | CG35: 457.9 | CH35: 448.3 | CI35: 424 | CJ35: 399.8 | CK35: 375 | CL35: 350.8 | CM35: 433.8 | CN35: 423.4 | CO35: 397.4 | CP35: 370.9 | CQ35: 344.9 | CR35: 318.4 | CS35: 403.5 | CT35: 393.8 | CU35: 369.6 | CV35: 345 | CW35: 320.8 | CX35: 296.2 | CY35: 401 | CZ35: 390.6 | DA35: 364.5 | DB35: 338 | DC35: 312 | DD35: 285.5 | DE35: 373 | DF35: 363.3 | DG35: 339 | DH35: 314.4 | DI35: 290.2 | DJ35: 265.6 | DK35: 489.6 | DL35: 479.3 | DM35: 452.9 | DN35: 426.9 | DO35: 400.5 | DP35: 374.5 | DQ35: 455.4 | DR35: 445.8 | DS35: 421.2 | DT35: 397.1 | DU35: 372.5 | DV35: 348.3 | DW35: 462.6 | DX35: 452.4 | DY35: 426.1 | DZ35: 399.7 | EA35: 373.8 | EB35: 347.4 | EC35: 430.3 | ED35: 420.8 | EE35: 396.3 | EF35: 371.8 | EG35: 347.7 | EH35: 323.1 | EI35: 606.6 | EJ35: 596.3 | EK35: 570.2 | EL35: 544.1 | EM35: 517.4 | EN35: 491.3 | EO35: 564.2 | EP35: 554.6 | EQ35: 530.3 | ER35: 506.1 | ES35: 481.2 | ET35: 457 | FG35: 395.1 | FH35: 384.8 | FI35: 358.8 | FJ35: 332.3 | FK35: 306.2 | FL35: 279.7 | FM35: 367.5 | FN35: 357.9 | FO35: 333.7 | FP35: 309.1 | FQ35: 284.8 | FR35: 260.2 | FS35: 398.7 | FT35: 388.3 | FU35: 362 | FV35: 336.1 | FW35: 309.8 | FX35: 283.5 | FY35: 370.8 | FZ35: 361.2 | GA35: 336.7 | GB35: 312.6 | GC35: 288.2 | GD35: 263.7 | GE35: 372.6 | GF35: 362.2 | GG35: 336.1 | GH35: 309.6 | GI35: 283.5 | GJ35: 257.5 | GK35: 346.6 | GL35: 336.9 | GM35: 312.6 | GN35: 288 | GO35: 263.7 | GP35: 239.5 | GQ35: 352.8 | GR35: 342.6 | GS35: 316.1 | GT35: 290 | GU35: 263.9 | GV35: 237.4 | GW35: 328.2 | GX35: 318.7 | GY35: 294 | GZ35: 269.7 | HA35: 245.5 | HB35: 220.8 | HO35: 404.1 | HP35: 394 | HQ35: 367.7 | HR35: 341.5 | HS35: 315.2 | HT35: 288.9 | HU35: 375.9 | HV35: 366.5 | HW35: 342 | HX35: 317.6 | HY35: 293.2 | HZ35: 268.7 | IA35: 369 | IB35: 358.7 | IC35: 332.5 | ID35: 306.3 | IE35: 280.1 | IF35: 253.9 | IG35: 343.2 | IH35: 333.6 | II35: 309.3 | IJ35: 284.9 | IK35: 260.5 | IL35: 236.2 | IM35: 358.2 | IN35: 347.8 | IO35: 321.7 | IP35: 295.5 | IQ35: 269 | IR35: 242.9 | IS35: 333.2 | IT35: 323.5 | IU35: 299.2 | IV35: 274.9 | IW35: 250.2 | IX35: 225.9 | JK35: 358.7 | JL35: 348.3 | JM35: 322.1 | JN35: 295.9 | JO35: 269.7 | JP35: 243.6 | JQ35: 333.6 | JR35: 324 | JS35: 299.6 | JT35: 275.2 | JU35: 250.9 | JV35: 226.6 | JW35: 368.1 | JX35: 357.8 | JY35: 331.7 | JZ35: 305.2 | KA35: 279 | KB35: 252.9 | KC35: 342.4 | KD35: 332.8 | KE35: 308.5 | KF35: 283.9 | KG35: 259.5 | KH35: 235.2 | KI35: 431.1 | KJ35: 420.8 | KK35: 394.5 | KL35: 368.2 | KM35: 342.3 | KN35: 316 | KO35: 401 | KP35: 391.4 | KQ35: 366.9 | KR35: 342.5 | KS35: 318.4 | KT35: 293.9 | KU35: 397.8 | KV35: 387.5 | KW35: 361.2 | KX35: 334.9 | KY35: 308.7 | KZ35: 282.4 | LA35: 370 | LB35: 360.4 | LC35: 336 | LD35: 311.5 | LE35: 287.1 | LF35: 262.7 | LG35: 378.9 | LH35: 368.7 | LI35: 342.5 | LJ35: 316 | LK35: 289.9 | LL35: 263.7 | LM35: 352.4 | LN35: 342.9 | LO35: 318.6 | LP35: 293.9 | LQ35: 269.7 | LR35: 245.3 | LS35: 433.8 | LT35: 423.4 | LU35: 397.4 | LV35: 370.9 | LW35: 344.9 | LX35: 318.4 | LY35: 403.5 | LZ35: 393.8 | MA35: 369.6 | MB35: 345 | MC35: 320.8 | MD35: 296.2 | ME35: 400.6 | MF35: 390.2 | MG35: 364.1 | MH35: 337.7 | MI35: 311.7 | MJ35: 285.2 | MK35: 372.6 | ML35: 362.9 | MM35: 338.7 | MN35: 314.1 | MO35: 289.9 | MP35: 265.3 | MQ35: 382.5 | MR35: 372.2 | MS35: 345.8 | MT35: 319.8 | MU35: 293.4 | MV35: 267.4 | MW35: 355.8 | MX35: 346.2 | MY35: 321.6 | MZ35: 297.5 | NA35: 272.9 | NB35: 248.7 | NC35: 420.3 | ND35: 410.2 | NE35: 383.7 | NF35: 357.7 | NG35: 331.2 | NH35: 305.1 | NI35: 390.9 | NJ35: 381.5 | NK35: 356.9 | NL35: 332.7 | NM35: 308.1 | NN35: 283.8 | OM35: 361.8 | ON35: 351.5 | OO35: 325.3 | OP35: 298.8 | OQ35: 272.8 | OR35: 246.4 | OS35: 336.5 | OT35: 326.9 | OU35: 302.6 | OV35: 277.9 | OW35: 253.8 | OX35: 229.2 | PW35: 421.9 | PX35: 411.8 | PY35: 385.2 | PZ35: 359 | QA35: 332.9 | QB35: 306.7 | QC35: 392.4 | QD35: 383 | QE35: 358.3 | QF35: 333.9 | QG35: 309.6 | QH35: 285.3 | QI35: 373 | QJ35: 362.6 | QK35: 336.4 | QL35: 310.3 | QM35: 283.9 | QN35: 257.7 | QO35: 346.9 | QP35: 337.3 | QQ35: 312.9 | QR35: 288.6 | QS35: 264.1 | QT35: 239.7 | RG35: 361.8 | RH35: 351.5 | RI35: 325.3 | RJ35: 298.8 | RK35: 272.8 | RL35: 246.4 | RM35: 336.5 | RN35: 326.9 | RO35: 302.6 | RP35: 277.9 | RQ35: 253.8 | RR35: 229.2 | RS35: 486.9 | RT35: 476.7 | RU35: 450.4 | RV35: 424.1 | RW35: 397.8 | RX35: 371.5 | RY35: 452.9 | RZ35: 443.4 | SA35: 418.9 | SB35: 394.5 | SC35: 370 | SD35: 345.5 | SE35: 439.7 | SF35: 429.6 | SG35: 403.2 | SH35: 376.8 | SI35: 350.9 | SJ35: 324.5 | SK35: 409 | SL35: 399.6 | SM35: 375 | SN35: 350.5 | SO35: 326.4 | SP35: 301.8 | SQ35: 395.1 | SR35: 384.8 | SS35: 358.8 | ST35: 332.3 | SU35: 306.2 | SV35: 279.7 | SW35: 367.5 | SX35: 357.9 | SY35: 333.7 | SZ35: 309.1 | TA35: 284.8 | TB35: 260.2
C36: TAR-DIV | D36: Telmed | F36: 36 | G36: 462.6 | H36: 452.4 | I36: 426.1 | J36: 399.7 | K36: 373.8 | L36: 347.4 | M36: 430.3 | N36: 420.8 | O36: 396.3 | P36: 371.8 | Q36: 347.7 | R36: 323.1 | S36: 416.7 | T36: 406.3 | U36: 380 | V36: 353.8 | W36: 327.5 | X36: 301.3 | Y36: 387.6 | Z36: 377.9 | AA36: 353.5 | AB36: 329.1 | AC36: 304.6 | AD36: 280.3 | AE36: 450.9 | AF36: 440.5 | AG36: 414.4 | AH36: 388.2 | AI36: 362.1 | AJ36: 335.5 | AK36: 419.4 | AL36: 409.7 | AM36: 385.4 | AN36: 361.1 | AO36: 336.8 | AP36: 312.1 | AQ36: 405.5 | AR36: 395.4 | AS36: 369 | AT36: 342.6 | AU36: 316.3 | AV36: 290.3 | AW36: 377.2 | AX36: 367.8 | AY36: 343.2 | AZ36: 318.7 | BA36: 294.2 | BB36: 270 | BC36: 367.2 | BD36: 356.9 | BE36: 330.5 | BF36: 304.4 | BG36: 278.3 | BH36: 251.9 | BI36: 341.5 | BJ36: 332 | BK36: 307.4 | BL36: 283.1 | BM36: 258.9 | BN36: 234.3 | BO36: 390.6 | BP36: 380.4 | BQ36: 353.9 | BR36: 327.7 | BS36: 301.5 | BT36: 275.4 | BU36: 363.3 | BV36: 353.8 | BW36: 329.2 | BX36: 304.8 | BY36: 280.4 | BZ36: 256.2 | CA36: 492.3 | CB36: 482 | CC36: 455.9 | CD36: 429.8 | CE36: 403.2 | CF36: 377.1 | CG36: 457.9 | CH36: 448.3 | CI36: 424 | CJ36: 399.8 | CK36: 375 | CL36: 350.8 | CM36: 433.8 | CN36: 423.4 | CO36: 397.4 | CP36: 370.9 | CQ36: 344.9 | CR36: 318.4 | CS36: 403.5 | CT36: 393.8 | CU36: 369.6 | CV36: 345 | CW36: 320.8 | CX36: 296.2 | CY36: 401 | CZ36: 390.6 | DA36: 364.5 | DB36: 338 | DC36: 312 | DD36: 285.5 | DE36: 373 | DF36: 363.3 | DG36: 339 | DH36: 314.4 | DI36: 290.2 | DJ36: 265.6 | DK36: 489.6 | DL36: 479.3 | DM36: 452.9 | DN36: 426.9 | DO36: 400.5 | DP36: 374.5 | DQ36: 455.4 | DR36: 445.8 | DS36: 421.2 | DT36: 397.1 | DU36: 372.5 | DV36: 348.3 | DW36: 462.6 | DX36: 452.4 | DY36: 426.1 | DZ36: 399.7 | EA36: 373.8 | EB36: 347.4 | EC36: 430.3 | ED36: 420.8 | EE36: 396.3 | EF36: 371.8 | EG36: 347.7 | EH36: 323.1 | EI36: 606.6 | EJ36: 596.3 | EK36: 570.2 | EL36: 544.1 | EM36: 517.4 | EN36: 491.3 | EO36: 564.2 | EP36: 554.6 | EQ36: 530.3 | ER36: 506.1 | ES36: 481.2 | ET36: 457 | FG36: 395.1 | FH36: 384.8 | FI36: 358.8 | FJ36: 332.3 | FK36: 306.2 | FL36: 279.7 | FM36: 367.5 | FN36: 357.9 | FO36: 333.7 | FP36: 309.1 | FQ36: 284.8 | FR36: 260.2 | FS36: 398.7 | FT36: 388.3 | FU36: 362 | FV36: 336.1 | FW36: 309.8 | FX36: 283.5 | FY36: 370.8 | FZ36: 361.2 | GA36: 336.7 | GB36: 312.6 | GC36: 288.2 | GD36: 263.7 | GE36: 372.6 | GF36: 362.2 | GG36: 336.1 | GH36: 309.6 | GI36: 283.5 | GJ36: 257.5 | GK36: 346.6 | GL36: 336.9 | GM36: 312.6 | GN36: 288 | GO36: 263.7 | GP36: 239.5 | GQ36: 352.8 | GR36: 342.6 | GS36: 316.1 | GT36: 290 | GU36: 263.9 | GV36: 237.4 | GW36: 328.2 | GX36: 318.7 | GY36: 294 | GZ36: 269.7 | HA36: 245.5 | HB36: 220.8 | HO36: 404.1 | HP36: 394 | HQ36: 367.7 | HR36: 341.5 | HS36: 315.2 | HT36: 288.9 | HU36: 375.9 | HV36: 366.5 | HW36: 342 | HX36: 317.6 | HY36: 293.2 | HZ36: 268.7 | IA36: 369 | IB36: 358.7 | IC36: 332.5 | ID36: 306.3 | IE36: 280.1 | IF36: 253.9 | IG36: 343.2 | IH36: 333.6 | II36: 309.3 | IJ36: 284.9 | IK36: 260.5 | IL36: 236.2 | IM36: 358.2 | IN36: 347.8 | IO36: 321.7 | IP36: 295.5 | IQ36: 269 | IR36: 242.9 | IS36: 333.2 | IT36: 323.5 | IU36: 299.2 | IV36: 274.9 | IW36: 250.2 | IX36: 225.9 | JK36: 358.7 | JL36: 348.3 | JM36: 322.1 | JN36: 295.9 | JO36: 269.7 | JP36: 243.6 | JQ36: 333.6 | JR36: 324 | JS36: 299.6 | JT36: 275.2 | JU36: 250.9 | JV36: 226.6 | JW36: 368.1 | JX36: 357.8 | JY36: 331.7 | JZ36: 305.2 | KA36: 279 | KB36: 252.9 | KC36: 342.4 | KD36: 332.8 | KE36: 308.5 | KF36: 283.9 | KG36: 259.5 | KH36: 235.2 | KI36: 431.1 | KJ36: 420.8 | KK36: 394.5 | KL36: 368.2 | KM36: 342.3 | KN36: 316 | KO36: 401 | KP36: 391.4 | KQ36: 366.9 | KR36: 342.5 | KS36: 318.4 | KT36: 293.9 | KU36: 397.8 | KV36: 387.5 | KW36: 361.2 | KX36: 334.9 | KY36: 308.7 | KZ36: 282.4 | LA36: 370 | LB36: 360.4 | LC36: 336 | LD36: 311.5 | LE36: 287.1 | LF36: 262.7 | LG36: 378.9 | LH36: 368.7 | LI36: 342.5 | LJ36: 316 | LK36: 289.9 | LL36: 263.7 | LM36: 352.4 | LN36: 342.9 | LO36: 318.6 | LP36: 293.9 | LQ36: 269.7 | LR36: 245.3 | LS36: 433.8 | LT36: 423.4 | LU36: 397.4 | LV36: 370.9 | LW36: 344.9 | LX36: 318.4 | LY36: 403.5 | LZ36: 393.8 | MA36: 369.6 | MB36: 345 | MC36: 320.8 | MD36: 296.2 | ME36: 400.6 | MF36: 390.2 | MG36: 364.1 | MH36: 337.7 | MI36: 311.7 | MJ36: 285.2 | MK36: 372.6 | ML36: 362.9 | MM36: 338.7 | MN36: 314.1 | MO36: 289.9 | MP36: 265.3 | MQ36: 382.5 | MR36: 372.2 | MS36: 345.8 | MT36: 319.8 | MU36: 293.4 | MV36: 267.4 | MW36: 355.8 | MX36: 346.2 | MY36: 321.6 | MZ36: 297.5 | NA36: 272.9 | NB36: 248.7 | NC36: 420.3 | ND36: 410.2 | NE36: 383.7 | NF36: 357.7 | NG36: 331.2 | NH36: 305.1 | NI36: 390.9 | NJ36: 381.5 | NK36: 356.9 | NL36: 332.7 | NM36: 308.1 | NN36: 283.8 | OM36: 361.8 | ON36: 351.5 | OO36: 325.3 | OP36: 298.8 | OQ36: 272.8 | OR36: 246.4 | OS36: 336.5 | OT36: 326.9 | OU36: 302.6 | OV36: 277.9 | OW36: 253.8 | OX36: 229.2 | PW36: 421.9 | PX36: 411.8 | PY36: 385.2 | PZ36: 359 | QA36: 332.9 | QB36: 306.7 | QC36: 392.4 | QD36: 383 | QE36: 358.3 | QF36: 333.9 | QG36: 309.6 | QH36: 285.3 | QI36: 373 | QJ36: 362.6 | QK36: 336.4 | QL36: 310.3 | QM36: 283.9 | QN36: 257.7 | QO36: 346.9 | QP36: 337.3 | QQ36: 312.9 | QR36: 288.6 | QS36: 264.1 | QT36: 239.7 | RG36: 361.8 | RH36: 351.5 | RI36: 325.3 | RJ36: 298.8 | RK36: 272.8 | RL36: 246.4 | RM36: 336.5 | RN36: 326.9 | RO36: 302.6 | RP36: 277.9 | RQ36: 253.8 | RR36: 229.2 | RS36: 486.9 | RT36: 476.7 | RU36: 450.4 | RV36: 424.1 | RW36: 397.8 | RX36: 371.5 | RY36: 452.9 | RZ36: 443.4 | SA36: 418.9 | SB36: 394.5 | SC36: 370 | SD36: 345.5 | SE36: 439.7 | SF36: 429.6 | SG36: 403.2 | SH36: 376.8 | SI36: 350.9 | SJ36: 324.5 | SK36: 409 | SL36: 399.6 | SM36: 375 | SN36: 350.5 | SO36: 326.4 | SP36: 301.8 | SQ36: 395.1 | SR36: 384.8 | SS36: 358.8 | ST36: 332.3 | SU36: 306.2 | SV36: 279.7 | SW36: 367.5 | SX36: 357.9 | SY36: 333.7 | SZ36: 309.1 | TA36: 284.8 | TB36: 260.2
A37: 246 | B37: Krankenkasse Steffisburg | C37: TAR-BASE | D37: Assurance de base | F37: 37 | AE37: 485 | AF37: 473.4 | AG37: 444.2 | AH37: 415 | AI37: 385.9 | AJ37: 356.7 | AK37: 453.5 | AL37: 442.6 | AM37: 415.3 | AN37: 388 | AO37: 360.8 | AP37: 333.5 | AQ37: 455.7 | AR37: 444.1 | AS37: 414.9 | AT37: 385.7 | AU37: 356.6 | AV37: 327.4 | AW37: 426.1 | AX37: 415.2 | AY37: 387.9 | AZ37: 360.6 | BA37: 333.4 | BB37: 306.1 | CA37: 558.6 | CB37: 547 | CC37: 517.8 | CD37: 488.6 | CE37: 459.5 | CF37: 430.3 | CG37: 522.3 | CH37: 511.4 | CI37: 484.1 | CJ37: 456.8 | CK37: 429.6 | CL37: 402.3 | CM37: 480.4 | CN37: 468.8 | CO37: 439.6 | CP37: 410.4 | CQ37: 381.3 | CR37: 352.1 | CS37: 449.2 | CT37: 438.3 | CU37: 411 | CV37: 383.7 | CW37: 356.5 | CX37: 329.2 | CY37: 456.4 | CZ37: 444.8 | DA37: 415.6 | DB37: 386.4 | DC37: 357.3 | DD37: 328.1 | DE37: 426.7 | DF37: 415.9 | DG37: 388.6 | DH37: 361.3 | DI37: 334.1 | DJ37: 306.8 | FG37: 430 | FH37: 418.4 | FI37: 389.2 | FJ37: 360 | FK37: 330.9 | FL37: 301.7 | FM37: 402.1 | FN37: 391.2 | FO37: 363.9 | FP37: 336.6 | FQ37: 309.4 | FR37: 282.1 | JK37: 393.7 | JL37: 382.1 | JM37: 352.9 | JN37: 323.7 | JO37: 294.6 | JP37: 265.4 | JQ37: 368.1 | JR37: 357.3 | JS37: 330 | JT37: 302.7 | JU37: 275.5 | JV37: 248.1 | JW37: 402.2 | JX37: 390.6 | JY37: 361.4 | JZ37: 332.2 | KA37: 303.1 | KB37: 273.9 | KC37: 376.1 | KD37: 365.2 | KE37: 337.9 | KF37: 310.6 | KG37: 283.4 | KH37: 256.1 | MQ37: 422.4 | MR37: 410.8 | MS37: 381.6 | MT37: 352.4 | MU37: 323.3 | MV37: 294.1 | MW37: 394.9 | MX37: 384.1 | MY37: 356.8 | MZ37: 329.5 | NA37: 302.3 | NB37: 275 | OM37: 391.8 | ON37: 380.2 | OO37: 351 | OP37: 321.8 | OQ37: 292.7 | OR37: 263.5 | OS37: 366.3 | OT37: 355.5 | OU37: 328.2 | OV37: 300.9 | OW37: 273.7 | OX37: 246.4 | PW37: 475.8 | PX37: 464.2 | PY37: 435 | PZ37: 405.8 | QA37: 376.7 | QB37: 347.5 | QC37: 444.9 | QD37: 434 | QE37: 406.7 | QF37: 379.4 | QG37: 352.2 | QH37: 324.9 | QI37: 413 | QJ37: 401.4 | QK37: 372.2 | QL37: 343 | QM37: 313.9 | QN37: 284.7 | QO37: 386.2 | QP37: 375.3 | QQ37: 348 | QR37: 320.7 | QS37: 293.5 | QT37: 266.2 | RG37: 398.9 | RH37: 387.3 | RI37: 358.1 | RJ37: 328.9 | RK37: 299.8 | RL37: 270.6 | RM37: 373 | RN37: 362.1 | RO37: 334.8 | RP37: 307.5 | RQ37: 280.3 | RR37: 253 | RS37: 531.8 | RT37: 520.2 | RU37: 491 | RV37: 461.8 | RW37: 432.7 | RX37: 403.5 | RY37: 497.2 | RZ37: 486.4 | SA37: 459.1 | SB37: 431.8 | SC37: 404.6 | SD37: 377.3 | SE37: 478.7 | SF37: 467.1 | SG37: 437.9 | SH37: 408.7 | SI37: 379.6 | SJ37: 350.4 | SK37: 447.6 | SL37: 436.7 | SM37: 409.4 | SN37: 382.1 | SO37: 354.9 | SP37: 327.6 | SQ37: 459.6 | SR37: 448 | SS37: 418.8 | ST37: 389.6 | SU37: 360.5 | SV37: 331.3 | SW37: 429.7 | SX37: 418.9 | SY37: 391.6 | SZ37: 364.3 | TA37: 337.1 | TB37: 309.8
C38: TAR-HAM | D38: beodocs | F38: 38 | CM38: 428.4 | CN38: 416.8 | CO38: 387.6 | CP38: 358.4 | CQ38: 329.3 | CR38: 300.1 | CS38: 400.6 | CT38: 389.7 | CU38: 362.4 | CV38: 335.1 | CW38: 307.9 | CX38: 280.6 | CY38: 396.4 | CZ38: 384.8 | DA38: 355.6 | DB38: 326.4 | DC38: 297.3 | DD38: 268.1 | DE38: 370.6 | DF38: 359.8 | DG38: 332.5 | DH38: 305.2 | DI38: 278 | DJ38: 250.7
D39: Casa | F39: 39 | AE39: 416 | AF39: 404.4 | AG39: 375.2 | AH39: 346 | AI39: 316.9 | AJ39: 287.7 | AK39: 389 | AL39: 378.1 | AM39: 350.8 | AN39: 323.5 | AO39: 296.3 | AP39: 269 | AQ39: 395.7 | AR39: 384.1 | AS39: 354.9 | AT39: 325.7 | AU39: 296.6 | AV39: 267.4 | AW39: 370 | AX39: 359.1 | AY39: 331.8 | AZ39: 304.5 | BA39: 277.3 | BB39: 250 | CA39: 480.6 | CB39: 469 | CC39: 439.8 | CD39: 410.6 | CE39: 381.5 | CF39: 352.3 | CG39: 449.4 | CH39: 438.5 | CI39: 411.2 | CJ39: 383.9 | CK39: 356.7 | CL39: 329.4 | CM39: 470.4 | CN39: 458.8 | CO39: 429.6 | CP39: 400.4 | CQ39: 371.3 | CR39: 342.1 | CS39: 439.8 | CT39: 429 | CU39: 401.7 | CV39: 374.4 | CW39: 347.2 | CX39: 319.9 | CY39: 416.4 | CZ39: 404.8 | DA39: 375.6 | DB39: 346.4 | DC39: 317.3 | DD39: 288.1 | DE39: 389.3 | DF39: 378.5 | DG39: 351.2 | DH39: 323.9 | DI39: 296.7 | DJ39: 269.4 | FG39: 369 | FH39: 357.4 | FI39: 328.2 | FJ39: 299 | FK39: 269.9 | FL39: 240.7 | FM39: 345 | FN39: 334.2 | FO39: 306.9 | FP39: 279.6 | FQ39: 252.4 | FR39: 225.1 | JK39: 341.7 | JL39: 330.1 | JM39: 300.9 | JN39: 271.7 | JO39: 242.6 | JP39: 213.4 | JQ39: 319.5 | JR39: 308.6 | JS39: 281.3 | JT39: 254 | JU39: 226.8 | JV39: 199.5 | JW39: 347.2 | JX39: 335.6 | JY39: 306.4 | JZ39: 277.2 | KA39: 248.1 | KB39: 218.9 | KC39: 324.6 | KD39: 313.8 | KE39: 286.5 | KF39: 259.2 | KG39: 232 | KH39: 204.7 | MQ39: 358.4 | MR39: 346.8 | MS39: 317.6 | MT39: 288.4 | MU39: 259.3 | MV39: 230.1 | MW39: 335.1 | MX39: 324.3 | MY39: 297 | MZ39: 269.7 | NA39: 242.4 | NB39: 215.1 | OM39: 335.8 | ON39: 324.2 | OO39: 295 | OP39: 265.8 | OQ39: 236.7 | OR39: 209.6 | OS39: 314 | OT39: 303.1 | OU39: 275.8 | OV39: 248.5 | OW39: 221.3 | OX39: 196 | QI39: 356 | QJ39: 344.4 | QK39: 315.2 | QL39: 286 | QM39: 256.9 | QN39: 227.7 | QO39: 332.9 | QP39: 322 | QQ39: 294.7 | QR39: 267.4 | QS39: 240.2 | QT39: 212.9 | RG39: 343.9 | RH39: 332.3 | RI39: 303.1 | RJ39: 273.9 | RK39: 244.8 | RL39: 215.6 | RM39: 321.5 | RN39: 310.7 | RO39: 283.4 | RP39: 256.1 | RQ39: 228.9 | RR39: 201.6 | RS39: 468.8 | RT39: 457.2 | RU39: 428 | RV39: 398.8 | RW39: 369.7 | RX39: 340.5 | RY39: 438.3 | RZ39: 427.5 | SA39: 400.2 | SB39: 372.9 | SC39: 345.7 | SD39: 318.4 | SE39: 412.7 | SF39: 401.1 | SG39: 371.9 | SH39: 342.7 | SI39: 313.6 | SJ39: 284.4 | SK39: 385.9 | SL39: 375 | SM39: 347.7 | SN39: 320.4 | SO39: 293.2 | SP39: 265.9 | SQ39: 409.6 | SR39: 398 | SS39: 368.8 | ST39: 339.6 | SU39: 310.5 | SV39: 281.3 | SW39: 383 | SX39: 372.1 | SY39: 344.8 | SZ39: 317.5 | TA39: 290.3 | TB39: 263
D40: igomed | F40: 40 | CM40: 428.4 | CN40: 416.8 | CO40: 387.6 | CP40: 358.4 | CQ40: 329.3 | CR40: 300.1 | CS40: 400.6 | CT40: 389.7 | CU40: 362.4 | CV40: 335.1 | CW40: 307.9 | CX40: 280.6 | CY40: 396.4 | CZ40: 384.8 | DA40: 355.6 | DB40: 326.4 | DC40: 297.3 | DD40: 268.1 | DE40: 370.6 | DF40: 359.8 | DG40: 332.5 | DH40: 305.2 | DI40: 278 | DJ40: 250.7
D41: Regiomed | F41: 41 | CM41: 415.4 | CN41: 403.8 | CO41: 374.6 | CP41: 345.4 | CQ41: 316.3 | CR41: 287.1 | CS41: 388.4 | CT41: 377.6 | CU41: 350.3 | CV41: 322.9 | CW41: 295.7 | CX41: 268.4
C42: TAR-DIV | D42: Sanmed24 | F42: 42 | AE42: 419 | AF42: 407.4 | AG42: 378.2 | AH42: 349 | AI42: 319.9 | AJ42: 290.7 | AK42: 391.8 | AL42: 380.9 | AM42: 353.6 | AN42: 326.3 | AO42: 299.1 | AP42: 271.8 | AQ42: 406.7 | AR42: 395.1 | AS42: 365.9 | AT42: 336.7 | AU42: 307.6 | AV42: 278.4 | AW42: 380.3 | AX42: 369.4 | AY42: 342.1 | AZ42: 314.8 | BA42: 287.6 | BB42: 260.3 | CA42: 498.6 | CB42: 487 | CC42: 457.8 | CD42: 428.6 | CE42: 399.5 | CF42: 370.3 | CG42: 466.2 | CH42: 455.3 | CI42: 428 | CJ42: 400.7 | CK42: 373.5 | CL42: 346.2 | CM42: 449.4 | CN42: 437.8 | CO42: 408.6 | CP42: 379.4 | CQ42: 350.3 | CR42: 321.1 | CS42: 420.2 | CT42: 409.3 | CU42: 382 | CV42: 354.7 | CW42: 327.5 | CX42: 300.2 | CY42: 410.4 | CZ42: 398.8 | DA42: 369.6 | DB42: 340.4 | DC42: 311.3 | DD42: 282.1 | DE42: 383.7 | DF42: 372.9 | DG42: 345.6 | DH42: 318.3 | DI42: 291.1 | DJ42: 263.8 | FG42: 376 | FH42: 364.4 | FI42: 335.2 | FJ42: 306 | FK42: 276.9 | FL42: 247.7 | FM42: 351.6 | FN42: 340.7 | FO42: 313.4 | FP42: 286.1 | FQ42: 258.9 | FR42: 231.6 | JK42: 345.7 | JL42: 334.1 | JM42: 304.9 | JN42: 275.7 | JO42: 246.6 | JP42: 217.4 | JQ42: 323.2 | JR42: 312.4 | JS42: 285.1 | JT42: 257.8 | JU42: 230.6 | JV42: 203.3 | JW42: 366.2 | JX42: 354.6 | JY42: 325.4 | JZ42: 296.2 | KA42: 267.1 | KB42: 237.9 | KC42: 342.4 | KD42: 331.6 | KE42: 304.2 | KF42: 276.9 | KG42: 249.7 | KH42: 222.4 | MQ42: 372.4 | MR42: 360.8 | MS42: 331.6 | MT42: 302.4 | MU42: 273.3 | MV42: 244.1 | MW42: 348.2 | MX42: 337.3 | MY42: 310 | MZ42: 282.7 | NA42: 255.5 | NB42: 228.2 | OM42: 340.8 | ON42: 329.2 | OO42: 300 | OP42: 270.8 | OQ42: 241.7 | OR42: 212.5 | OS42: 318.6 | OT42: 307.8 | OU42: 280.5 | OV42: 253.2 | OW42: 226 | OX42: 198.7 | QI42: 359 | QJ42: 347.4 | QK42: 318.2 | QL42: 289 | QM42: 259.9 | QN42: 230.7 | QO42: 335.7 | QP42: 324.8 | QQ42: 297.5 | QR42: 270.2 | QS42: 243 | QT42: 215.7 | RG42: 348.9 | RH42: 337.3 | RI42: 308.1 | RJ42: 278.9 | RK42: 249.8 | RL42: 220.6 | RM42: 326.2 | RN42: 315.4 | RO42: 288.1 | RP42: 260.8 | RQ42: 233.6 | RR42: 206.3 | RS42: 457.8 | RT42: 446.2 | RU42: 417 | RV42: 387.8 | RW42: 358.7 | RX42: 329.5 | RY42: 428 | RZ42: 417.2 | SA42: 389.9 | SB42: 362.6 | SC42: 335.4 | SD42: 308.1 | SE42: 419.7 | SF42: 408.1 | SG42: 378.9 | SH42: 349.7 | SI42: 320.6 | SJ42: 291.4 | SK42: 392.4 | SL42: 381.6 | SM42: 354.3 | SN42: 327 | SO42: 299.8 | SP42: 272.5 | SQ42: 404.6 | SR42: 393 | SS42: 363.8 | ST42: 334.6 | SU42: 305.5 | SV42: 276.3 | SW42: 378.3 | SX42: 367.5 | SY42: 340.2 | SZ42: 312.9 | TA42: 285.6 | TB42: 258.3
A43: 290 | B43: CONCORDIA Schweiz. Kranken- und Unfallversicherung AG | C43: TAR-BASE | D43: Assurance de base | F43: 43 | G43: 498.6 | H43: 487 | I43: 457.8 | J43: 428.6 | K43: 399.5 | L43: 370.3 | M43: 471.2 | N43: 460.3 | O43: 432.7 | P43: 405.1 | Q43: 377.6 | R43: 350 | S43: 461.4 | T43: 449.8 | U43: 420.6 | V43: 391.4 | W43: 362.3 | X43: 333.1 | Y43: 436.1 | Z43: 425.1 | AA43: 397.5 | AB43: 369.9 | AC43: 342.4 | AD43: 314.8 | AE43: 504 | AF43: 492.4 | AG43: 463.2 | AH43: 434 | AI43: 404.9 | AJ43: 375.7 | AK43: 476.3 | AL43: 465.4 | AM43: 437.8 | AN43: 410.2 | AO43: 382.7 | AP43: 355.1 | AQ43: 465.6 | AR43: 454 | AS43: 424.8 | AT43: 395.6 | AU43: 366.5 | AV43: 337.3 | AW43: 440 | AX43: 429.1 | AY43: 401.5 | AZ43: 373.9 | BA43: 346.4 | BB43: 318.8 | BC43: 373.4 | BD43: 361.8 | BE43: 332.6 | BF43: 303.4 | BG43: 274.3 | BH43: 245.1 | BI43: 352.9 | BJ43: 342 | BK43: 314.4 | BL43: 286.8 | BM43: 259.3 | BN43: 231.7 | BO43: 429.7 | BP43: 418.1 | BQ43: 388.9 | BR43: 359.7 | BS43: 330.6 | BT43: 301.4 | BU43: 406.1 | BV43: 395.2 | BW43: 367.6 | BX43: 340 | BY43: 312.5 | BZ43: 284.9 | CA43: 587.3 | CB43: 575.7 | CC43: 546.5 | CD43: 517.3 | CE43: 488.2 | CF43: 459 | CG43: 555 | CH43: 544.1 | CI43: 516.5 | CJ43: 488.9 | CK43: 461.4 | CL43: 433.8 | CM43: 517.7 | CN43: 506.1 | CO43: 476.9 | CP43: 447.7 | CQ43: 418.6 | CR43: 389.4 | CS43: 489.3 | CT43: 478.3 | CU43: 450.7 | CV43: 423.1 | CW43: 395.6 | CX43: 368 | CY43: 484.4 | CZ43: 472.8 | DA43: 443.6 | DB43: 414.4 | DC43: 385.3 | DD43: 356.1 | DE43: 457.8 | DF43: 446.8 | DG43: 419.3 | DH43: 391.7 | DI43: 364.2 | DJ43: 336.6 | DK43: 576 | DL43: 564.4 | DM43: 535.2 | DN43: 506 | DO43: 476.9 | DP43: 447.7 | DQ43: 544.4 | DR43: 533.4 | DS43: 505.8 | DT43: 478.2 | DU43: 450.7 | DV43: 423.1 | DW43: 536.3 | DX43: 524.7 | DY43: 495.5 | DZ43: 466.3 | EA43: 437.2 | EB43: 408 | EC43: 506.9 | ED43: 495.9 | EE43: 468.3 | EF43: 440.7 | EG43: 413.2 | EH43: 385.6 | EI43: 623.5 | EJ43: 611.9 | EK43: 582.7 | EL43: 553.5 | EM43: 524.4 | EN43: 495.2 | EO43: 589.3 | EP43: 578.3 | EQ43: 550.7 | ER43: 523.1 | ES43: 495.6 | ET43: 468 | EU43: 622.5 | EV43: 610.9 | EW43: 581.7 | EX43: 552.5 | EY43: 523.4 | EZ43: 494.2 | FA43: 588.3 | FB43: 577.4 | FC43: 549.8 | FD43: 522.2 | FE43: 494.7 | FF43: 467.1 | FG43: 440.4 | FH43: 428.8 | FI43: 399.6 | FJ43: 370.4 | FK43: 341.3 | FL43: 312.1 | FM43: 416.2 | FN43: 405.3 | FO43: 377.7 | FP43: 350.1 | FQ43: 322.6 | FR43: 295 | FS43: 449.3 | FT43: 437.7 | FU43: 408.5 | FV43: 379.3 | FW43: 350.2 | FX43: 321 | FY43: 424.6 | FZ43: 413.7 | GA43: 386.1 | GB43: 358.5 | GC43: 331 | GD43: 303.4 | GE43: 435.3 | GF43: 423.7 | GG43: 394.5 | GH43: 365.3 | GI43: 336.2 | GJ43: 307 | GK43: 411.4 | GL43: 400.4 | GM43: 372.9 | GN43: 345.3 | GO43: 317.8 | GP43: 290.2 | GQ43: 412.1 | GR43: 400.5 | GS43: 371.3 | GT43: 342.1 | GU43: 313 | GV43: 283.8 | GW43: 389.5 | GX43: 378.5 | GY43: 350.9 | GZ43: 323.3 | HA43: 295.8 | HB43: 268.2 | HC43: 556.7 | HD43: 545.1 | HE43: 515.9 | HF43: 486.7 | HG43: 457.6 | HH43: 428.4 | HI43: 526.1 | HJ43: 515.2 | HK43: 487.6 | HL43: 460 | HM43: 432.5 | HN43: 404.9 | HO43: 471.9 | HP43: 460.3 | HQ43: 431.1 | HR43: 401.9 | HS43: 372.8 | HT43: 343.6 | HU43: 446 | HV43: 435 | HW43: 407.4 | HX43: 379.8 | HY43: 352.3 | HZ43: 324.8 | IA43: 443.5 | IB43: 431.9 | IC43: 402.7 | ID43: 373.5 | IE43: 344.4 | IF43: 315.2 | IG43: 419.2 | IH43: 408.2 | II43: 380.6 | IJ43: 353 | IK43: 325.5 | IL43: 297.9 | IM43: 427.2 | IN43: 415.6 | IO43: 386.4 | IP43: 357.2 | IQ43: 328.1 | IR43: 298.9 | IS43: 403.8 | IT43: 392.8 | IU43: 365.2 | IV43: 337.6 | IW43: 310.1 | IX43: 282.5 | IY43: 620.6 | IZ43: 609 | JA43: 579.8 | JB43: 550.6 | JC43: 521.5 | JD43: 492.3 | JE43: 586.5 | JF43: 575.6 | JG43: 548 | JH43: 520.4 | JI43: 492.9 | JJ43: 465.3 | JK43: 419.6 | JL43: 408 | JM43: 378.8 | JN43: 349.6 | JO43: 320.5 | JP43: 291.3 | JQ43: 396.6 | JR43: 385.6 | JS43: 358 | JT43: 330.4 | JU43: 302.9 | JV43: 275.3 | JW43: 414.1 | JX43: 402.5 | JY43: 373.3 | JZ43: 344.1 | KA43: 315 | KB43: 285.8 | KC43: 391.4 | KD43: 380.4 | KE43: 352.8 | KF43: 325.2 | KG43: 297.7 | KH43: 270.1 | KI43: 491.9 | KJ43: 480.3 | KK43: 451.1 | KL43: 421.9 | KM43: 392.8 | KN43: 363.6 | KO43: 464.9 | KP43: 453.9 | KQ43: 426.3 | KR43: 398.7 | KS43: 371.2 | KT43: 343.7 | KU43: 460.9 | KV43: 449.3 | KW43: 420.1 | KX43: 390.9 | KY43: 361.8 | KZ43: 332.6 | LA43: 435.6 | LB43: 424.6 | LC43: 397 | LD43: 369.5 | LE43: 342 | LF43: 314.4 | LG43: 445.8 | LH43: 434.2 | LI43: 405 | LJ43: 375.8 | LK43: 346.7 | LL43: 317.5 | LM43: 421.3 | LN43: 410.4 | LO43: 382.8 | LP43: 355.2 | LQ43: 327.7 | LR43: 300.1 | LS43: 494.1 | LT43: 482.5 | LU43: 453.3 | LV43: 424.1 | LW43: 395 | LX43: 365.8 | LY43: 467 | LZ43: 456 | MA43: 428.4 | MB43: 400.8 | MC43: 373.3 | MD43: 345.7 | ME43: 459.8 | MF43: 448.2 | MG43: 419 | MH43: 389.8 | MI43: 360.7 | MJ43: 331.5 | MK43: 434.6 | ML43: 423.6 | MM43: 396 | MN43: 368.4 | MO43: 340.9 | MP43: 313.3 | MQ43: 430.1 | MR43: 418.5 | MS43: 389.3 | MT43: 360.1 | MU43: 331 | MV43: 301.8 | MW43: 406.5 | MX43: 395.5 | MY43: 367.9 | MZ43: 340.3 | NA43: 312.8 | NB43: 285.3 | NC43: 459.9 | ND43: 448.3 | NE43: 419.1 | NF43: 389.9 | NG43: 360.8 | NH43: 331.6 | NI43: 434.7 | NJ43: 423.7 | NK43: 396.1 | NL43: 368.5 | NM43: 341 | NN43: 313.4 | NO43: 571.5 | NP43: 559.9 | NQ43: 530.7 | NR43: 501.5 | NS43: 472.4 | NT43: 443.2 | NU43: 540.1 | NV43: 529.2 | NW43: 501.6 | NX43: 474 | NY43: 446.5 | NZ43: 418.9 | OA43: 532.6 | OB43: 521 | OC43: 491.8 | OD43: 462.6 | OE43: 433.5 | OF43: 404.3 | OG43: 503.4 | OH43: 492.4 | OI43: 464.8 | OJ43: 437.2 | OK43: 409.7 | OL43: 382.1 | OM43: 416.5 | ON43: 404.9 | OO43: 375.7 | OP43: 346.5 | OQ43: 317.4 | OR43: 288.2 | OS43: 393.6 | OT43: 382.7 | OU43: 355.1 | OV43: 327.5 | OW43: 300 | OX43: 272.4 | OY43: 596.1 | OZ43: 584.5 | PA43: 555.3 | PB43: 526.1 | PC43: 497 | PD43: 467.8 | PE43: 563.4 | PF43: 552.4 | PG43: 524.8 | PH43: 497.2 | PI43: 469.7 | PJ43: 442.1 | PK43: 565.9 | PL43: 554.3 | PM43: 525.1 | PN43: 495.9 | PO43: 466.8 | PP43: 437.6 | PQ43: 534.8 | PR43: 523.9 | PS43: 496.3 | PT43: 468.7 | PU43: 441.2 | PV43: 413.6 | PW43: 488.2 | PX43: 476.6 | PY43: 447.4 | PZ43: 418.2 | QA43: 389.1 | QB43: 359.9 | QC43: 461.4 | QD43: 450.4 | QE43: 422.8 | QF43: 395.2 | QG43: 367.7 | QH43: 340.2 | QI43: 448.3 | QJ43: 436.7 | QK43: 407.5 | QL43: 378.3 | QM43: 349.2 | QN43: 320 | QO43: 423.7 | QP43: 412.7 | QQ43: 385.1 | QR43: 357.5 | QS43: 330 | QT43: 302.4 | RG43: 399.9 | RH43: 388.3 | RI43: 359.1 | RJ43: 329.9 | RK43: 300.8 | RL43: 271.6 | RM43: 378 | RN43: 367 | RO43: 339.4 | RP43: 311.8 | RQ43: 284.3 | RR43: 256.7 | RS43: 552.4 | RT43: 540.8 | RU43: 511.6 | RV43: 482.4 | RW43: 453.3 | RX43: 424.1 | RY43: 522.1 | RZ43: 511.1 | SA43: 483.5 | SB43: 455.9 | SC43: 428.4 | SD43: 400.8 | SE43: 487.4 | SF43: 475.8 | SG43: 446.6 | SH43: 417.4 | SI43: 388.3 | SJ43: 359.1 | SK43: 460.6 | SL43: 449.7 | SM43: 422.1 | SN43: 394.5 | SO43: 367 | SP43: 339.4 | SQ43: 456.6 | SR43: 445 | SS43: 415.8 | ST43: 386.6 | SU43: 357.5 | SV43: 328.3 | SW43: 431.5 | SX43: 420.6 | SY43: 393 | SZ43: 365.4 | TA43: 337.9 | TB43: 310.3
C44: TAR-HAM | D44: MyDoc | F44: 44 | G44: 433.8 | H44: 422.2 | I44: 393 | J44: 363.8 | K44: 334.7 | L44: 305.5 | M44: 410 | N44: 399 | O44: 371.4 | P44: 343.8 | Q44: 316.3 | R44: 288.7 | S44: 401.5 | T44: 389.9 | U44: 360.7 | V44: 331.5 | W44: 302.4 | X44: 273.2 | Y44: 379.5 | Z44: 368.5 | AA44: 340.9 | AB44: 313.3 | AC44: 285.8 | AD44: 258.2 | AE44: 438.5 | AF44: 426.9 | AG44: 397.7 | AH44: 368.5 | AI44: 339.4 | AJ44: 310.2 | AK44: 414.4 | AL44: 403.5 | AM44: 375.9 | AN44: 348.3 | AO44: 320.8 | AP44: 293.2 | AQ44: 409.8 | AR44: 398.2 | AS44: 369 | AT44: 339.8 | AU44: 310.7 | AV44: 281.5 | AW44: 387.3 | AX44: 376.3 | AY44: 348.8 | AZ44: 321.2 | BA44: 293.7 | BB44: 266.1 | BC44: 330.5 | BD44: 318.9 | BE44: 289.7 | BF44: 260.5 | BG44: 231.4 | BH44: 202.2 | BI44: 312.4 | BJ44: 301.4 | BK44: 273.8 | BL44: 246.2 | BM44: 218.7 | BN44: 191.1 | BO44: 382.5 | BP44: 370.9 | BQ44: 341.7 | BR44: 312.5 | BS44: 283.4 | BT44: 254.2 | BU44: 361.5 | BV44: 350.6 | BW44: 323 | BX44: 295.4 | BY44: 267.9 | BZ44: 240.3 | CA44: 522.7 | CB44: 511.1 | CC44: 481.9 | CD44: 452.7 | CE44: 423.6 | CF44: 394.4 | CG44: 494 | CH44: 483 | CI44: 455.4 | CJ44: 427.9 | CK44: 400.4 | CL44: 372.8 | CM44: 460.8 | CN44: 449.2 | CO44: 420 | CP44: 390.8 | CQ44: 361.7 | CR44: 332.5 | CS44: 435.5 | CT44: 424.5 | CU44: 396.9 | CV44: 369.4 | CW44: 341.9 | CX44: 314.3 | CY44: 431.2 | CZ44: 419.6 | DA44: 390.4 | DB44: 361.2 | DC44: 332.1 | DD44: 302.9 | DE44: 407.5 | DF44: 396.6 | DG44: 369 | DH44: 341.4 | DI44: 313.9 | DJ44: 286.3 | DK44: 501.2 | DL44: 489.6 | DM44: 460.4 | DN44: 431.2 | DO44: 402.1 | DP44: 372.9 | DQ44: 473.7 | DR44: 462.7 | DS44: 435.1 | DT44: 407.5 | DU44: 380 | DV44: 352.4 | DW44: 466.6 | DX44: 455 | DY44: 425.8 | DZ44: 396.6 | EA44: 367.5 | EB44: 338.3 | EC44: 441 | ED44: 430 | EE44: 402.4 | EF44: 374.8 | EG44: 347.3 | EH44: 319.7 | EI44: 545.6 | EJ44: 534 | EK44: 504.8 | EL44: 475.6 | EM44: 446.5 | EN44: 417.3 | EO44: 515.6 | EP44: 504.7 | EQ44: 477.1 | ER44: 449.5 | ES44: 422 | ET44: 394.4 | EU44: 557.2 | EV44: 545.6 | EW44: 516.4 | EX44: 487.2 | EY44: 458.1 | EZ44: 428.9 | FA44: 526.6 | FB44: 515.6 | FC44: 488 | FD44: 460.5 | FE44: 433 | FF44: 405.4 | FG44: 387.6 | FH44: 376 | FI44: 346.8 | FJ44: 317.6 | FK44: 288.5 | FL44: 259.3 | FM44: 366.3 | FN44: 355.4 | FO44: 327.8 | FP44: 300.2 | FQ44: 272.7 | FR44: 245.1 | FS44: 393.2 | FT44: 381.6 | FU44: 352.4 | FV44: 323.2 | FW44: 294.1 | FX44: 264.9 | FY44: 371.6 | FZ44: 360.7 | GA44: 333.1 | GB44: 305.5 | GC44: 278 | GD44: 250.4 | GE44: 380.9 | GF44: 369.3 | GG44: 340.1 | GH44: 310.9 | GI44: 281.8 | GJ44: 252.6 | GK44: 360 | GL44: 349 | GM44: 321.4 | GN44: 293.9 | GO44: 266.4 | GP44: 238.8 | GQ44: 360.6 | GR44: 349 | GS44: 319.8 | GT44: 290.6 | GU44: 261.5 | GV44: 232.3 | GW44: 340.8 | GX44: 329.9 | GY44: 302.3 | GZ44: 274.7 | HA44: 247.2 | HB44: 219.6 | HC44: 489.9 | HD44: 478.3 | HE44: 449.1 | HF44: 419.9 | HG44: 390.8 | HH44: 361.6 | HI44: 463 | HJ44: 452 | HK44: 424.4 | HL44: 396.9 | HM44: 369.4 | HN44: 341.8 | HO44: 420 | HP44: 408.4 | HQ44: 379.2 | HR44: 350 | HS44: 320.9 | HT44: 291.7 | HU44: 396.9 | HV44: 386 | HW44: 358.4 | HX44: 330.8 | HY44: 303.3 | HZ44: 275.7 | IA44: 394.8 | IB44: 383.2 | IC44: 354 | ID44: 324.8 | IE44: 295.7 | IF44: 266.5 | IG44: 373.1 | IH44: 362.2 | II44: 334.6 | IJ44: 307 | IK44: 279.5 | IL44: 251.9 | IM44: 380.3 | IN44: 368.7 | IO44: 339.5 | IP44: 310.3 | IQ44: 281.2 | IR44: 252 | IS44: 359.4 | IT44: 348.5 | IU44: 320.9 | IV44: 293.3 | IW44: 265.8 | IX44: 238.2 | IY44: 540 | IZ44: 528.4 | JA44: 499.2 | JB44: 470 | JC44: 440.9 | JD44: 411.7 | JE44: 510.3 | JF44: 499.4 | JG44: 471.8 | JH44: 444.2 | JI44: 416.7 | JJ44: 389.1 | JK44: 371.4 | JL44: 359.8 | JM44: 330.6 | JN44: 301.4 | JO44: 272.3 | JP44: 243.1 | JQ44: 351 | JR44: 340.1 | JS44: 312.5 | JT44: 284.9 | JU44: 257.4 | JV44: 229.8 | JW44: 366.5 | JX44: 354.9 | JY44: 325.7 | JZ44: 296.5 | KA44: 267.4 | KB44: 238.2 | KC44: 346.4 | KD44: 335.4 | KE44: 307.8 | KF44: 280.2 | KG44: 252.7 | KH44: 225.1 | KI44: 432.9 | KJ44: 421.3 | KK44: 392.1 | KL44: 362.9 | KM44: 333.8 | KN44: 304.6 | KO44: 409.1 | KP44: 398.2 | KQ44: 370.6 | KR44: 343 | KS44: 315.5 | KT44: 287.9 | KU44: 405.6 | KV44: 394 | KW44: 364.8 | KX44: 335.6 | KY44: 306.5 | KZ44: 277.3 | LA44: 383.3 | LB44: 372.4 | LC44: 344.8 | LD44: 317.2 | LE44: 289.7 | LF44: 262.1 | LG44: 392.4 | LH44: 380.8 | LI44: 351.6 | LJ44: 322.4 | LK44: 293.3 | LL44: 264.1 | LM44: 370.9 | LN44: 359.9 | LO44: 332.3 | LP44: 304.7 | LQ44: 277.2 | LR44: 249.6 | LS44: 432.4 | LT44: 420.8 | LU44: 391.6 | LV44: 362.4 | LW44: 333.3 | LX44: 304.1 | LY44: 408.7 | LZ44: 397.7 | MA44: 370.1 | MB44: 342.5 | MC44: 315 | MD44: 287.4 | ME44: 402.4 | MF44: 390.8 | MG44: 361.6 | MH44: 332.4 | MI44: 303.3 | MJ44: 274.1 | MK44: 380.3 | ML44: 369.4 | MM44: 341.8 | MN44: 314.2 | MO44: 286.7 | MP44: 259.1 | MQ44: 382.8 | MR44: 371.2 | MS44: 342 | MT44: 312.8 | MU44: 283.7 | MV44: 254.5 | MW44: 361.8 | MX44: 350.8 | MY44: 323.2 | MZ44: 295.6 | NA44: 268.1 | NB44: 240.6 | NC44: 409.4 | ND44: 397.8 | NE44: 368.6 | NF44: 339.4 | NG44: 310.3 | NH44: 281.1 | NI44: 386.9 | NJ44: 376 | NK44: 348.4 | NL44: 320.8 | NM44: 293.3 | NN44: 265.7 | NO44: 503 | NP44: 491.4 | NQ44: 462.2 | NR44: 433 | NS44: 403.9 | NT44: 374.7 | NU44: 475.4 | NV44: 464.4 | NW44: 436.8 | NX44: 409.2 | NY44: 381.7 | NZ44: 354.1 | OA44: 468.7 | OB44: 457.1 | OC44: 427.9 | OD44: 398.7 | OE44: 369.6 | OF44: 340.4 | OG44: 443 | OH44: 432 | OI44: 404.4 | OJ44: 376.8 | OK44: 349.3 | OL44: 321.7 | OM44: 366.6 | ON44: 355 | OO44: 325.8 | OP44: 296.6 | OQ44: 267.5 | OR44: 238.3 | OS44: 346.5 | OT44: 335.5 | OU44: 307.9 | OV44: 280.3 | OW44: 252.8 | OX44: 225.2 | OY44: 521.6 | OZ44: 510 | PA44: 480.8 | PB44: 451.6 | PC44: 422.5 | PD44: 393.3 | PE44: 493 | PF44: 482 | PG44: 454.4 | PH44: 426.8 | PI44: 399.3 | PJ44: 371.7 | PK44: 495.2 | PL44: 483.6 | PM44: 454.4 | PN44: 425.2 | PO44: 396.1 | PP44: 366.9 | PQ44: 468 | PR44: 457.1 | PS44: 429.5 | PT44: 401.9 | PU44: 374.4 | PV44: 346.8 | PW44: 429.7 | PX44: 418.1 | PY44: 388.9 | PZ44: 359.7 | QA44: 330.6 | QB44: 301.4 | QC44: 406.1 | QD44: 395.2 | QE44: 367.6 | QF44: 340 | QG44: 312.5 | QH44: 284.9 | QI44: 394.6 | QJ44: 383 | QK44: 353.8 | QL44: 324.6 | QM44: 295.5 | QN44: 266.3 | QO44: 372.9 | QP44: 362 | QQ44: 334.4 | QR44: 306.8 | QS44: 279.3 | QT44: 251.7 | RG44: 360 | RH44: 348.4 | RI44: 319.2 | RJ44: 290 | RK44: 260.9 | RL44: 231.7 | RM44: 340.2 | RN44: 329.3 | RO44: 301.7 | RP44: 274.1 | RQ44: 246.6 | RR44: 219 | RS44: 483.4 | RT44: 471.8 | RU44: 442.6 | RV44: 413.4 | RW44: 384.3 | RX44: 355.1 | RY44: 456.9 | RZ44: 445.9 | SA44: 418.3 | SB44: 390.7 | SC44: 363.2 | SD44: 335.6 | SE44: 426.5 | SF44: 414.9 | SG44: 385.7 | SH44: 356.5 | SI44: 327.4 | SJ44: 298.2 | SK44: 403.1 | SL44: 392.1 | SM44: 364.5 | SN44: 336.9 | SO44: 309.4 | SP44: 281.8 | SQ44: 399.6 | SR44: 388 | SS44: 358.8 | ST44: 329.6 | SU44: 300.5 | SV44: 271.3 | SW44: 377.7 | SX44: 366.7 | SY44: 339.1 | SZ44: 311.5 | TA44: 284 | TB44: 256.4
C45: TAR-DIV | D45: smartDoc | F45: 45 | G45: 426.4 | H45: 414.8 | I45: 385.6 | J45: 356.4 | K45: 327.3 | L45: 298.1 | M45: 403 | N45: 392 | O45: 364.4 | P45: 336.8 | Q45: 309.3 | R45: 281.8 | S45: 394.5 | T45: 382.9 | U45: 353.7 | V45: 324.5 | W45: 295.4 | X45: 266.2 | Y45: 372.9 | Z45: 361.9 | AA45: 334.3 | AB45: 306.7 | AC45: 279.2 | AD45: 251.6 | AE45: 428.4 | AF45: 416.8 | AG45: 387.6 | AH45: 358.4 | AI45: 329.3 | AJ45: 300.1 | AK45: 404.9 | AL45: 393.9 | AM45: 366.3 | AN45: 338.7 | AO45: 311.2 | AP45: 283.6 | AQ45: 398.1 | AR45: 386.5 | AS45: 357.3 | AT45: 328.1 | AU45: 299 | AV45: 269.8 | AW45: 376.3 | AX45: 365.3 | AY45: 337.7 | AZ45: 310.1 | BA45: 282.6 | BB45: 255 | BC45: 323 | BD45: 311.4 | BE45: 282.2 | BF45: 253 | BG45: 223.9 | BH45: 197.6 | BI45: 305.3 | BJ45: 294.3 | BK45: 266.7 | BL45: 239.1 | BM45: 211.6 | BN45: 186.8 | BO45: 371.7 | BP45: 360.1 | BQ45: 330.9 | BR45: 301.7 | BS45: 272.6 | BT45: 243.4 | BU45: 351.3 | BV45: 340.3 | BW45: 312.8 | BX45: 285.2 | BY45: 257.7 | BZ45: 230.1 | CA45: 502.2 | CB45: 490.6 | CC45: 461.4 | CD45: 432.2 | CE45: 403.1 | CF45: 373.9 | CG45: 474.6 | CH45: 463.7 | CI45: 436.1 | CJ45: 408.5 | CK45: 381 | CL45: 353.4 | CM45: 442.7 | CN45: 431.1 | CO45: 401.9 | CP45: 372.7 | CQ45: 343.6 | CR45: 314.4 | CS45: 418.4 | CT45: 407.4 | CU45: 379.8 | CV45: 352.3 | CW45: 324.8 | CX45: 297.2 | CY45: 414.2 | CZ45: 402.6 | DA45: 373.4 | DB45: 344.2 | DC45: 315.1 | DD45: 285.9 | DE45: 391.5 | DF45: 380.5 | DG45: 352.9 | DH45: 325.3 | DI45: 297.8 | DJ45: 270.2 | DK45: 492.5 | DL45: 480.9 | DM45: 451.7 | DN45: 422.5 | DO45: 393.4 | DP45: 364.2 | DQ45: 465.5 | DR45: 454.5 | DS45: 426.9 | DT45: 399.3 | DU45: 371.8 | DV45: 344.2 | DW45: 458.6 | DX45: 447 | DY45: 417.8 | DZ45: 388.6 | EA45: 359.5 | EB45: 330.3 | EC45: 433.4 | ED45: 422.5 | EE45: 394.9 | EF45: 367.3 | EG45: 339.8 | EH45: 312.2 | EI45: 533.1 | EJ45: 521.5 | EK45: 492.3 | EL45: 463.1 | EM45: 434 | EN45: 404.8 | EO45: 503.8 | EP45: 492.9 | EQ45: 465.3 | ER45: 437.7 | ES45: 410.2 | ET45: 382.6 | EU45: 532.3 | EV45: 520.7 | EW45: 491.5 | EX45: 462.3 | EY45: 433.2 | EZ45: 404 | FA45: 503.1 | FB45: 492.1 | FC45: 464.5 | FD45: 436.9 | FE45: 409.4 | FF45: 381.8 | FG45: 383.2 | FH45: 371.6 | FI45: 342.4 | FJ45: 313.2 | FK45: 284.1 | FL45: 254.9 | FM45: 362.2 | FN45: 351.2 | FO45: 323.6 | FP45: 296 | FQ45: 268.5 | FR45: 240.9 | FS45: 379.7 | FT45: 368.1 | FU45: 338.9 | FV45: 309.7 | FW45: 280.6 | FX45: 251.4 | FY45: 358.9 | FZ45: 347.9 | GA45: 320.3 | GB45: 292.7 | GC45: 265.2 | GD45: 237.6 | GE45: 367.9 | GF45: 356.3 | GG45: 327.1 | GH45: 297.9 | GI45: 268.8 | GJ45: 239.6 | GK45: 347.7 | GL45: 336.8 | GM45: 309.2 | GN45: 281.6 | GO45: 254.1 | GP45: 226.5 | GQ45: 348.3 | GR45: 336.7 | GS45: 307.5 | GT45: 278.3 | GU45: 249.2 | GV45: 220 | GW45: 329.2 | GX45: 318.2 | GY45: 290.6 | GZ45: 263 | HA45: 235.5 | HB45: 207.9 | HC45: 484.4 | HD45: 472.8 | HE45: 443.6 | HF45: 414.4 | HG45: 385.3 | HH45: 356.1 | HI45: 457.8 | HJ45: 446.8 | HK45: 419.3 | HL45: 391.7 | HM45: 364.2 | HN45: 336.6 | HO45: 405.9 | HP45: 394.3 | HQ45: 365.1 | HR45: 335.9 | HS45: 306.8 | HT45: 277.6 | HU45: 383.6 | HV45: 372.7 | HW45: 345.1 | HX45: 317.5 | HY45: 290 | HZ45: 262.4 | IA45: 381.5 | IB45: 369.9 | IC45: 340.7 | ID45: 311.5 | IE45: 282.4 | IF45: 253.2 | IG45: 360.6 | IH45: 349.6 | II45: 322 | IJ45: 294.4 | IK45: 266.9 | IL45: 239.3 | IM45: 367.4 | IN45: 355.8 | IO45: 326.6 | IP45: 297.4 | IQ45: 268.3 | IR45: 239.1 | IS45: 347.2 | IT45: 336.3 | IU45: 308.7 | IV45: 281.1 | IW45: 253.6 | IX45: 226 | IY45: 527.6 | IZ45: 516 | JA45: 486.8 | JB45: 457.6 | JC45: 428.5 | JD45: 399.3 | JE45: 498.6 | JF45: 487.7 | JG45: 460.1 | JH45: 432.5 | JI45: 405 | JJ45: 377.4 | JK45: 365.1 | JL45: 353.5 | JM45: 324.3 | JN45: 295.1 | JO45: 266 | JP45: 236.8 | JQ45: 345.1 | JR45: 334.1 | JS45: 306.5 | JT45: 278.9 | JU45: 251.4 | JV45: 223.8 | JW45: 360.3 | JX45: 348.7 | JY45: 319.5 | JZ45: 290.3 | KA45: 261.2 | KB45: 232 | KC45: 340.5 | KD45: 329.6 | KE45: 302 | KF45: 274.4 | KG45: 246.9 | KH45: 219.3 | KI45: 420.6 | KJ45: 409 | KK45: 379.8 | KL45: 350.6 | KM45: 321.5 | KN45: 292.3 | KO45: 397.5 | KP45: 386.6 | KQ45: 359 | KR45: 331.4 | KS45: 303.9 | KT45: 276.3 | KU45: 394.1 | KV45: 382.5 | KW45: 353.3 | KX45: 324.1 | KY45: 295 | KZ45: 265.8 | LA45: 372.5 | LB45: 361.5 | LC45: 333.9 | LD45: 306.3 | LE45: 278.8 | LF45: 251.2 | LG45: 381.2 | LH45: 369.6 | LI45: 340.4 | LJ45: 311.2 | LK45: 282.1 | LL45: 252.9 | LM45: 360.3 | LN45: 349.3 | LO45: 321.7 | LP45: 294.1 | LQ45: 266.6 | LR45: 239 | LS45: 422.5 | LT45: 410.9 | LU45: 381.7 | LV45: 352.5 | LW45: 323.4 | LX45: 294.2 | LY45: 399.3 | LZ45: 388.4 | MA45: 360.8 | MB45: 333.2 | MC45: 305.7 | MD45: 278.1 | ME45: 393.2 | MF45: 381.6 | MG45: 352.4 | MH45: 323.2 | MI45: 294.1 | MJ45: 264.9 | MK45: 371.6 | ML45: 360.7 | MM45: 333.1 | MN45: 305.5 | MO45: 278 | MP45: 250.4 | MQ45: 369.9 | MR45: 358.3 | MS45: 329.1 | MT45: 299.9 | MU45: 270.8 | MV45: 241.6 | MW45: 349.6 | MX45: 338.6 | MY45: 311 | MZ45: 283.5 | NA45: 256 | NB45: 228.4 | NC45: 391 | ND45: 379.4 | NE45: 350.2 | NF45: 321 | NG45: 291.9 | NH45: 262.7 | NI45: 369.5 | NJ45: 358.6 | NK45: 331 | NL45: 303.4 | NM45: 275.9 | NN45: 248.3 | NO45: 485.8 | NP45: 474.2 | NQ45: 445 | NR45: 415.8 | NS45: 386.7 | NT45: 357.5 | NU45: 459.1 | NV45: 448.2 | NW45: 420.6 | NX45: 393 | NY45: 365.5 | NZ45: 337.9 | OA45: 452.8 | OB45: 441.2 | OC45: 412 | OD45: 382.8 | OE45: 353.7 | OF45: 324.5 | OG45: 427.9 | OH45: 417 | OI45: 389.4 | OJ45: 361.8 | OK45: 334.3 | OL45: 306.7 | OM45: 360.3 | ON45: 348.7 | OO45: 319.5 | OP45: 290.3 | OQ45: 261.2 | OR45: 232 | OS45: 340.5 | OT45: 329.6 | OU45: 302 | OV45: 274.4 | OW45: 246.9 | OX45: 219.3 | OY45: 509.7 | OZ45: 498.1 | PA45: 468.9 | PB45: 439.7 | PC45: 410.6 | PD45: 381.4 | PE45: 481.7 | PF45: 470.8 | PG45: 443.2 | PH45: 415.6 | PI45: 388.1 | PJ45: 360.5 | PK45: 483.9 | PL45: 472.3 | PM45: 443.1 | PN45: 413.9 | PO45: 384.8 | PP45: 355.6 | PQ45: 457.3 | PR45: 446.4 | PS45: 418.8 | PT45: 391.2 | PU45: 363.7 | PV45: 336.1 | PW45: 417.5 | PX45: 405.9 | PY45: 376.7 | PZ45: 347.5 | QA45: 318.4 | QB45: 289.2 | QC45: 394.6 | QD45: 383.6 | QE45: 356 | QF45: 328.4 | QG45: 300.9 | QH45: 273.3 | QI45: 383.3 | QJ45: 371.7 | QK45: 342.5 | QL45: 313.3 | QM45: 284.2 | QN45: 255 | QO45: 362.3 | QP45: 351.3 | QQ45: 323.7 | QR45: 296.1 | QS45: 268.6 | QT45: 241 | RG45: 350 | RH45: 338.4 | RI45: 309.2 | RJ45: 280 | RK45: 250.9 | RL45: 221.7 | RM45: 330.8 | RN45: 319.8 | RO45: 292.2 | RP45: 264.6 | RQ45: 237.2 | RR45: 209.6 | RS45: 469.6 | RT45: 458 | RU45: 428.8 | RV45: 399.6 | RW45: 370.5 | RX45: 341.3 | RY45: 443.8 | RZ45: 432.9 | SA45: 405.3 | SB45: 377.7 | SC45: 350.2 | SD45: 322.6 | SE45: 414.3 | SF45: 402.7 | SG45: 373.5 | SH45: 344.3 | SI45: 315.2 | SJ45: 286 | SK45: 391.6 | SL45: 380.6 | SM45: 353 | SN45: 325.4 | SO45: 297.9 | SP45: 270.3 | SQ45: 388.2 | SR45: 376.6 | SS45: 347.4 | ST45: 318.2 | SU45: 289.1 | SV45: 259.9 | SW45: 366.9 | SX45: 355.9 | SY45: 328.3 | SZ45: 300.7 | TA45: 273.2 | TB45: 245.7
C46: TAR-HMO | D46: HMO | F46: 46 | G46: 426.4 | H46: 414.8 | I46: 385.6 | J46: 356.4 | K46: 327.3 | L46: 298.1 | M46: 403 | N46: 392 | O46: 364.4 | P46: 336.8 | Q46: 309.3 | R46: 281.8 | S46: 394.5 | T46: 382.9 | U46: 353.7 | V46: 324.5 | W46: 295.4 | X46: 266.2 | Y46: 372.9 | Z46: 361.9 | AA46: 334.3 | AB46: 306.7 | AC46: 279.2 | AD46: 251.6 | AE46: 420.9 | AF46: 409.3 | AG46: 380.1 | AH46: 350.9 | AI46: 321.8 | AJ46: 292.6 | AK46: 397.8 | AL46: 386.8 | AM46: 359.2 | AN46: 331.7 | AO46: 304.2 | AP46: 276.6 | AQ46: 393.5 | AR46: 381.9 | AS46: 352.7 | AT46: 323.5 | AU46: 294.4 | AV46: 265.2 | AW46: 371.9 | AX46: 360.9 | AY46: 333.4 | AZ46: 305.8 | BA46: 278.3 | BB46: 250.7 | BC46: 323 | BD46: 311.4 | BE46: 282.2 | BF46: 253 | BG46: 223.9 | BH46: 197.6 | BI46: 305.3 | BJ46: 294.3 | BK46: 266.7 | BL46: 239.1 | BM46: 211.6 | BN46: 186.8 | BO46: 371.7 | BP46: 360.1 | BQ46: 330.9 | BR46: 301.7 | BS46: 272.6 | BT46: 243.4 | BU46: 351.3 | BV46: 340.3 | BW46: 312.8 | BX46: 285.2 | BY46: 257.7 | BZ46: 230.1 | CA46: 490.4 | CB46: 478.8 | CC46: 449.6 | CD46: 420.4 | CE46: 391.3 | CF46: 362.1 | CG46: 463.5 | CH46: 452.5 | CI46: 424.9 | CJ46: 397.3 | CK46: 369.8 | CL46: 342.2 | CM46: 432.3 | CN46: 420.7 | CO46: 391.5 | CP46: 362.3 | CQ46: 333.2 | CR46: 304 | CS46: 408.6 | CT46: 397.6 | CU46: 370 | CV46: 342.4 | CW46: 314.9 | CX46: 287.3 | CY46: 404.5 | CZ46: 392.9 | DA46: 363.7 | DB46: 334.5 | DC46: 305.4 | DD46: 276.2 | DE46: 382.3 | DF46: 371.3 | DG46: 343.7 | DH46: 316.2 | DI46: 288.7 | DJ46: 261.1 | DK46: 492.5 | DL46: 480.9 | DM46: 451.7 | DN46: 422.5 | DO46: 393.4 | DP46: 364.2 | DQ46: 465.5 | DR46: 454.5 | DS46: 426.9 | DT46: 399.3 | DU46: 371.8 | DV46: 344.2 | DW46: 458.6 | DX46: 447 | DY46: 417.8 | DZ46: 388.6 | EA46: 359.5 | EB46: 330.3 | EC46: 433.4 | ED46: 422.5 | EE46: 394.9 | EF46: 367.3 | EG46: 339.8 | EH46: 312.2 | EI46: 523.8 | EJ46: 512.2 | EK46: 483 | EL46: 453.8 | EM46: 424.7 | EN46: 395.5 | EO46: 495 | EP46: 484.1 | EQ46: 456.5 | ER46: 428.9 | ES46: 401.4 | ET46: 373.8 | EU46: 532.3 | EV46: 520.7 | EW46: 491.5 | EX46: 462.3 | EY46: 433.2 | EZ46: 404 | FA46: 503.1 | FB46: 492.1 | FC46: 464.5 | FD46: 436.9 | FE46: 409.4 | FF46: 381.8 | FG46: 381 | FH46: 369.4 | FI46: 340.2 | FJ46: 311 | FK46: 281.9 | FL46: 252.7 | FM46: 360.1 | FN46: 349.1 | FO46: 321.5 | FP46: 293.9 | FQ46: 266.4 | FR46: 238.9 | FS46: 379.7 | FT46: 368.1 | FU46: 338.9 | FV46: 309.7 | FW46: 280.6 | FX46: 251.4 | FY46: 358.9 | FZ46: 347.9 | GA46: 320.3 | GB46: 292.7 | GC46: 265.2 | GD46: 237.6 | GE46: 367.9 | GF46: 356.3 | GG46: 327.1 | GH46: 297.9 | GI46: 268.8 | GJ46: 239.6 | GK46: 347.7 | GL46: 336.8 | GM46: 309.2 | GN46: 281.6 | GO46: 254.1 | GP46: 226.5 | GQ46: 348.3 | GR46: 336.7 | GS46: 307.5 | GT46: 278.3 | GU46: 249.2 | GV46: 220 | GW46: 329.2 | GX46: 318.2 | GY46: 290.6 | GZ46: 263 | HA46: 235.5 | HB46: 207.9 | HC46: 484.4 | HD46: 472.8 | HE46: 443.6 | HF46: 414.4 | HG46: 385.3 | HH46: 356.1 | HI46: 457.8 | HJ46: 446.8 | HK46: 419.3 | HL46: 391.7 | HM46: 364.2 | HN46: 336.6 | HO46: 398.8 | HP46: 387.2 | HQ46: 358 | HR46: 328.8 | HS46: 299.7 | HT46: 270.5 | HU46: 376.9 | HV46: 366 | HW46: 338.4 | HX46: 310.8 | HY46: 283.3 | HZ46: 255.7 | IA46: 374.8 | IB46: 363.2 | IC46: 334 | ID46: 304.8 | IE46: 275.7 | IF46: 246.5 | IG46: 354.2 | IH46: 343.3 | II46: 315.7 | IJ46: 288.1 | IK46: 260.6 | IL46: 233 | IM46: 361 | IN46: 349.4 | IO46: 320.2 | IP46: 291 | IQ46: 261.9 | IR46: 232.7 | IS46: 341.2 | IT46: 330.2 | IU46: 302.6 | IV46: 275 | IW46: 247.5 | IX46: 220 | IY46: 527.6 | IZ46: 516 | JA46: 486.8 | JB46: 457.6 | JC46: 428.5 | JD46: 399.3 | JE46: 498.6 | JF46: 487.7 | JG46: 460.1 | JH46: 432.5 | JI46: 405 | JJ46: 377.4 | JK46: 360.9 | JL46: 349.3 | JM46: 320.1 | JN46: 290.9 | JO46: 261.8 | JP46: 232.6 | JQ46: 341.1 | JR46: 330.1 | JS46: 302.5 | JT46: 275 | JU46: 247.5 | JV46: 219.9 | JW46: 356.2 | JX46: 344.6 | JY46: 315.4 | JZ46: 286.2 | KA46: 257.1 | KB46: 227.9 | KC46: 336.7 | KD46: 325.7 | KE46: 298.1 | KF46: 270.5 | KG46: 243 | KH46: 215.4 | KI46: 415.7 | KJ46: 404.1 | KK46: 374.9 | KL46: 345.7 | KM46: 316.6 | KN46: 287.4 | KO46: 392.9 | KP46: 381.9 | KQ46: 354.3 | KR46: 326.7 | KS46: 299.2 | KT46: 271.6 | KU46: 389.5 | KV46: 377.9 | KW46: 348.7 | KX46: 319.5 | KY46: 290.4 | KZ46: 261.2 | LA46: 368.1 | LB46: 357.2 | LC46: 329.6 | LD46: 302 | LE46: 274.5 | LF46: 246.9 | LG46: 376.8 | LH46: 365.2 | LI46: 336 | LJ46: 306.8 | LK46: 277.7 | LL46: 248.5 | LM46: 356.1 | LN46: 345.2 | LO46: 317.6 | LP46: 290 | LQ46: 262.5 | LR46: 234.9 | LS46: 422.5 | LT46: 410.9 | LU46: 381.7 | LV46: 352.5 | LW46: 323.4 | LX46: 294.2 | LY46: 399.3 | LZ46: 388.4 | MA46: 360.8 | MB46: 333.2 | MC46: 305.7 | MD46: 278.1 | ME46: 393.2 | MF46: 381.6 | MG46: 352.4 | MH46: 323.2 | MI46: 294.1 | MJ46: 264.9 | MK46: 371.6 | ML46: 360.7 | MM46: 333.1 | MN46: 305.5 | MO46: 278 | MP46: 250.4 | MQ46: 363.5 | MR46: 351.9 | MS46: 322.7 | MT46: 293.5 | MU46: 264.4 | MV46: 235.2 | MW46: 343.6 | MX46: 332.6 | MY46: 305 | MZ46: 277.4 | NA46: 249.9 | NB46: 222.3 | NC46: 381.8 | ND46: 370.2 | NE46: 341 | NF46: 311.8 | NG46: 282.7 | NH46: 253.5 | NI46: 360.9 | NJ46: 349.9 | NK46: 322.3 | NL46: 294.7 | NM46: 267.2 | NN46: 239.6 | NO46: 477.3 | NP46: 465.7 | NQ46: 436.5 | NR46: 407.3 | NS46: 378.2 | NT46: 349 | NU46: 451.1 | NV46: 440.1 | NW46: 412.5 | NX46: 384.9 | NY46: 357.4 | NZ46: 329.9 | OA46: 444.8 | OB46: 433.2 | OC46: 404 | OD46: 374.8 | OE46: 345.7 | OF46: 316.5 | OG46: 420.4 | OH46: 409.4 | OI46: 381.8 | OJ46: 354.2 | OK46: 326.7 | OL46: 299.1 | OM46: 349.9 | ON46: 338.3 | OO46: 309.1 | OP46: 279.9 | OQ46: 250.8 | OR46: 221.6 | OS46: 330.7 | OT46: 319.7 | OU46: 292.1 | OV46: 264.6 | OW46: 237.1 | OX46: 209.5 | OY46: 509.7 | OZ46: 498.1 | PA46: 468.9 | PB46: 439.7 | PC46: 410.6 | PD46: 381.4 | PE46: 481.7 | PF46: 470.8 | PG46: 443.2 | PH46: 415.6 | PI46: 388.1 | PJ46: 360.5 | PK46: 483.9 | PL46: 472.3 | PM46: 443.1 | PN46: 413.9 | PO46: 384.8 | PP46: 355.6 | PQ46: 457.3 | PR46: 446.4 | PS46: 418.8 | PT46: 391.2 | PU46: 363.7 | PV46: 336.1 | PW46: 417.5 | PX46: 405.9 | PY46: 376.7 | PZ46: 347.5 | QA46: 318.4 | QB46: 289.2 | QC46: 394.6 | QD46: 383.6 | QE46: 356 | QF46: 328.4 | QG46: 300.9 | QH46: 273.3 | QI46: 383.3 | QJ46: 371.7 | QK46: 342.5 | QL46: 313.3 | QM46: 284.2 | QN46: 255 | QO46: 362.3 | QP46: 351.3 | QQ46: 323.7 | QR46: 296.1 | QS46: 268.6 | QT46: 241 | RG46: 340 | RH46: 328.4 | RI46: 299.2 | RJ46: 270 | RK46: 240.9 | RL46: 211.7 | RM46: 321.3 | RN46: 310.4 | RO46: 282.8 | RP46: 255.2 | RQ46: 227.7 | RR46: 200.1 | RS46: 461.3 | RT46: 449.7 | RU46: 420.5 | RV46: 391.3 | RW46: 362.2 | RX46: 333 | RY46: 436 | RZ46: 425 | SA46: 397.4 | SB46: 369.8 | SC46: 342.3 | SD46: 314.7 | SE46: 407 | SF46: 395.4 | SG46: 366.2 | SH46: 337 | SI46: 307.9 | SJ46: 278.7 | SK46: 384.7 | SL46: 373.7 | SM46: 346.1 | SN46: 318.5 | SO46: 291 | SP46: 263.4 | SQ46: 381.3 | SR46: 369.7 | SS46: 340.5 | ST46: 311.3 | SU46: 282.2 | SV46: 253 | SW46: 360.4 | SX46: 349.4 | SY46: 321.8 | SZ46: 294.2 | TA46: 266.7 | TB46: 239.1
A47: 312 | B47: Atupri Gesundheitsversicherung | C47: TAR-BASE | D47: Assurance de base | F47: 47 | G47: 530.7 | H47: 519.1 | I47: 490 | J47: 460.7 | K47: 431.6 | L47: 402.4 | M47: 504.2 | N47: 493.2 | O47: 465.5 | P47: 437.7 | Q47: 410.1 | R47: 382.3 | S47: 477.7 | T47: 466.1 | U47: 436.9 | V47: 407.7 | W47: 378.6 | X47: 349.4 | Y47: 453.9 | Z47: 442.8 | AA47: 415.1 | AB47: 387.4 | AC47: 359.7 | AD47: 332 | AE47: 515.7 | AF47: 504.1 | AG47: 474.9 | AH47: 445.7 | AI47: 416.6 | AJ47: 387.4 | AK47: 490 | AL47: 478.9 | AM47: 451.2 | AN47: 423.5 | AO47: 395.8 | AP47: 368.1 | AQ47: 471.3 | AR47: 459.7 | AS47: 430.5 | AT47: 401.3 | AU47: 372.2 | AV47: 343 | AW47: 447.8 | AX47: 436.8 | AY47: 409 | AZ47: 381.3 | BA47: 353.6 | BB47: 325.9 | BC47: 357 | BD47: 345.4 | BE47: 316.2 | BF47: 287 | BG47: 258 | BH47: 228.7 | BI47: 339.2 | BJ47: 328.2 | BK47: 300.4 | BL47: 272.7 | BM47: 245.1 | BN47: 217.3 | BO47: 537.7 | BP47: 526.1 | BQ47: 496.9 | BR47: 467.7 | BS47: 438.6 | BT47: 409.4 | BU47: 510.9 | BV47: 499.8 | BW47: 472.1 | BX47: 444.4 | BY47: 416.7 | BZ47: 389 | CA47: 576.8 | CB47: 565.2 | CC47: 536 | CD47: 506.8 | CE47: 477.7 | CF47: 448.5 | CG47: 548 | CH47: 537 | CI47: 509.2 | CJ47: 481.5 | CK47: 453.9 | CL47: 426.1 | CM47: 509.8 | CN47: 498.2 | CO47: 469 | CP47: 439.8 | CQ47: 410.7 | CR47: 381.5 | CS47: 484.4 | CT47: 473.3 | CU47: 445.6 | CV47: 417.9 | CW47: 390.2 | CX47: 362.5 | CY47: 468.8 | CZ47: 457.2 | DA47: 428 | DB47: 398.8 | DC47: 369.7 | DD47: 340.5 | DE47: 445.4 | DF47: 434.4 | DG47: 406.6 | DH47: 378.9 | DI47: 351.3 | DJ47: 323.5 | DK47: 558.4 | DL47: 546.8 | DM47: 517.6 | DN47: 488.4 | DO47: 459.3 | DP47: 430.1 | DQ47: 530.5 | DR47: 519.5 | DS47: 491.8 | DT47: 464 | DU47: 436.4 | DV47: 408.6 | DW47: 543.4 | DX47: 531.8 | DY47: 502.6 | DZ47: 473.4 | EA47: 444.3 | EB47: 415.1 | EC47: 516.3 | ED47: 505.3 | EE47: 477.5 | EF47: 449.8 | EG47: 422.1 | EH47: 394.4 | EI47: 610.4 | EJ47: 598.8 | EK47: 569.6 | EL47: 540.4 | EM47: 511.3 | EN47: 482.1 | EO47: 579.9 | EP47: 568.9 | EQ47: 541.2 | ER47: 513.4 | ES47: 485.8 | ET47: 458 | EU47: 615.2 | EV47: 603.6 | EW47: 574.4 | EX47: 545.2 | EY47: 516.1 | EZ47: 486.9 | FA47: 584.5 | FB47: 573.5 | FC47: 545.7 | FD47: 518 | FE47: 490.3 | FF47: 462.6 | FG47: 421.5 | FH47: 410 | FI47: 380.7 | FJ47: 351.5 | FK47: 322.4 | FL47: 293.2 | FM47: 400.5 | FN47: 389.5 | FO47: 361.7 | FP47: 334 | FQ47: 306.3 | FR47: 278.6 | FS47: 459.5 | FT47: 448 | FU47: 418.7 | FV47: 389.5 | FW47: 360.4 | FX47: 331.2 | FY47: 436.6 | FZ47: 425.6 | GA47: 397.8 | GB47: 370.1 | GC47: 342.4 | GD47: 314.7 | GE47: 442.5 | GF47: 430.9 | GG47: 401.7 | GH47: 372.5 | GI47: 343.4 | GJ47: 314.2 | GK47: 420.4 | GL47: 409.4 | GM47: 381.7 | GN47: 353.9 | GO47: 326.3 | GP47: 298.5 | GQ47: 432.5 | GR47: 420.9 | GS47: 391.7 | GT47: 362.5 | GU47: 333.4 | GV47: 304.2 | GW47: 410.9 | GX47: 399.9 | GY47: 372.2 | GZ47: 344.4 | HA47: 316.8 | HB47: 289 | HC47: 540.9 | HD47: 529.3 | HE47: 500.1 | HF47: 470.9 | HG47: 441.8 | HH47: 412.6 | HI47: 513.9 | HJ47: 502.9 | HK47: 475.1 | HL47: 447.4 | HM47: 419.8 | HN47: 392 | HO47: 487.7 | HP47: 476.1 | HQ47: 446.9 | HR47: 417.7 | HS47: 388.6 | HT47: 359.4 | HU47: 463.4 | HV47: 452.3 | HW47: 424.6 | HX47: 396.9 | HY47: 369.2 | HZ47: 341.5 | IA47: 444.7 | IB47: 433.1 | IC47: 404 | ID47: 374.7 | IE47: 345.6 | IF47: 316.4 | IG47: 422.5 | IH47: 411.5 | II47: 383.8 | IJ47: 356 | IK47: 328.4 | IL47: 300.6 | IM47: 422.7 | IN47: 411.1 | IO47: 382 | IP47: 352.7 | IQ47: 323.6 | IR47: 294.4 | IS47: 401.6 | IT47: 390.6 | IU47: 362.9 | IV47: 335.1 | IW47: 307.5 | IX47: 279.7 | IY47: 602.6 | IZ47: 591 | JA47: 561.8 | JB47: 532.6 | JC47: 503.5 | JD47: 474.3 | JE47: 572.5 | JF47: 561.5 | JG47: 533.8 | JH47: 506 | JI47: 478.4 | JJ47: 450.6 | JK47: 395.2 | JL47: 383.6 | JM47: 354.4 | JN47: 325.2 | JO47: 296.1 | JP47: 266.9 | JQ47: 375.5 | JR47: 364.5 | JS47: 336.7 | JT47: 309 | JU47: 281.3 | JV47: 253.6 | JW47: 372 | JX47: 360.4 | JY47: 331.2 | JZ47: 302 | KA47: 272.9 | KB47: 243.7 | KC47: 353.4 | KD47: 342.4 | KE47: 314.7 | KF47: 286.9 | KG47: 259.3 | KH47: 231.6 | KI47: 477.3 | KJ47: 465.7 | KK47: 436.5 | KL47: 407.3 | KM47: 378.2 | KN47: 349 | KO47: 453.5 | KP47: 442.5 | KQ47: 414.7 | KR47: 387 | KS47: 359.3 | KT47: 331.6 | KU47: 459.3 | KV47: 447.7 | KW47: 418.5 | KX47: 389.3 | KY47: 360.2 | KZ47: 331 | LA47: 436.4 | LB47: 425.4 | LC47: 397.6 | LD47: 369.9 | LE47: 342.2 | LF47: 314.5 | LG47: 433.3 | LH47: 421.7 | LI47: 392.5 | LJ47: 363.3 | LK47: 334.2 | LL47: 305 | LM47: 411.7 | LN47: 400.7 | LO47: 372.9 | LP47: 345.2 | LQ47: 317.5 | LR47: 289.8 | LS47: 552.7 | LT47: 541.1 | LU47: 512 | LV47: 482.7 | LW47: 453.6 | LX47: 424.4 | LY47: 525.1 | LZ47: 514.1 | MA47: 486.4 | MB47: 458.6 | MC47: 431 | MD47: 403.2 | ME47: 530.7 | MF47: 519.1 | MG47: 490 | MH47: 460.7 | MI47: 431.6 | MJ47: 402.4 | MK47: 504.2 | ML47: 493.2 | MM47: 465.5 | MN47: 437.7 | MO47: 410.1 | MP47: 382.3 | MQ47: 440.2 | MR47: 428.6 | MS47: 399.4 | MT47: 370.2 | MU47: 341.1 | MV47: 312 | MW47: 418.2 | MX47: 407.2 | MY47: 379.5 | MZ47: 351.7 | NA47: 324.1 | NB47: 296.4 | NC47: 456.6 | ND47: 445 | NE47: 415.8 | NF47: 386.6 | NG47: 357.5 | NH47: 328.3 | NI47: 433.8 | NJ47: 422.8 | NK47: 395.1 | NL47: 367.3 | NM47: 339.7 | NN47: 311.9 | NO47: 595.7 | NP47: 584.1 | NQ47: 554.9 | NR47: 525.7 | NS47: 496.6 | NT47: 467.4 | NU47: 566 | NV47: 554.9 | NW47: 527.2 | NX47: 499.5 | NY47: 471.8 | NZ47: 444.1 | OA47: 571.7 | OB47: 560.1 | OC47: 530.9 | OD47: 501.7 | OE47: 472.6 | OF47: 443.4 | OG47: 543.2 | OH47: 532.1 | OI47: 504.4 | OJ47: 476.7 | OK47: 449 | OL47: 421.3 | OM47: 397.6 | ON47: 386 | OO47: 356.8 | OP47: 327.6 | OQ47: 298.5 | OR47: 269.3 | OS47: 377.8 | OT47: 366.7 | OU47: 339 | OV47: 311.3 | OW47: 283.6 | OX47: 255.9 | OY47: 565.8 | OZ47: 554.2 | PA47: 525 | PB47: 495.8 | PC47: 466.7 | PD47: 437.5 | PE47: 537.6 | PF47: 526.5 | PG47: 498.8 | PH47: 471.1 | PI47: 443.4 | PJ47: 415.7 | PK47: 533.8 | PL47: 522.2 | PM47: 493 | PN47: 463.8 | PO47: 434.7 | PP47: 405.5 | PQ47: 507.2 | PR47: 496.1 | PS47: 468.4 | PT47: 440.7 | PU47: 413 | PV47: 385.3 | PW47: 477.3 | PX47: 465.7 | PY47: 436.5 | PZ47: 407.3 | QA47: 378.2 | QB47: 349 | QC47: 453.5 | QD47: 442.5 | QE47: 414.7 | QF47: 387 | QG47: 359.3 | QH47: 331.6 | QI47: 443.3 | QJ47: 431.7 | QK47: 402.5 | QL47: 373.3 | QM47: 344.2 | QN47: 315 | QO47: 421.2 | QP47: 410.2 | QQ47: 382.4 | QR47: 354.7 | QS47: 327 | QT47: 299.3 | QU47: 576.8 | QV47: 565.2 | QW47: 536 | QX47: 506.8 | QY47: 477.7 | QZ47: 448.5 | RA47: 548 | RB47: 537 | RC47: 509.2 | RD47: 481.5 | RE47: 453.9 | RF47: 426.1 | RG47: 405.2 | RH47: 393.6 | RI47: 364.4 | RJ47: 335.2 | RK47: 306.1 | RL47: 276.9 | RM47: 385 | RN47: 374 | RO47: 346.2 | RP47: 318.5 | RQ47: 290.8 | RR47: 263.1 | RS47: 566.9 | RT47: 555.3 | RU47: 526.1 | RV47: 496.9 | RW47: 467.8 | RX47: 438.6 | RY47: 538.6 | RZ47: 527.6 | SA47: 499.8 | SB47: 472.1 | SC47: 444.5 | SD47: 416.7 | SE47: 493.9 | SF47: 482.3 | SG47: 453.1 | SH47: 424 | SI47: 394.8 | SJ47: 365.6 | SK47: 469.3 | SL47: 458.2 | SM47: 430.5 | SN47: 402.8 | SO47: 375.1 | SP47: 347.4 | SQ47: 448.9 | SR47: 437.3 | SS47: 408.1 | ST47: 378.9 | SU47: 349.8 | SV47: 320.6 | SW47: 426.5 | SX47: 415.5 | SY47: 387.7 | SZ47: 360 | TA47: 332.4 | TB47: 304.6
C48: TAR-HAM | D48: CareMed | F48: 48 | AE48: 469.3 | AF48: 457.7 | AG48: 428.5 | AH48: 399.3 | AI48: 370.2 | AJ48: 341 | AK48: 445.9 | AL48: 434.9 | AM48: 407.1 | AN48: 379.4 | AO48: 351.7 | AP48: 324 | AQ48: 400.7 | AR48: 389.1 | AS48: 360 | AT48: 330.7 | AU48: 301.6 | AV48: 272.4 | AW48: 380.7 | AX48: 369.7 | AY48: 342 | AZ48: 314.2 | BA48: 286.6 | BB48: 258.8 | BC48: 324.9 | BD48: 313.3 | BE48: 284.1 | BF48: 254.9 | BG48: 225.8 | BH48: 196.6 | BI48: 308.7 | BJ48: 297.7 | BK48: 269.9 | BL48: 242.2 | BM48: 214.6 | BN48: 186.8 | BO48: 489.4 | BP48: 477.8 | BQ48: 448.6 | BR48: 419.4 | BS48: 390.3 | BT48: 361.1 | BU48: 465 | BV48: 454 | BW48: 426.2 | BX48: 398.5 | BY48: 370.8 | BZ48: 343.1 | CA48: 530.7 | CB48: 519.1 | CC48: 490 | CD48: 460.7 | CE48: 431.6 | CF48: 402.4 | CG48: 504.2 | CH48: 493.2 | CI48: 465.5 | CJ48: 437.7 | CK48: 410.1 | CL48: 382.3 | CM48: 469.1 | CN48: 457.5 | CO48: 428.3 | CP48: 399.1 | CQ48: 370 | CR48: 340.8 | CS48: 445.7 | CT48: 434.7 | CU48: 406.9 | CV48: 379.2 | CW48: 351.5 | CX48: 323.8 | CY48: 431.3 | CZ48: 419.7 | DA48: 390.5 | DB48: 361.3 | DC48: 332.2 | DD48: 303 | DE48: 409.8 | DF48: 398.8 | DG48: 371 | DH48: 343.3 | DI48: 315.6 | DJ48: 287.9 | DK48: 485.9 | DL48: 474.3 | DM48: 445.1 | DN48: 416 | DO48: 386.8 | DP48: 357.6 | DQ48: 461.7 | DR48: 450.6 | DS48: 422.9 | DT48: 395.2 | DU48: 367.5 | DV48: 339.8 | DW48: 494.5 | DX48: 482.9 | DY48: 453.7 | DZ48: 424.5 | EA48: 395.4 | EB48: 366.2 | EC48: 469.8 | ED48: 458.8 | EE48: 431.1 | EF48: 403.3 | EG48: 375.7 | EH48: 347.9 | EI48: 555.5 | EJ48: 544 | EK48: 514.7 | EL48: 485.5 | EM48: 456.4 | EN48: 427.2 | EO48: 527.8 | EP48: 516.8 | EQ48: 489 | ER48: 461.3 | ES48: 433.6 | ET48: 405.9 | FS48: 395.2 | FT48: 383.6 | FU48: 354.4 | FV48: 325.2 | FW48: 296.1 | FX48: 266.9 | FY48: 375.5 | FZ48: 364.5 | GA48: 336.7 | GB48: 309 | GC48: 281.3 | GD48: 253.6 | GE48: 376.2 | GF48: 364.6 | GG48: 335.4 | GH48: 306.2 | GI48: 277.1 | GJ48: 248 | GK48: 357.4 | GL48: 346.4 | GM48: 318.7 | GN48: 290.9 | GO48: 263.3 | GP48: 235.6 | GQ48: 372 | GR48: 360.4 | GS48: 331.2 | GT48: 302 | GU48: 272.9 | GV48: 243.7 | GW48: 353.4 | GX48: 342.4 | GY48: 314.7 | GZ48: 286.9 | HA48: 259.3 | HB48: 231.6 | HO48: 448.7 | HP48: 437.1 | HQ48: 408 | HR48: 378.7 | HS48: 349.6 | HT48: 320.4 | HU48: 426.3 | HV48: 415.3 | HW48: 387.6 | HX48: 359.8 | HY48: 332.2 | HZ48: 304.4 | IA48: 409.2 | IB48: 397.6 | IC48: 368.4 | ID48: 339.2 | IE48: 310.1 | IF48: 280.9 | IG48: 388.8 | IH48: 377.8 | II48: 350 | IJ48: 322.3 | IK48: 294.6 | IL48: 266.9 | IM48: 388.9 | IN48: 377.3 | IO48: 348.1 | IP48: 318.9 | IQ48: 289.8 | IR48: 260.6 | IS48: 369.5 | IT48: 358.5 | IU48: 330.7 | IV48: 303 | IW48: 275.4 | IX48: 247.6 | JK48: 359.7 | JL48: 348.1 | JM48: 318.9 | JN48: 289.7 | JO48: 260.6 | JP48: 231.4 | JQ48: 341.8 | JR48: 330.7 | JS48: 303 | JT48: 275.3 | JU48: 247.6 | JV48: 219.9 | KI48: 439.2 | KJ48: 427.6 | KK48: 398.4 | KL48: 369.2 | KM48: 340.1 | KN48: 310.9 | KO48: 417.3 | KP48: 406.3 | KQ48: 378.5 | KR48: 350.8 | KS48: 323.1 | KT48: 295.4 | KU48: 422.6 | KV48: 411 | KW48: 381.8 | KX48: 352.6 | KY48: 323.5 | KZ48: 294.3 | LA48: 401.5 | LB48: 390.5 | LC48: 362.8 | LD48: 335 | LE48: 307.4 | LF48: 279.6 | LG48: 394.4 | LH48: 382.8 | LI48: 353.6 | LJ48: 324.4 | LK48: 295.3 | LL48: 266.1 | LM48: 374.7 | LN48: 363.7 | LO48: 336 | LP48: 308.2 | LQ48: 280.6 | LR48: 252.8 | LS48: 503 | LT48: 491.4 | LU48: 462.2 | LV48: 433 | LW48: 404 | LX48: 374.7 | LY48: 477.9 | LZ48: 466.9 | MA48: 439.1 | MB48: 411.4 | MC48: 383.8 | MD48: 356 | ME48: 483 | MF48: 471.4 | MG48: 442.2 | MH48: 413 | MI48: 384 | MJ48: 354.7 | MK48: 458.9 | ML48: 447.9 | MM48: 420.1 | MN48: 392.4 | MO48: 364.8 | MP48: 337 | MQ48: 405 | MR48: 393.4 | MS48: 364.2 | MT48: 335 | MU48: 306 | MV48: 276.7 | MW48: 384.8 | MX48: 373.8 | MY48: 346 | MZ48: 318.3 | NA48: 290.7 | NB48: 262.9 | NC48: 392.7 | ND48: 381.1 | NE48: 352 | NF48: 322.7 | NG48: 293.6 | NH48: 264.4 | NI48: 373.1 | NJ48: 362.1 | NK48: 334.4 | NL48: 306.6 | NM48: 279 | NN48: 251.2 | NO48: 542.1 | NP48: 530.5 | NQ48: 501.3 | NR48: 472.1 | NS48: 443 | NT48: 413.8 | NU48: 515 | NV48: 504 | NW48: 476.3 | NX48: 448.5 | NY48: 420.9 | NZ48: 393.2 | OA48: 520.3 | OB48: 508.7 | OC48: 479.5 | OD48: 450.3 | OE48: 421.2 | OF48: 392 | OG48: 494.3 | OH48: 483.3 | OI48: 455.6 | OJ48: 427.8 | OK48: 400.2 | OL48: 372.4 | PW48: 434.4 | PX48: 422.8 | PY48: 393.6 | PZ48: 364.4 | QA48: 335.3 | QB48: 306.1 | QC48: 412.7 | QD48: 401.7 | QE48: 374 | QF48: 346.2 | QG48: 318.6 | QH48: 290.8 | QI48: 403.5 | QJ48: 392 | QK48: 362.7 | QL48: 333.5 | QM48: 304.4 | QN48: 275.2 | QO48: 383.4 | QP48: 372.4 | QQ48: 344.6 | QR48: 316.9 | QS48: 289.2 | QT48: 261.5 | RG48: 364.7 | RH48: 353.1 | RI48: 324 | RJ48: 294.7 | RK48: 265.6 | RL48: 236.4 | RM48: 346.5 | RN48: 335.5 | RO48: 307.8 | RP48: 280 | RQ48: 252.4 | RR48: 224.6 | RS48: 510.3 | RT48: 498.7 | RU48: 469.5 | RV48: 440.3 | RW48: 411.2 | RX48: 382 | RY48: 484.8 | RZ48: 473.8 | SA48: 446.1 | SB48: 418.3 | SC48: 390.7 | SD48: 362.9 | SE48: 449.5 | SF48: 438 | SG48: 408.7 | SH48: 379.5 | SI48: 350.4 | SJ48: 321.2 | SK48: 427.1 | SL48: 416.1 | SM48: 388.3 | SN48: 360.6 | SO48: 332.9 | SP48: 305.2 | SQ48: 413 | SR48: 401.4 | SS48: 372.2 | ST48: 343 | SU48: 314 | SV48: 284.7 | SW48: 392.4 | SX48: 381.4 | SY48: 353.6 | SZ48: 325.9 | TA48: 298.3 | TB48: 270.5
C49: TAR-DIV | D49: FlexCare | F49: 49 | AE49: 453.9 | AF49: 442.3 | AG49: 413.1 | AH49: 384 | AI49: 354.8 | AJ49: 325.6 | AK49: 431.3 | AL49: 420.2 | AM49: 392.5 | AN49: 364.8 | AO49: 337.1 | AP49: 309.4 | CA49: 548 | CB49: 536.4 | CC49: 507.2 | CD49: 478 | CE49: 448.9 | CF49: 419.7 | CG49: 520.6 | CH49: 509.6 | CI49: 481.9 | CJ49: 454.1 | CK49: 426.5 | CL49: 398.8 | DK49: 508.2 | DL49: 496.6 | DM49: 467.4 | DN49: 438.2 | DO49: 409.1 | DP49: 380 | DQ49: 482.8 | DR49: 471.8 | DS49: 444.1 | DT49: 416.3 | DU49: 388.7 | DV49: 361 | HO49: 439 | HP49: 427.4 | HQ49: 398.2 | HR49: 369 | HS49: 340 | HT49: 310.7 | HU49: 417.1 | HV49: 406.1 | HW49: 378.3 | HX49: 350.6 | HY49: 323 | HZ49: 295.2 | KI49: 424.8 | KJ49: 413.2 | KK49: 384 | KL49: 354.8 | KM49: 325.7 | KN49: 296.5 | KO49: 403.6 | KP49: 392.6 | KQ49: 364.8 | KR49: 337.1 | KS49: 309.5 | KT49: 281.7 | RG49: 350.5 | RH49: 338.9 | RI49: 309.7 | RJ49: 280.5 | RK49: 251.4 | RL49: 222.2 | RM49: 333 | RN49: 322 | RO49: 294.3 | RP49: 266.5 | RQ49: 238.9 | RR49: 211.1 | RS49: 541.4 | RT49: 529.8 | RU49: 500.6 | RV49: 471.4 | RW49: 442.3 | RX49: 413.1 | RY49: 514.4 | RZ49: 503.4 | SA49: 475.6 | SB49: 447.9 | SC49: 420.2 | SD49: 392.5
D50: TelFirst | F50: 50 | G50: 483 | H50: 471.4 | I50: 442.2 | J50: 413 | K50: 384 | L50: 354.7 | M50: 458.9 | N50: 447.9 | O50: 420.1 | P50: 392.4 | Q50: 364.8 | R50: 337 | S50: 439.5 | T50: 428 | U50: 398.7 | V50: 369.5 | W50: 340.4 | X50: 311.2 | Y50: 417.6 | Z50: 406.6 | AA50: 378.8 | AB50: 351.1 | AC50: 323.4 | AD50: 295.7 | AE50: 469.3 | AF50: 457.7 | AG50: 428.5 | AH50: 399.3 | AI50: 370.2 | AJ50: 341 | AK50: 445.9 | AL50: 434.9 | AM50: 407.1 | AN50: 379.4 | AO50: 351.7 | AP50: 324 | AQ50: 438.4 | AR50: 426.8 | AS50: 397.6 | AT50: 368.4 | AU50: 339.3 | AV50: 310.1 | AW50: 416.5 | AX50: 405.5 | AY50: 377.8 | AZ50: 350 | BA50: 322.4 | BB50: 294.6 | BC50: 324.9 | BD50: 313.3 | BE50: 284.1 | BF50: 254.9 | BG50: 225.8 | BH50: 196.6 | BI50: 308.7 | BJ50: 297.7 | BK50: 269.9 | BL50: 242.2 | BM50: 214.6 | BN50: 186.8 | BO50: 489.4 | BP50: 477.8 | BQ50: 448.6 | BR50: 419.4 | BS50: 390.3 | BT50: 361.1 | BU50: 465 | BV50: 454 | BW50: 426.2 | BX50: 398.5 | BY50: 370.8 | BZ50: 343.1 | CA50: 484.6 | CB50: 473 | CC50: 443.8 | CD50: 414.6 | CE50: 385.5 | CF50: 356.3 | CG50: 460.4 | CH50: 449.4 | CI50: 421.7 | CJ50: 393.9 | CK50: 366.3 | CL50: 338.5 | CM50: 470.1 | CN50: 458.5 | CO50: 429.3 | CP50: 400.1 | CQ50: 371 | CR50: 341.8 | CS50: 446.6 | CT50: 435.6 | CU50: 407.9 | CV50: 380.1 | CW50: 352.5 | CX50: 324.8 | CY50: 432.3 | CZ50: 420.7 | DA50: 391.5 | DB50: 362.3 | DC50: 333.2 | DD50: 304 | DE50: 410.7 | DF50: 399.7 | DG50: 372 | DH50: 344.2 | DI50: 316.6 | DJ50: 288.8 | DK50: 509.3 | DL50: 497.7 | DM50: 468.5 | DN50: 439.3 | DO50: 410.2 | DP50: 381 | DQ50: 483.9 | DR50: 472.9 | DS50: 445.1 | DT50: 417.4 | DU50: 389.7 | DV50: 362 | DW50: 494.5 | DX50: 482.9 | DY50: 453.7 | DZ50: 424.5 | EA50: 395.4 | EB50: 366.2 | EC50: 469.8 | ED50: 458.8 | EE50: 431.1 | EF50: 403.3 | EG50: 375.7 | EH50: 347.9 | EI50: 555.5 | EJ50: 544 | EK50: 514.7 | EL50: 485.5 | EM50: 456.4 | EN50: 427.2 | EO50: 527.8 | EP50: 516.8 | EQ50: 489 | ER50: 461.3 | ES50: 433.6 | ET50: 405.9 | EU50: 559.9 | EV50: 548.3 | EW50: 519.1 | EX50: 490 | EY50: 460.8 | EZ50: 431.6 | FA50: 532 | FB50: 520.9 | FC50: 493.2 | FD50: 465.5 | FE50: 437.8 | FF50: 410.1 | FG50: 383.6 | FH50: 372 | FI50: 342.8 | FJ50: 313.6 | FK50: 284.5 | FL50: 255.3 | FM50: 364.5 | FN50: 353.4 | FO50: 325.7 | FP50: 298 | FQ50: 270.3 | FR50: 242.6 | FS50: 419.1 | FT50: 407.5 | FU50: 378.3 | FV50: 349.1 | FW50: 320 | FX50: 290.8 | FY50: 398.2 | FZ50: 387.2 | GA50: 359.4 | GB50: 331.7 | GC50: 304 | GD50: 276.3 | GE50: 403.6 | GF50: 392 | GG50: 362.8 | GH50: 333.6 | GI50: 304.5 | GJ50: 275.3 | GK50: 383.5 | GL50: 372.4 | GM50: 344.7 | GN50: 317 | GO50: 289.3 | GP50: 261.6 | GQ50: 393.6 | GR50: 382 | GS50: 352.8 | GT50: 323.6 | GU50: 294.5 | GV50: 265.3 | GW50: 374 | GX50: 362.9 | GY50: 335.2 | GZ50: 307.5 | HA50: 279.8 | HB50: 252.1 | HC50: 492.3 | HD50: 480.7 | HE50: 451.5 | HF50: 422.3 | HG50: 393.2 | HH50: 364 | HI50: 467.7 | HJ50: 456.7 | HK50: 429 | HL50: 401.2 | HM50: 373.6 | HN50: 345.8 | HO50: 448.7 | HP50: 437.1 | HQ50: 408 | HR50: 378.7 | HS50: 349.6 | HT50: 320.4 | HU50: 426.3 | HV50: 415.3 | HW50: 387.6 | HX50: 359.8 | HY50: 332.2 | HZ50: 304.4 | IA50: 409.2 | IB50: 397.6 | IC50: 368.4 | ID50: 339.2 | IE50: 310.1 | IF50: 280.9 | IG50: 388.8 | IH50: 377.8 | II50: 350 | IJ50: 322.3 | IK50: 294.6 | IL50: 266.9 | IM50: 389.8 | IN50: 378.2 | IO50: 349 | IP50: 319.8 | IQ50: 290.7 | IR50: 261.5 | IS50: 370.4 | IT50: 359.3 | IU50: 331.6 | IV50: 303.9 | IW50: 276.2 | IX50: 248.5 | IY50: 548.4 | IZ50: 536.8 | JA50: 507.6 | JB50: 478.4 | JC50: 449.3 | JD50: 420.1 | JE50: 521 | JF50: 510 | JG50: 482.3 | JH50: 454.5 | JI50: 426.9 | JJ50: 399.1 | JK50: 359.7 | JL50: 348.1 | JM50: 318.9 | JN50: 289.7 | JO50: 260.6 | JP50: 231.4 | JQ50: 341.8 | JR50: 330.7 | JS50: 303 | JT50: 275.3 | JU50: 247.6 | JV50: 219.9 | JW50: 338.6 | JX50: 327 | JY50: 297.8 | JZ50: 268.6 | KA50: 239.5 | KB50: 210.3 | KC50: 321.7 | KD50: 310.7 | KE50: 283 | KF50: 255.2 | KG50: 227.6 | KH50: 199.8 | KI50: 439.2 | KJ50: 427.6 | KK50: 398.4 | KL50: 369.2 | KM50: 340.1 | KN50: 310.9 | KO50: 417.3 | KP50: 406.3 | KQ50: 378.5 | KR50: 350.8 | KS50: 323.1 | KT50: 295.4 | KU50: 422.6 | KV50: 411 | KW50: 381.8 | KX50: 352.6 | KY50: 323.5 | KZ50: 294.3 | LA50: 401.5 | LB50: 390.5 | LC50: 362.8 | LD50: 335 | LE50: 307.4 | LF50: 279.6 | LG50: 398.7 | LH50: 387.1 | LI50: 358 | LJ50: 328.7 | LK50: 299.6 | LL50: 270.4 | LM50: 378.8 | LN50: 367.8 | LO50: 340.1 | LP50: 312.3 | LQ50: 284.7 | LR50: 256.9 | LS50: 503 | LT50: 491.4 | LU50: 462.2 | LV50: 433 | LW50: 404 | LX50: 374.7 | LY50: 477.9 | LZ50: 466.9 | MA50: 439.1 | MB50: 411.4 | MC50: 383.8 | MD50: 356 | ME50: 483 | MF50: 471.4 | MG50: 442.2 | MH50: 413 | MI50: 384 | MJ50: 354.7 | MK50: 458.9 | ML50: 447.9 | MM50: 420.1 | MN50: 392.4 | MO50: 364.8 | MP50: 337 | MQ50: 400.6 | MR50: 389 | MS50: 359.8 | MT50: 330.6 | MU50: 301.5 | MV50: 272.3 | MW50: 380.6 | MX50: 369.6 | MY50: 341.9 | MZ50: 314.1 | NA50: 286.5 | NB50: 258.7 | NC50: 415.6 | ND50: 404 | NE50: 374.8 | NF50: 345.6 | NG50: 316.5 | NH50: 287.3 | NI50: 394.9 | NJ50: 383.8 | NK50: 356.1 | NL50: 328.4 | NM50: 300.7 | NN50: 273 | NO50: 542.1 | NP50: 530.5 | NQ50: 501.3 | NR50: 472.1 | NS50: 443 | NT50: 413.8 | NU50: 515 | NV50: 504 | NW50: 476.3 | NX50: 448.5 | NY50: 420.9 | NZ50: 393.2 | OA50: 520.3 | OB50: 508.7 | OC50: 479.5 | OD50: 450.3 | OE50: 421.2 | OF50: 392 | OG50: 494.3 | OH50: 483.3 | OI50: 455.6 | OJ50: 427.8 | OK50: 400.2 | OL50: 372.4 | OM50: 361.9 | ON50: 350.3 | OO50: 321.1 | OP50: 292 | OQ50: 262.8 | OR50: 233.6 | OS50: 343.9 | OT50: 332.8 | OU50: 305.1 | OV50: 277.4 | OW50: 249.7 | OX50: 222 | OY50: 526.2 | OZ50: 514.6 | PA50: 485.4 | PB50: 456.2 | PC50: 427.1 | PD50: 398 | PE50: 499.9 | PF50: 488.9 | PG50: 461.2 | PH50: 433.4 | PI50: 405.8 | PJ50: 378.1 | PK50: 464.5 | PL50: 452.9 | PM50: 423.7 | PN50: 394.5 | PO50: 365.4 | PP50: 336.2 | PQ50: 441.3 | PR50: 430.3 | PS50: 402.6 | PT50: 374.8 | PU50: 347.2 | PV50: 319.4 | PW50: 420.1 | PX50: 408.5 | PY50: 379.3 | PZ50: 350.1 | QA50: 321 | QB50: 291.8 | QC50: 399.1 | QD50: 388.1 | QE50: 360.4 | QF50: 332.6 | QG50: 305 | QH50: 277.3 | QI50: 385.7 | QJ50: 374.1 | QK50: 344.9 | QL50: 315.7 | QM50: 286.6 | QN50: 257.4 | QO50: 366.5 | QP50: 355.4 | QQ50: 327.7 | QR50: 300 | QS50: 272.3 | QT50: 244.6 | RG50: 368.8 | RH50: 357.2 | RI50: 328 | RJ50: 298.8 | RK50: 269.7 | RL50: 240.5 | RM50: 350.4 | RN50: 339.4 | RO50: 311.6 | RP50: 283.9 | RQ50: 256.3 | RR50: 228.5 | RS50: 527.3 | RT50: 515.7 | RU50: 486.5 | RV50: 457.3 | RW50: 428.2 | RX50: 399 | RY50: 501 | RZ50: 490 | SA50: 462.2 | SB50: 434.5 | SC50: 406.8 | SD50: 379.1 | SE50: 464.3 | SF50: 452.7 | SG50: 423.5 | SH50: 394.3 | SI50: 365.2 | SJ50: 336 | SK50: 441.1 | SL50: 430.1 | SM50: 402.4 | SN50: 374.6 | SO50: 347 | SP50: 319.2 | SQ50: 422 | SR50: 410.4 | SS50: 381.2 | ST50: 352 | SU50: 322.9 | SV50: 293.7 | SW50: 400.9 | SX50: 389.9 | SY50: 362.2 | SZ50: 334.4 | TA50: 306.8 | TB50: 279.1
D51: SmartCare | F51: 51 | G51: 472.4 | H51: 460.8 | I51: 431.6 | J51: 402.4 | K51: 373.3 | L51: 344.1 | M51: 448.8 | N51: 437.8 | O51: 410.1 | P51: 382.3 | Q51: 354.7 | R51: 326.9 | S51: 401.3 | T51: 389.7 | U51: 360.5 | V51: 331.3 | W51: 302.2 | X51: 273 | Y51: 381.3 | Z51: 370.3 | AA51: 342.5 | AB51: 314.8 | AC51: 287.1 | AD51: 259.4 | AE51: 453.9 | AF51: 442.3 | AG51: 413.1 | AH51: 384 | AI51: 354.8 | AJ51: 325.6 | AK51: 431.3 | AL51: 420.2 | AM51: 392.5 | AN51: 364.8 | AO51: 337.1 | AP51: 309.4 | AQ51: 419.5 | AR51: 408 | AS51: 378.7 | AT51: 349.5 | AU51: 320.4 | AV51: 291.2 | AW51: 398.6 | AX51: 387.6 | AY51: 359.8 | AZ51: 332.1 | BA51: 304.4 | BB51: 276.7 | BC51: 314.2 | BD51: 302.6 | BE51: 273.4 | BF51: 244.2 | BG51: 215.1 | BH51: 187.8 | BI51: 298.5 | BJ51: 287.5 | BK51: 259.8 | BL51: 232 | BM51: 204.4 | BN51: 178.5 | BO51: 473.2 | BP51: 461.6 | BQ51: 432.4 | BR51: 403.2 | BS51: 374.1 | BT51: 344.9 | BU51: 449.6 | BV51: 438.6 | BW51: 410.8 | BX51: 383.1 | BY51: 355.4 | BZ51: 327.7 | CA51: 496.1 | CB51: 484.5 | CC51: 455.3 | CD51: 426.1 | CE51: 397 | CF51: 367.8 | CG51: 471.3 | CH51: 460.3 | CI51: 432.6 | CJ51: 404.8 | CK51: 377.2 | CL51: 349.5 | CM51: 428.3 | CN51: 416.7 | CO51: 387.5 | CP51: 358.3 | CQ51: 329.2 | CR51: 300 | CS51: 406.9 | CT51: 395.9 | CU51: 368.2 | CV51: 340.4 | CW51: 312.8 | CX51: 285 | CY51: 393.8 | CZ51: 382.2 | DA51: 353 | DB51: 323.8 | DC51: 294.7 | DD51: 265.5 | DE51: 374.2 | DF51: 363.1 | DG51: 335.4 | DH51: 307.7 | DI51: 280 | DJ51: 252.3 | DK51: 491.4 | DL51: 479.8 | DM51: 450.6 | DN51: 421.4 | DO51: 392.3 | DP51: 363.1 | DQ51: 466.9 | DR51: 455.9 | DS51: 428.1 | DT51: 400.4 | DU51: 372.7 | DV51: 345 | DW51: 478.2 | DX51: 466.6 | DY51: 437.4 | DZ51: 408.2 | EA51: 379.1 | EB51: 350 | EC51: 454.3 | ED51: 443.3 | EE51: 415.6 | EF51: 387.8 | EG51: 360.2 | EH51: 332.5 | EI51: 512.8 | EJ51: 501.2 | EK51: 472 | EL51: 442.8 | EM51: 413.7 | EN51: 384.5 | EO51: 487.2 | EP51: 476.2 | EQ51: 448.4 | ER51: 420.7 | ES51: 393.1 | ET51: 365.3 | EU51: 516.8 | EV51: 505.2 | EW51: 476 | EX51: 446.8 | EY51: 417.7 | EZ51: 388.5 | FA51: 491 | FB51: 480 | FC51: 452.2 | FD51: 424.5 | FE51: 396.9 | FF51: 369.1 | FG51: 371 | FH51: 359.4 | FI51: 330.2 | FJ51: 301 | FK51: 272 | FL51: 242.7 | FM51: 352.5 | FN51: 341.5 | FO51: 313.7 | FP51: 286 | FQ51: 258.4 | FR51: 230.6 | FS51: 404.4 | FT51: 392.8 | FU51: 363.6 | FV51: 334.4 | FW51: 305.3 | FX51: 276.1 | FY51: 384.2 | FZ51: 373.2 | GA51: 345.5 | GB51: 317.7 | GC51: 290.1 | GD51: 262.3 | GE51: 389.4 | GF51: 377.8 | GG51: 348.6 | GH51: 319.4 | GI51: 290.3 | GJ51: 261.1 | GK51: 370 | GL51: 359 | GM51: 331.2 | GN51: 303.5 | GO51: 275.8 | GP51: 248.1 | GQ51: 380.6 | GR51: 369 | GS51: 339.8 | GT51: 310.6 | GU51: 281.5 | GV51: 252.3 | GW51: 361.6 | GX51: 350.6 | GY51: 322.9 | GZ51: 295.1 | HA51: 267.5 | HB51: 239.7 | HC51: 476 | HD51: 464.4 | HE51: 435.2 | HF51: 406 | HG51: 376.9 | HH51: 347.7 | HI51: 452.2 | HJ51: 441.2 | HK51: 413.5 | HL51: 385.7 | HM51: 358.1 | HN51: 330.4 | HO51: 429.2 | HP51: 417.6 | HQ51: 388.4 | HR51: 359.2 | HS51: 330.1 | HT51: 300.9 | HU51: 407.8 | HV51: 396.8 | HW51: 369 | HX51: 341.3 | HY51: 313.6 | HZ51: 285.9 | IA51: 373.6 | IB51: 362 | IC51: 332.8 | ID51: 303.6 | IE51: 274.5 | IF51: 245.3 | IG51: 355 | IH51: 343.9 | II51: 316.2 | IJ51: 288.5 | IK51: 260.8 | IL51: 233.1 | IM51: 372 | IN51: 360.4 | IO51: 331.2 | IP51: 302 | IQ51: 272.9 | IR51: 243.7 | IS51: 353.4 | IT51: 342.4 | IU51: 314.7 | IV51: 286.9 | IW51: 259.3 | IX51: 231.6 | IY51: 530.3 | IZ51: 518.7 | JA51: 489.5 | JB51: 460.3 | JC51: 431.2 | JD51: 402 | JE51: 503.8 | JF51: 492.8 | JG51: 465.1 | JH51: 437.3 | JI51: 409.7 | JJ51: 381.9 | JK51: 347.8 | JL51: 336.2 | JM51: 307 | JN51: 277.8 | JO51: 248.7 | JP51: 219.5 | JQ51: 330.5 | JR51: 319.4 | JS51: 291.7 | JT51: 264 | JU51: 236.3 | JV51: 208.6 | JW51: 327.4 | JX51: 315.8 | JY51: 286.6 | JZ51: 257.4 | KA51: 228.3 | KB51: 199.1 | KC51: 311.1 | KD51: 300.1 | KE51: 272.3 | KF51: 244.6 | KG51: 216.9 | KH51: 189.2 | KI51: 401 | KJ51: 389.4 | KK51: 360.2 | KL51: 331 | KM51: 302 | KN51: 272.7 | KO51: 381 | KP51: 370 | KQ51: 342.2 | KR51: 314.5 | KS51: 286.9 | KT51: 259.1 | KU51: 385.9 | KV51: 374.3 | KW51: 345.1 | KX51: 316 | KY51: 286.8 | KZ51: 257.6 | LA51: 366.7 | LB51: 355.6 | LC51: 327.9 | LD51: 300.2 | LE51: 272.5 | LF51: 244.8 | LG51: 364 | LH51: 352.4 | LI51: 323.2 | LJ51: 294 | LK51: 264.9 | LL51: 235.7 | LM51: 345.8 | LN51: 334.8 | LO51: 307.1 | LP51: 279.3 | LQ51: 251.7 | LR51: 224 | LS51: 486.4 | LT51: 474.8 | LU51: 445.6 | LV51: 416.4 | LW51: 387.3 | LX51: 358.1 | LY51: 462.1 | LZ51: 451.1 | MA51: 423.4 | MB51: 395.6 | MC51: 368 | MD51: 340.2 | ME51: 467.1 | MF51: 455.5 | MG51: 426.3 | MH51: 397.1 | MI51: 368 | MJ51: 338.8 | MK51: 443.8 | ML51: 432.8 | MM51: 405 | MN51: 377.3 | MO51: 349.6 | MP51: 321.9 | MQ51: 387.4 | MR51: 375.8 | MS51: 346.6 | MT51: 317.4 | MU51: 288.3 | MV51: 259.1 | MW51: 368.1 | MX51: 357.1 | MY51: 329.3 | MZ51: 301.6 | NA51: 273.9 | NB51: 246.2 | NC51: 401.9 | ND51: 390.3 | NE51: 361.1 | NF51: 332 | NG51: 302.8 | NH51: 273.6 | NI51: 381.9 | NJ51: 370.8 | NK51: 343.1 | NL51: 315.4 | NM51: 287.7 | NN51: 260 | NO51: 524.3 | NP51: 512.7 | NQ51: 483.5 | NR51: 454.3 | NS51: 425.2 | NT51: 396 | NU51: 498.1 | NV51: 487.1 | NW51: 459.4 | NX51: 431.6 | NY51: 404 | NZ51: 376.2 | OA51: 503.1 | OB51: 491.5 | OC51: 462.3 | OD51: 433.1 | OE51: 404 | OF51: 374.8 | OG51: 478 | OH51: 467 | OI51: 439.2 | OJ51: 411.5 | OK51: 383.8 | OL51: 356.1 | OM51: 349.9 | ON51: 338.3 | OO51: 309.1 | OP51: 280 | OQ51: 250.8 | OR51: 221.6 | OS51: 332.5 | OT51: 321.4 | OU51: 293.7 | OV51: 266 | OW51: 238.3 | OX51: 210.6 | OY51: 514.9 | OZ51: 503.3 | PA51: 474.1 | PB51: 444.9 | PC51: 415.8 | PD51: 386.6 | PE51: 489.2 | PF51: 478.2 | PG51: 450.4 | PH51: 422.7 | PI51: 395.1 | PJ51: 367.3 | PK51: 469.8 | PL51: 458.2 | PM51: 429 | PN51: 399.8 | PO51: 370.7 | PP51: 341.5 | PQ51: 446.4 | PR51: 435.3 | PS51: 407.6 | PT51: 379.9 | PU51: 352.2 | PV51: 324.5 | PW51: 420.1 | PX51: 408.5 | PY51: 379.3 | PZ51: 350.1 | QA51: 321 | QB51: 291.8 | QC51: 399.1 | QD51: 388.1 | QE51: 360.4 | QF51: 332.6 | QG51: 305 | QH51: 277.3 | QI51: 390.2 | QJ51: 378.6 | QK51: 349.4 | QL51: 320.2 | QM51: 291.1 | QN51: 262 | QO51: 370.7 | QP51: 359.7 | QQ51: 332 | QR51: 304.2 | QS51: 276.6 | QT51: 248.9 | RG51: 348.5 | RH51: 336.9 | RI51: 307.7 | RJ51: 278.5 | RK51: 249.4 | RL51: 220.2 | RM51: 331.1 | RN51: 320.1 | RO51: 292.4 | RP51: 264.6 | RQ51: 237 | RR51: 209.2 | RS51: 481.9 | RT51: 470.3 | RU51: 441.1 | RV51: 412 | RW51: 382.8 | RX51: 353.6 | RY51: 457.9 | RZ51: 446.8 | SA51: 419.1 | SB51: 391.4 | SC51: 363.7 | SD51: 336 | SE51: 429.7 | SF51: 418.1 | SG51: 388.9 | SH51: 359.7 | SI51: 330.6 | SJ51: 301.4 | SK51: 408.3 | SL51: 397.2 | SM51: 369.5 | SN51: 341.8 | SO51: 314.1 | SP51: 286.4 | SQ51: 390.6 | SR51: 379 | SS51: 349.8 | ST51: 320.6 | SU51: 291.5 | SV51: 262.3 | SW51: 371.1 | SX51: 360.1 | SY51: 332.4 | SZ51: 304.6 | TA51: 277 | TB51: 249.2
C52: TAR-HMO | D52: HMO | F52: 52 | G52: 477.7 | H52: 466.1 | I52: 436.9 | J52: 407.7 | K52: 378.6 | L52: 349.4 | M52: 453.9 | N52: 442.8 | O52: 415.1 | P52: 387.4 | Q52: 359.7 | R52: 332 | S52: 430 | T52: 418.4 | U52: 389.2 | V52: 360 | W52: 330.9 | X52: 301.7 | Y52: 408.5 | Z52: 397.5 | AA52: 369.8 | AB52: 342 | AC52: 314.4 | AD52: 286.7 | AE52: 448.7 | AF52: 437.1 | AG52: 408 | AH52: 378.7 | AI52: 349.6 | AJ52: 320.4 | AK52: 426.3 | AL52: 415.3 | AM52: 387.6 | AN52: 359.8 | AO52: 332.2 | AP52: 304.4 | AQ52: 405.4 | AR52: 393.8 | AS52: 364.6 | AT52: 335.4 | AU52: 306.3 | AV52: 277.1 | AW52: 385.2 | AX52: 374.2 | AY52: 346.4 | AZ52: 318.7 | BA52: 291 | BB52: 263.3 | BC52: 317.8 | BD52: 306.2 | BE52: 277 | BF52: 247.8 | BG52: 218.7 | BH52: 189.5 | BI52: 302 | BJ52: 290.9 | BK52: 263.2 | BL52: 235.5 | BM52: 207.8 | BN52: 180.1 | BO52: 478.6 | BP52: 467 | BQ52: 437.8 | BR52: 408.6 | BS52: 379.5 | BT52: 350.3 | BU52: 454.7 | BV52: 443.7 | BW52: 416 | BX52: 388.2 | BY52: 360.6 | BZ52: 332.8 | CA52: 513.4 | CB52: 501.8 | CC52: 472.6 | CD52: 443.4 | CE52: 414.3 | CF52: 385.1 | CG52: 487.8 | CH52: 476.8 | CI52: 449 | CJ52: 421.3 | CK52: 393.6 | CL52: 365.9 | CM52: 448.7 | CN52: 437.1 | CO52: 408 | CP52: 378.7 | CQ52: 349.6 | CR52: 320.4 | CS52: 426.3 | CT52: 415.3 | CU52: 387.6 | CV52: 359.8 | CW52: 332.2 | CX52: 304.4 | CY52: 412.6 | CZ52: 401 | DA52: 371.8 | DB52: 342.6 | DC52: 313.5 | DD52: 284.3 | DE52: 392 | DF52: 381 | DG52: 353.3 | DH52: 325.5 | DI52: 297.9 | DJ52: 270.1 | DK52: 497 | DL52: 485.4 | DM52: 456.2 | DN52: 427 | DO52: 398 | DP52: 368.7 | DQ52: 472.2 | DR52: 461.2 | DS52: 433.4 | DT52: 405.7 | DU52: 378.1 | DV52: 350.3 | DW52: 467.4 | DX52: 455.8 | DY52: 426.6 | DZ52: 397.4 | EA52: 368.3 | EB52: 339.1 | EC52: 444.1 | ED52: 433.1 | EE52: 405.3 | EF52: 377.6 | EG52: 349.9 | EH52: 322.2 | EI52: 525 | EJ52: 513.4 | EK52: 484.2 | EL52: 455 | EM52: 426 | EN52: 396.7 | EO52: 498.8 | EP52: 487.8 | EQ52: 460 | ER52: 432.3 | ES52: 404.7 | ET52: 376.9 | EU52: 535.3 | EV52: 523.7 | EW52: 494.5 | EX52: 465.3 | EY52: 436.2 | EZ52: 407 | FA52: 508.6 | FB52: 497.6 | FC52: 469.8 | FD52: 442.1 | FE52: 414.4 | FF52: 386.7 | HO52: 434.1 | HP52: 422.5 | HQ52: 393.3 | HR52: 364.1 | HS52: 335 | HT52: 305.8 | HU52: 412.4 | HV52: 401.4 | HW52: 373.7 | HX52: 345.9 | HY52: 318.3 | HZ52: 290.6 | IA52: 395.8 | IB52: 384.2 | IC52: 355 | ID52: 325.8 | IE52: 296.7 | IF52: 267.5 | IG52: 376.1 | IH52: 365 | II52: 337.3 | IJ52: 309.6 | IK52: 281.9 | IL52: 254.2 | IM52: 376.3 | IN52: 364.7 | IO52: 335.5 | IP52: 306.3 | IQ52: 277.2 | IR52: 248 | IS52: 357.5 | IT52: 346.5 | IU52: 318.8 | IV52: 291 | IW52: 263.4 | IX52: 235.6 | JK52: 343.9 | JL52: 332.3 | JM52: 303.1 | JN52: 274 | JO52: 244.8 | JP52: 215.6 | JQ52: 326.8 | JR52: 315.7 | JS52: 288 | JT52: 260.3 | JU52: 232.6 | JV52: 204.9 | JW52: 320 | JX52: 308.4 | JY52: 279.2 | JZ52: 250 | KA52: 220.9 | KB52: 195.7 | KC52: 304 | KD52: 293 | KE52: 265.3 | KF52: 237.5 | KG52: 209.9 | KH52: 186 | KI52: 424.8 | KJ52: 413.2 | KK52: 384 | KL52: 354.8 | KM52: 325.7 | KN52: 296.5 | KO52: 403.6 | KP52: 392.6 | KQ52: 364.8 | KR52: 337.1 | KS52: 309.5 | KT52: 281.7 | KU52: 408.8 | KV52: 397.2 | KW52: 368 | KX52: 338.8 | KY52: 309.7 | KZ52: 280.5 | LA52: 388.4 | LB52: 377.4 | LC52: 349.6 | LD52: 321.9 | LE52: 294.3 | LF52: 266.5 | LG52: 385.7 | LH52: 374.1 | LI52: 344.9 | LJ52: 315.7 | LK52: 286.6 | LL52: 257.4 | LM52: 366.5 | LN52: 355.4 | LO52: 327.7 | LP52: 300 | LQ52: 272.3 | LR52: 244.6 | LS52: 486.4 | LT52: 474.8 | LU52: 445.6 | LV52: 416.4 | LW52: 387.3 | LX52: 358.1 | LY52: 462.1 | LZ52: 451.1 | MA52: 423.4 | MB52: 395.6 | MC52: 368 | MD52: 340.2 | ME52: 467.1 | MF52: 455.5 | MG52: 426.3 | MH52: 397.1 | MI52: 368 | MJ52: 338.8 | MK52: 443.8 | ML52: 432.8 | MM52: 405 | MN52: 377.3 | MO52: 349.6 | MP52: 321.9 | MQ52: 383 | MR52: 371.4 | MS52: 342.2 | MT52: 313 | MU52: 284 | MV52: 254.7 | MW52: 363.9 | MX52: 352.9 | MY52: 325.1 | MZ52: 297.4 | NA52: 269.8 | NB52: 242 | NC52: 397.3 | ND52: 385.7 | NE52: 356.5 | NF52: 327.3 | NG52: 298.2 | NH52: 269 | NI52: 377.5 | NJ52: 366.5 | NK52: 338.7 | NL52: 311 | NM52: 283.3 | NN52: 255.6 | NO52: 500.4 | NP52: 488.8 | NQ52: 459.6 | NR52: 430.4 | NS52: 401.3 | NT52: 372.1 | NU52: 475.4 | NV52: 464.4 | NW52: 436.7 | NX52: 408.9 | NY52: 381.3 | NZ52: 353.5 | OA52: 480.3 | OB52: 468.7 | OC52: 439.5 | OD52: 410.3 | OE52: 381.2 | OF52: 352 | OG52: 456.3 | OH52: 445.3 | OI52: 417.6 | OJ52: 389.8 | OK52: 362.2 | OL52: 334.4 | OM52: 334 | ON52: 322.4 | OO52: 293.2 | OP52: 264 | OQ52: 234.9 | OR52: 209.2 | OS52: 317.3 | OT52: 306.3 | OU52: 278.6 | OV52: 250.8 | OW52: 223.2 | OX52: 198.8 | OY52: 503.6 | OZ52: 492 | PA52: 462.8 | PB52: 433.6 | PC52: 404.5 | PD52: 375.3 | PE52: 478.5 | PF52: 467.4 | PG52: 439.7 | PH52: 412 | PI52: 384.3 | PJ52: 356.6 | PK52: 475.1 | PL52: 463.5 | PM52: 434.3 | PN52: 405.1 | PO52: 376 | PP52: 346.8 | PQ52: 451.4 | PR52: 440.4 | PS52: 412.6 | PT52: 384.9 | PU52: 357.2 | PV52: 329.5 | PW52: 429.6 | PX52: 418 | PY52: 388.8 | PZ52: 359.6 | QA52: 330.5 | QB52: 301.3 | QC52: 408.2 | QD52: 397.1 | QE52: 369.4 | QF52: 341.7 | QG52: 314 | QH52: 286.3 | RG52: 348.5 | RH52: 336.9 | RI52: 307.7 | RJ52: 278.5 | RK52: 249.4 | RL52: 220.2 | RM52: 331.1 | RN52: 320.1 | RO52: 292.4 | RP52: 264.6 | RQ52: 237 | RR52: 209.2 | RS52: 470.6 | RT52: 459 | RU52: 429.8 | RV52: 400.6 | RW52: 371.5 | RX52: 342.3 | RY52: 447.1 | RZ52: 436.1 | SA52: 408.4 | SB52: 380.6 | SC52: 353 | SD52: 325.2 | SE52: 439.6 | SF52: 428 | SG52: 398.8 | SH52: 369.6 | SI52: 340.5 | SJ52: 311.3 | SK52: 417.7 | SL52: 406.6 | SM52: 378.9 | SN52: 351.2 | SO52: 323.5 | SP52: 295.8 | SQ52: 399.6 | SR52: 388 | SS52: 358.8 | ST52: 329.6 | SU52: 300.5 | SV52: 271.3 | SW52: 379.7 | SX52: 368.6 | SY52: 340.9 | SZ52: 313.2 | TA52: 285.5 | TB52: 257.8
A53: 343 | B53: Avenir Assurance Maladie SA | C53: TAR-BASE | D53: Assurance de base | F53: 53 | G53: 546 | H53: 534.5 | I53: 505.5 | J53: 476 | K53: 447 | L53: 418 | M53: 507.8 | N53: 497.1 | O53: 470.2 | P53: 442.7 | Q53: 415.8 | R53: 388.8 | S53: 513.3 | T53: 501.8 | U53: 472.8 | V53: 443.3 | W53: 414.3 | X53: 385.3 | Y53: 477.4 | Z53: 466.7 | AA53: 439.8 | AB53: 412.3 | AC53: 385.3 | AD53: 358.4 | AE53: 557.9 | AF53: 546.4 | AG53: 517.4 | AH53: 487.9 | AI53: 458.9 | AJ53: 429.9 | AK53: 518.9 | AL53: 508.2 | AM53: 481.2 | AN53: 453.8 | AO53: 426.8 | AP53: 399.9 | AQ53: 496.3 | AR53: 484.8 | AS53: 455.8 | AT53: 426.3 | AU53: 397.3 | AV53: 368.3 | AW53: 461.6 | AX53: 450.9 | AY53: 423.9 | AZ53: 396.5 | BA53: 369.5 | BB53: 342.6 | BC53: 440.4 | BD53: 428.9 | BE53: 399.9 | BF53: 370.4 | BG53: 341.4 | BH53: 312.4 | BI53: 409.6 | BJ53: 398.9 | BK53: 372 | BL53: 344.5 | BM53: 317.6 | BN53: 290.6 | BO53: 486.3 | BP53: 474.8 | BQ53: 445.8 | BR53: 416.3 | BS53: 387.3 | BT53: 358.3 | BU53: 452.3 | BV53: 441.6 | BW53: 414.6 | BX53: 387.2 | BY53: 360.2 | BZ53: 333.3 | CA53: 590.8 | CB53: 579.3 | CC53: 550.3 | CD53: 520.8 | CE53: 491.8 | CF53: 462.8 | CG53: 549.5 | CH53: 538.8 | CI53: 511.8 | CJ53: 484.4 | CK53: 457.4 | CL53: 430.5 | CM53: 531.8 | CN53: 520.3 | CO53: 491.3 | CP53: 461.8 | CQ53: 432.8 | CR53: 403.8 | CS53: 494.6 | CT53: 483.9 | CU53: 457 | CV53: 429.5 | CW53: 402.6 | CX53: 375.6 | CY53: 496.3 | CZ53: 484.8 | DA53: 455.8 | DB53: 426.3 | DC53: 397.3 | DD53: 368.3 | DE53: 461.6 | DF53: 450.9 | DG53: 423.9 | DH53: 396.5 | DI53: 369.5 | DJ53: 342.6 | DK53: 568.9 | DL53: 557.4 | DM53: 528.4 | DN53: 498.9 | DO53: 469.9 | DP53: 440.9 | DQ53: 529.1 | DR53: 518.4 | DS53: 491.5 | DT53: 464 | DU53: 437.1 | DV53: 410.1 | DW53: 540.5 | DX53: 529 | DY53: 500 | DZ53: 470.5 | EA53: 441.5 | EB53: 412.5 | EC53: 502.7 | ED53: 492 | EE53: 465 | EF53: 437.6 | EG53: 410.6 | EH53: 383.7 | EI53: 625.6 | EJ53: 614.1 | EK53: 585.1 | EL53: 555.6 | EM53: 526.6 | EN53: 497.6 | EO53: 581.9 | EP53: 571.2 | EQ53: 544.2 | ER53: 516.8 | ES53: 489.8 | ET53: 462.8 | EU53: 714.4 | EV53: 702.9 | EW53: 673.9 | EX53: 644.4 | EY53: 615.4 | EZ53: 586.4 | FA53: 664.4 | FB53: 653.7 | FC53: 626.8 | FD53: 599.3 | FE53: 572.4 | FF53: 545.4 | FG53: 428.5 | FH53: 417 | FI53: 388 | FJ53: 358.5 | FK53: 329.5 | FL53: 300.5 | FM53: 398.6 | FN53: 387.9 | FO53: 360.9 | FP53: 333.5 | FQ53: 306.5 | FR53: 279.5 | FS53: 488.4 | FT53: 476.9 | FU53: 447.9 | FV53: 418.4 | FW53: 389.4 | FX53: 360.4 | FY53: 454.3 | FZ53: 443.6 | GA53: 416.6 | GB53: 389.2 | GC53: 362.2 | GD53: 335.2 | GE53: 481.1 | GF53: 469.6 | GG53: 440.6 | GH53: 411.1 | GI53: 382.1 | GJ53: 353.1 | GK53: 447.5 | GL53: 436.8 | GM53: 409.8 | GN53: 382.4 | GO53: 355.4 | GP53: 328.4 | GQ53: 464 | GR53: 452.5 | GS53: 423.5 | GT53: 394 | GU53: 365 | GV53: 336 | GW53: 431.6 | GX53: 420.9 | GY53: 393.9 | GZ53: 366.5 | HA53: 339.5 | HB53: 312.5 | HC53: 689.8 | HD53: 678.3 | HE53: 649.3 | HF53: 619.8 | HG53: 590.8 | HH53: 561.8 | HI53: 641.6 | HJ53: 630.9 | HK53: 603.9 | HL53: 576.5 | HM53: 549.5 | HN53: 522.5 | HO53: 492.3 | HP53: 480.8 | HQ53: 451.8 | HR53: 422.3 | HS53: 393.3 | HT53: 364.3 | HU53: 457.9 | HV53: 447.2 | HW53: 420.2 | HX53: 392.8 | HY53: 365.8 | HZ53: 338.8 | IA53: 472.7 | IB53: 461.2 | IC53: 432.2 | ID53: 402.7 | IE53: 373.7 | IF53: 344.7 | IG53: 439.7 | IH53: 429 | II53: 402 | IJ53: 374.6 | IK53: 347.6 | IL53: 320.6 | IM53: 462.8 | IN53: 451.3 | IO53: 422.3 | IP53: 392.8 | IQ53: 363.8 | IR53: 334.8 | IS53: 430.5 | IT53: 419.8 | IU53: 392.8 | IV53: 365.4 | IW53: 338.4 | IX53: 311.4 | IY53: 667.8 | IZ53: 656.3 | JA53: 627.3 | JB53: 597.8 | JC53: 568.8 | JD53: 539.8 | JE53: 621.1 | JF53: 610.4 | JG53: 583.4 | JH53: 556 | JI53: 529 | JJ53: 502.1 | JK53: 398.5 | JL53: 387 | JM53: 358 | JN53: 328.5 | JO53: 299.5 | JP53: 270.5 | JQ53: 370.7 | JR53: 360 | JS53: 333 | JT53: 305.6 | JU53: 278.6 | JV53: 251.6 | JW53: 455.4 | JX53: 443.9 | JY53: 414.9 | JZ53: 385.4 | KA53: 356.4 | KB53: 327.4 | KC53: 423.6 | KD53: 412.9 | KE53: 385.9 | KF53: 358.5 | KG53: 331.5 | KH53: 304.5 | KI53: 504.3 | KJ53: 492.8 | KK53: 463.8 | KL53: 434.3 | KM53: 405.3 | KN53: 376.3 | KO53: 469 | KP53: 458.4 | KQ53: 431.4 | KR53: 403.9 | KS53: 377 | KT53: 350 | KU53: 489.2 | KV53: 477.7 | KW53: 448.7 | KX53: 419.2 | KY53: 390.2 | KZ53: 361.2 | LA53: 455 | LB53: 444.3 | LC53: 417.3 | LD53: 389.9 | LE53: 362.9 | LF53: 336 | LG53: 474.1 | LH53: 462.6 | LI53: 433.6 | LJ53: 404.1 | LK53: 375.1 | LL53: 346.1 | LM53: 441 | LN53: 430.3 | LO53: 403.3 | LP53: 375.9 | LQ53: 348.9 | LR53: 321.9 | LS53: 575 | LT53: 563.5 | LU53: 534.5 | LV53: 505 | LW53: 476 | LX53: 447 | LY53: 534.8 | LZ53: 524.1 | MA53: 497.1 | MB53: 469.7 | MC53: 442.7 | MD53: 415.8 | ME53: 540.5 | MF53: 529 | MG53: 500 | MH53: 470.5 | MI53: 441.5 | MJ53: 412.5 | MK53: 502.7 | ML53: 492 | MM53: 465 | MN53: 437.6 | MO53: 410.6 | MP53: 383.7 | MQ53: 480.1 | MR53: 468.6 | MS53: 439.6 | MT53: 410.1 | MU53: 381.1 | MV53: 352.1 | MW53: 446.5 | MX53: 435.8 | MY53: 408.9 | MZ53: 381.4 | NA53: 354.5 | NB53: 327.5 | NC53: 439.3 | ND53: 427.8 | NE53: 398.8 | NF53: 369.3 | NG53: 340.3 | NH53: 311.3 | NI53: 408.6 | NJ53: 397.9 | NK53: 370.9 | NL53: 343.5 | NM53: 316.5 | NN53: 289.6 | NO53: 603.9 | NP53: 592.4 | NQ53: 563.4 | NR53: 533.9 | NS53: 504.9 | NT53: 475.9 | NU53: 561.7 | NV53: 551 | NW53: 524 | NX53: 496.6 | NY53: 469.6 | NZ53: 442.6 | OA53: 555.6 | OB53: 544.1 | OC53: 515.1 | OD53: 485.6 | OE53: 456.6 | OF53: 427.6 | OG53: 516.8 | OH53: 506.1 | OI53: 479.1 | OJ53: 451.7 | OK53: 424.7 | OL53: 397.7 | OM53: 410.5 | ON53: 399 | OO53: 370 | OP53: 340.5 | OQ53: 311.5 | OR53: 282.5 | OS53: 381.8 | OT53: 371.1 | OU53: 344.1 | OV53: 316.7 | OW53: 289.7 | OX53: 262.8 | OY53: 585.7 | OZ53: 574.2 | PA53: 545.2 | PB53: 515.7 | PC53: 486.7 | PD53: 457.7 | PE53: 544.8 | PF53: 534.1 | PG53: 507.1 | PH53: 479.7 | PI53: 452.7 | PJ53: 425.7 | PK53: 544.8 | PL53: 533.3 | PM53: 504.3 | PN53: 474.8 | PO53: 445.8 | PP53: 416.8 | PQ53: 506.7 | PR53: 496 | PS53: 469 | PT53: 441.6 | PU53: 414.6 | PV53: 387.7 | PW53: 509.7 | PX53: 498.2 | PY53: 469.2 | PZ53: 439.7 | QA53: 410.7 | QB53: 381.7 | QC53: 474.1 | QD53: 463.4 | QE53: 436.4 | QF53: 409 | QG53: 382 | QH53: 355 | QI53: 489.4 | QJ53: 477.9 | QK53: 448.9 | QL53: 419.4 | QM53: 390.4 | QN53: 361.4 | QO53: 455.2 | QP53: 444.5 | QQ53: 417.5 | QR53: 390.1 | QS53: 363.1 | QT53: 336.2 | RG53: 447.5 | RH53: 436 | RI53: 407 | RJ53: 377.5 | RK53: 348.5 | RL53: 319.5 | RM53: 416.2 | RN53: 405.5 | RO53: 378.6 | RP53: 351.1 | RQ53: 324.2 | RR53: 297.2 | RS53: 546 | RT53: 534.5 | RU53: 505.5 | RV53: 476 | RW53: 447 | RX53: 418 | RY53: 507.8 | RZ53: 497.1 | SA53: 470.2 | SB53: 442.7 | SC53: 415.8 | SD53: 388.8 | SE53: 518.7 | SF53: 507.2 | SG53: 478.2 | SH53: 448.7 | SI53: 419.7 | SJ53: 390.7 | SK53: 482.4 | SL53: 471.7 | SM53: 444.8 | SN53: 417.3 | SO53: 390.4 | SP53: 363.4 | SQ53: 507.8 | SR53: 496.3 | SS53: 467.3 | ST53: 437.8 | SU53: 408.8 | SV53: 379.8 | SW53: 472.3 | SX53: 461.6 | SY53: 434.6 | SZ53: 407.2 | TA53: 380.2 | TB53: 353.3
